Workbook

Sheet Instructions
A1: This workbook contains a copy of the predefined three-sided precast concrete shapes as stored in the HECRAS (v4.1.0) HDS-5 culvert modeling routines.
A2: Some three-sided shapes in HECRAS are created by stretching, extrapolating or expanding the defining shape equations to generate the shape geometry.
A3: The Conspan designation is being used as a generic term to describe all such structures manufactured in a similar manner and does not refer to any specific manufacturer.
A4: Bridge shapes are presented in a series of worksheets with one span series per worksheet. All culvert shapes are on one spreadsheet.
A5: Each span series is grouped by increasing height for each set of x and y coordinates. Plotted arch shapes are displayed below the tables.
A6: Most shapes are defined by 53 coordinate pairs while some shapes use 51 coordinate pairs to define a particular arch.
A7: These defined shapes are necessary in creating a bridge model in HECRAS and in creating equivalent user defined structures in HY8 (19 points, max.)
A9: Each culvert table has been color coded along the top and sides to indicate maufacturer.
A10: Table cells displayed in this color represent shapes that are manufactured solely by Conspan.
A11: Table cells displayed in this color represent shapes that are manufactured solely by Ecospan.
A12: Table cells displayed in this color represent shapes that are manufactured by Aqua-Arch or Ecospan.
A13: Table cells displayed in this color represent shapes that are manufactured by Aqua-Arch, Conspan or Ecospan.
A14: Table cells displayed in this color represent HECRAS culvert shapes that are the closest design choice for Hy-Span.
A16: Cross sectional area comparison values have been placed below each table as an aid to check the accuracy of the shape geometry.
A17: The first value is the spreadsheet calculated area of the shape based on the HECRAS culvert coordinates.
A18: The second value is the flow area of the structure reported by HECRAS for a full flow condition. Not all cells are populated.
A19: The third value is the cross sectional area of the shape as reported by the manufacturer. Not all cells are populated.
A21: Shapes not included in this workbook may be used provided they have been submitted to the Drainage Branch and approved prior to use.
A22: The Drainage Branch requires a HECRAS and / or a HY8 analysis for all three-sided shapes not considered equivalent or similar to the user defined or predefined shapes.
A24: This workbook is meant to be an aid to the designer in creating a HECRAS bridge model using the predefined culvert shapes. A macro has been created for this purpose.
A25: Before running macro, recommend making a sketch of the crossing with approximate coordinates for the flow line and road profile endpoints to use as you select a three sided culvert.
A26: Execute the macro by pressing "CTRL-T" and follow the instructions shown. The user is asked to enter a span and height to see if that shape exists.
A27: The shape selected by the macro is displayed in the "HECRAS Shapes" worksheet. The user may manipulate the shape data to account for datum adjustments, embedment
A28: and pedestals. Once adjusted, the data is copied into the HECRAS deck / roadway editor.
A29: The user is responsible for creating an internal bridge shape that correctly models effective flow design assumptions and stream bottom geometry.
A31: The HECRAS predefined shapes have been used to create user-defined structures to use in HY-8. Structure selection for HY8 predefined shapes is manual as there is no macro.
A32: Culvert shapes are defined by 19 coordinate pairs based on the 51 or 53 coordinate base pairs in HECRAS.
A33: Tools similar to those in the HECRAS Shapes spreadsheet allow the user to shift the coordinates.
A34: The HY8 shapes are contained in the "HY8 Shapes" worksheet. Follow the instructions on that worksheet to create a user defined shape for HY8.
A36: Some of the information included in this workbook may appear in error but is based on values supplied by manufacturers / suppliers and as modeled in HECRAS.
A37: Information in this workbook is based on shape data as supplied by precast manufacturers and suppliers and will be updated periodically as shapes are added, discontinued or changed.
A38: Contact the Drainage Branch if there are questions regarding any of these shapes, information, policies or procedures described herein (502-564-3280).

Sheet Bridge Shapes
A1: SELECTION OF HECRAS PREDEFINED CULVERT SHAPE FOR USE IN HECRAS BRIDGE MODELING | Z1: v11-14
A2: THREE SIDED DATA | F2: FINAL COORDINATES
A3: X | B3: Y - road | C3: Y - low ch. | F3: PT | G3: New X | H3: New Yr | I3: New Ylc
A4: 2 | B4: 222 | C4: 100 | G4: =A4+$L$26 -> 2 | H4: =B4+$M$26 -> 222 | I4: =C4+$N$26 -> 100
A5: 83 | B5: 222.244713 | C5: 100 | F5: 1 | G5: 83 | H5: 222.244713 | I5: 100 | L5: press CTRL - T to run macro to retrieve shape
A6: 83 | B6: 222.244713 | C6: 103.05 | F6: =F5+1 -> 2 | G6: 83 | H6: 222.244713 | I6: 103.05
A7: 83.022 | B7: 222.2447795 | C7: 103.465 | F7: =F6+1 -> 3 | G7: 83.022 | H7: 222.2447795 | I7: 103.465
A8: 83.086 | B8: 222.2449728 | C8: 103.875 | F8: 4 | G8: 83.086 | H8: 222.2449728 | I8: 103.875
A9: 83.193 | B9: 222.2452961 | C9: 104.277 | F9: 5 | G9: 83.193 | H9: 222.2452961 | I9: 104.277 | L9: COVER CHECK
A10: 83.342 | B10: 222.2457462 | C10: 104.665 | F10: 6 | G10: 83.342 | H10: 222.2457462 | I10: 104.665
A11: 83.529 | B11: 222.2463112 | C11: 105.035 | F11: 7 | G11: 83.529 | H11: 222.2463112 | I11: 105.035 | L11: =IF(H31<I31,"LOW CHORD EXCEEDS TOP OF ROAD",IF(H31-I31>1.5,"COVER OK","COVER <1.5 ft.")) -> COVER OK
A12: 83.755 | B12: 222.246994 | C12: 105.384 | F12: 8 | G12: 83.755 | H12: 222.246994 | I12: 105.384
A13: 84.015 | B13: 222.2477795 | C13: 105.707 | F13: 9 | G13: 84.015 | H13: 222.2477795 | I13: 105.707 | P13: USER AREA
A14: 84.3 | B14: 222.2486405 | C14: 105.995 | F14: 10 | G14: 84.3 | H14: 222.2486405 | I14: 105.995
A15: 84.711 | B15: 222.2498822 | C15: 106.352 | F15: 11 | G15: 84.711 | H15: 222.2498822 | I15: 106.352
A16: 85.141 | B16: 222.2511813 | C16: 106.686 | F16: 12 | G16: 85.141 | H16: 222.2511813 | I16: 106.686
A17: 85.589 | B17: 222.2525347 | C17: 106.995 | F17: 13 | G17: 85.589 | H17: 222.2525347 | I17: 106.995
A18: 86.053 | B18: 222.2539366 | C18: 107.28 | F18: 14 | G18: 86.053 | H18: 222.2539366 | I18: 107.28 | L18: Use this area when there is a need to shift the selected shape vertically or horizontally.
A19: 86.532 | B19: 222.2553837 | C19: 107.54 | F19: 15 | G19: 86.532 | H19: 222.2553837 | I19: 107.54
A20: 87.025 | B20: 222.2568731 | C20: 107.772 | F20: 16 | G20: 87.025 | H20: 222.2568731 | I20: 107.772
A21: 87.529 | B21: 222.2583958 | C21: 107.978 | F21: 17 | G21: 87.529 | H21: 222.2583958 | I21: 107.978 | L21: NOTE: All structures are initially centered at x = 230 with a flow line elevation = 100.
A22: 88.048 | B22: 222.2599637 | C22: 108.157 | F22: 18 | G22: 88.048 | H22: 222.2599637 | I22: 108.157
A23: 89.34 | B23: 222.2638671 | C23: 108.541 | F23: 19 | G23: 89.34 | H23: 222.2638671 | I23: 108.541 | L23: (1) | M23: (2) | N23: (3)
A24: 90.645 | B24: 222.2678097 | C24: 108.881 | F24: 20 | G24: 90.645 | H24: 222.2678097 | I24: 108.881 | L24: Horizontal / Vertical Shift | P24: (1) - X, Roadway Station
A25: 91.961 | B25: 222.2717855 | C25: 109.177 | F25: 21 | G25: 91.961 | H25: 222.2717855 | I25: 109.177 | L25: X shift | M25: Yr shift | N25: Ylc shift | P25: (2) - Yr, Roadway Profile Elevation
A26: 93.287 | B26: 222.2757915 | C26: 109.428 | F26: 22 | G26: 93.287 | H26: 222.2757915 | I26: 109.428 | L26: 0 | M26: 0 | N26: 0 | P26: (3) - Ylc, Low Chord Elevation (bottom of arch)
A27: 94.62 | B27: 222.2798187 | C27: 109.634 | F27: 23 | G27: 94.62 | H27: 222.2798187 | I27: 109.634
A28: 95.96 | B28: 222.2838671 | C28: 109.794 | F28: 24 | G28: 95.96 | H28: 222.2838671 | I28: 109.794 | L28: The X and Y coordinates in columns A and B are retrieved by the macro. This may be performed manually.
A29: 97.304 | B29: 222.2879275 | C29: 109.908 | F29: 25 | G29: 97.304 | H29: 222.2879275 | I29: 109.908 | L29: The X, Y and Y coordinates in columns A, B and C may be shifted to better fit the site geometry (see above).
A30: 98.651 | B30: 222.291997 | C30: 109.977 | F30: 26 | G30: 98.651 | H30: 222.291997 | I30: 109.977 | L30: Enter values above to shift the roadway station (X), roadway profile elevation (Yr) or low chord elevation (Ylc).
A31: 100 | B31: 222.2960725 | C31: 110 | F31: 27 | G31: 100 | H31: 222.2960725 | I31: 110 | L31: Copy (ctrl-C) and paste (ctrl-V) the final co-ordinates into the HECRAS deck / roadway data editor.
A32: 101.349 | B32: 222.300148 | C32: 109.977 | F32: 28 | G32: 101.349 | H32: 222.300148 | I32: 109.977
A33: 102.696 | B33: 222.3042175 | C33: 109.908 | F33: 29 | G33: 102.696 | H33: 222.3042175 | I33: 109.908
A34: 104.04 | B34: 222.3082779 | C34: 109.794 | F34: 30 | G34: 104.04 | H34: 222.3082779 | I34: 109.794
A35: 105.38 | B35: 222.3123263 | C35: 109.634 | F35: 31 | G35: 105.38 | H35: 222.3123263 | I35: 109.634 | L35: It may be necessary to adjust the internal bridge geometry to account for flowline shape,
A36: 106.713 | B36: 222.3163535 | C36: 109.428 | F36: 32 | G36: =A36+$L$26 -> 106.713 | H36: =B36+$M$26 -> 222.3163535 | I36: =C36+$N$26 -> 109.428 | L36: keyway elevation, anticipated sediment and/or structure embedment.
A37: 108.039 | B37: 222.3203595 | C37: 109.177 | F37: 33 | G37: 108.039 | H37: 222.3203595 | I37: 109.177 | L37: Adjust internal bridge geometry if pedestals are added.
A38: 109.355 | B38: 222.3243353 | C38: 108.881 | F38: 34 | G38: 109.355 | H38: 222.3243353 | I38: 108.881
A39: 110.66 | B39: 222.3282779 | C39: 108.541 | F39: 35 | G39: 110.66 | H39: 222.3282779 | I39: 108.541
A40: 111.952 | B40: 222.3321813 | C40: 108.157 | F40: 36 | G40: 111.952 | H40: 222.3321813 | I40: 108.157
A41: 112.471 | B41: 222.3337492 | C41: 107.978 | F41: 37 | G41: 112.471 | H41: 222.3337492 | I41: 107.978
A42: 112.975 | B42: 222.3352719 | C42: 107.772 | F42: 38 | G42: 112.975 | H42: 222.3352719 | I42: 107.772
A43: 113.468 | B43: 222.3367613 | C43: 107.54 | F43: 39 | G43: 113.468 | H43: 222.3367613 | I43: 107.54
A44: 113.947 | B44: 222.3382085 | C44: 107.28 | F44: 40 | G44: 113.947 | H44: 222.3382085 | I44: 107.28
A45: 114.411 | B45: 222.3396103 | C45: 106.995 | F45: 41 | G45: 114.411 | H45: 222.3396103 | I45: 106.995
A46: 114.859 | B46: 222.3409637 | C46: 106.686 | F46: 42 | G46: 114.859 | H46: 222.3409637 | I46: 106.686
A47: 115.289 | B47: 222.3422628 | C47: 106.352 | F47: 43 | G47: 115.289 | H47: 222.3422628 | I47: 106.352
A48: 115.7 | B48: 222.3435045 | C48: 105.995 | F48: 44 | G48: 115.7 | H48: 222.3435045 | I48: 105.995
A49: 115.985 | B49: 222.3443656 | C49: 105.707 | F49: 45 | G49: 115.985 | H49: 222.3443656 | I49: 105.707
A50: 116.245 | B50: 222.3451511 | C50: 105.384 | F50: 46 | G50: 116.245 | H50: 222.3451511 | I50: 105.384
A51: 116.471 | B51: 222.3458338 | C51: 105.035 | F51: 47 | G51: 116.471 | H51: 222.3458338 | I51: 105.035
A52: 116.658 | B52: 222.3463988 | C52: 104.665 | F52: 48 | G52: 116.658 | H52: 222.3463988 | I52: 104.665
A53: 116.807 | B53: 222.3468489 | C53: 104.277 | F53: 49 | G53: 116.807 | H53: 222.3468489 | I53: 104.277
A54: 116.914 | B54: 222.3471722 | C54: 103.875 | F54: 50 | G54: 116.914 | H54: 222.3471722 | I54: 103.875
A55: 116.978 | B55: 222.3473656 | C55: 103.465 | F55: 51 | G55: 116.978 | H55: 222.3473656 | I55: 103.465
A56: 117 | B56: 222.347432 | C56: 103.05 | F56: =IF(A56=0,"",F55+1) -> 52 | G56: =IF(A56=0,"",A56+$L$26) -> 117 | H56: =IF(B56=0,"",B56+$M$26) -> 222.347432 | I56: =IF(C56=0,"",C56+$N$26) -> 103.05
A57: 117 | B57: 222.347432 | C57: 100 | F57: =IF(A57=0,"",F56+1) -> 53 | G57: =IF(A57=0,"",A57+$L$26) -> 117 | H57: =IF(B57=0,"",B57+$M$26) -> 222.347432 | I57: =IF(C57=0,"",C57+$N$26) -> 100
A58: 333 | B58: 223 | C58: 100 | G58: =IF(A58=0,"",A58+$L$26) -> 333 | H58: =IF(B58=0,"",B58+$M$26) -> 223 | I58: =IF(C58=0,"",C58+$N$26) -> 100

Sheet HY8 Shapes
A1: SELECTION OF CULVERT SHAPE FOR USE IN HY8 AS A USER DEFINED STRUCTURE | V1: v11-14
A3: HY8 SHAPE SELECTION STEPS:
B5: 1. MANUALLY LOCATE AND COPY (CTRL-C) DESIRED THREE-SIDED GEOMETRY (X-Y) FROM THE SHAPES LISTED BELOW.
B7: 2. PASTE (CTRL-V) X-Y COORDINATES INTO TABLE A, "SELECTED STRUCTURE".
B9: 3. AS NEEDED, USE TABLES B OR C TO ADJUST STRUCTURE VERTICALLY.
B11: 4. COPY AND PASTE X-Y COORDINATES FROM TABLES A, B OR TABLE C TO USER DEFINED SHAPE TABLE IN HY8.
C12: Copy X column to "X (ft)" column in HY8. Copy Y column to "Y-Top (ft)" column in HY8.
C13: Do not copy any value into" Y-Bottom (ft)" column in HY8 (all values = 0).
B15: NOTE: | C15: Generic HY8 shape. (1)
C16: See HY-8 manual for instructions on embedding a predefined structure.
C17: These shapes extrapolated from predefined Conspan shapes in HECRAS and not available as predefined shape in HY8.
M19: Embedment | R19: Pedestal
M20: Adjustment | R20: Adjustment
M21: 2 | R21: 4
L22: max. allow. Embed. = | O22: =I29 -> 8.25
A24: SELECTED | F24: HY8 GEOMETRIES
A25: STRUCTURE | F25: TABLE A (1) | K25: TABLE B - Embeded | P25: TABLE C - with Pedestal
I26: . | N26: . | S26: .
B27: PT | C27: X | D27: Y | G27: PT | H27: X | I27: Y | L27: PT | M27: New X | N27: New Y | Q27: PT | R27: New X | S27: New Y
B28: 1 | C28: 216 | D28: 92.875 | G28: 1 | H28: =C28-$C$28 -> 0 | I28: =D28-$D$28 -> 0 | L28: 1 | M28: =H28 -> 0 | N28: =IF(I28=0,0,IF(I28-$M$21<0,0,I28-$M$21)) -> 0 | Q28: 1 | R28: =M28 -> 0 | S28: =N28 -> 0
B29: =B28+1 -> 2 | C29: 216 | D29: 101.125 | G29: =G28+1 -> 2 | H29: 0 | I29: 8.25 | L29: =L28+1 -> 2 | M29: 0 | N29: 6.25 | Q29: =Q28+1 -> 2 | R29: =M29 -> 0 | S29: =N29+$R$21 -> 10.25
B30: 3 | C30: 216.12 | D30: 102.099 | G30: 3 | H30: 0.12 | I30: 9.224 | L30: 3 | M30: 0.12 | N30: 7.224 | Q30: 3 | R30: 0.12 | S30: 11.224
B31: 4 | C31: 216.733 | D31: 103.433 | G31: 4 | H31: 0.733 | I31: 10.558 | L31: 4 | M31: 0.733 | N31: 8.558 | Q31: 4 | R31: 0.733 | S31: 12.558
B32: 5 | C32: 217.79 | D32: 104.455 | G32: 5 | H32: 1.79 | I32: 11.58 | L32: 5 | M32: 1.79 | N32: 9.58 | Q32: 5 | R32: 1.79 | S32: 13.58
B33: 6 | C33: 219.38 | D33: 105.316 | G33: 6 | H33: 3.38 | I33: 12.441 | L33: 6 | M33: 3.38 | N33: 10.441 | Q33: 6 | R33: 3.38 | S33: 14.441
B34: 7 | C34: 220.66 | D34: 105.765 | G34: 7 | H34: 4.66 | I34: 12.89 | L34: 7 | M34: 4.66 | N34: 10.89 | Q34: 7 | R34: 4.66 | S34: 14.89
B35: 8 | C35: 223.051 | D35: 106.267 | G35: 8 | H35: 7.051 | I35: 13.392 | L35: 8 | M35: 7.051 | N35: 11.392 | Q35: 8 | R35: 7.051 | S35: 15.392
B36: 9 | C36: 226.016 | D36: 106.676 | G36: 9 | H36: 10.016 | I36: 13.801 | L36: 9 | M36: 10.016 | N36: 11.801 | Q36: 9 | R36: 10.016 | S36: 15.801
B37: 10 | C37: 230 | D37: 106.875 | G37: 10 | H37: 14 | I37: 14 | L37: 10 | M37: 14 | N37: 12 | Q37: 10 | R37: 14 | S37: 16
B38: 11 | C38: 233.984 | D38: 106.676 | G38: 11 | H38: 17.984 | I38: 13.801 | L38: 11 | M38: 17.984 | N38: 11.801 | Q38: 11 | R38: 17.984 | S38: 15.801
B39: 12 | C39: 236.949 | D39: 106.267 | G39: 12 | H39: 20.949 | I39: 13.392 | L39: 12 | M39: 20.949 | N39: 11.392 | Q39: 12 | R39: 20.949 | S39: 15.392
B40: 13 | C40: 239.34 | D40: 105.765 | G40: 13 | H40: 23.34 | I40: 12.89 | L40: 13 | M40: 23.34 | N40: 10.89 | Q40: 13 | R40: 23.34 | S40: 14.89
B41: 14 | C41: 240.62 | D41: 105.316 | G41: 14 | H41: 24.62 | I41: 12.441 | L41: 14 | M41: 24.62 | N41: 10.441 | Q41: 14 | R41: 24.62 | S41: 14.441
B42: 15 | C42: 242.21 | D42: 104.455 | G42: 15 | H42: 26.21 | I42: 11.58 | L42: 15 | M42: 26.21 | N42: 9.58 | Q42: 15 | R42: 26.21 | S42: 13.58
B43: 16 | C43: 243.267 | D43: 103.433 | G43: 16 | H43: 27.267 | I43: 10.558 | L43: 16 | M43: 27.267 | N43: =IF(I43=0,0,IF(I43-$M$21<0,0,I43-$M$21)) -> 8.558 | Q43: 16 | R43: 27.267 | S43: 12.558
B44: 17 | C44: 243.88 | D44: 102.099 | G44: 17 | H44: 27.88 | I44: 9.224 | L44: 17 | M44: 27.88 | N44: =IF(I44=0,0,IF(I44-$M$21<0,0,I44-$M$21)) -> 7.224 | Q44: 17 | R44: 27.88 | S44: 11.224
B45: 18 | C45: 244 | D45: 101.125 | G45: 18 | H45: 28 | I45: 8.25 | L45: 18 | M45: 28 | N45: 6.25 | Q45: 18 | R45: 28 | S45: 10.25
B46: 19 | C46: 244 | D46: 92.875 | G46: 19 | H46: 28 | I46: 0 | L46: 19 | M46: 28 | N46: 0 | Q46: 19 | R46: 28 | S46: =N46 -> 0
A48: SELECTED | F48: HY-8 COORDINATES | K48: HY-8 COORDINATES | P48: HY-8 COORDINATES
A49: STRUCTURE | F49: GENERIC | K49: WITH EMBEDMENT | P49: WITH PEDESTAL
A52: CONSPAN
B53: 14 x 11
A54: Pt. | B54: X | C54: Y | D54: A'
A55: 1 | B55: 223 | C55: 93.875 | D55: =C55*(B56-B73) -> -1314.25
A56: 2 | B56: 223 | C56: 101.875 | D56: =C56*(B57-B55) -> 5.806875
A57: 3 | B57: 223.057 | C57: 102.407 | D57: =C57*(B58-B56) -> 23.246389
A58: 4 | B58: 223.227 | C58: 102.915 | D58: 63.292725
A59: 5 | B59: 223.672 | C59: 103.58 | D59: 111.65924
A60: 6 | B60: 224.305 | C60: 104.071 | D60: 152.98437
A61: 7 | B61: 225.142 | C61: 104.37 | D61: 195.58938
A62: 8 | B62: 226.179 | C62: 104.607 | D62: 329.407443
A63: 9 | B63: 228.291 | C63: 104.858 | D63: 400.662418
A64: 10 | B64: 230 | C64: 104.875 | D64: 358.46275
A65: 11 | B65: 231.709 | C65: 104.858 | D65: 400.662418
A66: 12 | B66: 233.821 | C66: 104.607 | D66: 329.407443
A67: 13 | B67: 234.858 | C67: 104.37 | D67: 195.58938
A68: 14 | B68: 235.695 | C68: 104.071 | D68: 152.98437
A69: 15 | B69: 236.328 | C69: 103.58 | D69: 111.65924
A70: 16 | B70: 236.773 | C70: 102.915 | D70: 63.292725
A71: 17 | B71: 236.943 | C71: 102.407 | D71: 23.246389
A72: 18 | B72: 237 | C72: 101.875 | D72: 5.806875
A73: 19 | B73: 237 | C73: 93.875 | D73: =C73*(B55-B72) -> -1314.25
C75: AREA = | D75: =ABS(SUM(D55:D73)/2) -> 147.630215
C76: 56 pairs = | D76: 148
C77: Conspam | D77: 148
A79: ECOSPAN | G79: ECOSPAN | L79: ECOSPAN | Q79: ECOSPAN | V79: ECOSPAN
B80: 16 x 11 | H80: 16 x 12 | M80: 16 x 13 | R80: 16 x 14 | W80: 16 x 15
A81: Pt. | B81: X | C81: Y | D81: A' | G81: Pt. | H81: X | I81: Y | J81: A' | L81: Pt. | M81: X | N81: Y | O81: A' | Q81: Pt. | R81: X | S81: Y | T81: A' | V81: Pt. | W81: X | X81: Y | Y81: A'
A82: 1 | B82: 222 | C82: 93.375 | D82: =C82*(B83-B100) -> -1494 | G82: 1 | H82: 222 | I82: 93.375 | J82: =I82*(H83-H100) -> -1494 | L82: 1 | M82: 222 | N82: 93.375 | O82: =N82*(M83-M100) -> -1494 | Q82: 1 | R82: 222 | S82: 93.375 | T82: =S82*(R83-R100) -> -1494 | V82: 1 | W82: 222 | X82: 93.375 | Y82: =X82*(W83-W100) -> -1494
A83: 2 | B83: 222 | C83: 100.845 | D83: =C83*(B84-B82) -> 5.546475 | G83: 2 | H83: 222 | I83: 101.845 | J83: =I83*(H84-H82) -> 12.526935 | L83: 2 | M83: 222 | N83: 102.845 | O83: =N83*(M84-M82) -> 5.656475 | Q83: 2 | R83: 222 | S83: 103.845 | T83: =S83*(R84-R82) -> 5.711475 | V83: 2 | W83: 222 | X83: 104.845 | Y83: =X83*(W84-W82) -> 5.766475
A84: 3 | B84: 222.055 | C84: 101.416 | D84: =C84*(B85-B83) -> 34.177192 | G84: 3 | H84: 222.123 | I84: 102.695 | J84: =I84*(H85-H83) -> 49.49899 | L84: 3 | M84: 222.055 | N84: 103.416 | O84: =N84*(M85-M83) -> 34.851192 | Q84: 3 | R84: 222.055 | S84: 104.416 | T84: =S84*(R85-R83) -> 35.188192 | V84: 3 | W84: 222.055 | X84: 105.416 | Y84: =X84*(W85-W83) -> 35.525192
A85: 4 | B85: 222.337 | C85: 102.227 | D85: 80.043741 | G85: 4 | H85: 222.482 | I85: 103.476 | J85: 95.611824 | L85: 4 | M85: 222.337 | N85: 104.227 | O85: 81.609741 | Q85: 4 | R85: 222.337 | S85: 105.227 | T85: 82.392741 | V85: 4 | W85: 222.337 | X85: 106.227 | Y85: 83.175741
A86: 5 | B86: 222.838 | C86: 102.925 | D86: 147.59445 | G86: 5 | H86: 223.047 | I86: 104.122 | J86: 134.213258 | L86: 5 | M86: 222.838 | N86: 104.925 | O86: 150.46245 | Q86: 5 | R86: 222.838 | S86: 105.925 | T86: 151.89645 | V86: 5 | W86: 222.838 | X86: 106.925 | Y86: 153.33045
A87: 6 | B87: 223.771 | C87: 103.587 | D87: 243.42945 | G87: 6 | H87: 223.771 | I87: 104.587 | J87: 223.920767 | L87: 6 | M87: 223.771 | N87: 105.587 | O87: 248.12945 | Q87: 6 | R87: 223.771 | S87: 106.587 | T87: 250.47945 | V87: 6 | W87: 223.771 | X87: 107.587 | Y87: 252.82945
A88: 7 | B88: 225.188 | C88: 103.908 | D88: 346.01364 | G88: 7 | H88: 225.188 | I88: 104.908 | J88: 298.9878 | L88: 7 | M88: 225.188 | N88: 105.908 | O88: 301.8378 | Q88: 7 | R88: 225.188 | S88: 106.908 | T88: 304.6878 | V88: 7 | W88: 225.188 | X88: 107.908 | Y88: 307.5378
A89: 8 | B89: 227.101 | C89: 104.206 | D89: 350.13216 | G89: 8 | H89: 226.621 | I89: 105.146 | J89: 302.505042 | L89: 8 | M89: 226.621 | N89: 106.146 | O89: 305.382042 | Q89: 8 | R89: 226.621 | S89: 107.146 | T89: 308.259042 | V89: 8 | W89: 226.621 | X89: 108.146 | Y89: 311.136042
A90: 9 | B90: 228.548 | C90: 104.333 | D90: 302.461367 | G90: 9 | H90: 228.065 | I90: 105.3 | J90: 355.8087 | L90: 9 | M90: 228.065 | N90: 106.3 | O90: 359.1877 | Q90: 9 | R90: 228.065 | S90: 107.3 | T90: 362.5667 | V90: 9 | W90: 228.065 | X90: 108.3 | Y90: 365.9457
A91: 10 | B91: 230 | C91: 104.375 | D91: 303.105 | G91: 10 | H91: 230 | I91: 105.375 | J91: 407.80125 | L91: 10 | M91: 230 | N91: 106.375 | O91: 411.67125 | Q91: 10 | R91: 230 | S91: 107.375 | T91: 415.54125 | V91: 10 | W91: 230 | X91: 108.375 | Y91: 419.41125
A92: 11 | B92: 231.452 | C92: 104.333 | D92: 302.461367 | G92: 11 | H92: 231.935 | I92: 105.3 | J92: 355.8087 | L92: 11 | M92: 231.935 | N92: 106.3 | O92: 359.1877 | Q92: 11 | R92: 231.935 | S92: 107.3 | T92: 362.5667 | V92: 11 | W92: 231.935 | X92: 108.3 | Y92: 365.9457
A93: 12 | B93: 232.899 | C93: 104.206 | D93: 350.13216 | G93: 12 | H93: 233.379 | I93: 105.146 | J93: 302.505042 | L93: 12 | M93: 233.379 | N93: 106.146 | O93: 305.382042 | Q93: 12 | R93: 233.379 | S93: 107.146 | T93: 308.259042 | V93: 12 | W93: 233.379 | X93: 108.146 | Y93: 311.136042
A94: 13 | B94: 234.812 | C94: 103.908 | D94: 346.01364 | G94: 13 | H94: 234.812 | I94: 104.908 | J94: 298.9878 | L94: 13 | M94: 234.812 | N94: 105.908 | O94: 301.8378 | Q94: 13 | R94: 234.812 | S94: 106.908 | T94: 304.6878 | V94: 13 | W94: 234.812 | X94: 107.908 | Y94: 307.5378
A95: 14 | B95: 236.229 | C95: 103.587 | D95: 243.42945 | G95: 14 | H95: 236.229 | I95: 104.587 | J95: 223.920767 | L95: 14 | M95: 236.229 | N95: 105.587 | O95: 248.12945 | Q95: 14 | R95: 236.229 | S95: 106.587 | T95: 250.47945 | V95: 14 | W95: 236.229 | X95: 107.587 | Y95: 252.82945
A96: 15 | B96: 237.162 | C96: 102.925 | D96: 147.59445 | G96: 15 | H96: 236.953 | I96: 104.122 | J96: 134.213258 | L96: 15 | M96: 237.162 | N96: 104.925 | O96: 150.46245 | Q96: 15 | R96: 237.162 | S96: 105.925 | T96: 151.89645 | V96: 15 | W96: 237.162 | X96: 106.925 | Y96: 153.33045
A97: 16 | B97: 237.663 | C97: 102.227 | D97: 80.043741 | G97: 16 | H97: 237.518 | I97: 103.476 | J97: 95.611824 | L97: 16 | M97: 237.663 | N97: 104.227 | O97: 81.609741 | Q97: 16 | R97: 237.663 | S97: 105.227 | T97: 82.392741 | V97: 16 | W97: 237.663 | X97: 106.227 | Y97: 83.175741
A98: 17 | B98: 237.945 | C98: 101.416 | D98: 34.177192 | G98: 17 | H98: 237.877 | I98: 102.695 | J98: 49.49899 | L98: 17 | M98: 237.945 | N98: 103.416 | O98: 34.851192 | Q98: 17 | R98: 237.945 | S98: 104.416 | T98: 35.188192 | V98: 17 | W98: 237.945 | X98: 105.416 | Y98: 35.525192
A99: 18 | B99: 238 | C99: 100.845 | D99: 5.546475 | G99: 18 | H99: 238 | I99: 101.845 | J99: 12.526935 | L99: 18 | M99: 238 | N99: 102.845 | O99: 5.656475 | Q99: 18 | R99: 238 | S99: 103.845 | T99: 5.711475 | V99: 18 | W99: 238 | X99: 104.845 | Y99: 5.766475
A100: 19 | B100: 238 | C100: 93.375 | D100: =C100*(B82-B99) -> -1494 | G100: 19 | H100: 238 | I100: 93.375 | J100: =I100*(H82-H99) -> -1494 | L100: 19 | M100: 238 | N100: 93.375 | O100: =N100*(M82-M99) -> -1494 | Q100: 19 | R100: 238 | S100: 93.375 | T100: =S100*(R82-R99) -> -1494 | V100: 19 | W100: 238 | X100: 93.375 | Y100: =X100*(W82-W99) -> -1494
C102: AREA = | D102: =ABS(SUM(D82:D100)/2) -> 166.950975 | I102: AREA = | J102: =ABS(SUM(J82:J100)/2) -> 182.973941 | N102: AREA = | O102: =ABS(SUM(O82:O100)/2) -> 198.952475 | S102: AREA = | T102: =ABS(SUM(T82:T100)/2) -> 214.952475 | X102: AREA = | Y102: =ABS(SUM(Y82:Y100)/2) -> 230.952475
C103: 56 pairs = | D103: 167 | I103: 56 pairs = | J103: 183 | N103: 56 pairs = | O103: 199 | S103: 56 pairs = | T103: 215 | X103: 56 pairs = | Y103: 231
C104: Ecospan | D104: 167 | I104: Ecospan | J104: 183 | N104: Ecospan | O104: 199 | S104: Ecospan | T104: 215 | X104: Ecospan | Y104: 231
A106: ECOSPAN | G106: ECOSPAN | L106: ECOSPAN | Q106: ECOSPAN | V106: ECOSPAN
B107: 20 x 4 | H107: 20 x 12 | M107: 20 x 13 | R107: 20 x 14 | W107: 20 x 15
A108: Pt. | B108: X | C108: Y | D108: A' | G108: Pt. | H108: X | I108: Y | J108: A' | L108: Pt. | M108: X | N108: Y | O108: A' | Q108: Pt. | R108: X | S108: Y | T108: A' | V108: Pt. | W108: X | X108: Y | Y108: A'
A109: 1 | B109: 220 | C109: 93.375 | D109: =C109*(B110-B127) -> -1856.014875 | G109: 1 | H109: 220 | I109: 93.375 | J109: =I109*(H110-H127) -> -1867.5 | L109: 1 | M109: 220 | N109: 93.375 | O109: =N109*(M110-M127) -> -1867.5 | Q109: 1 | R109: 220 | S109: 93.375 | T109: =S109*(R110-R127) -> -1867.5 | V109: 1 | W109: 220 | X109: 93.375 | Y109: =X109*(W110-W127) -> -1867.5
A110: 2 | B110: 220.123 | C110: 94.198 | D110: =C110*(B111-B109) -> 45.403436 | G110: 2 | H110: 220 | I110: 101.245 | J110: =I110*(H111-H109) -> 5.568475 | L110: 2 | M110: 220 | N110: 102.245 | O110: =N110*(M111-M109) -> 5.623475 | Q110: 2 | R110: 220 | S110: 103.245 | T110: =S110*(R111-R109) -> 12.699135 | V110: 2 | W110: 220 | X110: 104.245 | Y110: =X110*(W111-W109) -> 5.733475
A111: 3 | B111: 220.482 | C111: 94.954 | D111: =C111*(B112-B110) -> 67.89211 | G111: 3 | H111: 220.055 | I111: 101.816 | J111: =I111*(H112-H110) -> 34.311992 | L111: 3 | M111: 220.055 | N111: 102.816 | O111: =N111*(M112-M110) -> 34.648992 | Q111: 3 | R111: 220.123 | S111: 104.095 | T111: =S111*(R112-R110) -> 50.17379 | V111: 3 | W111: 220.055 | X111: 104.816 | Y111: =X111*(W112-W110) -> 35.322992
A112: 4 | B112: 220.838 | C112: 95.39 | D112: 75.54888 | G112: 4 | H112: 220.337 | I112: 102.627 | J112: 80.356941 | L112: 4 | M112: 220.337 | N112: 103.627 | O112: 81.139941 | Q112: 4 | R112: 220.482 | S112: 104.876 | T112: 96.905424 | V112: 4 | W112: 220.337 | X112: 105.627 | Y112: 82.705941
A113: 5 | B113: 221.274 | C113: 95.751 | D113: 89.335683 | G113: 5 | H113: 220.838 | I113: 103.325 | J113: 148.16805 | L113: 5 | M113: 220.838 | N113: 104.325 | O113: 149.60205 | Q113: 5 | R113: 221.047 | S113: 105.522 | T113: 136.017858 | V113: 5 | W113: 220.838 | X113: 106.325 | Y113: 152.47005
A114: 6 | B114: 221.771 | C114: 96.026 | D114: 285.485298 | G114: 6 | H114: 221.771 | I114: 103.982 | J114: 289.381906 | L114: 6 | M114: 221.771 | N114: 104.982 | O114: 292.164906 | Q114: 6 | R114: 221.771 | S114: 105.982 | T114: 272.797668 | V114: 6 | W114: 221.771 | X114: 106.982 | Y114: 297.730906
A115: 7 | B115: 224.247 | C115: 96.725 | D115: 423.07515 | G115: 7 | H115: 223.621 | I115: 104.548 | J115: 390.800424 | L115: 7 | M115: 223.621 | N115: 105.548 | O115: 394.538424 | Q115: 7 | R115: 223.621 | S115: 106.548 | T115: 398.276424 | V115: 7 | W115: 223.621 | X115: 107.548 | Y115: 402.014424
A116: 8 | B116: 226.145 | C116: 97.085 | D116: 370.8647 | G116: 8 | H116: 225.509 | I116: 104.968 | J116: 399.298272 | L116: 8 | M116: 225.509 | N116: 105.968 | O116: 403.102272 | Q116: 8 | R116: 225.509 | S116: 106.968 | T116: 406.906272 | V116: 8 | W116: 225.509 | X116: 107.968 | Y116: 410.710272
A117: 9 | B117: 228.067 | C117: 97.303 | D117: 375.103065 | G117: 9 | H117: 227.425 | I117: 105.242 | J117: 472.641822 | L117: 9 | M117: 227.425 | N117: 106.242 | O117: 477.132822 | Q117: 9 | R117: 227.425 | S117: 107.242 | T117: 481.623822 | V117: 9 | W117: 227.425 | X117: 108.242 | Y117: 486.114822
A118: 10 | B118: 230 | C118: 97.375 | D118: 376.45175 | G118: 10 | H118: 230 | I118: 105.375 | J118: 542.68125 | L118: 10 | M118: 230 | N118: 106.375 | O118: 547.83125 | Q118: 10 | R118: 230 | S118: 107.375 | T118: 552.98125 | V118: 10 | W118: 230 | X118: 108.375 | Y118: 558.13125
A119: 11 | B119: 231.933 | C119: 97.303 | D119: 375.103065 | G119: 11 | H119: 232.575 | I119: 105.242 | J119: 472.641822 | L119: 11 | M119: 232.575 | N119: 106.242 | O119: 477.132822 | Q119: 11 | R119: 232.575 | S119: 107.242 | T119: 481.623822 | V119: 11 | W119: 232.575 | X119: 108.242 | Y119: 486.114822
A120: 12 | B120: 233.855 | C120: 97.085 | D120: 370.8647 | G120: 12 | H120: 234.491 | I120: 104.968 | J120: 399.298272 | L120: 12 | M120: 234.491 | N120: 105.968 | O120: 403.102272 | Q120: 12 | R120: 234.491 | S120: 106.968 | T120: 406.906272 | V120: 12 | W120: 234.491 | X120: 107.968 | Y120: 410.710272
A121: 13 | B121: 235.753 | C121: 96.725 | D121: 423.07515 | G121: 13 | H121: 236.379 | I121: 104.548 | J121: 390.800424 | L121: 13 | M121: 236.379 | N121: 105.548 | O121: 394.538424 | Q121: 13 | R121: 236.379 | S121: 106.548 | T121: 398.276424 | V121: 13 | W121: 236.379 | X121: 107.548 | Y121: 402.014424
A122: 14 | B122: 238.229 | C122: 96.026 | D122: 285.485298 | G122: 14 | H122: 238.229 | I122: 103.982 | J122: 289.381906 | L122: 14 | M122: 238.229 | N122: 104.982 | O122: 292.164906 | Q122: 14 | R122: 238.229 | S122: 105.982 | T122: 272.797668 | V122: 14 | W122: 238.229 | X122: 106.982 | Y122: 297.730906
A123: 15 | B123: 238.726 | C123: 95.751 | D123: 89.335683 | G123: 15 | H123: 239.162 | I123: 103.325 | J123: 148.16805 | L123: 15 | M123: 239.162 | N123: 104.325 | O123: 149.60205 | Q123: 15 | R123: 238.953 | S123: 105.522 | T123: 136.017858 | V123: 15 | W123: 239.162 | X123: 106.325 | Y123: 152.47005
A124: 16 | B124: 239.162 | C124: 95.39 | D124: 75.54888 | G124: 16 | H124: 239.663 | I124: 102.627 | J124: 80.356941 | L124: 16 | M124: 239.663 | N124: 103.627 | O124: 81.139941 | Q124: 16 | R124: 239.518 | S124: 104.876 | T124: 96.905424 | V124: 16 | W124: 239.663 | X124: 105.627 | Y124: 82.705941
A125: 17 | B125: 239.518 | C125: 94.954 | D125: 78.242096 | G125: 17 | H125: 239.945 | I125: 101.816 | J125: 34.311992 | L125: 17 | M125: 239.945 | N125: 102.816 | O125: 34.648992 | Q125: 17 | R125: 239.877 | S125: 104.095 | T125: 50.17379 | V125: 17 | W125: 239.945 | X125: 104.816 | Y125: 35.322992
A126: 18 | B126: 239.986 | C126: 93.653 | D126: 45.140746 | G126: 18 | H126: 240 | I126: 101.245 | J126: 5.568475 | L126: 18 | M126: 240 | N126: 102.245 | O126: 5.623475 | Q126: 18 | R126: 240 | S126: 103.245 | T126: 12.699135 | V126: 18 | W126: 240 | X126: 104.245 | Y126: 5.733475
A127: 19 | B127: 240 | C127: 93.375 | D127: =C127*(B109-B126) -> -1866.19275 | G127: 19 | H127: 240 | I127: 93.375 | J127: =I127*(H109-H126) -> -1867.5 | L127: 19 | M127: 240 | N127: 93.375 | O127: =N127*(M109-M126) -> -1867.5 | Q127: 19 | R127: 240 | S127: 93.375 | T127: =S127*(R109-R126) -> -1867.5 | V127: 19 | W127: 240 | X127: 93.375 | Y127: =X127*(W109-W126) -> -1867.5
C129: AREA = | D129: =ABS(SUM(D109:D127)/2) -> 64.8740325 | I129: AREA = | J129: =ABS(SUM(J109:J127)/2) -> 224.368507 | N129: AREA = | O129: =ABS(SUM(O109:O127)/2) -> 244.368507 | S129: AREA = | T129: =ABS(SUM(T109:T127)/2) -> 264.391018 | X129: AREA = | Y129: =ABS(SUM(Y109:Y127)/2) -> 284.368507
C130: 56 pairs = | D130: 65 | I130: 56 pairs = | J130: 225 | N130: 56 pairs = | O130: 245 | S130: 56 pairs = | T130: 265 | X130: 56 pairs = | Y130: 285
C131: Ecospan | D131: 65 | I131: Ecospan | J131: 225 | N131: Ecospan | O131: 245 | S131: Ecospan | T131: 265 | X131: Ecospan | Y131: 285
A133: ECOSPAN | G133: ECOSPAN | L133: ECOSPAN | Q133: ECOSPAN | V133: ECOSPAN
B134: 24 x 4 | H134: 24 x 12 | M134: 24 x 13 | R134: 24 x 14 | W134: 24 x 15
A135: Pt. | B135: X | C135: Y | D135: A' | G135: Pt. | H135: X | I135: Y | J135: A' | L135: Pt. | M135: X | N135: Y | O135: A' | Q135: Pt. | R135: X | S135: Y | T135: A' | V135: Pt. | W135: X | X135: Y | Y135: A'
A136: 1 | B136: 218 | C136: 93.375 | D136: =C136*(B137-B154) -> -2229.514875 | G136: 1 | H136: 218 | I136: 93.375 | J136: =I136*(H137-H154) -> -2241 | L136: 1 | M136: 218 | N136: 93.375 | O136: =N136*(M137-M154) -> -2241 | Q136: 1 | R136: 218 | S136: 93.375 | T136: =S136*(R137-R154) -> -2241 | V136: 1 | W136: 218 | X136: 93.375 | Y136: =X136*(W137-W154) -> -2241
A137: 2 | B137: 218.123 | C137: 94.065 | D137: =C137*(B138-B136) -> 31.699905 | G137: 2 | H137: 218 | I137: 100.445 | J137: =I137*(H138-H136) -> 12.354735 | L137: 2 | M137: 218 | N137: 101.445 | O137: =N137*(M138-M136) -> 12.477735 | Q137: 2 | R137: 218 | S137: 102.445 | T137: =S137*(R138-R136) -> 12.600735 | V137: 2 | W137: 218 | X137: 103.445 | Y137: =X137*(W138-W136) -> 12.723735
A138: 3 | B138: 218.337 | C138: 94.497 | D138: =C138*(B139-B137) -> 67.565355 | G138: 3 | H138: 218.123 | I138: 101.295 | J138: =I138*(H139-H137) -> 48.82419 | L138: 3 | M138: 218.123 | N138: 102.295 | O138: =N138*(M139-M137) -> 49.30619 | Q138: 3 | R138: 218.123 | S138: 103.295 | T138: =S138*(R139-R137) -> 49.78819 | V138: 3 | W138: 218.123 | X138: 104.295 | Y138: =X138*(W139-W137) -> 50.27019
A139: 4 | B139: 218.838 | C139: 95.063 | D139: 89.074031 | G139: 4 | H139: 218.482 | I139: 102.076 | J139: 94.318224 | L139: 4 | M139: 218.482 | N139: 103.076 | O139: 95.242224 | Q139: 4 | R139: 218.482 | S139: 104.076 | T139: 96.166224 | V139: 4 | W139: 218.482 | X139: 105.076 | Y139: 97.090224
A140: 5 | B140: 219.274 | C140: 95.366 | D140: 89.262576 | G140: 5 | H140: 219.047 | I140: 102.722 | J140: 132.716824 | L140: 5 | M140: 219.047 | N140: 103.722 | O140: 134.008824 | Q140: 5 | R140: 219.047 | S140: 104.722 | T140: 135.300824 | V140: 5 | W140: 219.047 | X140: 105.722 | Y140: 136.592824
A141: 6 | B141: 219.774 | C141: 95.6 | D141: 338.0416 | G141: 6 | H141: 219.774 | I141: 103.188 | J141: 308.53212 | L141: 6 | M141: 219.774 | N141: 104.188 | O141: 311.52212 | Q141: 6 | R141: 219.774 | S141: 105.188 | T141: 314.51212 | V141: 6 | W141: 219.774 | X141: 106.188 | Y141: 317.50212
A142: 7 | B142: 222.81 | C142: 96.518 | D142: 520.618092 | G142: 7 | H142: 222.037 | I142: 104.073 | J142: 478.943946 | L142: 7 | M142: 222.037 | N142: 105.073 | O142: 483.545946 | Q142: 7 | R142: 222.037 | S142: 106.073 | T142: 488.147946 | V142: 7 | W142: 222.037 | X142: 107.073 | Y142: 492.749946
A143: 8 | B143: 225.168 | C143: 96.993 | D143: 461.977659 | G143: 8 | H143: 224.376 | I143: 104.734 | J143: 495.496554 | L143: 8 | M143: 224.376 | N143: 105.734 | O143: 500.227554 | Q143: 8 | R143: 224.376 | S143: 106.734 | T143: 504.958554 | V143: 8 | W143: 224.376 | X143: 107.734 | Y143: 509.689554
A144: 9 | B144: 227.573 | C144: 97.279 | D144: 470.052128 | G144: 9 | H144: 226.768 | I144: 105.165 | J144: 591.44796 | L144: 9 | M144: 226.768 | N144: 106.165 | O144: 597.07196 | Q144: 9 | R144: 226.768 | S144: 107.165 | T144: 602.69596 | V144: 9 | W144: 226.768 | X144: 108.165 | Y144: 608.31996
A145: 10 | B145: 230 | C145: 97.375 | D145: 472.65825 | G145: 10 | H145: 230 | I145: 105.375 | J145: 681.144 | L145: 10 | M145: 230 | N145: 106.375 | O145: 687.608 | Q145: 10 | R145: 230 | S145: 107.375 | T145: 694.072 | V145: 10 | W145: 230 | X145: 108.375 | Y145: 700.536
A146: 11 | B146: 232.427 | C146: 97.279 | D146: 470.052128 | G146: 11 | H146: 233.232 | I146: 105.165 | J146: 591.44796 | L146: 11 | M146: 233.232 | N146: 106.165 | O146: 597.07196 | Q146: 11 | R146: 233.232 | S146: 107.165 | T146: 602.69596 | V146: 11 | W146: 233.232 | X146: 108.165 | Y146: 608.31996
A147: 12 | B147: 234.832 | C147: 96.993 | D147: 461.977659 | G147: 12 | H147: 235.624 | I147: 104.734 | J147: 495.496554 | L147: 12 | M147: 235.624 | N147: 105.734 | O147: 500.227554 | Q147: 12 | R147: 235.624 | S147: 106.734 | T147: 504.958554 | V147: 12 | W147: 235.624 | X147: 107.734 | Y147: 509.689554
A148: 13 | B148: 237.19 | C148: 96.518 | D148: 520.618092 | G148: 13 | H148: 237.963 | I148: 104.073 | J148: 478.943946 | L148: 13 | M148: 237.963 | N148: 105.073 | O148: 483.545946 | Q148: 13 | R148: 237.963 | S148: 106.073 | T148: 488.147946 | V148: 13 | W148: 237.963 | X148: 107.073 | Y148: 492.749946
A149: 14 | B149: 240.226 | C149: 95.6 | D149: 338.0416 | G149: 14 | H149: 240.226 | I149: 103.188 | J149: 308.53212 | L149: 14 | M149: 240.226 | N149: 104.188 | O149: 311.52212 | Q149: 14 | R149: 240.226 | S149: 105.188 | T149: 314.51212 | V149: 14 | W149: 240.226 | X149: 106.188 | Y149: 317.50212
A150: 15 | B150: 240.726 | C150: 95.366 | D150: 89.262576 | G150: 15 | H150: 240.953 | I150: 102.722 | J150: 132.716824 | L150: 15 | M150: 240.953 | N150: 103.722 | O150: 134.008824 | Q150: 15 | R150: 240.953 | S150: 104.722 | T150: 135.300824 | V150: 15 | W150: 240.953 | X150: 105.722 | Y150: 136.592824
A151: 16 | B151: 241.162 | C151: 95.063 | D151: 89.074031 | G151: 16 | H151: 241.518 | I151: 102.076 | J151: 94.318224 | L151: 16 | M151: 241.518 | N151: 103.076 | O151: 95.242224 | Q151: 16 | R151: 241.518 | S151: 104.076 | T151: 96.166224 | V151: 16 | W151: 241.518 | X151: 105.076 | Y151: 97.090224
A152: 17 | B152: 241.663 | C152: 94.497 | D152: 67.565355 | G152: 17 | H152: 241.877 | I152: 101.295 | J152: 48.82419 | L152: 17 | M152: 241.877 | N152: 102.295 | O152: 49.30619 | Q152: 17 | R152: 241.877 | S152: 103.295 | T152: 49.78819 | V152: 17 | W152: 241.877 | X152: 104.295 | Y152: 50.27019
A153: 18 | B153: 241.877 | C153: 94.065 | D153: 31.699905 | G153: 18 | H153: 242 | I153: 100.445 | J153: 12.354735 | L153: 18 | M153: 242 | N153: 101.445 | O153: 12.477735 | Q153: 18 | R153: 242 | S153: 102.445 | T153: 12.600735 | V153: 18 | W153: 242 | X153: 103.445 | Y153: 12.723735
A154: 19 | B154: 242 | C154: 93.375 | D154: =C154*(B136-B153) -> -2229.514875 | G154: 19 | H154: 242 | I154: 93.375 | J154: =I154*(H136-H153) -> -2241 | L154: 19 | M154: 242 | N154: 93.375 | O154: =N154*(M136-M153) -> -2241 | Q154: 19 | R154: 242 | S154: 93.375 | T154: =S154*(R136-R153) -> -2241 | V154: 19 | W154: 242 | X154: 93.375 | Y154: =X154*(W136-W153) -> -2241
C156: AREA = | D156: =ABS(SUM(D136:D154)/2) -> 75.105596 | I156: AREA = | J156: =ABS(SUM(J136:J154)/2) -> 262.206553 | N156: AREA = | O156: =ABS(SUM(O136:O154)/2) -> 286.206553 | S156: AREA = | T156: =ABS(SUM(T136:T154)/2) -> 310.206553 | X156: AREA = | Y156: =ABS(SUM(Y136:Y154)/2) -> 334.206553
C157: 56 pairs = | D157: 76 | I157: 56 pairs = | J157: 263 | N157: 56 pairs = | O157: 287 | S157: 56 pairs = | T157: 311 | X157: 56 pairs = | Y157: 335
C158: Ecospan | D158: 72 | I158: Ecospan | J158: 263 | N158: Ecospan | O158: 287 | S158: Ecospan | T158: 311 | X158: Ecospan | Y158: 335
A160: ECOSPAN | G160: ECOSPAN | L160: ECOSPAN
B161: 28 x 13 | H161: 28 x 14 | M161: 28 x 15
A162: Pt. | B162: X | C162: Y | D162: A' | G162: Pt. | H162: X | I162: Y | J162: A' | L162: Pt. | M162: X | N162: Y | O162: A'
A163: 1 | B163: 216 | C163: 92.875 | D163: =C163*(B164-B181) -> -2600.5 | G163: 1 | H163: 216 | I163: 92.875 | J163: =I163*(H164-H181) -> -2600.5 | L163: 1 | M163: 216 | N163: 92.875 | O163: =N163*(M164-M181) -> -2600.5
A164: 2 | B164: 216 | C164: 100.125 | D164: =C164*(B165-B163) -> 12.015 | G164: 2 | H164: 216 | I164: 101.125 | J164: =I164*(H165-H163) -> 12.135 | L164: 2 | M164: 216 | N164: 102.125 | O164: =N164*(M165-M163) -> 12.255
A165: 3 | B165: 216.12 | C165: 101.099 | D165: =C165*(B166-B164) -> 74.105567 | G165: 3 | H165: 216.12 | I165: 102.099 | J165: =I165*(H166-H164) -> 74.838567 | L165: 3 | M165: 216.12 | N165: 103.099 | O165: =N165*(M166-M164) -> 75.571567
A166: 4 | B166: 216.733 | C166: 102.433 | D166: 171.06311 | G166: 4 | H166: 216.733 | I166: 103.433 | J166: 172.73311 | L166: 4 | M166: 216.733 | N166: 104.433 | O166: 174.40311
A167: 5 | B167: 217.79 | C167: 103.455 | D167: 273.845385 | G167: 5 | H167: 217.79 | I167: 104.455 | J167: 276.492385 | L167: 5 | M167: 217.79 | N167: 105.455 | O167: 279.139385
A168: 6 | B168: 219.38 | C168: 104.316 | D168: 299.38692 | G168: 6 | H168: 219.38 | I168: 105.316 | J168: 302.25692 | L168: 6 | M168: 219.38 | N168: 106.316 | O168: 305.12692
A169: 7 | B169: 220.66 | C169: 104.765 | D169: 384.592315 | G169: 7 | H169: 220.66 | I169: 105.765 | J169: 388.263315 | L169: 7 | M169: 220.66 | N169: 106.765 | O169: 391.934315
A170: 8 | B170: 223.051 | C170: 105.267 | D170: 563.810052 | G170: 8 | H170: 223.051 | I170: 106.267 | J170: 569.166052 | L170: 8 | M170: 223.051 | N170: 107.267 | O170: 574.522052
A171: 9 | B171: 226.016 | C171: 105.676 | D171: 734.342524 | G171: 9 | H171: 226.016 | I171: 106.676 | J171: 741.291524 | L171: 9 | M171: 226.016 | N171: 107.676 | O171: 748.240524
A172: 10 | B172: 230 | C172: 105.875 | D172: 843.612 | G172: 10 | H172: 230 | I172: 106.875 | J172: 851.58 | L172: 10 | M172: 230 | N172: 107.875 | O172: 859.548
A173: 11 | B173: 233.984 | C173: 105.676 | D173: 734.342524 | G173: 11 | H173: 233.984 | I173: 106.676 | J173: 741.291524 | L173: 11 | M173: 233.984 | N173: 107.676 | O173: 748.240524
A174: 12 | B174: 236.949 | C174: 105.267 | D174: 563.810052 | G174: 12 | H174: 236.949 | I174: 106.267 | J174: 569.166052 | L174: 12 | M174: 236.949 | N174: 107.267 | O174: 574.522052
A175: 13 | B175: 239.34 | C175: 104.765 | D175: 384.592315 | G175: 13 | H175: 239.34 | I175: 105.765 | J175: 388.263315 | L175: 13 | M175: 239.34 | N175: 106.765 | O175: 391.934315
A176: 14 | B176: 240.62 | C176: 104.316 | D176: 299.38692 | G176: 14 | H176: 240.62 | I176: 105.316 | J176: 302.25692 | L176: 14 | M176: 240.62 | N176: 106.316 | O176: 305.12692
A177: 15 | B177: 242.21 | C177: 103.455 | D177: 273.845385 | G177: 15 | H177: 242.21 | I177: 104.455 | J177: 276.492385 | L177: 15 | M177: 242.21 | N177: 105.455 | O177: 279.139385
A178: 16 | B178: 243.267 | C178: 102.433 | D178: 171.06311 | G178: 16 | H178: 243.267 | I178: 103.433 | J178: 172.73311 | L178: 16 | M178: 243.267 | N178: 104.433 | O178: 174.40311
A179: 17 | B179: 243.88 | C179: 101.099 | D179: 74.105567 | G179: 17 | H179: 243.88 | I179: 102.099 | J179: 74.838567 | L179: 17 | M179: 243.88 | N179: 103.099 | O179: 75.571567
A180: 18 | B180: 244 | C180: 100.125 | D180: 12.015 | G180: 18 | H180: 244 | I180: 101.125 | J180: 12.135 | L180: 18 | M180: 244 | N180: 102.125 | O180: 12.255
A181: 19 | B181: 244 | C181: 92.875 | D181: =C181*(B163-B180) -> -2600.5 | G181: 19 | H181: 244 | I181: 92.875 | J181: =I181*(H163-H180) -> -2600.5 | L181: 19 | M181: 244 | N181: 92.875 | O181: =N181*(M163-M180) -> -2600.5
C183: AREA = | D183: =ABS(SUM(D163:D181)/2) -> 334.466873 | I183: AREA = | J183: =ABS(SUM(J163:J181)/2) -> 362.466873 | N183: AREA = | O183: =ABS(SUM(O163:O181)/2) -> 390.466873
C184: 56 pairs = | D184: 335 | I184: 56 pairs = | J184: 363 | N184: 56 pairs = | O184: 391
C185: Ecospan | D185: 335 | I185: Ecospan | J185: 363 | N185: Ecospan | O185: 391
A187: ECOSPAN | G187: ECOSPAN
B188: 32 x 14 | H188: 32 x 15
A189: Pt. | B189: X | C189: Y | D189: A' | G189: Pt. | H189: X | I189: Y | J189: A'
A190: 1 | B190: 214 | C190: 92.875 | D190: =C190*(B191-B208) -> -2972 | G190: 1 | H190: 214 | I190: 92.875 | J190: =I190*(H191-H208) -> -2972
A191: 2 | B191: 214 | C191: 100.365 | D191: =C191*(B192-B190) -> 21.578475 | G191: 2 | H191: 214 | I191: 101.365 | J191: =I191*(H192-H190) -> 21.793475
A192: 3 | B192: 214.215 | C192: 101.66 | D192: =C192*(B193-B191) -> 85.19108 | G192: 3 | H192: 214.215 | I192: 102.66 | J192: =I192*(H193-H191) -> 86.02908
A193: 4 | B193: 214.838 | C193: 102.815 | D193: 167.896895 | G193: 4 | H193: 214.838 | I193: 103.815 | J193: 169.529895
A194: 5 | B194: 215.848 | C194: 103.756 | D194: 241.543968 | G194: 5 | H194: 215.848 | I194: 104.756 | J194: 243.871968
A195: 6 | B195: 217.166 | C195: 104.585 | D195: 287.39958 | G195: 6 | H195: 217.166 | I195: 105.585 | J195: 290.14758
A196: 7 | B196: 218.596 | C196: 105.2 | D196: 453.3068 | G196: 7 | H196: 218.596 | I196: 106.2 | J196: 457.6158
A197: 8 | B197: 221.475 | C197: 105.956 | D197: 689.455692 | G197: 8 | H197: 221.475 | I197: 106.956 | J197: 695.962692
A198: 9 | B198: 225.103 | C198: 106.574 | D198: 908.54335 | G198: 9 | H198: 225.103 | I198: 107.574 | J198: 917.06835
A199: 10 | B199: 230 | C199: 106.875 | D199: 1046.73375 | G199: 10 | H199: 230 | I199: 107.875 | J199: 1056.52775
A200: 11 | B200: 234.897 | C200: 106.574 | D200: 908.54335 | G200: 11 | H200: 234.897 | I200: 107.574 | J200: 917.06835
A201: 12 | B201: 238.525 | C201: 105.956 | D201: 689.455692 | G201: 12 | H201: 238.525 | I201: 106.956 | J201: 695.962692
A202: 13 | B202: 241.404 | C202: 105.2 | D202: 453.3068 | G202: 13 | H202: 241.404 | I202: 106.2 | J202: 457.6158
A203: 14 | B203: 242.834 | C203: 104.585 | D203: 287.39958 | G203: 14 | H203: 242.834 | I203: 105.585 | J203: 290.14758
A204: 15 | B204: 244.152 | C204: 103.756 | D204: 241.543968 | G204: 15 | H204: 244.152 | I204: 104.756 | J204: 243.871968
A205: 16 | B205: 245.162 | C205: 102.815 | D205: 167.896895 | G205: 16 | H205: 245.162 | I205: 103.815 | J205: 169.529895
A206: 17 | B206: 245.785 | C206: 101.66 | D206: 85.19108 | G206: 17 | H206: 245.785 | I206: 102.66 | J206: 86.02908
A207: 18 | B207: 246 | C207: 100.365 | D207: 21.578475 | G207: 18 | H207: 246 | I207: 101.365 | J207: 21.793475
A208: 19 | B208: 246 | C208: 92.875 | D208: =C208*(B190-B207) -> -2972 | G208: 19 | H208: 246 | I208: 92.875 | J208: =I208*(H190-H207) -> -2972
C210: AREA = | D210: =ABS(SUM(D190:D208)/2) -> 406.282715 | I210: AREA = | J210: =ABS(SUM(J190:J208)/2) -> 438.282715
C211: 56 pairs = | D211: 407 | I211: 56 pairs = | J211: 439
C212: Ecospan | D212: 408 | I212: Ecospan | J212: 440
A214: ECOSPAN
B215: 36 x 7
A216: Pt. | B216: X | C216: Y | D216: A'
A217: 1 | B217: 212 | C217: 92.875 | D217: =C217*(B218-B235) -> -3315.358875
A218: 2 | B218: 212.303 | C218: 94.321 | D218: =C218*(B219-B217) -> 85.171863
A219: 3 | B219: 212.903 | C219: 95.273 | D219: =C219*(B220-B218) -> 162.631011
A220: 4 | B220: 214.01 | C220: 96.267 | D220: 243.55551
A221: 5 | B221: 215.433 | C221: 97.166 | D221: 290.52634
A222: 6 | B222: 217 | C222: 97.818 | D222: 428.736294
A223: 7 | B223: 219.816 | C223: 98.626 | D223: 560.787436
... 115 more rows

Sheet Short Span 12 ft
A1: CONSPAN
B2: 12 x 4 | G2: 12 x 5 | L2: 12 x 6 | Q2: 12 x 7 | V2: 12 x 8 | AA2: 12 x 9 | AF2: 12 x 10
A3: Pt. | B3: X | C3: Y | D3: A' | F3: Pt. | G3: X | H3: Y | I3: A' | K3: Pt. | L3: X | M3: Y | N3: A' | P3: Pt. | Q3: X | R3: Y | S3: A' | U3: Pt. | V3: X | W3: Y | X3: A' | Z3: Pt. | AA3: X | AB3: Y | AC3: A' | AE3: Pt. | AF3: X | AG3: Y | AH3: A'
A4: 1 | B4: 236 | C4: 90.375 | D4: =C4*(B5-B56) -> 1084.5 | F4: 1 | G4: 236 | H4: 90.875 | I4: =H4*(G5-G56) -> 1090.5 | K4: 1 | L4: 236 | M4: 91.375 | N4: =M4*(L5-L56) -> 1096.5 | P4: 1 | Q4: 236 | R4: 91.875 | S4: =R4*(Q5-Q56) -> 1102.5 | U4: 1 | V4: 236 | W4: 92.375 | X4: =W4*(V5-V56) -> 1108.5 | Z4: 1 | AA4: 236 | AB4: 92.875 | AC4: =AB4*(AA5-AA56) -> 1114.5 | AE4: 1 | AF4: 236 | AG4: 93.375 | AH4: =AG4*(AF5-AF56) -> 1120.5
A5: =A4+1 -> 2 | B5: 236 | C5: 91.375 | D5: =C5*(B6-B4) -> -1.27925 | F5: =F4+1 -> 2 | G5: 236 | H5: 92.875 | I5: =H5*(G6-G4) -> -1.30025 | K5: =K4+1 -> 2 | L5: 236 | M5: 94.375 | N5: =M5*(L6-L4) -> -1.32125 | P5: =P4+1 -> 2 | Q5: 236 | R5: 95.875 | S5: =R5*(Q6-Q4) -> -1.34225 | U5: =U4+1 -> 2 | V5: 236 | W5: 97.375 | X5: =W5*(V6-V4) -> -1.36325 | Z5: =Z4+1 -> 2 | AA5: 236 | AB5: 98.875 | AC5: =AB5*(AA6-AA4) -> -1.38425 | AE5: =AE4+1 -> 2 | AF5: 236 | AG5: 100.375 | AH5: =AG5*(AF6-AF4) -> -1.40525
A6: =A5+1 -> 3 | B6: 235.986 | C6: 91.643 | D6: =C6*(B7-B5) -> -5.223651 | F6: =F5+1 -> 3 | G6: 235.986 | H6: 93.143 | I6: =H6*(G7-G5) -> -5.309151 | K6: =K5+1 -> 3 | L6: 235.986 | M6: 94.643 | N6: =M6*(L7-L5) -> -5.394651 | P6: =P5+1 -> 3 | Q6: 235.986 | R6: 96.143 | S6: =R6*(Q7-Q5) -> -5.480151 | U6: =U5+1 -> 3 | V6: 235.986 | W6: 97.643 | X6: =W6*(V7-V5) -> -5.565651 | Z6: =Z5+1 -> 3 | AA6: 235.986 | AB6: 99.143 | AC6: =AB6*(AA7-AA5) -> -5.651151 | AE6: =AE5+1 -> 3 | AF6: 235.986 | AG6: 100.643 | AH6: =AG6*(AF7-AF5) -> -5.736651
A7: 4 | B7: 235.943 | C7: 91.907 | D7: -10.477398 | F7: =F6+1 -> 4 | G7: 235.943 | H7: 93.407 | I7: -10.648398 | K7: =K6+1 -> 4 | L7: 235.943 | M7: 94.907 | N7: -10.819398 | P7: =P6+1 -> 4 | Q7: 235.943 | R7: 96.407 | S7: -10.990398 | U7: =U6+1 -> 4 | V7: 235.943 | W7: 97.907 | X7: -11.161398 | Z7: =Z6+1 -> 4 | AA7: 235.943 | AB7: 99.407 | AC7: -11.332398 | AE7: =AE6+1 -> 4 | AF7: 235.943 | AG7: 100.907 | AH7: -11.503398
A8: 5 | B8: 235.872 | C8: 92.166 | D8: -15.66822 | F8: 5 | G8: 235.872 | H8: 93.666 | I8: -15.92322 | K8: 5 | L8: 235.872 | M8: 95.166 | N8: -16.17822 | P8: 5 | Q8: 235.872 | R8: 96.666 | S8: -16.43322 | U8: 5 | V8: 235.872 | W8: 98.166 | X8: -16.68822 | Z8: 5 | AA8: 235.872 | AB8: 99.666 | AC8: -16.94322 | AE8: 5 | AF8: 235.872 | AG8: 101.166 | AH8: -17.19822
A9: 6 | B9: 235.773 | C9: 92.415 | D9: -20.608545 | F9: 6 | G9: 235.773 | H9: 93.915 | I9: -20.943045 | K9: 6 | L9: 235.773 | M9: 95.415 | N9: -21.277545 | P9: 6 | Q9: 235.773 | R9: 96.915 | S9: -21.612045 | U9: 6 | V9: 235.773 | W9: 98.415 | X9: -21.946545 | Z9: 6 | AA9: 235.773 | AB9: 99.915 | AC9: -22.281045 | AE9: 6 | AF9: 235.773 | AG9: 101.415 | AH9: -22.615545
A10: 7 | B10: 235.649 | C10: 92.652 | D10: -25.293996 | F10: 7 | G10: 235.649 | H10: 94.152 | I10: -25.703496 | K10: 7 | L10: 235.649 | M10: 95.652 | N10: -26.112996 | P10: 7 | Q10: 235.649 | R10: 97.152 | S10: -26.522496 | U10: 7 | V10: 235.649 | W10: 98.652 | X10: -26.931996 | Z10: 7 | AA10: 235.649 | AB10: 100.152 | AC10: -27.341496 | AE10: 7 | AF10: 235.649 | AG10: 101.652 | AH10: -27.750996
A11: 8 | B11: 235.5 | C11: 92.875 | D11: -29.812875 | F11: 8 | G11: 235.5 | H11: 94.375 | I11: -30.294375 | K11: 8 | L11: 235.5 | M11: 95.875 | N11: -30.775875 | P11: 8 | Q11: 235.5 | R11: 97.375 | S11: -31.257375 | U11: 8 | V11: 235.5 | W11: 98.875 | X11: -31.738875 | Z11: 8 | AA11: 235.5 | AB11: 100.375 | AC11: -32.220375 | AE11: 8 | AF11: 235.5 | AG11: 101.875 | AH11: -32.701875
A12: 9 | B12: 235.328 | C12: 93.08 | D12: -33.9742 | F12: 9 | G12: 235.328 | H12: 94.58 | I12: -34.5217 | K12: 9 | L12: 235.328 | M12: 96.08 | N12: -35.0692 | P12: 9 | Q12: 235.328 | R12: 97.58 | S12: -35.6167 | U12: 9 | V12: 235.328 | W12: 99.08 | X12: -36.1642 | Z12: 9 | AA12: 235.328 | AB12: 100.58 | AC12: -36.7117 | AE12: 9 | AF12: 235.328 | AG12: 102.08 | AH12: -37.2592
A13: 10 | B13: 235.135 | C13: 93.266 | D13: -37.77273 | F13: 10 | G13: 235.135 | H13: 94.766 | I13: -38.38023 | K13: 10 | L13: 235.135 | M13: 96.266 | N13: -38.98773 | P13: 10 | Q13: 235.135 | R13: 97.766 | S13: -39.59523 | U13: 10 | V13: 235.135 | W13: 99.266 | X13: -40.20273 | Z13: 10 | AA13: 235.135 | AB13: 100.766 | AC13: -40.81023 | AE13: 10 | AF13: 235.135 | AG13: 102.266 | AH13: -41.41773
A14: 11 | B14: 234.923 | C14: 93.43 | D14: -41.1092 | F14: 11 | G14: 234.923 | H14: 94.93 | I14: -41.7692 | K14: 11 | L14: 234.923 | M14: 96.43 | N14: -42.4292 | P14: 11 | Q14: 234.923 | R14: 97.93 | S14: -43.0892 | U14: 11 | V14: 234.923 | W14: 99.43 | X14: -43.7492 | Z14: 11 | AA14: 234.923 | AB14: 100.93 | AC14: -44.4092 | AE14: 11 | AF14: 234.923 | AG14: 102.43 | AH14: -45.0692
A15: 12 | B15: 234.695 | C15: 93.571 | D15: -43.97837 | F15: 12 | G15: 234.695 | H15: 95.071 | I15: -44.68337 | K15: 12 | L15: 234.695 | M15: 96.571 | N15: -45.38837 | P15: 12 | Q15: 234.695 | R15: 98.071 | S15: -46.09337 | U15: 12 | V15: 234.695 | W15: 99.571 | X15: -46.79837 | Z15: 12 | AA15: 234.695 | AB15: 101.071 | AC15: -47.50337 | AE15: 12 | AF15: 234.695 | AG15: 102.571 | AH15: -48.20837
A16: 13 | B16: 234.453 | C16: 93.686 | D16: -46.37457 | F16: 13 | G16: 234.453 | H16: 95.186 | I16: -47.11707 | K16: 13 | L16: 234.453 | M16: 96.686 | N16: -47.85957 | P16: 13 | Q16: 234.453 | R16: 98.186 | S16: -48.60207 | U16: 13 | V16: 234.453 | W16: 99.686 | X16: -49.34457 | Z16: 13 | AA16: 234.453 | AB16: 101.186 | AC16: -50.08707 | AE16: 13 | AF16: 234.453 | AG16: 102.686 | AH16: -50.82957
A17: 14 | B17: 234.2 | C17: 93.775 | D17: -53.2642 | F17: 14 | G17: 234.2 | H17: 95.275 | I17: -54.1162 | K17: 14 | L17: 234.2 | M17: 96.775 | N17: -54.9682 | P17: 14 | Q17: 234.2 | R17: 98.275 | S17: -55.8202 | U17: 14 | V17: 234.2 | W17: 99.775 | X17: -56.6722 | Z17: 14 | AA17: 234.2 | AB17: 101.275 | AC17: -57.5242 | AE17: 14 | AF17: 234.2 | AG17: 102.775 | AH17: -58.3762
A18: 15 | B18: 233.885 | C18: 93.863 | D18: -59.415279 | F18: 15 | G18: 233.885 | H18: 95.363 | I18: -60.364779 | K18: 15 | L18: 233.885 | M18: 96.863 | N18: -61.314279 | P18: 15 | Q18: 233.885 | R18: 98.363 | S18: -62.263779 | U18: 15 | V18: 233.885 | W18: 99.863 | X18: -63.213279 | Z18: 15 | AA18: 233.885 | AB18: 101.363 | AC18: -64.162779 | AE18: 15 | AF18: 233.885 | AG18: 102.863 | AH18: -65.112279
A19: 16 | B19: 233.567 | C19: 93.945 | D19: -59.74902 | F19: 16 | G19: 233.567 | H19: 95.445 | I19: -60.70302 | K19: 16 | L19: 233.567 | M19: 96.945 | N19: -61.65702 | P19: 16 | Q19: 233.567 | R19: 98.445 | S19: -62.61102 | U19: 16 | V19: 233.567 | W19: 99.945 | X19: -63.56502 | Z19: 16 | AA19: 233.567 | AB19: 101.445 | AC19: -64.51902 | AE19: 16 | AF19: 233.567 | AG19: 102.945 | AH19: -65.47302
A20: 17 | B20: 233.249 | C20: 94.019 | D20: -60.078141 | F20: 17 | G20: 233.249 | H20: 95.519 | I20: -61.036641 | K20: 17 | L20: 233.249 | M20: 97.019 | N20: -61.995141 | P20: 17 | Q20: 233.249 | R20: 98.519 | S20: -62.953641 | U20: 17 | V20: 233.249 | W20: 100.019 | X20: -63.912141 | Z20: 17 | AA20: 233.249 | AB20: 101.519 | AC20: -64.870641 | AE20: 17 | AF20: 233.249 | AG20: 103.019 | AH20: -65.829141
A21: 18 | B21: 232.928 | C21: 94.086 | D21: -60.497298 | F21: 18 | G21: 232.928 | H21: 95.586 | I21: -61.461798 | K21: 18 | L21: 232.928 | M21: 97.086 | N21: -62.426298 | P21: 18 | Q21: 232.928 | R21: 98.586 | S21: -63.390798 | U21: 18 | V21: 232.928 | W21: 100.086 | X21: -64.355298 | Z21: 18 | AA21: 232.928 | AB21: 101.586 | AC21: -65.319798 | AE21: 18 | AF21: 232.928 | AG21: 103.086 | AH21: -66.284298
A22: 19 | B22: 232.606 | C22: 94.147 | D22: -60.724815 | F22: 19 | G22: 232.606 | H22: 95.647 | I22: -61.692315 | K22: 19 | L22: 232.606 | M22: 97.147 | N22: -62.659815 | P22: 19 | Q22: 232.606 | R22: 98.647 | S22: -63.627315 | U22: 19 | V22: 232.606 | W22: 100.147 | X22: -64.594815 | Z22: 19 | AA22: 232.606 | AB22: 101.647 | AC22: -65.562315 | AE22: 19 | AF22: 232.606 | AG22: 103.147 | AH22: -66.529815
A23: 20 | B23: 232.283 | C23: 94.2 | D23: -60.9474 | F23: 20 | G23: 232.283 | H23: 95.7 | I23: -61.9179 | K23: 20 | L23: 232.283 | M23: 97.2 | N23: -62.8884 | P23: 20 | Q23: 232.283 | R23: 98.7 | S23: -63.8589 | U23: 20 | V23: 232.283 | W23: 100.2 | X23: -64.8294 | Z23: 20 | AA23: 232.283 | AB23: 101.7 | AC23: -65.7999 | AE23: 20 | AF23: 232.283 | AG23: 103.2 | AH23: -66.7704
A24: 21 | B24: 231.959 | C24: 94.247 | D24: -61.166303 | F24: 21 | G24: 231.959 | H24: 95.747 | I24: -62.139803 | K24: 21 | L24: 231.959 | M24: 97.247 | N24: -63.113303 | P24: 21 | Q24: 231.959 | R24: 98.747 | S24: -64.086803 | U24: 21 | V24: 231.959 | W24: 100.247 | X24: -65.060303 | Z24: 21 | AA24: 231.959 | AB24: 101.747 | AC24: -66.033803 | AE24: 21 | AF24: 231.959 | AG24: 103.247 | AH24: -67.007303
A25: 22 | B25: 231.634 | C25: 94.286 | D25: -61.380186 | F25: 22 | G25: 231.634 | H25: 95.786 | I25: -62.356686 | K25: 22 | L25: 231.634 | M25: 97.286 | N25: -63.333186 | P25: 22 | Q25: 231.634 | R25: 98.786 | S25: -64.309686 | U25: 22 | V25: 231.634 | W25: 100.286 | X25: -65.286186 | Z25: 22 | AA25: 231.634 | AB25: 101.786 | AC25: -66.262686 | AE25: 22 | AF25: 231.634 | AG25: 103.286 | AH25: -67.239186
A26: 23 | B26: 231.308 | C26: 94.318 | D26: -61.495336 | F26: 23 | G26: 231.308 | H26: 95.818 | I26: -62.473336 | K26: 23 | L26: 231.308 | M26: 97.318 | N26: -63.451336 | P26: 23 | Q26: 231.308 | R26: 98.818 | S26: -64.429336 | U26: 23 | V26: 231.308 | W26: 100.318 | X26: -65.407336 | Z26: 23 | AA26: 231.308 | AB26: 101.818 | AC26: -66.385336 | AE26: 23 | AF26: 231.308 | AG26: 103.318 | AH26: -67.363336
A27: 24 | B27: 230.982 | C27: 94.343 | D27: -61.605979 | F27: 24 | G27: 230.982 | H27: 95.843 | I27: -62.585479 | K27: 24 | L27: 230.982 | M27: 97.343 | N27: -63.564979 | P27: 24 | Q27: 230.982 | R27: 98.843 | S27: -64.544479 | U27: 24 | V27: 230.982 | W27: 100.343 | X27: -65.523979 | Z27: 24 | AA27: 230.982 | AB27: 101.843 | AC27: -66.503479 | AE27: 24 | AF27: 230.982 | AG27: 103.343 | AH27: -67.482979
A28: 25 | B28: 230.655 | C28: 94.361 | D28: -61.806455 | F28: 25 | G28: 230.655 | H28: 95.861 | I28: -62.788955 | K28: 25 | L28: 230.655 | M28: 97.361 | N28: -63.771455 | P28: 25 | Q28: 230.655 | R28: 98.861 | S28: -64.753955 | U28: 25 | V28: 230.655 | W28: 100.361 | X28: -65.736455 | Z28: 25 | AA28: 230.655 | AB28: 101.861 | AC28: -66.718955 | AE28: 25 | AF28: 230.655 | AG28: 103.361 | AH28: -67.701455
A29: 26 | B29: 230.327 | C29: 94.371 | D29: -61.813005 | F29: 26 | G29: 230.327 | H29: 95.871 | I29: -62.795505 | K29: 26 | L29: 230.327 | M29: 97.371 | N29: -63.778005 | P29: 26 | Q29: 230.327 | R29: 98.871 | S29: -64.760505 | U29: 26 | V29: 230.327 | W29: 100.371 | X29: -65.743005 | Z29: 26 | AA29: 230.327 | AB29: 101.871 | AC29: -66.725505 | AE29: 26 | AF29: 230.327 | AG29: 103.371 | AH29: -67.708005
A30: 27 | B30: 230 | C30: 94.375 | D30: -61.72125 | F30: 27 | G30: 230 | H30: 95.875 | I30: -62.70225 | K30: 27 | L30: 230 | M30: 97.375 | N30: -63.68325 | P30: 27 | Q30: 230 | R30: 98.875 | S30: -64.66425 | U30: 27 | V30: 230 | W30: 100.375 | X30: -65.64525 | Z30: 27 | AA30: 230 | AB30: 101.875 | AC30: -66.62625 | AE30: 27 | AF30: 230 | AG30: 103.375 | AH30: -67.60725
A31: 28 | B31: 229.673 | C31: 94.371 | D31: -61.813005 | F31: 28 | G31: 229.673 | H31: 95.871 | I31: -62.795505 | K31: 28 | L31: 229.673 | M31: 97.371 | N31: -63.778005 | P31: 28 | Q31: 229.673 | R31: 98.871 | S31: -64.760505 | U31: 28 | V31: 229.673 | W31: 100.371 | X31: -65.743005 | Z31: 28 | AA31: 229.673 | AB31: 101.871 | AC31: -66.725505 | AE31: 28 | AF31: 229.673 | AG31: 103.371 | AH31: -67.708005
A32: 29 | B32: 229.345 | C32: 94.361 | D32: -61.806455 | F32: 29 | G32: 229.345 | H32: 95.861 | I32: -62.788955 | K32: 29 | L32: 229.345 | M32: 97.361 | N32: -63.771455 | P32: 29 | Q32: 229.345 | R32: 98.861 | S32: -64.753955 | U32: 29 | V32: 229.345 | W32: 100.361 | X32: -65.736455 | Z32: 29 | AA32: 229.345 | AB32: 101.861 | AC32: -66.718955 | AE32: 29 | AF32: 229.345 | AG32: 103.361 | AH32: -67.701455
A33: 30 | B33: 229.018 | C33: 94.343 | D33: -61.605979 | F33: 30 | G33: 229.018 | H33: 95.843 | I33: -62.585479 | K33: 30 | L33: 229.018 | M33: 97.343 | N33: -63.564979 | P33: 30 | Q33: 229.018 | R33: 98.843 | S33: -64.544479 | U33: 30 | V33: 229.018 | W33: 100.343 | X33: -65.523979 | Z33: 30 | AA33: 229.018 | AB33: 101.843 | AC33: -66.503479 | AE33: 30 | AF33: 229.018 | AG33: 103.343 | AH33: -67.482979
A34: 31 | B34: 228.692 | C34: 94.318 | D34: -61.495336 | F34: 31 | G34: 228.692 | H34: 95.818 | I34: -62.473336 | K34: 31 | L34: 228.692 | M34: 97.318 | N34: -63.451336 | P34: 31 | Q34: 228.692 | R34: 98.818 | S34: -64.429336 | U34: 31 | V34: 228.692 | W34: 100.318 | X34: -65.407336 | Z34: 31 | AA34: 228.692 | AB34: 101.818 | AC34: -66.385336 | AE34: 31 | AF34: 228.692 | AG34: 103.318 | AH34: -67.363336
A35: 32 | B35: 228.366 | C35: 94.286 | D35: -61.380186 | F35: 32 | G35: 228.366 | H35: 95.786 | I35: -62.356686 | K35: 32 | L35: 228.366 | M35: 97.286 | N35: -63.333186 | P35: 32 | Q35: 228.366 | R35: 98.786 | S35: -64.309686 | U35: 32 | V35: 228.366 | W35: 100.286 | X35: -65.286186 | Z35: 32 | AA35: 228.366 | AB35: 101.786 | AC35: -66.262686 | AE35: 32 | AF35: 228.366 | AG35: 103.286 | AH35: -67.239186
A36: 33 | B36: 228.041 | C36: 94.247 | D36: -61.166303 | F36: 33 | G36: 228.041 | H36: 95.747 | I36: -62.139803 | K36: 33 | L36: 228.041 | M36: 97.247 | N36: -63.113303 | P36: 33 | Q36: 228.041 | R36: 98.747 | S36: -64.086803 | U36: 33 | V36: 228.041 | W36: 100.247 | X36: -65.060303 | Z36: 33 | AA36: 228.041 | AB36: 101.747 | AC36: -66.033803 | AE36: 33 | AF36: 228.041 | AG36: 103.247 | AH36: -67.007303
A37: 34 | B37: 227.717 | C37: 94.2 | D37: -60.9474 | F37: 34 | G37: 227.717 | H37: 95.7 | I37: -61.9179 | K37: 34 | L37: 227.717 | M37: 97.2 | N37: -62.8884 | P37: 34 | Q37: 227.717 | R37: 98.7 | S37: -63.8589 | U37: 34 | V37: 227.717 | W37: 100.2 | X37: -64.8294 | Z37: 34 | AA37: 227.717 | AB37: 101.7 | AC37: -65.7999 | AE37: 34 | AF37: 227.717 | AG37: 103.2 | AH37: -66.7704
A38: 35 | B38: 227.394 | C38: 94.147 | D38: -60.724815 | F38: 35 | G38: 227.394 | H38: 95.647 | I38: -61.692315 | K38: 35 | L38: 227.394 | M38: 97.147 | N38: -62.659815 | P38: 35 | Q38: 227.394 | R38: 98.647 | S38: -63.627315 | U38: 35 | V38: 227.394 | W38: 100.147 | X38: -64.594815 | Z38: 35 | AA38: 227.394 | AB38: 101.647 | AC38: -65.562315 | AE38: 35 | AF38: 227.394 | AG38: 103.147 | AH38: -66.529815
A39: 36 | B39: 227.072 | C39: 94.086 | D39: -60.497298 | F39: 36 | G39: 227.072 | H39: 95.586 | I39: -61.461798 | K39: 36 | L39: 227.072 | M39: 97.086 | N39: -62.426298 | P39: 36 | Q39: 227.072 | R39: 98.586 | S39: -63.390798 | U39: 36 | V39: 227.072 | W39: 100.086 | X39: -64.355298 | Z39: 36 | AA39: 227.072 | AB39: 101.586 | AC39: -65.319798 | AE39: 36 | AF39: 227.072 | AG39: 103.086 | AH39: -66.284298
A40: 37 | B40: 226.751 | C40: 94.019 | D40: -60.078141 | F40: 37 | G40: 226.751 | H40: 95.519 | I40: -61.036641 | K40: 37 | L40: 226.751 | M40: 97.019 | N40: -61.995141 | P40: 37 | Q40: 226.751 | R40: 98.519 | S40: -62.953641 | U40: 37 | V40: 226.751 | W40: 100.019 | X40: -63.912141 | Z40: 37 | AA40: 226.751 | AB40: 101.519 | AC40: -64.870641 | AE40: 37 | AF40: 226.751 | AG40: 103.019 | AH40: -65.829141
A41: 38 | B41: 226.433 | C41: 93.945 | D41: -59.74902 | F41: 38 | G41: 226.433 | H41: 95.445 | I41: -60.70302 | K41: 38 | L41: 226.433 | M41: 96.945 | N41: -61.65702 | P41: 38 | Q41: 226.433 | R41: 98.445 | S41: -62.61102 | U41: 38 | V41: 226.433 | W41: 99.945 | X41: -63.56502 | Z41: 38 | AA41: 226.433 | AB41: 101.445 | AC41: -64.51902 | AE41: 38 | AF41: 226.433 | AG41: 102.945 | AH41: -65.47302
A42: 39 | B42: 226.115 | C42: 93.863 | D42: -59.415279 | F42: 39 | G42: 226.115 | H42: 95.363 | I42: -60.364779 | K42: 39 | L42: 226.115 | M42: 96.863 | N42: -61.314279 | P42: 39 | Q42: 226.115 | R42: 98.363 | S42: -62.263779 | U42: 39 | V42: 226.115 | W42: 99.863 | X42: -63.213279 | Z42: 39 | AA42: 226.115 | AB42: 101.363 | AC42: -64.162779 | AE42: 39 | AF42: 226.115 | AG42: 102.863 | AH42: -65.112279
A43: 40 | B43: 225.8 | C43: 93.775 | D43: -53.2642 | F43: 40 | G43: 225.8 | H43: 95.275 | I43: -54.1162 | K43: 40 | L43: 225.8 | M43: 96.775 | N43: -54.9682 | P43: 40 | Q43: 225.8 | R43: 98.275 | S43: -55.8202 | U43: 40 | V43: 225.8 | W43: 99.775 | X43: -56.6722 | Z43: 40 | AA43: 225.8 | AB43: 101.275 | AC43: -57.5242 | AE43: 40 | AF43: 225.8 | AG43: 102.775 | AH43: -58.3762
A44: 41 | B44: 225.547 | C44: 93.686 | D44: -46.37457 | F44: 41 | G44: 225.547 | H44: 95.186 | I44: -47.11707 | K44: 41 | L44: 225.547 | M44: 96.686 | N44: -47.85957 | P44: 41 | Q44: 225.547 | R44: 98.186 | S44: -48.60207 | U44: 41 | V44: 225.547 | W44: 99.686 | X44: -49.34457 | Z44: 41 | AA44: 225.547 | AB44: 101.186 | AC44: -50.08707 | AE44: 41 | AF44: 225.547 | AG44: 102.686 | AH44: -50.82957
A45: 42 | B45: 225.305 | C45: 93.571 | D45: -43.97837 | F45: 42 | G45: 225.305 | H45: 95.071 | I45: -44.68337 | K45: 42 | L45: 225.305 | M45: 96.571 | N45: -45.38837 | P45: 42 | Q45: 225.305 | R45: 98.071 | S45: -46.09337 | U45: 42 | V45: 225.305 | W45: 99.571 | X45: -46.79837 | Z45: 42 | AA45: 225.305 | AB45: 101.071 | AC45: -47.50337 | AE45: 42 | AF45: 225.305 | AG45: 102.571 | AH45: -48.20837
A46: 43 | B46: 225.077 | C46: 93.43 | D46: -41.1092 | F46: 43 | G46: 225.077 | H46: 94.93 | I46: -41.7692 | K46: 43 | L46: 225.077 | M46: 96.43 | N46: -42.4292 | P46: 43 | Q46: 225.077 | R46: 97.93 | S46: -43.0892 | U46: 43 | V46: 225.077 | W46: 99.43 | X46: -43.7492 | Z46: 43 | AA46: 225.077 | AB46: 100.93 | AC46: -44.4092 | AE46: 43 | AF46: 225.077 | AG46: 102.43 | AH46: -45.0692
A47: 44 | B47: 224.865 | C47: 93.266 | D47: -37.77273 | F47: 44 | G47: 224.865 | H47: 94.766 | I47: -38.38023 | K47: 44 | L47: 224.865 | M47: 96.266 | N47: -38.98773 | P47: 44 | Q47: 224.865 | R47: 97.766 | S47: -39.59523 | U47: 44 | V47: 224.865 | W47: 99.266 | X47: -40.20273 | Z47: 44 | AA47: 224.865 | AB47: 100.766 | AC47: -40.81023 | AE47: 44 | AF47: 224.865 | AG47: 102.266 | AH47: -41.41773
A48: 45 | B48: 224.672 | C48: 93.08 | D48: -33.9742 | F48: 45 | G48: 224.672 | H48: 94.58 | I48: -34.5217 | K48: 45 | L48: 224.672 | M48: 96.08 | N48: -35.0692 | P48: 45 | Q48: 224.672 | R48: 97.58 | S48: -35.6167 | U48: 45 | V48: 224.672 | W48: 99.08 | X48: -36.1642 | Z48: 45 | AA48: 224.672 | AB48: 100.58 | AC48: -36.7117 | AE48: 45 | AF48: 224.672 | AG48: 102.08 | AH48: -37.2592
A49: 46 | B49: 224.5 | C49: 92.875 | D49: -29.812875 | F49: 46 | G49: 224.5 | H49: 94.375 | I49: -30.294375 | K49: 46 | L49: 224.5 | M49: 95.875 | N49: -30.775875 | P49: 46 | Q49: 224.5 | R49: 97.375 | S49: -31.257375 | U49: 46 | V49: 224.5 | W49: 98.875 | X49: -31.738875 | Z49: 46 | AA49: 224.5 | AB49: 100.375 | AC49: -32.220375 | AE49: 46 | AF49: 224.5 | AG49: 101.875 | AH49: -32.701875
A50: 47 | B50: 224.351 | C50: 92.652 | D50: -25.293996 | F50: 47 | G50: 224.351 | H50: 94.152 | I50: -25.703496 | K50: 47 | L50: 224.351 | M50: 95.652 | N50: -26.112996 | P50: 47 | Q50: 224.351 | R50: 97.152 | S50: -26.522496 | U50: 47 | V50: 224.351 | W50: 98.652 | X50: -26.931996 | Z50: 47 | AA50: 224.351 | AB50: 100.152 | AC50: -27.341496 | AE50: 47 | AF50: 224.351 | AG50: 101.652 | AH50: -27.750996
A51: 48 | B51: 224.227 | C51: 92.415 | D51: -20.608545 | F51: 48 | G51: 224.227 | H51: 93.915 | I51: -20.943045 | K51: 48 | L51: 224.227 | M51: 95.415 | N51: -21.277545 | P51: 48 | Q51: 224.227 | R51: 96.915 | S51: -21.612045 | U51: 48 | V51: 224.227 | W51: 98.415 | X51: -21.946545 | Z51: 48 | AA51: 224.227 | AB51: 99.915 | AC51: -22.281045 | AE51: 48 | AF51: 224.227 | AG51: 101.415 | AH51: -22.615545
A52: 49 | B52: 224.128 | C52: 92.166 | D52: -15.66822 | F52: 49 | G52: 224.128 | H52: 93.666 | I52: -15.92322 | K52: 49 | L52: 224.128 | M52: 95.166 | N52: -16.17822 | P52: 49 | Q52: 224.128 | R52: 96.666 | S52: -16.43322 | U52: 49 | V52: 224.128 | W52: 98.166 | X52: -16.68822 | Z52: 49 | AA52: 224.128 | AB52: 99.666 | AC52: -16.94322 | AE52: 49 | AF52: 224.128 | AG52: 101.166 | AH52: -17.19822
A53: 50 | B53: 224.057 | C53: 91.907 | D53: -10.477398 | F53: 50 | G53: 224.057 | H53: 93.407 | I53: -10.648398 | K53: 50 | L53: 224.057 | M53: 94.907 | N53: -10.819398 | P53: 50 | Q53: 224.057 | R53: 96.407 | S53: -10.990398 | U53: 50 | V53: 224.057 | W53: 97.907 | X53: -11.161398 | Z53: 50 | AA53: 224.057 | AB53: 99.407 | AC53: -11.332398 | AE53: 50 | AF53: 224.057 | AG53: 100.907 | AH53: -11.503398
A54: 51 | B54: 224.014 | C54: 91.643 | D54: -5.223651 | F54: 51 | G54: 224.014 | H54: 93.143 | I54: -5.309151 | K54: 51 | L54: 224.014 | M54: 94.643 | N54: -5.394651 | P54: 51 | Q54: 224.014 | R54: 96.143 | S54: -5.480151 | U54: 51 | V54: 224.014 | W54: 97.643 | X54: -5.565651 | Z54: 51 | AA54: 224.014 | AB54: 99.143 | AC54: -5.651151 | AE54: 51 | AF54: 224.014 | AG54: 100.643 | AH54: -5.736651
A55: 52 | B55: 224 | C55: 91.375 | D55: -1.27925 | F55: 52 | G55: 224 | H55: 92.875 | I55: -1.30025 | K55: 52 | L55: 224 | M55: 94.375 | N55: -1.32125 | P55: 52 | Q55: 224 | R55: 95.875 | S55: -1.34225 | U55: 52 | V55: 224 | W55: 97.375 | X55: -1.36325 | Z55: 52 | AA55: 224 | AB55: 98.875 | AC55: -1.38425 | AE55: 52 | AF55: 224 | AG55: 100.375 | AH55: -1.40525
A56: 53 | B56: 224 | C56: 90.375 | D56: =C56*(B4-B55) -> 1084.5 | F56: 53 | G56: 224 | H56: 90.875 | I56: =H56*(G4-G55) -> 1090.5 | K56: 53 | L56: 224 | M56: 91.375 | N56: =M56*(L4-L55) -> 1096.5 | P56: 53 | Q56: 224 | R56: 91.875 | S56: =R56*(Q4-Q55) -> 1102.5 | U56: 53 | V56: 224 | W56: 92.375 | X56: =W56*(V4-V55) -> 1108.5 | Z56: 53 | AA56: 224 | AB56: 92.875 | AC56: =AB56*(AA4-AA55) -> 1114.5 | AE56: 53 | AF56: 224 | AG56: 93.375 | AH56: =AG56*(AF4-AF55) -> 1120.5
C58: AREA = | D58: =ABS(SUM(D4:D56))/2 -> 41.877047 | H58: AREA = | I58: =ABS(SUM(I4:I56))/2 -> 53.877047 | M58: AREA = | N58: =ABS(SUM(N4:N56))/2 -> 65.877047 | R58: AREA = | S58: =ABS(SUM(S4:S56))/2 -> 77.877047 | W58: AREA = | X58: =ABS(SUM(X4:X56))/2 -> 89.877047 | AB58: AREA = | AC58: =ABS(SUM(AC4:AC56))/2 -> 101.877047 | AG58: AREA = | AH58: =ABS(SUM(AH4:AH56))/2 -> 113.877047
C59: RAS = | D59: 41.88 | H59: RAS = | I59: 53.88 | M59: RAS = | N59: 65.88 | R59: RAS = | S59: 77.88 | W59: RAS = | X59: 89.88 | AB59: RAS = | AC59: 101.88 | AG59: RAS = | AH59: 113.88
C60: PDF = | D60: 42 | H60: PDF = | I60: 54 | M60: PDF = | N60: 66 | R60: PDF = | S60: 78 | W60: PDF = | X60: 90 | AB60: PDF = | AC60: 102 | AG60: PDF = | AH60: 114
A62: -53 | B62: 224
A63: -52 | B63: 224
A64: -51 | B64: 224.014
A65: -50 | B65: 224.057
A66: -49 | B66: 224.128
A67: -48 | B67: 224.227
A68: -47 | B68: 224.351
A69: -46 | B69: 224.5
A70: -45 | B70: 224.672
A71: -44 | B71: 224.865
A72: -43 | B72: 225.077
A73: -42 | B73: 225.305
A74: -41 | B74: 225.547
A75: -40 | B75: 225.8
A76: -39 | B76: 226.115
A77: -38 | B77: 226.433
A78: -37 | B78: 226.751
A79: -36 | B79: 227.072
A80: -35 | B80: 227.394
A81: -34 | B81: 227.717
A82: -33 | B82: 228.041
A83: -32 | B83: 228.366
A84: -31 | B84: 228.692
A85: -30 | B85: 229.018

Sheet Short Span 14 ft
A1: CONSPAN
B2: 14 x 4 | G2: 14 x 5 | L2: 14 x 6 | Q2: 14 x 7 | V2: 14 x 8 | AA2: 14 x 9 | AF2: 14 x 10 | AK2: 14 x 11
A3: Pt. | B3: X | C3: Y | D3: A' | F3: Pt. | G3: X | H3: Y | I3: A' | K3: Pt. | L3: X | M3: Y | N3: A' | P3: Pt. | Q3: X | R3: Y | S3: A' | U3: Pt. | V3: X | W3: Y | X3: A' | Z3: Pt. | AA3: X | AB3: Y | AC3: A' | AE3: Pt. | AF3: X | AG3: Y | AH3: A' | AJ3: Pt. | AK3: X | AL3: Y | AM3: A'
A4: 1 | B4: 237 | C4: 90.375 | D4: =C4*(B5-B56) -> 1265.25 | F4: 1 | G4: 237 | H4: 90.875 | I4: =H4*(G5-G56) -> 1272.25 | K4: 1 | L4: 237 | M4: 91.375 | N4: =M4*(L5-L56) -> 1279.25 | P4: 1 | Q4: 237 | R4: 91.875 | S4: =R4*(Q5-Q56) -> 1286.25 | U4: 1 | V4: 237 | W4: 92.375 | X4: =W4*(V5-V56) -> 1293.25 | Z4: 1 | AA4: 237 | AB4: 92.875 | AC4: =AB4*(AA5-AA56) -> 1300.25 | AE4: 1 | AF4: 237 | AG4: 93.375 | AH4: =AG4*(AF5-AF56) -> 1307.25 | AJ4: 1 | AK4: 237 | AL4: 93.875 | AM4: =AL4*(AK5-AK56) -> 1314.25
A5: =A4+1 -> 2 | B5: 237 | C5: 91.375 | D5: =C5*(B6-B4) -> -1.27925 | F5: =F4+1 -> 2 | G5: 237 | H5: 92.875 | I5: =H5*(G6-G4) -> -1.30025 | K5: =K4+1 -> 2 | L5: 237 | M5: 94.375 | N5: =M5*(L6-L4) -> -1.32125 | P5: =P4+1 -> 2 | Q5: 237 | R5: 95.875 | S5: =R5*(Q6-Q4) -> -1.34225 | U5: =U4+1 -> 2 | V5: 237 | W5: 97.375 | X5: =W5*(V6-V4) -> -1.36325 | Z5: =Z4+1 -> 2 | AA5: 237 | AB5: 98.875 | AC5: =AB5*(AA6-AA4) -> -1.38425 | AE5: =AE4+1 -> 2 | AF5: 237 | AG5: 100.375 | AH5: =AG5*(AF6-AF4) -> -1.40525 | AJ5: =AJ4+1 -> 2 | AK5: 237 | AL5: 101.875 | AM5: =AL5*(AK6-AK4) -> -1.42625
A6: =A5+1 -> 3 | B6: 236.986 | C6: 91.643 | D6: =C6*(B7-B5) -> -5.223651 | F6: =F5+1 -> 3 | G6: 236.986 | H6: 93.143 | I6: =H6*(G7-G5) -> -5.309151 | K6: =K5+1 -> 3 | L6: 236.986 | M6: 94.643 | N6: =M6*(L7-L5) -> -5.394651 | P6: =P5+1 -> 3 | Q6: 236.986 | R6: 96.143 | S6: =R6*(Q7-Q5) -> -5.480151 | U6: =U5+1 -> 3 | V6: 236.986 | W6: 97.643 | X6: =W6*(V7-V5) -> -5.565651 | Z6: =Z5+1 -> 3 | AA6: 236.986 | AB6: 99.143 | AC6: -5.651151 | AE6: =AE5+1 -> 3 | AF6: 236.986 | AG6: 100.643 | AH6: -5.736651 | AJ6: =AJ5+1 -> 3 | AK6: 236.986 | AL6: 102.143 | AM6: -5.822151
A7: 4 | B7: 236.943 | C7: 91.907 | D7: -10.477398 | F7: =F6+1 -> 4 | G7: 236.943 | H7: 93.407 | I7: -10.648398 | K7: =K6+1 -> 4 | L7: 236.943 | M7: 94.907 | N7: -10.819398 | P7: =P6+1 -> 4 | Q7: 236.943 | R7: 96.407 | S7: -10.990398 | U7: =U6+1 -> 4 | V7: 236.943 | W7: 97.907 | X7: -11.161398 | Z7: =Z6+1 -> 4 | AA7: 236.943 | AB7: 99.407 | AC7: -11.332398 | AE7: =AE6+1 -> 4 | AF7: 236.943 | AG7: 100.907 | AH7: -11.503398 | AJ7: =AJ6+1 -> 4 | AK7: 236.943 | AL7: 102.407 | AM7: -11.674398
A8: 5 | B8: 236.872 | C8: 92.166 | D8: -15.66822 | F8: 5 | G8: 236.872 | H8: 93.666 | I8: -15.92322 | K8: 5 | L8: 236.872 | M8: 95.166 | N8: -16.17822 | P8: 5 | Q8: 236.872 | R8: 96.666 | S8: -16.43322 | U8: 5 | V8: 236.872 | W8: 98.166 | X8: -16.68822 | Z8: 5 | AA8: 236.872 | AB8: 99.666 | AC8: -16.94322 | AE8: 5 | AF8: 236.872 | AG8: 101.166 | AH8: -17.19822 | AJ8: 5 | AK8: 236.872 | AL8: 102.666 | AM8: -17.45322
A9: 6 | B9: 236.773 | C9: 92.415 | D9: -20.608545 | F9: 6 | G9: 236.773 | H9: 93.915 | I9: -20.943045 | K9: 6 | L9: 236.773 | M9: 95.415 | N9: -21.277545 | P9: 6 | Q9: 236.773 | R9: 96.915 | S9: -21.612045 | U9: 6 | V9: 236.773 | W9: 98.415 | X9: -21.946545 | Z9: 6 | AA9: 236.773 | AB9: 99.915 | AC9: -22.281045 | AE9: 6 | AF9: 236.773 | AG9: 101.415 | AH9: -22.615545 | AJ9: 6 | AK9: 236.773 | AL9: 102.915 | AM9: -22.950045
A10: 7 | B10: 236.649 | C10: 92.652 | D10: -25.293996 | F10: 7 | G10: 236.649 | H10: 94.152 | I10: -25.703496 | K10: 7 | L10: 236.649 | M10: 95.652 | N10: -26.112996 | P10: 7 | Q10: 236.649 | R10: 97.152 | S10: -26.522496 | U10: 7 | V10: 236.649 | W10: 98.652 | X10: -26.931996 | Z10: 7 | AA10: 236.649 | AB10: 100.152 | AC10: -27.341496 | AE10: 7 | AF10: 236.649 | AG10: 101.652 | AH10: -27.750996 | AJ10: 7 | AK10: 236.649 | AL10: 103.152 | AM10: -28.160496
A11: 8 | B11: 236.5 | C11: 92.875 | D11: -29.812875 | F11: 8 | G11: 236.5 | H11: 94.375 | I11: -30.294375 | K11: 8 | L11: 236.5 | M11: 95.875 | N11: -30.775875 | P11: 8 | Q11: 236.5 | R11: 97.375 | S11: -31.257375 | U11: 8 | V11: 236.5 | W11: 98.875 | X11: -31.738875 | Z11: 8 | AA11: 236.5 | AB11: 100.375 | AC11: -32.220375 | AE11: 8 | AF11: 236.5 | AG11: 101.875 | AH11: -32.701875 | AJ11: 8 | AK11: 236.5 | AL11: 103.375 | AM11: -33.183375
A12: 9 | B12: 236.328 | C12: 93.08 | D12: -33.9742 | F12: 9 | G12: 236.328 | H12: 94.58 | I12: -34.5217 | K12: 9 | L12: 236.328 | M12: 96.08 | N12: -35.0692 | P12: 9 | Q12: 236.328 | R12: 97.58 | S12: -35.6167 | U12: 9 | V12: 236.328 | W12: 99.08 | X12: -36.1642 | Z12: 9 | AA12: 236.328 | AB12: 100.58 | AC12: -36.7117 | AE12: 9 | AF12: 236.328 | AG12: 102.08 | AH12: -37.2592 | AJ12: 9 | AK12: 236.328 | AL12: 103.58 | AM12: -37.8067
A13: 10 | B13: 236.135 | C13: 93.266 | D13: -37.77273 | F13: 10 | G13: 236.135 | H13: 94.766 | I13: -38.38023 | K13: 10 | L13: 236.135 | M13: 96.266 | N13: -38.98773 | P13: 10 | Q13: 236.135 | R13: 97.766 | S13: -39.59523 | U13: 10 | V13: 236.135 | W13: 99.266 | X13: -40.20273 | Z13: 10 | AA13: 236.135 | AB13: 100.766 | AC13: -40.81023 | AE13: 10 | AF13: 236.135 | AG13: 102.266 | AH13: -41.41773 | AJ13: 10 | AK13: 236.135 | AL13: 103.766 | AM13: -42.02523
A14: 11 | B14: 235.923 | C14: 93.43 | D14: -41.1092 | F14: 11 | G14: 235.923 | H14: 94.93 | I14: -41.7692 | K14: 11 | L14: 235.923 | M14: 96.43 | N14: -42.4292 | P14: 11 | Q14: 235.923 | R14: 97.93 | S14: -43.0892 | U14: 11 | V14: 235.923 | W14: 99.43 | X14: -43.7492 | Z14: 11 | AA14: 235.923 | AB14: 100.93 | AC14: -44.4092 | AE14: 11 | AF14: 235.923 | AG14: 102.43 | AH14: -45.0692 | AJ14: 11 | AK14: 235.923 | AL14: 103.93 | AM14: -45.7292
A15: 12 | B15: 235.695 | C15: 93.571 | D15: -43.97837 | F15: 12 | G15: 235.695 | H15: 95.071 | I15: -44.68337 | K15: 12 | L15: 235.695 | M15: 96.571 | N15: -45.38837 | P15: 12 | Q15: 235.695 | R15: 98.071 | S15: -46.09337 | U15: 12 | V15: 235.695 | W15: 99.571 | X15: -46.79837 | Z15: 12 | AA15: 235.695 | AB15: 101.071 | AC15: -47.50337 | AE15: 12 | AF15: 235.695 | AG15: 102.571 | AH15: -48.20837 | AJ15: 12 | AK15: 235.695 | AL15: 104.071 | AM15: -48.91337
A16: 13 | B16: 235.453 | C16: 93.686 | D16: -46.37457 | F16: 13 | G16: 235.453 | H16: 95.186 | I16: -47.11707 | K16: 13 | L16: 235.453 | M16: 96.686 | N16: -47.85957 | P16: 13 | Q16: 235.453 | R16: 98.186 | S16: -48.60207 | U16: 13 | V16: 235.453 | W16: 99.686 | X16: -49.34457 | Z16: 13 | AA16: 235.453 | AB16: 101.186 | AC16: -50.08707 | AE16: 13 | AF16: 235.453 | AG16: 102.686 | AH16: -50.82957 | AJ16: 13 | AK16: 235.453 | AL16: 104.186 | AM16: -51.57207
A17: 14 | B17: 235.2 | C17: 93.775 | D17: -55.796125 | F17: 14 | G17: 235.2 | H17: 95.275 | I17: -56.688625 | K17: 14 | L17: 235.2 | M17: 96.775 | N17: -57.581125 | P17: 14 | Q17: 235.2 | R17: 98.275 | S17: -58.473625 | U17: 14 | V17: 235.2 | W17: 99.775 | X17: -59.366125 | Z17: 14 | AA17: 235.2 | AB17: 101.275 | AC17: -60.258625 | AE17: 14 | AF17: 235.2 | AG17: 102.775 | AH17: -61.151125 | AJ17: 14 | AK17: 235.2 | AL17: 104.275 | AM17: -62.043625
A18: 15 | B18: 234.858 | C18: 93.87 | D18: -64.39482 | F18: 15 | G18: 234.858 | H18: 95.37 | I18: -65.42382 | K18: 15 | L18: 234.858 | M18: 96.87 | N18: -66.45282 | P18: 15 | Q18: 234.858 | R18: 98.37 | S18: -67.48182 | U18: 15 | V18: 234.858 | W18: 99.87 | X18: -68.51082 | Z18: 15 | AA18: 234.858 | AB18: 101.37 | AC18: -69.53982 | AE18: 15 | AF18: 234.858 | AG18: 102.87 | AH18: -70.56882 | AJ18: 15 | AK18: 234.858 | AL18: 104.37 | AM18: -71.59782
A19: 16 | B19: 234.514 | C19: 93.957 | D19: -64.736373 | F19: 16 | G19: 234.514 | H19: 95.457 | I19: -65.769873 | K19: 16 | L19: 234.514 | M19: 96.957 | N19: -66.803373 | P19: 16 | Q19: 234.514 | R19: 98.457 | S19: -67.836873 | U19: 16 | V19: 234.514 | W19: 99.957 | X19: -68.870373 | Z19: 16 | AA19: 234.514 | AB19: 101.457 | AC19: -69.903873 | AE19: 16 | AF19: 234.514 | AG19: 102.957 | AH19: -70.937373 | AJ19: 16 | AK19: 234.514 | AL19: 104.457 | AM19: -71.970873
A20: 17 | B20: 234.169 | C20: 94.037 | D20: -65.167641 | F20: 17 | G20: 234.169 | H20: 95.537 | I20: -66.207141 | K20: 17 | L20: 234.169 | M20: 97.037 | N20: -67.246641 | P20: =P19+1 -> 17 | Q20: 234.169 | R20: 98.537 | S20: -68.286141 | U20: =U19+1 -> 17 | V20: 234.169 | W20: 100.037 | X20: -69.325641 | Z20: =Z19+1 -> 17 | AA20: 234.169 | AB20: 101.537 | AC20: -70.365141 | AE20: =AE19+1 -> 17 | AF20: 234.169 | AG20: 103.037 | AH20: -71.404641 | AJ20: =AJ19+1 -> 17 | AK20: 234.169 | AL20: 104.537 | AM20: -72.444141
A21: 18 | B21: 233.821 | C21: 94.107 | D21: -65.592579 | F21: 18 | G21: 233.821 | H21: 95.607 | I21: -66.638079 | K21: 18 | L21: 233.821 | M21: 97.107 | N21: -67.683579 | P21: =P20+1 -> 18 | Q21: 233.821 | R21: 98.607 | S21: -68.729079 | U21: =U20+1 -> 18 | V21: 233.821 | W21: 100.107 | X21: -69.774579 | Z21: =Z20+1 -> 18 | AA21: 233.821 | AB21: 101.607 | AC21: -70.820079 | AE21: =AE20+1 -> 18 | AF21: 233.821 | AG21: 103.107 | AH21: -71.865579 | AJ21: =AJ20+1 -> 18 | AK21: 233.821 | AL21: 104.607 | AM21: -72.911079
A22: 19 | B22: 233.472 | C22: 94.17 | D22: -65.919 | F22: 19 | G22: 233.472 | H22: 95.67 | I22: -66.969 | K22: 19 | L22: 233.472 | M22: 97.17 | N22: -68.019 | P22: =P21+1 -> 19 | Q22: 233.472 | R22: 98.67 | S22: -69.069 | U22: =U21+1 -> 19 | V22: 233.472 | W22: 100.17 | X22: -70.119 | Z22: =Z21+1 -> 19 | AA22: 233.472 | AB22: 101.67 | AC22: -71.169 | AE22: =AE21+1 -> 19 | AF22: 233.472 | AG22: 103.17 | AH22: -72.219 | AJ22: =AJ21+1 -> 19 | AK22: 233.472 | AL22: 104.67 | AM22: -73.269
A23: 20 | B23: 233.121 | C23: 94.224 | D23: -66.145248 | F23: 20 | G23: 233.121 | H23: 95.724 | I23: -67.198248 | K23: 20 | L23: 233.121 | M23: 97.224 | N23: -68.251248 | P23: 20 | Q23: 233.121 | R23: 98.724 | S23: -69.304248 | U23: 20 | V23: 233.121 | W23: 100.224 | X23: -70.357248 | Z23: 20 | AA23: 233.121 | AB23: 101.724 | AC23: -71.410248 | AE23: 20 | AF23: 233.121 | AG23: 103.224 | AH23: -72.463248 | AJ23: 20 | AK23: 233.121 | AL23: 104.724 | AM23: -73.516248
A24: 21 | B24: 232.77 | C24: 94.27 | D24: -66.36608 | F24: 21 | G24: 232.77 | H24: 95.77 | I24: -67.42208 | K24: 21 | L24: 232.77 | M24: 97.27 | N24: -68.47808 | P24: 21 | Q24: 232.77 | R24: 98.77 | S24: -69.53408 | U24: 21 | V24: 232.77 | W24: 100.27 | X24: -70.59008 | Z24: 21 | AA24: 232.77 | AB24: 101.77 | AC24: -71.64608 | AE24: 21 | AF24: 232.77 | AG24: 103.27 | AH24: -72.70208 | AJ24: 21 | AK24: 232.77 | AL24: 104.77 | AM24: -73.75808
A25: 22 | B25: 232.417 | C25: 94.308 | D25: -66.675756 | F25: 22 | G25: 232.417 | H25: 95.808 | I25: -67.736256 | K25: 22 | L25: 232.417 | M25: 97.308 | N25: -68.796756 | P25: 22 | Q25: 232.417 | R25: 98.808 | S25: -69.857256 | U25: 22 | V25: 232.417 | W25: 100.308 | X25: -70.917756 | Z25: 22 | AA25: 232.417 | AB25: 101.808 | AC25: -71.978256 | AE25: 22 | AF25: 232.417 | AG25: 103.308 | AH25: -73.038756 | AJ25: 22 | AK25: 232.417 | AL25: 104.808 | AM25: -74.099256
A26: 23 | B26: 232.063 | C26: 94.337 | D26: -66.790596 | F26: 23 | G26: 232.063 | H26: 95.837 | I26: -67.852596 | K26: 23 | L26: 232.063 | M26: 97.337 | N26: -68.914596 | P26: 23 | Q26: 232.063 | R26: 98.837 | S26: -69.976596 | U26: 23 | V26: 232.063 | W26: 100.337 | X26: -71.038596 | Z26: 23 | AA26: 232.063 | AB26: 101.837 | AC26: -72.100596 | AE26: 23 | AF26: 232.063 | AG26: 103.337 | AH26: -73.162596 | AJ26: 23 | AK26: 232.063 | AL26: 104.837 | AM26: -74.224596
A27: 24 | B27: 231.709 | C27: 94.358 | D27: -66.805464 | F27: 24 | G27: 231.709 | H27: 95.858 | I27: -67.867464 | K27: 24 | L27: 231.709 | M27: 97.358 | N27: -68.929464 | P27: 24 | Q27: 231.709 | R27: 98.858 | S27: -69.991464 | U27: 24 | V27: 231.709 | W27: 100.358 | X27: -71.053464 | Z27: 24 | AA27: 231.709 | AB27: 101.858 | AC27: -72.115464 | AE27: 24 | AF27: 231.709 | AG27: 103.358 | AH27: -73.177464 | AJ27: 24 | AK27: 231.709 | AL27: 104.858 | AM27: -74.239464
A28: 25 | B28: 231.355 | C28: 94.371 | D28: -114.094539 | F28: 25 | G28: 231.355 | H28: 95.871 | I28: -115.908039 | K28: 25 | L28: 231.355 | M28: 97.371 | N28: -117.721539 | P28: 25 | Q28: 231.355 | R28: 98.871 | S28: -119.535039 | U28: 25 | V28: 231.355 | W28: 100.371 | X28: -121.348539 | Z28: 25 | AA28: 231.355 | AB28: 101.871 | AC28: -123.162039 | AE28: 25 | AF28: 231.355 | AG28: 103.371 | AH28: -124.975539 | AJ28: 25 | AK28: 231.355 | AL28: 104.871 | AM28: -126.789039
A29: 26 | B29: 230.5 | C29: 94.371 | D29: -127.872705 | F29: 26 | G29: 230.5 | H29: 95.871 | I29: -129.905205 | K29: 26 | L29: 230.5 | M29: 97.371 | N29: -131.937705 | P29: 26 | Q29: 230.5 | R29: 98.871 | S29: -133.970205 | U29: 26 | V29: 230.5 | W29: 100.371 | X29: -136.002705 | Z29: 26 | AA29: 230.5 | AB29: 101.871 | AC29: -138.035205 | AE29: 26 | AF29: 230.5 | AG29: 103.371 | AH29: -140.067705 | AJ29: 26 | AK29: 230.5 | AL29: 104.871 | AM29: -142.100205
A30: 27 | B30: 230 | C30: 94.375 | D30: -94.375 | F30: 27 | G30: 230 | H30: 95.875 | I30: -95.875 | K30: 27 | L30: 230 | M30: 97.375 | N30: -97.375 | P30: 27 | Q30: 230 | R30: 98.875 | S30: -98.875 | U30: 27 | V30: 230 | W30: 100.375 | X30: -100.375 | Z30: 27 | AA30: 230 | AB30: 101.875 | AC30: -101.875 | AE30: 27 | AF30: 230 | AG30: 103.375 | AH30: -103.375 | AJ30: 27 | AK30: 230 | AL30: 104.875 | AM30: -104.875
A31: 28 | B31: 229.5 | C31: 94.371 | D31: -127.872705 | F31: 28 | G31: 229.5 | H31: 95.871 | I31: -129.905205 | K31: 28 | L31: 229.5 | M31: 97.371 | N31: -131.937705 | P31: 28 | Q31: 229.5 | R31: 98.871 | S31: -133.970205 | U31: 28 | V31: 229.5 | W31: 100.371 | X31: -136.002705 | Z31: 28 | AA31: 229.5 | AB31: 101.871 | AC31: -138.035205 | AE31: 28 | AF31: 229.5 | AG31: 103.371 | AH31: -140.067705 | AJ31: 28 | AK31: 229.5 | AL31: 104.871 | AM31: -142.100205
A32: 29 | B32: 228.645 | C32: 94.371 | D32: -114.094539 | F32: 29 | G32: 228.645 | H32: 95.871 | I32: -115.908039 | K32: 29 | L32: 228.645 | M32: 97.371 | N32: -117.721539 | P32: 29 | Q32: 228.645 | R32: 98.871 | S32: -119.535039 | U32: 29 | V32: 228.645 | W32: 100.371 | X32: -121.348539 | Z32: 29 | AA32: 228.645 | AB32: 101.871 | AC32: -123.162039 | AE32: 29 | AF32: 228.645 | AG32: 103.371 | AH32: -124.975539 | AJ32: 29 | AK32: 228.645 | AL32: 104.871 | AM32: -126.789039
A33: 30 | B33: 228.291 | C33: 94.358 | D33: -66.805464 | F33: 30 | G33: 228.291 | H33: 95.858 | I33: -67.867464 | K33: 30 | L33: 228.291 | M33: 97.358 | N33: -68.929464 | P33: 30 | Q33: 228.291 | R33: 98.858 | S33: -69.991464 | U33: 30 | V33: 228.291 | W33: 100.358 | X33: -71.053464 | Z33: 30 | AA33: 228.291 | AB33: 101.858 | AC33: -72.115464 | AE33: 30 | AF33: 228.291 | AG33: 103.358 | AH33: -73.177464 | AJ33: 30 | AK33: 228.291 | AL33: 104.858 | AM33: -74.239464
A34: 31 | B34: 227.937 | C34: 94.337 | D34: -66.790596 | F34: 31 | G34: 227.937 | H34: 95.837 | I34: -67.852596 | K34: 31 | L34: 227.937 | M34: 97.337 | N34: -68.914596 | P34: 31 | Q34: 227.937 | R34: 98.837 | S34: -69.976596 | U34: 31 | V34: 227.937 | W34: 100.337 | X34: -71.038596 | Z34: 31 | AA34: 227.937 | AB34: 101.837 | AC34: -72.100596 | AE34: 31 | AF34: 227.937 | AG34: 103.337 | AH34: -73.162596 | AJ34: 31 | AK34: 227.937 | AL34: 104.837 | AM34: -74.224596
A35: 32 | B35: 227.583 | C35: 94.308 | D35: -66.675756 | F35: 32 | G35: 227.583 | H35: 95.808 | I35: -67.736256 | K35: 32 | L35: 227.583 | M35: 97.308 | N35: -68.796756 | P35: 32 | Q35: 227.583 | R35: 98.808 | S35: -69.857256 | U35: 32 | V35: 227.583 | W35: 100.308 | X35: -70.917756 | Z35: 32 | AA35: 227.583 | AB35: 101.808 | AC35: -71.978256 | AE35: 32 | AF35: 227.583 | AG35: 103.308 | AH35: -73.038756 | AJ35: 32 | AK35: 227.583 | AL35: 104.808 | AM35: -74.099256
A36: 33 | B36: 227.23 | C36: 94.27 | D36: -66.36608 | F36: 33 | G36: 227.23 | H36: 95.77 | I36: -67.42208 | K36: 33 | L36: 227.23 | M36: 97.27 | N36: -68.47808 | P36: 33 | Q36: 227.23 | R36: 98.77 | S36: -69.53408 | U36: 33 | V36: 227.23 | W36: 100.27 | X36: -70.59008 | Z36: 33 | AA36: 227.23 | AB36: 101.77 | AC36: -71.64608 | AE36: 33 | AF36: 227.23 | AG36: 103.27 | AH36: -72.70208 | AJ36: 33 | AK36: 227.23 | AL36: 104.77 | AM36: -73.75808
A37: 34 | B37: 226.879 | C37: 94.224 | D37: -66.145248 | F37: 34 | G37: 226.879 | H37: 95.724 | I37: -67.198248 | K37: 34 | L37: 226.879 | M37: 97.224 | N37: -68.251248 | P37: 34 | Q37: 226.879 | R37: 98.724 | S37: -69.304248 | U37: 34 | V37: 226.879 | W37: 100.224 | X37: -70.357248 | Z37: 34 | AA37: 226.879 | AB37: 101.724 | AC37: -71.410248 | AE37: 34 | AF37: 226.879 | AG37: 103.224 | AH37: -72.463248 | AJ37: 34 | AK37: 226.879 | AL37: 104.724 | AM37: -73.516248
A38: 35 | B38: 226.528 | C38: 94.17 | D38: -65.919 | F38: 35 | G38: 226.528 | H38: 95.67 | I38: -66.969 | K38: 35 | L38: 226.528 | M38: 97.17 | N38: -68.019 | P38: 35 | Q38: 226.528 | R38: 98.67 | S38: -69.069 | U38: 35 | V38: 226.528 | W38: 100.17 | X38: -70.119 | Z38: 35 | AA38: 226.528 | AB38: 101.67 | AC38: -71.169 | AE38: 35 | AF38: 226.528 | AG38: 103.17 | AH38: -72.219 | AJ38: 35 | AK38: 226.528 | AL38: 104.67 | AM38: -73.269
A39: 36 | B39: 226.179 | C39: 94.107 | D39: -65.592579 | F39: 36 | G39: 226.179 | H39: 95.607 | I39: -66.638079 | K39: 36 | L39: 226.179 | M39: 97.107 | N39: -67.683579 | P39: 36 | Q39: 226.179 | R39: 98.607 | S39: -68.729079 | U39: 36 | V39: 226.179 | W39: 100.107 | X39: -69.774579 | Z39: 36 | AA39: 226.179 | AB39: 101.607 | AC39: -70.820079 | AE39: 36 | AF39: 226.179 | AG39: 103.107 | AH39: -71.865579 | AJ39: 36 | AK39: 226.179 | AL39: 104.607 | AM39: -72.911079
A40: 37 | B40: 225.831 | C40: 94.037 | D40: -65.167641 | F40: 37 | G40: 225.831 | H40: 95.537 | I40: -66.207141 | K40: 37 | L40: 225.831 | M40: 97.037 | N40: -67.246641 | P40: 37 | Q40: 225.831 | R40: 98.537 | S40: -68.286141 | U40: 37 | V40: 225.831 | W40: 100.037 | X40: -69.325641 | Z40: 37 | AA40: 225.831 | AB40: 101.537 | AC40: -70.365141 | AE40: 37 | AF40: 225.831 | AG40: 103.037 | AH40: -71.404641 | AJ40: 37 | AK40: 225.831 | AL40: 104.537 | AM40: -72.444141
A41: 38 | B41: 225.486 | C41: 93.957 | D41: -64.736373 | F41: 38 | G41: 225.486 | H41: 95.457 | I41: -65.769873 | K41: 38 | L41: 225.486 | M41: 96.957 | N41: -66.803373 | P41: 38 | Q41: 225.486 | R41: 98.457 | S41: -67.836873 | U41: 38 | V41: 225.486 | W41: 99.957 | X41: -68.870373 | Z41: 38 | AA41: 225.486 | AB41: 101.457 | AC41: -69.903873 | AE41: 38 | AF41: 225.486 | AG41: 102.957 | AH41: -70.937373 | AJ41: 38 | AK41: 225.486 | AL41: 104.457 | AM41: -71.970873
A42: 39 | B42: 225.142 | C42: 93.87 | D42: -64.39482 | F42: 39 | G42: 225.142 | H42: 95.37 | I42: -65.42382 | K42: 39 | L42: 225.142 | M42: 96.87 | N42: -66.45282 | P42: 39 | Q42: 225.142 | R42: 98.37 | S42: -67.48182 | U42: 39 | V42: 225.142 | W42: 99.87 | X42: -68.51082 | Z42: 39 | AA42: 225.142 | AB42: 101.37 | AC42: -69.53982 | AE42: 39 | AF42: 225.142 | AG42: 102.87 | AH42: -70.56882 | AJ42: 39 | AK42: 225.142 | AL42: 104.37 | AM42: -71.59782
A43: 40 | B43: 224.8 | C43: 93.775 | D43: -55.796125 | F43: 40 | G43: 224.8 | H43: 95.275 | I43: -56.688625 | K43: 40 | L43: 224.8 | M43: 96.775 | N43: -57.581125 | P43: 40 | Q43: 224.8 | R43: 98.275 | S43: -58.473625 | U43: 40 | V43: 224.8 | W43: 99.775 | X43: -59.366125 | Z43: 40 | AA43: 224.8 | AB43: 101.275 | AC43: -60.258625 | AE43: 40 | AF43: 224.8 | AG43: 102.775 | AH43: -61.151125 | AJ43: 40 | AK43: 224.8 | AL43: 104.275 | AM43: -62.043625
A44: 41 | B44: 224.547 | C44: 93.686 | D44: -46.37457 | F44: 41 | G44: 224.547 | H44: 95.186 | I44: -47.11707 | K44: 41 | L44: 224.547 | M44: 96.686 | N44: -47.85957 | P44: 41 | Q44: 224.547 | R44: 98.186 | S44: -48.60207 | U44: 41 | V44: 224.547 | W44: 99.686 | X44: -49.34457 | Z44: 41 | AA44: 224.547 | AB44: 101.186 | AC44: -50.08707 | AE44: 41 | AF44: 224.547 | AG44: 102.686 | AH44: -50.82957 | AJ44: 41 | AK44: 224.547 | AL44: 104.186 | AM44: -51.57207
A45: 42 | B45: 224.305 | C45: 93.571 | D45: -43.97837 | F45: 42 | G45: 224.305 | H45: 95.071 | I45: -44.68337 | K45: 42 | L45: 224.305 | M45: 96.571 | N45: -45.38837 | P45: 42 | Q45: 224.305 | R45: 98.071 | S45: -46.09337 | U45: 42 | V45: 224.305 | W45: 99.571 | X45: -46.79837 | Z45: 42 | AA45: 224.305 | AB45: 101.071 | AC45: -47.50337 | AE45: 42 | AF45: 224.305 | AG45: 102.571 | AH45: -48.20837 | AJ45: 42 | AK45: 224.305 | AL45: 104.071 | AM45: -48.91337
A46: 43 | B46: 224.077 | C46: 93.43 | D46: -41.1092 | F46: 43 | G46: 224.077 | H46: 94.93 | I46: -41.7692 | K46: 43 | L46: 224.077 | M46: 96.43 | N46: -42.4292 | P46: 43 | Q46: 224.077 | R46: 97.93 | S46: -43.0892 | U46: 43 | V46: 224.077 | W46: 99.43 | X46: -43.7492 | Z46: 43 | AA46: 224.077 | AB46: 100.93 | AC46: -44.4092 | AE46: 43 | AF46: 224.077 | AG46: 102.43 | AH46: -45.0692 | AJ46: 43 | AK46: 224.077 | AL46: 103.93 | AM46: -45.7292
A47: 44 | B47: 223.865 | C47: 93.266 | D47: -37.77273 | F47: 44 | G47: 223.865 | H47: 94.766 | I47: -38.38023 | K47: 44 | L47: 223.865 | M47: 96.266 | N47: -38.98773 | P47: 44 | Q47: 223.865 | R47: 97.766 | S47: -39.59523 | U47: 44 | V47: 223.865 | W47: 99.266 | X47: -40.20273 | Z47: 44 | AA47: 223.865 | AB47: 100.766 | AC47: -40.81023 | AE47: 44 | AF47: 223.865 | AG47: 102.266 | AH47: -41.41773 | AJ47: 44 | AK47: 223.865 | AL47: 103.766 | AM47: -42.02523
A48: 45 | B48: 223.672 | C48: 93.08 | D48: -33.9742 | F48: 45 | G48: 223.672 | H48: 94.58 | I48: -34.5217 | K48: 45 | L48: 223.672 | M48: 96.08 | N48: -35.0692 | P48: 45 | Q48: 223.672 | R48: 97.58 | S48: -35.6167 | U48: 45 | V48: 223.672 | W48: 99.08 | X48: -36.1642 | Z48: 45 | AA48: 223.672 | AB48: 100.58 | AC48: -36.7117 | AE48: 45 | AF48: 223.672 | AG48: 102.08 | AH48: -37.2592 | AJ48: 45 | AK48: 223.672 | AL48: 103.58 | AM48: -37.8067
A49: 46 | B49: 223.5 | C49: 92.875 | D49: -29.812875 | F49: 46 | G49: 223.5 | H49: 94.375 | I49: -30.294375 | K49: 46 | L49: 223.5 | M49: 95.875 | N49: -30.775875 | P49: 46 | Q49: 223.5 | R49: 97.375 | S49: -31.257375 | U49: 46 | V49: 223.5 | W49: 98.875 | X49: -31.738875 | Z49: 46 | AA49: 223.5 | AB49: 100.375 | AC49: -32.220375 | AE49: 46 | AF49: 223.5 | AG49: 101.875 | AH49: -32.701875 | AJ49: 46 | AK49: 223.5 | AL49: 103.375 | AM49: -33.183375
A50: 47 | B50: 223.351 | C50: 92.652 | D50: -25.293996 | F50: 47 | G50: 223.351 | H50: 94.152 | I50: -25.703496 | K50: 47 | L50: 223.351 | M50: 95.652 | N50: -26.112996 | P50: 47 | Q50: 223.351 | R50: 97.152 | S50: -26.522496 | U50: 47 | V50: 223.351 | W50: 98.652 | X50: -26.931996 | Z50: 47 | AA50: 223.351 | AB50: 100.152 | AC50: -27.341496 | AE50: 47 | AF50: 223.351 | AG50: 101.652 | AH50: -27.750996 | AJ50: 47 | AK50: 223.351 | AL50: 103.152 | AM50: -28.160496
A51: 48 | B51: 223.227 | C51: 92.415 | D51: -20.608545 | F51: 48 | G51: 223.227 | H51: 93.915 | I51: -20.943045 | K51: 48 | L51: 223.227 | M51: 95.415 | N51: -21.277545 | P51: 48 | Q51: 223.227 | R51: 96.915 | S51: -21.612045 | U51: 48 | V51: 223.227 | W51: 98.415 | X51: -21.946545 | Z51: 48 | AA51: 223.227 | AB51: 99.915 | AC51: -22.281045 | AE51: 48 | AF51: 223.227 | AG51: 101.415 | AH51: -22.615545 | AJ51: 48 | AK51: 223.227 | AL51: 102.915 | AM51: -22.950045
A52: 49 | B52: 223.128 | C52: 92.166 | D52: -15.66822 | F52: 49 | G52: 223.128 | H52: 93.666 | I52: -15.92322 | K52: 49 | L52: 223.128 | M52: 95.166 | N52: -16.17822 | P52: 49 | Q52: 223.128 | R52: 96.666 | S52: -16.43322 | U52: 49 | V52: 223.128 | W52: 98.166 | X52: -16.68822 | Z52: 49 | AA52: 223.128 | AB52: 99.666 | AC52: -16.94322 | AE52: 49 | AF52: 223.128 | AG52: 101.166 | AH52: -17.19822 | AJ52: 49 | AK52: 223.128 | AL52: 102.666 | AM52: -17.45322
A53: 50 | B53: 223.057 | C53: 91.907 | D53: -10.477398 | F53: 50 | G53: 223.057 | H53: 93.407 | I53: -10.648398 | K53: 50 | L53: 223.057 | M53: 94.907 | N53: -10.819398 | P53: 50 | Q53: 223.057 | R53: 96.407 | S53: -10.990398 | U53: 50 | V53: 223.057 | W53: 97.907 | X53: -11.161398 | Z53: 50 | AA53: 223.057 | AB53: 99.407 | AC53: -11.332398 | AE53: 50 | AF53: 223.057 | AG53: 100.907 | AH53: -11.503398 | AJ53: 50 | AK53: 223.057 | AL53: 102.407 | AM53: -11.674398
A54: 51 | B54: 223.014 | C54: 91.643 | D54: -5.223651 | F54: 51 | G54: 223.014 | H54: 93.143 | I54: -5.309151 | K54: 51 | L54: 223.014 | M54: 94.643 | N54: -5.394651 | P54: 51 | Q54: 223.014 | R54: 96.143 | S54: -5.480151 | U54: 51 | V54: 223.014 | W54: 97.643 | X54: -5.565651 | Z54: 51 | AA54: 223.014 | AB54: 99.143 | AC54: -5.651151 | AE54: 51 | AF54: 223.014 | AG54: 100.643 | AH54: -5.736651 | AJ54: 51 | AK54: 223.014 | AL54: 102.143 | AM54: -5.822151
A55: 52 | B55: 223 | C55: 91.375 | D55: -1.27925 | F55: 52 | G55: 223 | H55: 92.875 | I55: -1.30025 | K55: 52 | L55: 223 | M55: 94.375 | N55: -1.32125 | P55: 52 | Q55: 223 | R55: 95.875 | S55: -1.34225 | U55: 52 | V55: 223 | W55: 97.375 | X55: -1.36325 | Z55: 52 | AA55: 223 | AB55: 98.875 | AC55: -1.38425 | AE55: 52 | AF55: 223 | AG55: 100.375 | AH55: -1.40525 | AJ55: 52 | AK55: 223 | AL55: 101.875 | AM55: -1.42625
A56: 53 | B56: 223 | C56: 90.375 | D56: =C56*(B4-B55) -> 1265.25 | F56: 53 | G56: 223 | H56: 90.875 | I56: =H56*(G4-G55) -> 1272.25 | K56: 53 | L56: 223 | M56: 91.375 | N56: =M56*(L4-L55) -> 1279.25 | P56: 53 | Q56: 223 | R56: 91.875 | S56: =R56*(Q4-Q55) -> 1286.25 | U56: 53 | V56: 223 | W56: 92.375 | X56: =W56*(V4-V55) -> 1293.25 | Z56: 53 | AA56: 223 | AB56: 92.875 | AC56: =AB56*(AA4-AA55) -> 1300.25 | AE56: 53 | AF56: 223 | AG56: 93.375 | AH56: =AG56*(AF4-AF55) -> 1307.25 | AJ56: 53 | AK56: 223 | AL56: 93.875 | AM56: =AL56*(AK4-AK55) -> 1314.25
C58: AREA = | D58: =ABS(SUM(D4:D56))/2 -> 49.867431 | H58: AREA = | I58: =ABS(SUM(I4:I56))/2 -> 63.867431 | M58: AREA = | N58: =ABS(SUM(N4:N56))/2 -> 77.867431 | R58: AREA = | S58: =ABS(SUM(S4:S56))/2 -> 91.867431 | W58: AREA = | X58: =ABS(SUM(X4:X56))/2 -> 105.867431 | AB58: AREA = | AC58: =ABS(SUM(AC4:AC56))/2 -> 119.867431 | AG58: AREA = | AH58: =ABS(SUM(AH4:AH56))/2 -> 133.867431 | AL58: AREA = | AM58: =ABS(SUM(AM4:AM56))/2 -> 147.867431
C59: RAS = | D59: 49.87 | H59: RAS = | I59: 63.87 | M59: RAS = | N59: 77.87 | R59: RAS = | S59: 91.87 | W59: RAS = | X59: 105.87 | AB59: RAS = | AC59: 119.87 | AG59: RAS = | AH59: 133.87 | AL59: RAS = | AM59: 147.9
C60: PDF = | D60: 50 | H60: PDF = | I60: 64 | M60: PDF = | N60: 78 | R60: PDF = | S60: 92 | W60: PDF = | X60: 106 | AB60: PDF = | AC60: 120 | AG60: PDF = | AH60: 134 | AL60: PDF = | AM60: 148

Sheet Mid Span 16 ft
A1: ECOSPAN | F1: AQUA-ARCH, CONSPAN, ECOSPAN | AK1: ECOSPAN | AP1: ECOSPAN | AU1: ECOSPAN | AZ1: ECOSPAN | BE1: ECOSPAN
B2: 16 x 4 | G2: 16 x 5 | L2: 16 x 6 | Q2: 16 x 7 | V2: 16 x 8 | AA2: 16 x 9 | AF2: 16 x 10 | AK2: 16 x 11 | AP2: 16 x 12 | AU2: 16 x 13 | AZ2: 16 x 14 | BE2: 16 x 15
A3: Pt. | B3: X | C3: Y | D3: A' | F3: Pt. | G3: X | H3: Y | I3: A' | K3: Pt. | L3: X | M3: Y | N3: A' | P3: Pt. | Q3: X | R3: Y | S3: A' | U3: Pt. | V3: X | W3: Y | X3: A' | Z3: Pt. | AA3: X | AB3: Y | AC3: A' | AE3: Pt. | AF3: X | AG3: Y | AH3: A' | AJ3: Pt. | AK3: X | AL3: Y | AM3: A' | AO3: Pt. | AP3: X | AQ3: Y | AR3: A' | AT3: Pt. | AU3: X | AV3: Y | AW3: A' | AY3: Pt. | AZ3: X | BA3: Y | BB3: A' | BD3: Pt. | BE3: X | BF3: Y | BG3: A'
A4: 1 | B4: 238 | C4: 90.875 | D4: =C4*(B5-B56) -> 1454 | F4: 1 | G4: 238 | H4: 90.875 | I4: =H4*(G5-G56) -> 1454 | K4: 1 | L4: 238 | M4: 91.375 | N4: =M4*(L5-L56) -> 1462 | P4: 1 | Q4: 238 | R4: 91.875 | S4: =R4*(Q5-Q56) -> 1470 | U4: 1 | V4: 238 | W4: 92.375 | X4: =W4*(V5-V56) -> 1478 | Z4: 1 | AA4: 238 | AB4: 92.875 | AC4: =AB4*(AA5-AA56) -> 1486 | AE4: 1 | AF4: 238 | AG4: 93.375 | AH4: =AG4*(AF5-AF56) -> 1494 | AJ4: 1 | AK4: 238 | AL4: 93.375 | AM4: =AL4*(AK5-AK56) -> 1494 | AO4: 1 | AP4: 238 | AQ4: 93.375 | AR4: =AQ4*(AP5-AP56) -> 1494 | AT4: 1 | AU4: 238 | AV4: 93.375 | AW4: =AV4*(AU5-AU56) -> 1494 | AY4: 1 | AZ4: 238 | BA4: 93.375 | BB4: =BA4*(AZ5-AZ56) -> 1494 | BD4: 1 | BE4: 238 | BF4: 93.375 | BG4: =BF4*(BE5-BE56) -> 1494
A5: =A4+1 -> 2 | B5: 238 | C5: 91.345 | D5: =C5*(B6-B4) -> -1.27883 | F5: =F4+1 -> 2 | G5: 238 | H5: 92.345 | I5: =H5*(G6-G4) -> -1.29283 | K5: =K4+1 -> 2 | L5: 238 | M5: 93.845 | N5: =M5*(L6-L4) -> -1.31383 | P5: =P4+1 -> 2 | Q5: 238 | R5: 95.345 | S5: =R5*(Q6-Q4) -> -1.33483 | U5: =U4+1 -> 2 | V5: 238 | W5: 96.845 | X5: =W5*(V6-V4) -> -1.35583 | Z5: =Z4+1 -> 2 | AA5: 238 | AB5: 98.345 | AC5: =AB5*(AA6-AA4) -> -1.37683 | AE5: =AE4+1 -> 2 | AF5: 238 | AG5: 99.845 | AH5: =AG5*(AF6-AF4) -> -1.39783 | AJ5: =AJ4+1 -> 2 | AK5: 238 | AL5: 100.845 | AM5: =AL5*(AK6-AK4) -> -1.41183 | AO5: =AO4+1 -> 2 | AP5: 238 | AQ5: 101.845 | AR5: =AQ5*(AP6-AP4) -> -1.42583 | AT5: =AT4+1 -> 2 | AU5: 238 | AV5: 102.845 | AW5: =AV5*(AU6-AU4) -> -1.43983 | AY5: =AY4+1 -> 2 | AZ5: 238 | BA5: 103.845 | BB5: =BA5*(AZ6-AZ4) -> -1.45383 | BD5: =BD4+1 -> 2 | BE5: 238 | BF5: 104.845 | BG5: =BF5*(BE6-BE4) -> -1.46783
A6: =A5+1 -> 3 | B6: 237.986 | C6: 91.632 | D6: =C6*(B7-B5) -> -5.03976 | F6: =F5+1 -> 3 | G6: 237.986 | H6: 92.632 | I6: =H6*(G7-G5) -> -5.09476 | K6: =K5+1 -> 3 | L6: 237.986 | M6: 94.132 | N6: =M6*(L7-L5) -> -5.17726 | P6: =P5+1 -> 3 | Q6: 237.986 | R6: 95.632 | S6: =R6*(Q7-Q5) -> -5.25976 | U6: =U5+1 -> 3 | V6: 237.986 | W6: 97.132 | X6: =W6*(V7-V5) -> -5.34226 | Z6: =Z5+1 -> 3 | AA6: 237.986 | AB6: 98.632 | AC6: -5.42476 | AE6: =AE5+1 -> 3 | AF6: 237.986 | AG6: 100.132 | AH6: -5.50726 | AJ6: =AJ5+1 -> 3 | AK6: 237.986 | AL6: 101.132 | AM6: -5.56226 | AO6: =AO5+1 -> 3 | AP6: 237.986 | AQ6: 102.132 | AR6: -5.61726 | AT6: =AT5+1 -> 3 | AU6: 237.986 | AV6: 103.132 | AW6: -5.67226 | AY6: =AY5+1 -> 3 | AZ6: 237.986 | BA6: 104.132 | BB6: -5.72726 | BD6: =BD5+1 -> 3 | BE6: 237.986 | BF6: 105.132 | BG6: -5.78226
A7: 4 | B7: 237.945 | C7: 91.916 | D7: -10.018844 | F7: 4 | G7: 237.945 | H7: 92.916 | I7: -10.127844 | K7: =K6+1 -> 4 | L7: 237.945 | M7: 94.416 | N7: -10.291344 | P7: =P6+1 -> 4 | Q7: 237.945 | R7: 95.916 | S7: -10.454844 | U7: =U6+1 -> 4 | V7: 237.945 | W7: 97.416 | X7: -10.618344 | Z7: =Z6+1 -> 4 | AA7: 237.945 | AB7: 98.916 | AC7: -10.781844 | AE7: =AE6+1 -> 4 | AF7: 237.945 | AG7: 100.416 | AH7: -10.945344 | AJ7: 4 | AK7: 237.945 | AL7: 101.416 | AM7: -11.054344 | AO7: 4 | AP7: 237.945 | AQ7: 102.416 | AR7: -11.163344 | AT7: 4 | AU7: 237.945 | AV7: 103.416 | AW7: -11.272344 | AY7: 4 | AZ7: 237.945 | BA7: 104.416 | BB7: -11.381344 | BD7: 4 | BE7: 237.945 | BF7: 105.416 | BG7: -11.490344
A8: 5 | B8: 237.877 | C8: 92.195 | D8: -14.93559 | F8: 5 | G8: 237.877 | H8: 93.195 | I8: -15.09759 | K8: 5 | L8: 237.877 | M8: 94.695 | N8: -15.34059 | P8: 5 | Q8: 237.877 | R8: 96.195 | S8: -15.58359 | U8: 5 | V8: 237.877 | W8: 97.695 | X8: -15.82659 | Z8: 5 | AA8: 237.877 | AB8: 99.195 | AC8: -16.06959 | AE8: 5 | AF8: 237.877 | AG8: 100.695 | AH8: -16.31259 | AJ8: 5 | AK8: 237.877 | AL8: 101.695 | AM8: -16.47459 | AO8: 5 | AP8: 237.877 | AQ8: 102.695 | AR8: -16.63659 | AT8: 5 | AU8: 237.877 | AV8: 103.695 | AW8: -16.79859 | AY8: 5 | AZ8: 237.877 | BA8: 104.695 | BB8: -16.96059 | BD8: 5 | BE8: 237.877 | BF8: 105.695 | BG8: -17.12259
A9: 6 | B9: 237.783 | C9: 92.466 | D9: -19.787724 | F9: 6 | G9: 237.783 | H9: 93.466 | I9: -20.001724 | K9: 6 | L9: 237.783 | M9: 94.966 | N9: -20.322724 | P9: 6 | Q9: 237.783 | R9: 96.466 | S9: -20.643724 | U9: 6 | V9: 237.783 | W9: 97.966 | X9: -20.964724 | Z9: 6 | AA9: 237.783 | AB9: 99.466 | AC9: -21.285724 | AE9: 6 | AF9: 237.783 | AG9: 100.966 | AH9: -21.606724 | AJ9: 6 | AK9: 237.783 | AL9: 101.966 | AM9: -21.820724 | AO9: 6 | AP9: 237.783 | AQ9: 102.966 | AR9: -22.034724 | AT9: 6 | AU9: 237.783 | AV9: 103.966 | AW9: -22.248724 | AY9: 6 | AZ9: 237.783 | BA9: 104.966 | BB9: -22.462724 | BD9: 6 | BE9: 237.783 | BF9: 105.966 | BG9: -22.676724
A10: 7 | B10: 237.663 | C10: 92.727 | D10: -24.572655 | F10: 7 | G10: 237.663 | H10: 93.727 | I10: -24.837655 | K10: 7 | L10: 237.663 | M10: 95.227 | N10: -25.235155 | P10: 7 | Q10: 237.663 | R10: 96.727 | S10: -25.632655 | U10: 7 | V10: 237.663 | W10: 98.227 | X10: -26.030155 | Z10: 7 | AA10: 237.663 | AB10: 99.727 | AC10: -26.427655 | AE10: 7 | AF10: 237.663 | AG10: 101.227 | AH10: -26.825155 | AJ10: 7 | AK10: 237.663 | AL10: 102.227 | AM10: -27.090155 | AO10: 7 | AP10: 237.663 | AQ10: 103.227 | AR10: -27.355155 | AT10: 7 | AU10: 237.663 | AV10: 104.227 | AW10: -27.620155 | AY10: 7 | AZ10: 237.663 | BA10: 105.227 | BB10: -27.885155 | BD10: 7 | BE10: 237.663 | BF10: 106.227 | BG10: -28.150155
A11: 8 | B11: 237.518 | C11: 92.976 | D11: -29.008512 | F11: 8 | G11: 237.518 | H11: 93.976 | I11: -29.320512 | K11: 8 | L11: 237.518 | M11: 95.476 | N11: -29.788512 | P11: 8 | Q11: 237.518 | R11: 96.976 | S11: -30.256512 | U11: 8 | V11: 237.518 | W11: 98.476 | X11: -30.724512 | Z11: 8 | AA11: 237.518 | AB11: 99.976 | AC11: -31.192512 | AE11: 8 | AF11: 237.518 | AG11: 101.476 | AH11: -31.660512 | AJ11: 8 | AK11: 237.518 | AL11: 102.476 | AM11: -31.972512 | AO11: 8 | AP11: 237.518 | AQ11: 103.476 | AR11: -32.284512 | AT11: 8 | AU11: 237.518 | AV11: 104.476 | AW11: -32.596512 | AY11: 8 | AZ11: 237.518 | BA11: 105.476 | BB11: -32.908512 | BD11: 8 | BE11: 237.518 | BF11: 106.476 | BG11: -33.220512
A12: 9 | B12: 237.351 | C12: 93.209 | D12: -33.182404 | F12: 9 | G12: 237.351 | H12: 94.209 | I12: -33.538404 | K12: 9 | L12: 237.351 | M12: 95.709 | N12: -34.072404 | P12: 9 | Q12: 237.351 | R12: 97.209 | S12: -34.606404 | U12: 9 | V12: 237.351 | W12: 98.709 | X12: -35.140404 | Z12: 9 | AA12: 237.351 | AB12: 100.209 | AC12: -35.674404 | AE12: 9 | AF12: 237.351 | AG12: 101.709 | AH12: -36.208404 | AJ12: 9 | AK12: 237.351 | AL12: 102.709 | AM12: -36.564404 | AO12: 9 | AP12: 237.351 | AQ12: 103.709 | AR12: -36.920404 | AT12: 9 | AU12: 237.351 | AV12: 104.709 | AW12: -37.276404 | AY12: 9 | AZ12: 237.351 | BA12: 105.709 | BB12: -37.632404 | BD12: 9 | BE12: 237.351 | BF12: 106.709 | BG12: -37.988404
A13: 10 | B13: 237.162 | C13: 93.425 | D13: -37.18315 | F13: 10 | G13: 237.162 | H13: 94.425 | I13: -37.58115 | K13: 10 | L13: 237.162 | M13: 95.925 | N13: -38.17815 | P13: 10 | Q13: 237.162 | R13: 97.425 | S13: -38.77515 | U13: 10 | V13: 237.162 | W13: 98.925 | X13: -39.37215 | Z13: 10 | AA13: 237.162 | AB13: 100.425 | AC13: -39.96915 | AE13: 10 | AF13: 237.162 | AG13: 101.925 | AH13: -40.56615 | AJ13: 10 | AK13: 237.162 | AL13: 102.925 | AM13: -40.96415 | AO13: 10 | AP13: 237.162 | AQ13: 103.925 | AR13: -41.36215 | AT13: 10 | AU13: 237.162 | AV13: 104.925 | AW13: -41.76015 | AY13: 10 | AZ13: 237.162 | BA13: 105.925 | BB13: -42.15815 | BD13: 10 | BE13: 237.162 | BF13: 106.925 | BG13: -42.55615
A14: 11 | B14: 236.953 | C14: 93.622 | D14: -40.819192 | F14: 11 | G14: 236.953 | H14: 94.622 | I14: -41.255192 | K14: 11 | L14: 236.953 | M14: 96.122 | N14: -41.909192 | P14: 11 | Q14: 236.953 | R14: 97.622 | S14: -42.563192 | U14: 11 | V14: 236.953 | W14: 99.122 | X14: -43.217192 | Z14: 11 | AA14: 236.953 | AB14: 100.622 | AC14: -43.871192 | AE14: 11 | AF14: 236.953 | AG14: 102.122 | AH14: -44.525192 | AJ14: 11 | AK14: 236.953 | AL14: 103.122 | AM14: -44.961192 | AO14: 11 | AP14: 236.953 | AQ14: 104.122 | AR14: -45.397192 | AT14: 11 | AU14: 236.953 | AV14: 105.122 | AW14: -45.833192 | AY14: 11 | AZ14: 236.953 | BA14: 106.122 | BB14: -46.269192 | BD14: 11 | BE14: 236.953 | BF14: 107.122 | BG14: -46.705192
A15: 12 | B15: 236.726 | C15: 93.799 | D15: -43.991731 | F15: 12 | G15: 236.726 | H15: 94.799 | I15: -44.460731 | K15: 12 | L15: 236.726 | M15: 96.299 | N15: -45.164231 | P15: 12 | Q15: 236.726 | R15: 97.799 | S15: -45.867731 | U15: 12 | V15: 236.726 | W15: 99.299 | X15: -46.571231 | Z15: 12 | AA15: 236.726 | AB15: 100.799 | AC15: -47.274731 | AE15: 12 | AF15: 236.726 | AG15: 102.299 | AH15: -47.978231 | AJ15: 12 | AK15: 236.726 | AL15: 103.299 | AM15: -48.447231 | AO15: 12 | AP15: 236.726 | AQ15: 104.299 | AR15: -48.916231 | AT15: 12 | AU15: 236.726 | AV15: 105.299 | AW15: -49.385231 | AY15: 12 | AZ15: 236.726 | BA15: 106.299 | BB15: -49.854231 | BD15: 12 | BE15: 236.726 | BF15: 107.299 | BG15: -50.323231
A16: 13 | B16: 236.484 | C16: 93.953 | D16: -46.694641 | F16: 13 | G16: 236.484 | H16: 94.953 | I16: -47.191641 | K16: 13 | L16: 236.484 | M16: 96.453 | N16: -47.937141 | P16: 13 | Q16: 236.484 | R16: 97.953 | S16: -48.682641 | U16: 13 | V16: 236.484 | W16: 99.453 | X16: -49.428141 | Z16: 13 | AA16: 236.484 | AB16: 100.953 | AC16: -50.173641 | AE16: 13 | AF16: 236.484 | AG16: 102.453 | AH16: -50.919141 | AJ16: 13 | AK16: 236.484 | AL16: 103.453 | AM16: -51.416141 | AO16: 13 | AP16: 236.484 | AQ16: 104.453 | AR16: -51.913141 | AT16: 13 | AU16: 236.484 | AV16: 105.453 | AW16: -52.410141 | AY16: 13 | AZ16: 236.484 | BA16: 106.453 | BB16: -52.907141 | BD16: 13 | BE16: 236.484 | BF16: 107.453 | BG16: -53.404141
A17: 14 | B17: 236.229 | C17: 94.087 | D17: -68.213075 | F17: 14 | G17: 236.229 | H17: 95.087 | I17: -68.938075 | K17: 14 | L17: 236.229 | M17: 96.587 | N17: -70.025575 | P17: 14 | Q17: 236.229 | R17: 98.087 | S17: -71.113075 | U17: 14 | V17: 236.229 | W17: 99.587 | X17: -72.200575 | Z17: 14 | AA17: 236.229 | AB17: 101.087 | AC17: -73.288075 | AE17: 14 | AF17: 236.229 | AG17: 102.587 | AH17: -74.375575 | AJ17: 14 | AK17: 236.229 | AL17: 103.587 | AM17: -75.100575 | AO17: 14 | AP17: 236.229 | AQ17: 104.587 | AR17: -75.825575 | AT17: 14 | AU17: 236.229 | AV17: 105.587 | AW17: -76.550575 | AY17: 14 | AZ17: 236.229 | BA17: 106.587 | BB17: -77.275575 | BD17: 14 | BE17: 236.229 | BF17: 107.587 | BG17: -78.000575
A18: 15 | B18: 235.759 | C18: 94.203 | D18: -88.833429 | F18: 15 | G18: 235.759 | H18: 95.203 | I18: -89.776429 | K18: 15 | L18: 235.759 | M18: 96.703 | N18: -91.190929 | P18: 15 | Q18: 235.759 | R18: 98.203 | S18: -92.605429 | U18: 15 | V18: 235.759 | W18: 99.703 | X18: -94.019929 | Z18: 15 | AA18: 235.759 | AB18: 101.203 | AC18: -95.434429 | AE18: 15 | AF18: 235.759 | AG18: 102.703 | AH18: -96.848929 | AJ18: 15 | AK18: 235.759 | AL18: 103.703 | AM18: -97.791929 | AO18: 15 | AP18: 235.759 | AQ18: 104.703 | AR18: -98.734929 | AT18: 15 | AU18: 235.759 | AV18: 105.703 | AW18: -99.677929 | AY18: 15 | AZ18: 235.759 | BA18: 106.703 | BB18: -100.620929 | BD18: 15 | BE18: 235.759 | BF18: 107.703 | BG18: -101.563929
A19: 16 | B19: 235.286 | C19: 94.31 | D19: -89.31157 | F19: 16 | G19: 235.286 | H19: 95.31 | I19: -90.25857 | K19: 16 | L19: 235.286 | M19: 96.81 | N19: -91.67907 | P19: 16 | Q19: 235.286 | R19: 98.31 | S19: -93.09957 | U19: 16 | V19: 235.286 | W19: 99.81 | X19: -94.52007 | Z19: 16 | AA19: 235.286 | AB19: 101.31 | AC19: -95.94057 | AE19: 16 | AF19: 235.286 | AG19: 102.81 | AH19: -97.36107 | AJ19: 16 | AK19: 235.286 | AL19: 103.81 | AM19: -98.30807 | AO19: 16 | AP19: 235.286 | AQ19: 104.81 | AR19: -99.25507 | AT19: 16 | AU19: 235.286 | AV19: 105.81 | AW19: -100.20207 | AY19: 16 | AZ19: 235.286 | BA19: 106.81 | BB19: -101.14907 | BD19: 16 | BE19: 235.286 | BF19: 107.81 | BG19: -102.09607
A20: 17 | B20: 234.812 | C20: 94.408 | D20: -89.6876 | F20: 17 | G20: 234.812 | H20: 95.408 | I20: -90.6376 | K20: 17 | L20: 234.812 | M20: 96.908 | N20: -92.0626 | P20: 17 | Q20: 234.812 | R20: 98.408 | S20: -93.4876 | U20: 17 | V20: 234.812 | W20: 99.908 | X20: -94.9126 | Z20: 17 | AA20: 234.812 | AB20: 101.408 | AC20: -96.3376 | AE20: 17 | AF20: 234.812 | AG20: 102.908 | AH20: -97.7626 | AJ20: =AJ19+1 -> 17 | AK20: 234.812 | AL20: 103.908 | AM20: -98.7126 | AO20: =AO19+1 -> 17 | AP20: 234.812 | AQ20: 104.908 | AR20: -99.6626 | AT20: =AT19+1 -> 17 | AU20: 234.812 | AV20: 105.908 | AW20: -100.6126 | AY20: =AY19+1 -> 17 | AZ20: 234.812 | BA20: 106.908 | BB20: -101.5626 | BD20: =BD19+1 -> 17 | BE20: 234.812 | BF20: 107.908 | BG20: -102.5126
A21: 18 | B21: 234.336 | C21: 94.496 | D21: -90.149184 | F21: 18 | G21: 234.336 | H21: 95.496 | I21: -91.103184 | K21: 18 | L21: 234.336 | M21: 96.996 | N21: -92.534184 | P21: 18 | Q21: 234.336 | R21: 98.496 | S21: -93.965184 | U21: 18 | V21: 234.336 | W21: 99.996 | X21: -95.396184 | Z21: 18 | AA21: 234.336 | AB21: 101.496 | AC21: -96.827184 | AE21: 18 | AF21: 234.336 | AG21: 102.996 | AH21: -98.258184 | AJ21: =AJ20+1 -> 18 | AK21: 234.336 | AL21: 103.996 | AM21: -99.212184 | AO21: =AO20+1 -> 18 | AP21: 234.336 | AQ21: 104.996 | AR21: -100.166184 | AT21: =AT20+1 -> 18 | AU21: 234.336 | AV21: 105.996 | AW21: -101.120184 | AY21: =AY20+1 -> 18 | AZ21: 234.336 | BA21: 106.996 | BB21: -102.074184 | BD21: =BD20+1 -> 18 | BE21: 234.336 | BF21: 107.996 | BG21: -103.028184
A22: 19 | B22: 233.858 | C22: 94.576 | D22: -90.509232 | F22: 19 | G22: 233.858 | H22: 95.576 | I22: -91.466232 | K22: 19 | L22: 233.858 | M22: 97.076 | N22: -92.901732 | P22: 19 | Q22: 233.858 | R22: 98.576 | S22: -94.337232 | U22: 19 | V22: 233.858 | W22: 100.076 | X22: -95.772732 | Z22: 19 | AA22: 233.858 | AB22: 101.576 | AC22: -97.208232 | AE22: 19 | AF22: 233.858 | AG22: 103.076 | AH22: -98.643732 | AJ22: =AJ21+1 -> 19 | AK22: 233.858 | AL22: 104.076 | AM22: -99.600732 | AO22: =AO21+1 -> 19 | AP22: 233.858 | AQ22: 105.076 | AR22: -100.557732 | AT22: =AT21+1 -> 19 | AU22: 233.858 | AV22: 106.076 | AW22: -101.514732 | AY22: =AY21+1 -> 19 | AZ22: 233.858 | BA22: 107.076 | BB22: -102.471732 | BD22: =BD21+1 -> 19 | BE22: 233.858 | BF22: 108.076 | BG22: -103.428732
A23: 20 | B23: 233.379 | C23: 94.646 | D23: -90.765514 | F23: 20 | G23: 233.379 | H23: 95.646 | I23: -91.724514 | K23: 20 | L23: 233.379 | M23: 97.146 | N23: -93.163014 | P23: 20 | Q23: 233.379 | R23: 98.646 | S23: -94.601514 | U23: 20 | V23: 233.379 | W23: 100.146 | X23: -96.040014 | Z23: 20 | AA23: 233.379 | AB23: 101.646 | AC23: -97.478514 | AE23: 20 | AF23: 233.379 | AG23: 103.146 | AH23: -98.917014 | AJ23: 20 | AK23: 233.379 | AL23: 104.146 | AM23: -99.876014 | AO23: 20 | AP23: 233.379 | AQ23: 105.146 | AR23: -100.835014 | AT23: 20 | AU23: 233.379 | AV23: 106.146 | AW23: -101.794014 | AY23: 20 | AZ23: 233.379 | BA23: 107.146 | BB23: -102.753014 | BD23: 20 | BE23: 233.379 | BF23: 108.146 | BG23: -103.712014
A24: 21 | B24: 232.899 | C24: 94.706 | D24: -91.107172 | F24: 21 | G24: 232.899 | H24: 95.706 | I24: -92.069172 | K24: 21 | L24: 232.899 | M24: 97.206 | N24: -93.512172 | P24: 21 | Q24: 232.899 | R24: 98.706 | S24: -94.955172 | U24: 21 | V24: 232.899 | W24: 100.206 | X24: -96.398172 | Z24: 21 | AA24: 232.899 | AB24: 101.706 | AC24: -97.841172 | AE24: 21 | AF24: 232.899 | AG24: 103.206 | AH24: -99.284172 | AJ24: 21 | AK24: 232.899 | AL24: 104.206 | AM24: -100.246172 | AO24: 21 | AP24: 232.899 | AQ24: 105.206 | AR24: -101.208172 | AT24: 21 | AU24: 232.899 | AV24: 106.206 | AW24: -102.170172 | AY24: 21 | AZ24: 232.899 | BA24: 107.206 | BB24: -103.132172 | BD24: 21 | BE24: 232.899 | BF24: 108.206 | BG24: -104.094172
A25: 22 | B25: 232.417 | C25: 94.758 | D25: -91.346712 | F25: 22 | G25: 232.417 | H25: 95.758 | I25: -92.310712 | K25: 22 | L25: 232.417 | M25: 97.258 | N25: -93.756712 | P25: 22 | Q25: 232.417 | R25: 98.758 | S25: -95.202712 | U25: 22 | V25: 232.417 | W25: 100.258 | X25: -96.648712 | Z25: 22 | AA25: 232.417 | AB25: 101.758 | AC25: -98.094712 | AE25: 22 | AF25: 232.417 | AG25: 103.258 | AH25: -99.540712 | AJ25: 22 | AK25: 232.417 | AL25: 104.258 | AM25: -100.504712 | AO25: 22 | AP25: 232.417 | AQ25: 105.258 | AR25: -101.468712 | AT25: 22 | AU25: 232.417 | AV25: 106.258 | AW25: -102.432712 | AY25: 22 | AZ25: 232.417 | BA25: 107.258 | BB25: -103.396712 | BD25: 22 | BE25: 232.417 | BF25: 108.258 | BG25: -104.360712
A26: 23 | B26: 231.935 | C26: 94.8 | D26: -91.482 | F26: 23 | G26: 231.935 | H26: 95.8 | I26: -92.447 | K26: 23 | L26: 231.935 | M26: 97.3 | N26: -93.8945 | P26: 23 | Q26: 231.935 | R26: 98.8 | S26: -95.342 | U26: 23 | V26: 231.935 | W26: 100.3 | X26: -96.7895 | Z26: 23 | AA26: 231.935 | AB26: 101.8 | AC26: -98.237 | AE26: 23 | AF26: 231.935 | AG26: 103.3 | AH26: -99.6845 | AJ26: 23 | AK26: 231.935 | AL26: 104.3 | AM26: -100.6495 | AO26: 23 | AP26: 231.935 | AQ26: 105.3 | AR26: -101.6145 | AT26: 23 | AU26: 231.935 | AV26: 106.3 | AW26: -102.5795 | AY26: 23 | AZ26: 231.935 | BA26: 107.3 | BB26: -103.5445 | BD26: 23 | BE26: 231.935 | BF26: 108.3 | BG26: -104.5095
A27: 24 | B27: 231.452 | C27: 94.833 | D27: -91.703511 | F27: 24 | G27: 231.452 | H27: 95.833 | I27: -92.670511 | K27: 24 | L27: 231.452 | M27: 97.333 | N27: -94.121011 | P27: 24 | Q27: 231.452 | R27: 98.833 | S27: -95.571511 | U27: 24 | V27: 231.452 | W27: 100.333 | X27: -97.022011 | Z27: 24 | AA27: 231.452 | AB27: 101.833 | AC27: -98.472511 | AE27: 24 | AF27: 231.452 | AG27: 103.333 | AH27: -99.923011 | AJ27: 24 | AK27: 231.452 | AL27: 104.333 | AM27: -100.890011 | AO27: 24 | AP27: 231.452 | AQ27: 105.333 | AR27: -101.857011 | AT27: 24 | AU27: 231.452 | AV27: 106.333 | AW27: -102.824011 | AY27: 24 | AZ27: 231.452 | BA27: 107.333 | BB27: -103.791011 | BD27: 24 | BE27: 231.452 | BF27: 108.333 | BG27: -104.758011
A28: 25 | B28: 230.968 | C28: 94.856 | D28: -91.820608 | F28: 25 | G28: 230.968 | H28: 95.856 | I28: -92.788608 | K28: 25 | L28: 230.968 | M28: 97.356 | N28: -94.240608 | P28: 25 | Q28: 230.968 | R28: 98.856 | S28: -95.692608 | U28: 25 | V28: 230.968 | W28: 100.356 | X28: -97.144608 | Z28: 25 | AA28: 230.968 | AB28: 101.856 | AC28: -98.596608 | AE28: 25 | AF28: 230.968 | AG28: 103.356 | AH28: -100.048608 | AJ28: 25 | AK28: 230.968 | AL28: 104.356 | AM28: -101.016608 | AO28: 25 | AP28: 230.968 | AQ28: 105.356 | AR28: -101.984608 | AT28: 25 | AU28: 230.968 | AV28: 106.356 | AW28: -102.952608 | AY28: 25 | AZ28: 230.968 | BA28: 107.356 | BB28: -103.920608 | BD28: 25 | BE28: 230.968 | BF28: 108.356 | BG28: -104.888608
A29: 26 | B29: 230.484 | C29: 94.87 | D29: -91.83416 | F29: 26 | G29: 230.484 | H29: 95.87 | I29: -92.80216 | K29: 26 | L29: 230.484 | M29: 97.37 | N29: -94.25416 | P29: 26 | Q29: 230.484 | R29: 98.87 | S29: -95.70616 | U29: 26 | V29: 230.484 | W29: 100.37 | X29: -97.15816 | Z29: 26 | AA29: 230.484 | AB29: 101.87 | AC29: -98.61016 | AE29: 26 | AF29: 230.484 | AG29: 103.37 | AH29: -100.06216 | AJ29: 26 | AK29: 230.484 | AL29: 104.37 | AM29: -101.03016 | AO29: 26 | AP29: 230.484 | AQ29: 105.37 | AR29: -101.99816 | AT29: 26 | AU29: 230.484 | AV29: 106.37 | AW29: -102.96616 | AY29: 26 | AZ29: 230.484 | BA29: 107.37 | BB29: -103.93416 | BD29: 26 | BE29: 230.484 | BF29: 108.37 | BG29: -104.90216
A30: 27 | B30: 230 | C30: 94.875 | D30: -91.839 | F30: 27 | G30: 230 | H30: 95.875 | I30: -92.807 | K30: 27 | L30: 230 | M30: 97.375 | N30: -94.259 | P30: 27 | Q30: 230 | R30: 98.875 | S30: -95.711 | U30: 27 | V30: 230 | W30: 100.375 | X30: -97.163 | Z30: 27 | AA30: 230 | AB30: 101.875 | AC30: -98.615 | AE30: 27 | AF30: 230 | AG30: 103.375 | AH30: -100.067 | AJ30: 27 | AK30: 230 | AL30: 104.375 | AM30: -101.035 | AO30: 27 | AP30: 230 | AQ30: 105.375 | AR30: -102.003 | AT30: 27 | AU30: 230 | AV30: 106.375 | AW30: -102.971 | AY30: 27 | AZ30: 230 | BA30: 107.375 | BB30: -103.939 | BD30: 27 | BE30: 230 | BF30: 108.375 | BG30: -104.907
A31: 28 | B31: 229.516 | C31: 94.87 | D31: -91.83416 | F31: 28 | G31: 229.516 | H31: 95.87 | I31: -92.80216 | K31: 28 | L31: 229.516 | M31: 97.37 | N31: -94.25416 | P31: 28 | Q31: 229.516 | R31: 98.87 | S31: -95.70616 | U31: 28 | V31: 229.516 | W31: 100.37 | X31: -97.15816 | Z31: 28 | AA31: 229.516 | AB31: 101.87 | AC31: -98.61016 | AE31: 28 | AF31: 229.516 | AG31: 103.37 | AH31: -100.06216 | AJ31: 28 | AK31: 229.516 | AL31: 104.37 | AM31: -101.03016 | AO31: 28 | AP31: 229.516 | AQ31: 105.37 | AR31: -101.99816 | AT31: 28 | AU31: 229.516 | AV31: 106.37 | AW31: -102.96616 | AY31: 28 | AZ31: 229.516 | BA31: 107.37 | BB31: -103.93416 | BD31: 28 | BE31: 229.516 | BF31: 108.37 | BG31: -104.90216
A32: 29 | B32: 229.032 | C32: 94.856 | D32: -91.820608 | F32: 29 | G32: 229.032 | H32: 95.856 | I32: -92.788608 | K32: 29 | L32: 229.032 | M32: 97.356 | N32: -94.240608 | P32: 29 | Q32: 229.032 | R32: 98.856 | S32: -95.692608 | U32: 29 | V32: 229.032 | W32: 100.356 | X32: -97.144608 | Z32: 29 | AA32: 229.032 | AB32: 101.856 | AC32: -98.596608 | AE32: 29 | AF32: 229.032 | AG32: 103.356 | AH32: -100.048608 | AJ32: 29 | AK32: 229.032 | AL32: 104.356 | AM32: -101.016608 | AO32: 29 | AP32: 229.032 | AQ32: 105.356 | AR32: -101.984608 | AT32: 29 | AU32: 229.032 | AV32: 106.356 | AW32: -102.952608 | AY32: 29 | AZ32: 229.032 | BA32: 107.356 | BB32: -103.920608 | BD32: 29 | BE32: 229.032 | BF32: 108.356 | BG32: -104.888608
A33: 30 | B33: 228.548 | C33: 94.833 | D33: -91.703511 | F33: 30 | G33: 228.548 | H33: 95.833 | I33: -92.670511 | K33: 30 | L33: 228.548 | M33: 97.333 | N33: -94.121011 | P33: 30 | Q33: 228.548 | R33: 98.833 | S33: -95.571511 | U33: 30 | V33: 228.548 | W33: 100.333 | X33: -97.022011 | Z33: 30 | AA33: 228.548 | AB33: 101.833 | AC33: -98.472511 | AE33: 30 | AF33: 228.548 | AG33: 103.333 | AH33: -99.923011 | AJ33: 30 | AK33: 228.548 | AL33: 104.333 | AM33: -100.890011 | AO33: 30 | AP33: 228.548 | AQ33: 105.333 | AR33: -101.857011 | AT33: 30 | AU33: 228.548 | AV33: 106.333 | AW33: -102.824011 | AY33: 30 | AZ33: 228.548 | BA33: 107.333 | BB33: -103.791011 | BD33: 30 | BE33: 228.548 | BF33: 108.333 | BG33: -104.758011
A34: 31 | B34: 228.065 | C34: 94.8 | D34: -91.482 | F34: 31 | G34: 228.065 | H34: 95.8 | I34: -92.447 | K34: 31 | L34: 228.065 | M34: 97.3 | N34: -93.8945 | P34: 31 | Q34: 228.065 | R34: 98.8 | S34: -95.342 | U34: 31 | V34: 228.065 | W34: 100.3 | X34: -96.7895 | Z34: 31 | AA34: 228.065 | AB34: 101.8 | AC34: -98.237 | AE34: 31 | AF34: 228.065 | AG34: 103.3 | AH34: -99.6845 | AJ34: 31 | AK34: 228.065 | AL34: 104.3 | AM34: -100.6495 | AO34: 31 | AP34: 228.065 | AQ34: 105.3 | AR34: -101.6145 | AT34: 31 | AU34: 228.065 | AV34: 106.3 | AW34: -102.5795 | AY34: 31 | AZ34: 228.065 | BA34: 107.3 | BB34: -103.5445 | BD34: 31 | BE34: 228.065 | BF34: 108.3 | BG34: -104.5095
A35: 32 | B35: 227.583 | C35: 94.758 | D35: -91.346712 | F35: 32 | G35: 227.583 | H35: 95.758 | I35: -92.310712 | K35: 32 | L35: 227.583 | M35: 97.258 | N35: -93.756712 | P35: 32 | Q35: 227.583 | R35: 98.758 | S35: -95.202712 | U35: 32 | V35: 227.583 | W35: 100.258 | X35: -96.648712 | Z35: 32 | AA35: 227.583 | AB35: 101.758 | AC35: -98.094712 | AE35: 32 | AF35: 227.583 | AG35: 103.258 | AH35: -99.540712 | AJ35: 32 | AK35: 227.583 | AL35: 104.258 | AM35: -100.504712 | AO35: 32 | AP35: 227.583 | AQ35: 105.258 | AR35: -101.468712 | AT35: 32 | AU35: 227.583 | AV35: 106.258 | AW35: -102.432712 | AY35: 32 | AZ35: 227.583 | BA35: 107.258 | BB35: -103.396712 | BD35: 32 | BE35: 227.583 | BF35: 108.258 | BG35: -104.360712
A36: 33 | B36: 227.101 | C36: 94.706 | D36: -91.107172 | F36: 33 | G36: 227.101 | H36: 95.706 | I36: -92.069172 | K36: 33 | L36: 227.101 | M36: 97.206 | N36: -93.512172 | P36: 33 | Q36: 227.101 | R36: 98.706 | S36: -94.955172 | U36: 33 | V36: 227.101 | W36: 100.206 | X36: -96.398172 | Z36: 33 | AA36: 227.101 | AB36: 101.706 | AC36: -97.841172 | AE36: 33 | AF36: 227.101 | AG36: 103.206 | AH36: -99.284172 | AJ36: 33 | AK36: 227.101 | AL36: 104.206 | AM36: -100.246172 | AO36: 33 | AP36: 227.101 | AQ36: 105.206 | AR36: -101.208172 | AT36: 33 | AU36: 227.101 | AV36: 106.206 | AW36: -102.170172 | AY36: 33 | AZ36: 227.101 | BA36: 107.206 | BB36: -103.132172 | BD36: 33 | BE36: 227.101 | BF36: 108.206 | BG36: -104.094172
A37: 34 | B37: 226.621 | C37: 94.646 | D37: -90.765514 | F37: 34 | G37: 226.621 | H37: 95.646 | I37: -91.724514 | K37: 34 | L37: 226.621 | M37: 97.146 | N37: -93.163014 | P37: 34 | Q37: 226.621 | R37: 98.646 | S37: -94.601514 | U37: 34 | V37: 226.621 | W37: 100.146 | X37: -96.040014 | Z37: 34 | AA37: 226.621 | AB37: 101.646 | AC37: -97.478514 | AE37: 34 | AF37: 226.621 | AG37: 103.146 | AH37: -98.917014 | AJ37: 34 | AK37: 226.621 | AL37: 104.146 | AM37: -99.876014 | AO37: 34 | AP37: 226.621 | AQ37: 105.146 | AR37: -100.835014 | AT37: 34 | AU37: 226.621 | AV37: 106.146 | AW37: -101.794014 | AY37: 34 | AZ37: 226.621 | BA37: 107.146 | BB37: -102.753014 | BD37: 34 | BE37: 226.621 | BF37: 108.146 | BG37: -103.712014
A38: 35 | B38: 226.142 | C38: 94.576 | D38: -90.509232 | F38: 35 | G38: 226.142 | H38: 95.576 | I38: -91.466232 | K38: 35 | L38: 226.142 | M38: 97.076 | N38: -92.901732 | P38: 35 | Q38: 226.142 | R38: 98.576 | S38: -94.337232 | U38: 35 | V38: 226.142 | W38: 100.076 | X38: -95.772732 | Z38: 35 | AA38: 226.142 | AB38: 101.576 | AC38: -97.208232 | AE38: 35 | AF38: 226.142 | AG38: 103.076 | AH38: -98.643732 | AJ38: 35 | AK38: 226.142 | AL38: 104.076 | AM38: -99.600732 | AO38: 35 | AP38: 226.142 | AQ38: 105.076 | AR38: -100.557732 | AT38: 35 | AU38: 226.142 | AV38: 106.076 | AW38: -101.514732 | AY38: 35 | AZ38: 226.142 | BA38: 107.076 | BB38: -102.471732 | BD38: 35 | BE38: 226.142 | BF38: 108.076 | BG38: -103.428732
A39: 36 | B39: 225.664 | C39: 94.496 | D39: -90.149184 | F39: 36 | G39: 225.664 | H39: 95.496 | I39: -91.103184 | K39: 36 | L39: 225.664 | M39: 96.996 | N39: -92.534184 | P39: 36 | Q39: 225.664 | R39: 98.496 | S39: -93.965184 | U39: 36 | V39: 225.664 | W39: 99.996 | X39: -95.396184 | Z39: 36 | AA39: 225.664 | AB39: 101.496 | AC39: -96.827184 | AE39: 36 | AF39: 225.664 | AG39: 102.996 | AH39: -98.258184 | AJ39: 36 | AK39: 225.664 | AL39: 103.996 | AM39: -99.212184 | AO39: 36 | AP39: 225.664 | AQ39: 104.996 | AR39: -100.166184 | AT39: 36 | AU39: 225.664 | AV39: 105.996 | AW39: -101.120184 | AY39: 36 | AZ39: 225.664 | BA39: 106.996 | BB39: -102.074184 | BD39: 36 | BE39: 225.664 | BF39: 107.996 | BG39: -103.028184
A40: 37 | B40: 225.188 | C40: 94.408 | D40: -89.6876 | F40: 37 | G40: 225.188 | H40: 95.408 | I40: -90.6376 | K40: 37 | L40: 225.188 | M40: 96.908 | N40: -92.0626 | P40: 37 | Q40: 225.188 | R40: 98.408 | S40: -93.4876 | U40: 37 | V40: 225.188 | W40: 99.908 | X40: -94.9126 | Z40: 37 | AA40: 225.188 | AB40: 101.408 | AC40: -96.3376 | AE40: 37 | AF40: 225.188 | AG40: 102.908 | AH40: -97.7626 | AJ40: 37 | AK40: 225.188 | AL40: 103.908 | AM40: -98.7126 | AO40: 37 | AP40: 225.188 | AQ40: 104.908 | AR40: -99.6626 | AT40: 37 | AU40: 225.188 | AV40: 105.908 | AW40: -100.6126 | AY40: 37 | AZ40: 225.188 | BA40: 106.908 | BB40: -101.5626 | BD40: 37 | BE40: 225.188 | BF40: 107.908 | BG40: -102.5126
A41: 38 | B41: 224.714 | C41: 94.31 | D41: -89.31157 | F41: 38 | G41: 224.714 | H41: 95.31 | I41: -90.25857 | K41: 38 | L41: 224.714 | M41: 96.81 | N41: -91.67907 | P41: 38 | Q41: 224.714 | R41: 98.31 | S41: -93.09957 | U41: 38 | V41: 224.714 | W41: 99.81 | X41: -94.52007 | Z41: 38 | AA41: 224.714 | AB41: 101.31 | AC41: -95.94057 | AE41: 38 | AF41: 224.714 | AG41: 102.81 | AH41: -97.36107 | AJ41: 38 | AK41: 224.714 | AL41: 103.81 | AM41: -98.30807 | AO41: 38 | AP41: 224.714 | AQ41: 104.81 | AR41: -99.25507 | AT41: 38 | AU41: 224.714 | AV41: 105.81 | AW41: -100.20207 | AY41: 38 | AZ41: 224.714 | BA41: 106.81 | BB41: -101.14907 | BD41: 38 | BE41: 224.714 | BF41: 107.81 | BG41: -102.09607
A42: 39 | B42: 224.241 | C42: 94.203 | D42: -88.833429 | F42: 39 | G42: 224.241 | H42: 95.203 | I42: -89.776429 | K42: 39 | L42: 224.241 | M42: 96.703 | N42: -91.190929 | P42: 39 | Q42: 224.241 | R42: 98.203 | S42: -92.605429 | U42: 39 | V42: 224.241 | W42: 99.703 | X42: -94.019929 | Z42: 39 | AA42: 224.241 | AB42: 101.203 | AC42: -95.434429 | AE42: 39 | AF42: 224.241 | AG42: 102.703 | AH42: -96.848929 | AJ42: 39 | AK42: 224.241 | AL42: 103.703 | AM42: -97.791929 | AO42: 39 | AP42: 224.241 | AQ42: 104.703 | AR42: -98.734929 | AT42: 39 | AU42: 224.241 | AV42: 105.703 | AW42: -99.677929 | AY42: 39 | AZ42: 224.241 | BA42: 106.703 | BB42: -100.620929 | BD42: 39 | BE42: 224.241 | BF42: 107.703 | BG42: -101.563929
A43: 40 | B43: 223.771 | C43: 94.087 | D43: -68.213075 | F43: 40 | G43: 223.771 | H43: 95.087 | I43: -68.938075 | K43: 40 | L43: 223.771 | M43: 96.587 | N43: -70.025575 | P43: 40 | Q43: 223.771 | R43: 98.087 | S43: -71.113075 | U43: 40 | V43: 223.771 | W43: 99.587 | X43: -72.200575 | Z43: 40 | AA43: 223.771 | AB43: 101.087 | AC43: -73.288075 | AE43: 40 | AF43: 223.771 | AG43: 102.587 | AH43: -74.375575 | AJ43: 40 | AK43: 223.771 | AL43: 103.587 | AM43: -75.100575 | AO43: 40 | AP43: 223.771 | AQ43: 104.587 | AR43: -75.825575 | AT43: 40 | AU43: 223.771 | AV43: 105.587 | AW43: -76.550575 | AY43: 40 | AZ43: 223.771 | BA43: 106.587 | BB43: -77.275575 | BD43: 40 | BE43: 223.771 | BF43: 107.587 | BG43: -78.000575
A44: 41 | B44: 223.516 | C44: 93.953 | D44: -46.694641 | F44: 41 | G44: 223.516 | H44: 94.953 | I44: -47.191641 | K44: 41 | L44: 223.516 | M44: 96.453 | N44: -47.937141 | P44: 41 | Q44: 223.516 | R44: 97.953 | S44: -48.682641 | U44: 41 | V44: 223.516 | W44: 99.453 | X44: -49.428141 | Z44: 41 | AA44: 223.516 | AB44: 100.953 | AC44: -50.173641 | AE44: 41 | AF44: 223.516 | AG44: 102.453 | AH44: -50.919141 | AJ44: 41 | AK44: 223.516 | AL44: 103.453 | AM44: -51.416141 | AO44: 41 | AP44: 223.516 | AQ44: 104.453 | AR44: -51.913141 | AT44: 41 | AU44: 223.516 | AV44: 105.453 | AW44: -52.410141 | AY44: 41 | AZ44: 223.516 | BA44: 106.453 | BB44: -52.907141 | BD44: 41 | BE44: 223.516 | BF44: 107.453 | BG44: -53.404141
A45: 42 | B45: 223.274 | C45: 93.799 | D45: -43.991731 | F45: 42 | G45: 223.274 | H45: 94.799 | I45: -44.460731 | K45: 42 | L45: 223.274 | M45: 96.299 | N45: -45.164231 | P45: 42 | Q45: 223.274 | R45: 97.799 | S45: -45.867731 | U45: 42 | V45: 223.274 | W45: 99.299 | X45: -46.571231 | Z45: 42 | AA45: 223.274 | AB45: 100.799 | AC45: -47.274731 | AE45: 42 | AF45: 223.274 | AG45: 102.299 | AH45: -47.978231 | AJ45: 42 | AK45: 223.274 | AL45: 103.299 | AM45: -48.447231 | AO45: 42 | AP45: 223.274 | AQ45: 104.299 | AR45: -48.916231 | AT45: 42 | AU45: 223.274 | AV45: 105.299 | AW45: -49.385231 | AY45: 42 | AZ45: 223.274 | BA45: 106.299 | BB45: -49.854231 | BD45: 42 | BE45: 223.274 | BF45: 107.299 | BG45: -50.323231
A46: 43 | B46: 223.047 | C46: 93.622 | D46: -40.819192 | F46: 43 | G46: 223.047 | H46: 94.622 | I46: -41.255192 | K46: 43 | L46: 223.047 | M46: 96.122 | N46: -41.909192 | P46: 43 | Q46: 223.047 | R46: 97.622 | S46: -42.563192 | U46: 43 | V46: 223.047 | W46: 99.122 | X46: -43.217192 | Z46: 43 | AA46: 223.047 | AB46: 100.622 | AC46: -43.871192 | AE46: 43 | AF46: 223.047 | AG46: 102.122 | AH46: -44.525192 | AJ46: 43 | AK46: 223.047 | AL46: 103.122 | AM46: -44.961192 | AO46: 43 | AP46: 223.047 | AQ46: 104.122 | AR46: -45.397192 | AT46: 43 | AU46: 223.047 | AV46: 105.122 | AW46: -45.833192 | AY46: 43 | AZ46: 223.047 | BA46: 106.122 | BB46: -46.269192 | BD46: 43 | BE46: 223.047 | BF46: 107.122 | BG46: -46.705192
A47: 44 | B47: 222.838 | C47: 93.425 | D47: -37.18315 | F47: 44 | G47: 222.838 | H47: 94.425 | I47: -37.58115 | K47: 44 | L47: 222.838 | M47: 95.925 | N47: -38.17815 | P47: 44 | Q47: 222.838 | R47: 97.425 | S47: -38.77515 | U47: 44 | V47: 222.838 | W47: 98.925 | X47: -39.37215 | Z47: 44 | AA47: 222.838 | AB47: 100.425 | AC47: -39.96915 | AE47: 44 | AF47: 222.838 | AG47: 101.925 | AH47: -40.56615 | AJ47: 44 | AK47: 222.838 | AL47: 102.925 | AM47: -40.96415 | AO47: 44 | AP47: 222.838 | AQ47: 103.925 | AR47: -41.36215 | AT47: 44 | AU47: 222.838 | AV47: 104.925 | AW47: -41.76015 | AY47: 44 | AZ47: 222.838 | BA47: 105.925 | BB47: -42.15815 | BD47: 44 | BE47: 222.838 | BF47: 106.925 | BG47: -42.55615
A48: 45 | B48: 222.649 | C48: 93.209 | D48: -33.182404 | F48: 45 | G48: 222.649 | H48: 94.209 | I48: -33.538404 | K48: 45 | L48: 222.649 | M48: 95.709 | N48: -34.072404 | P48: 45 | Q48: 222.649 | R48: 97.209 | S48: -34.606404 | U48: 45 | V48: 222.649 | W48: 98.709 | X48: -35.140404 | Z48: 45 | AA48: 222.649 | AB48: 100.209 | AC48: -35.674404 | AE48: 45 | AF48: 222.649 | AG48: 101.709 | AH48: -36.208404 | AJ48: 45 | AK48: 222.649 | AL48: 102.709 | AM48: -36.564404 | AO48: 45 | AP48: 222.649 | AQ48: 103.709 | AR48: -36.920404 | AT48: 45 | AU48: 222.649 | AV48: 104.709 | AW48: -37.276404 | AY48: 45 | AZ48: 222.649 | BA48: 105.709 | BB48: -37.632404 | BD48: 45 | BE48: 222.649 | BF48: 106.709 | BG48: -37.988404
A49: 46 | B49: 222.482 | C49: 92.976 | D49: -29.008512 | F49: 46 | G49: 222.482 | H49: 93.976 | I49: -29.320512 | K49: 46 | L49: 222.482 | M49: 95.476 | N49: -29.788512 | P49: 46 | Q49: 222.482 | R49: 96.976 | S49: -30.256512 | U49: 46 | V49: 222.482 | W49: 98.476 | X49: -30.724512 | Z49: 46 | AA49: 222.482 | AB49: 99.976 | AC49: -31.192512 | AE49: 46 | AF49: 222.482 | AG49: 101.476 | AH49: -31.660512 | AJ49: 46 | AK49: 222.482 | AL49: 102.476 | AM49: -31.972512 | AO49: 46 | AP49: 222.482 | AQ49: 103.476 | AR49: -32.284512 | AT49: 46 | AU49: 222.482 | AV49: 104.476 | AW49: -32.596512 | AY49: 46 | AZ49: 222.482 | BA49: 105.476 | BB49: -32.908512 | BD49: 46 | BE49: 222.482 | BF49: 106.476 | BG49: -33.220512
A50: 47 | B50: 222.337 | C50: 92.727 | D50: -24.572655 | F50: 47 | G50: 222.337 | H50: 93.727 | I50: -24.837655 | K50: 47 | L50: 222.337 | M50: 95.227 | N50: -25.235155 | P50: 47 | Q50: 222.337 | R50: 96.727 | S50: -25.632655 | U50: 47 | V50: 222.337 | W50: 98.227 | X50: -26.030155 | Z50: 47 | AA50: 222.337 | AB50: 99.727 | AC50: -26.427655 | AE50: 47 | AF50: 222.337 | AG50: 101.227 | AH50: -26.825155 | AJ50: 47 | AK50: 222.337 | AL50: 102.227 | AM50: -27.090155 | AO50: 47 | AP50: 222.337 | AQ50: 103.227 | AR50: -27.355155 | AT50: 47 | AU50: 222.337 | AV50: 104.227 | AW50: -27.620155 | AY50: 47 | AZ50: 222.337 | BA50: 105.227 | BB50: -27.885155 | BD50: 47 | BE50: 222.337 | BF50: 106.227 | BG50: -28.150155
A51: 48 | B51: 222.217 | C51: 92.466 | D51: -19.787724 | F51: 48 | G51: 222.217 | H51: 93.466 | I51: -20.001724 | K51: 48 | L51: 222.217 | M51: 94.966 | N51: -20.322724 | P51: 48 | Q51: 222.217 | R51: 96.466 | S51: -20.643724 | U51: 48 | V51: 222.217 | W51: 97.966 | X51: -20.964724 | Z51: 48 | AA51: 222.217 | AB51: 99.466 | AC51: -21.285724 | AE51: 48 | AF51: 222.217 | AG51: 100.966 | AH51: -21.606724 | AJ51: 48 | AK51: 222.217 | AL51: 101.966 | AM51: -21.820724 | AO51: 48 | AP51: 222.217 | AQ51: 102.966 | AR51: -22.034724 | AT51: 48 | AU51: 222.217 | AV51: 103.966 | AW51: -22.248724 | AY51: 48 | AZ51: 222.217 | BA51: 104.966 | BB51: -22.462724 | BD51: 48 | BE51: 222.217 | BF51: 105.966 | BG51: -22.676724
A52: 49 | B52: 222.123 | C52: 92.195 | D52: -14.93559 | F52: 49 | G52: 222.123 | H52: 93.195 | I52: -15.09759 | K52: 49 | L52: 222.123 | M52: 94.695 | N52: -15.34059 | P52: 49 | Q52: 222.123 | R52: 96.195 | S52: -15.58359 | U52: 49 | V52: 222.123 | W52: 97.695 | X52: -15.82659 | Z52: 49 | AA52: 222.123 | AB52: 99.195 | AC52: -16.06959 | AE52: 49 | AF52: 222.123 | AG52: 100.695 | AH52: -16.31259 | AJ52: 49 | AK52: 222.123 | AL52: 101.695 | AM52: -16.47459 | AO52: 49 | AP52: 222.123 | AQ52: 102.695 | AR52: -16.63659 | AT52: 49 | AU52: 222.123 | AV52: 103.695 | AW52: -16.79859 | AY52: 49 | AZ52: 222.123 | BA52: 104.695 | BB52: -16.96059 | BD52: 49 | BE52: 222.123 | BF52: 105.695 | BG52: -17.12259
A53: 50 | B53: 222.055 | C53: 91.916 | D53: -10.018844 | F53: 50 | G53: 222.055 | H53: 92.916 | I53: -10.127844 | K53: 50 | L53: 222.055 | M53: 94.416 | N53: -10.291344 | P53: 50 | Q53: 222.055 | R53: 95.916 | S53: -10.454844 | U53: 50 | V53: 222.055 | W53: 97.416 | X53: -10.618344 | Z53: 50 | AA53: 222.055 | AB53: 98.916 | AC53: -10.781844 | AE53: 50 | AF53: 222.055 | AG53: 100.416 | AH53: -10.945344 | AJ53: 50 | AK53: 222.055 | AL53: 101.416 | AM53: -11.054344 | AO53: 50 | AP53: 222.055 | AQ53: 102.416 | AR53: -11.163344 | AT53: 50 | AU53: 222.055 | AV53: 103.416 | AW53: -11.272344 | AY53: 50 | AZ53: 222.055 | BA53: 104.416 | BB53: -11.381344 | BD53: 50 | BE53: 222.055 | BF53: 105.416 | BG53: -11.490344
A54: 51 | B54: 222.014 | C54: 91.632 | D54: -5.03976 | F54: 51 | G54: 222.014 | H54: 92.632 | I54: -5.09476 | K54: 51 | L54: 222.014 | M54: 94.132 | N54: -5.17726 | P54: 51 | Q54: 222.014 | R54: 95.632 | S54: -5.25976 | U54: 51 | V54: 222.014 | W54: 97.132 | X54: -5.34226 | Z54: 51 | AA54: 222.014 | AB54: 98.632 | AC54: -5.42476 | AE54: 51 | AF54: 222.014 | AG54: 100.132 | AH54: -5.50726 | AJ54: 51 | AK54: 222.014 | AL54: 101.132 | AM54: -5.56226 | AO54: 51 | AP54: 222.014 | AQ54: 102.132 | AR54: -5.61726 | AT54: 51 | AU54: 222.014 | AV54: 103.132 | AW54: -5.67226 | AY54: 51 | AZ54: 222.014 | BA54: 104.132 | BB54: -5.72726 | BD54: 51 | BE54: 222.014 | BF54: 105.132 | BG54: -5.78226
A55: 52 | B55: 222 | C55: 91.345 | D55: -1.27883 | F55: 52 | G55: 222 | H55: 92.345 | I55: -1.29283 | K55: 52 | L55: 222 | M55: 93.845 | N55: -1.31383 | P55: 52 | Q55: 222 | R55: 95.345 | S55: -1.33483 | U55: 52 | V55: 222 | W55: 96.845 | X55: -1.35583 | Z55: 52 | AA55: 222 | AB55: 98.345 | AC55: -1.37683 | AE55: 52 | AF55: 222 | AG55: 99.845 | AH55: -1.39783 | AJ55: 52 | AK55: 222 | AL55: 100.845 | AM55: -1.41183 | AO55: 52 | AP55: 222 | AQ55: 101.845 | AR55: -1.42583 | AT55: 52 | AU55: 222 | AV55: 102.845 | AW55: -1.43983 | AY55: 52 | AZ55: 222 | BA55: 103.845 | BB55: -1.45383 | BD55: 52 | BE55: 222 | BF55: 104.845 | BG55: -1.46783
A56: 53 | B56: 222 | C56: 90.875 | D56: =C56*(B4-B55) -> 1454 | F56: 53 | G56: 222 | H56: 90.875 | I56: =H56*(G4-G55) -> 1454 | K56: 53 | L56: 222 | M56: 91.375 | N56: =M56*(L4-L55) -> 1462 | P56: 53 | Q56: 222 | R56: 91.875 | S56: =R56*(Q4-Q55) -> 1470 | U56: 53 | V56: 222 | W56: 92.375 | X56: =W56*(V4-V55) -> 1478 | Z56: 53 | AA56: 222 | AB56: 92.875 | AC56: =AB56*(AA4-AA55) -> 1486 | AE56: 53 | AF56: 222 | AG56: 93.375 | AH56: =AG56*(AF4-AF55) -> 1494 | AJ56: 53 | AK56: 222 | AL56: 93.375 | AM56: =AL56*(AK4-AK55) -> 1494 | AO56: 53 | AP56: 222 | AQ56: 93.375 | AR56: =AQ56*(AP4-AP55) -> 1494 | AT56: 53 | AU56: 222 | AV56: 93.375 | AW56: =AV56*(AU4-AU55) -> 1494 | AY56: 53 | AZ56: 222 | BA56: 93.375 | BB56: =BA56*(AZ4-AZ55) -> 1494 | BD56: 53 | BE56: 222 | BF56: 93.375 | BG56: =BF56*(BE4-BE55) -> 1494
H57: .
C58: AREA = | D58: =ABS(SUM(D4:D56))/2 -> 55.1963 | H58: AREA = | I58: =ABS(SUM(I4:I56))/2 -> 71.1963 | M58: AREA = | N58: =ABS(SUM(N4:N56))/2 -> 87.1963 | R58: AREA = | S58: =ABS(SUM(S4:S56))/2 -> 103.1963 | W58: AREA = | X58: =ABS(SUM(X4:X56))/2 -> 119.1963 | AB58: AREA = | AC58: =ABS(SUM(AC4:AC56))/2 -> 135.1963 | AG58: AREA = | AH58: =ABS(SUM(AH4:AH56))/2 -> 151.1963 | AL58: AREA = | AM58: =ABS(SUM(AM4:AM56))/2 -> 167.1963 | AQ58: AREA = | AR58: =ABS(SUM(AR4:AR56))/2 -> 183.1963 | AV58: AREA = | AW58: =ABS(SUM(AW4:AW56))/2 -> 199.1963 | BA58: AREA = | BB58: =ABS(SUM(BB4:BB56))/2 -> 215.1963 | BF58: AREA = | BG58: =ABS(SUM(BG4:BG56))/2 -> 231.1963
C59: RAS = | H59: RAS = | I59: 71.2 | M59: RAS = | N59: 87.2 | R59: RAS = | S59: 103.2 | W59: RAS = | X59: 119.2 | AB59: RAS = | AC59: 135.2 | AG59: RAS = | AH59: 151.2 | AL59: RAS = | AQ59: RAS = | AV59: RAS = | BA59: RAS = | BF59: RAS =
C60: PDF = | D60: 55 | H60: PDF = | I60: 71 | M60: PDF = | N60: 87 | R60: PDF = | S60: 103 | W60: PDF = | X60: 119 | AB60: PDF = | AC60: 135 | AG60: PDF = | AH60: 151 | AL60: PDF = | AM60: 167 | AQ60: PDF = | AR60: 183 | AV60: PDF = | AW60: 199 | BA60: PDF = | BB60: 215 | BF60: PDF = | BG60: 231

Sheet 18' Span
A1: Non-manufactured HECRAS shape - Used for comparison to Hy-Span
B2: 18 x 4 | G2: 18 x 6 | L2: 18 x 8 | Q2: 18 x 10
A3: Pt. | B3: X | C3: Y | D3: A' | F3: Pt. | G3: X | H3: Y | I3: A' | K3: Pt. | L3: X | M3: Y | N3: A' | P3: Pt. | Q3: X | R3: Y | S3: A'
A4: 1 | B4: 239 | C4: 90.875 | D4: =C4*(B5-B56) -> 1635.75 | F4: 1 | G4: 239 | H4: 91.375 | I4: =H4*(G5-G56) -> 1644.75 | K4: 1 | L4: 239 | M4: 91.875 | N4: =M4*(L5-L56) -> 1653.75 | P4: 1 | Q4: 239 | R4: 92.375 | S4: =R4*(Q5-Q56) -> 1662.75
A5: =A4+1 -> 2 | B5: 239 | C5: 91.045 | D5: =C5*(B6-B4) -> -1.27463 | F5: =F4+1 -> 2 | G5: 239 | H5: 93.545 | I5: =H5*(G6-G4) -> -1.30963 | K5: =K4+1 -> 2 | L5: 239 | M5: 96.045 | N5: =M5*(L6-L4) -> -1.34463 | P5: =P4+1 -> 2 | Q5: 239 | R5: 98.545 | S5: =R5*(Q6-Q4) -> -1.37963
A6: =A5+1 -> 3 | B6: 238.986 | C6: 91.332 | D6: =C6*(B7-B5) -> -5.02326 | F6: =F5+1 -> 3 | G6: 238.986 | H6: 93.832 | I6: =H6*(G7-G5) -> -5.16076 | K6: =K5+1 -> 3 | L6: 238.986 | M6: 96.332 | N6: =M6*(L7-L5) -> -5.29826 | P6: =P5+1 -> 3 | Q6: 238.986 | R6: 98.832 | S6: =R6*(Q7-Q5) -> -5.43576
A7: 4 | B7: 238.945 | C7: 91.616 | D7: -9.986144 | F7: 4 | G7: 238.945 | H7: 94.116 | I7: -10.258644 | K7: 4 | L7: 238.945 | M7: 96.616 | N7: -10.531144 | P7: 4 | Q7: 238.945 | R7: 99.116 | S7: -10.803644
A8: 5 | B8: 238.877 | C8: 91.895 | D8: -14.88699 | F8: 5 | G8: 238.877 | H8: 94.395 | I8: -15.29199 | K8: 5 | L8: 238.877 | M8: 96.895 | N8: -15.69699 | P8: 5 | Q8: 238.877 | R8: 99.395 | S8: -16.10199
A9: 6 | B9: 238.783 | C9: 92.166 | D9: -19.723524 | F9: 6 | G9: 238.783 | H9: 94.666 | I9: -20.258524 | K9: 6 | L9: 238.783 | M9: 97.166 | N9: -20.793524 | P9: 6 | Q9: 238.783 | R9: 99.666 | S9: -21.328524
A10: 7 | B10: 238.663 | C10: 92.427 | D10: -24.493155 | F10: 7 | G10: 238.663 | H10: 94.927 | I10: -25.155655 | K10: 7 | L10: 238.663 | M10: 97.427 | N10: -25.818155 | P10: 7 | Q10: 238.663 | R10: 99.927 | S10: -26.480655
A11: 8 | B11: 238.518 | C11: 92.676 | D11: -28.914912 | F11: 8 | G11: 238.518 | H11: 95.176 | I11: -29.694912 | K11: 8 | L11: 238.518 | M11: 97.676 | N11: -30.474912 | P11: 8 | Q11: 238.518 | R11: 100.176 | S11: -31.254912
A12: 9 | B12: 238.351 | C12: 92.909 | D12: -33.075604 | F12: 9 | G12: 238.351 | H12: 95.409 | I12: -33.965604 | K12: 9 | L12: 238.351 | M12: 97.909 | N12: -34.855604 | P12: 9 | Q12: 238.351 | R12: 100.409 | S12: -35.745604
A13: 10 | B13: 238.162 | C13: 93.125 | D13: -37.06375 | F13: 10 | G13: 238.162 | H13: 95.625 | I13: -38.05875 | K13: 10 | L13: 238.162 | M13: 98.125 | N13: -39.05375 | P13: 10 | Q13: 238.162 | R13: 100.625 | S13: -40.04875
A14: 11 | B14: 237.953 | C14: 93.322 | D14: -40.688392 | F14: 11 | G14: 237.953 | H14: 95.822 | I14: -41.778392 | K14: 11 | L14: 237.953 | M14: 98.322 | N14: -42.868392 | P14: 11 | Q14: 237.953 | R14: 100.822 | S14: -43.958392
A15: 12 | B15: 237.726 | C15: 93.499 | D15: -43.851031 | F15: 12 | G15: 237.726 | H15: 95.999 | I15: -45.023531 | K15: 12 | L15: 237.726 | M15: 98.499 | N15: -46.196031 | P15: 12 | Q15: 237.726 | R15: 100.999 | S15: -47.368531
A16: 13 | B16: 237.484 | C16: 93.653 | D16: -46.545541 | F16: 13 | G16: 237.484 | H16: 96.153 | I16: -47.788041 | K16: 13 | L16: 237.484 | M16: 98.653 | N16: -49.030541 | P16: 13 | Q16: 237.484 | R16: 101.153 | S16: -50.273041
A17: 14 | B17: 237.229 | C17: 93.784 | D17: -74.652064 | F17: 14 | G17: 237.229 | H17: 96.284 | I17: -76.642064 | K17: 14 | L17: 237.229 | M17: 98.784 | N17: -78.632064 | P17: 14 | Q17: 237.229 | R17: 101.284 | S17: -80.622064
A18: 15 | B18: 236.688 | C18: 93.945 | D18: -102.02427 | F18: 15 | G18: 236.688 | H18: 96.445 | I18: -104.73927 | K18: 15 | L18: 236.688 | M18: 98.945 | N18: -107.45427 | P18: 15 | Q18: 236.688 | R18: 101.445 | S18: -110.16927
A19: 16 | B19: 236.143 | C19: 94.092 | D19: -102.842556 | F19: 16 | G19: 236.143 | H19: 96.592 | I19: -105.575056 | K19: 16 | L19: 236.143 | M19: 99.092 | N19: -108.307556 | P19: 16 | Q19: 236.143 | R19: 101.592 | S19: -111.040056
A20: 17 | B20: 235.595 | C20: 94.228 | D20: -103.462344 | F20: 17 | G20: 235.595 | H20: 96.728 | I20: -106.207344 | K20: 17 | L20: 235.595 | M20: 99.228 | N20: -108.952344 | P20: 17 | Q20: 235.595 | R20: 101.728 | S20: -111.697344
A21: 18 | B21: 235.045 | C21: 94.35 | D21: -104.1624 | F21: 18 | G21: 235.045 | H21: 96.85 | I21: -106.9224 | K21: 18 | L21: 235.045 | M21: 99.35 | N21: -109.6824 | P21: 18 | Q21: 235.045 | R21: 101.85 | S21: -112.4424
A22: 19 | B22: 234.491 | C22: 94.46 | D22: -104.8506 | F22: 19 | G22: 234.491 | H22: 96.96 | I22: -107.6256 | K22: 19 | L22: 234.491 | M22: 99.46 | N22: -110.4006 | P22: 19 | Q22: 234.491 | R22: 101.96 | S22: -113.1756
A23: 20 | B23: 233.935 | C23: 94.557 | D23: -105.336498 | F23: 20 | G23: 233.935 | H23: 97.057 | I23: -108.121498 | K23: 20 | L23: 233.935 | M23: 99.557 | N23: -110.906498 | P23: 20 | Q23: 233.935 | R23: 102.057 | S23: -113.691498
A24: 21 | B24: 233.377 | C24: 94.641 | D24: -105.808638 | F24: 21 | G24: 233.377 | H24: 97.141 | I24: -108.603638 | K24: 21 | L24: 233.377 | M24: 99.641 | N24: -111.398638 | P24: 21 | Q24: 233.377 | R24: 102.141 | S24: -114.193638
A25: 22 | B25: 232.817 | C25: 94.713 | D25: -106.267986 | F25: 22 | G25: 232.817 | H25: 97.213 | I25: -109.072986 | K25: 22 | L25: 232.817 | M25: 99.713 | N25: -111.877986 | P25: 22 | Q25: 232.817 | R25: 102.213 | S25: -114.682986
A26: 23 | B26: 232.255 | C26: 94.771 | D26: -106.617375 | F26: 23 | G26: 232.255 | H26: 97.271 | I26: -109.429875 | K26: 23 | L26: 232.255 | M26: 99.771 | N26: -112.242375 | P26: 23 | Q26: 232.255 | R26: 102.271 | S26: -115.054875
A27: 24 | B27: 231.692 | C27: 94.816 | D27: -106.762816 | F27: 24 | G27: 231.692 | H27: 97.316 | I27: -109.577816 | K27: 24 | L27: 231.692 | M27: 99.816 | N27: -112.392816 | P27: 24 | Q27: 231.692 | R27: 102.316 | S27: -115.207816
A28: 25 | B28: 231.129 | C28: 94.849 | D28: -106.894823 | F28: 25 | G28: 231.129 | H28: 97.349 | I28: -109.712323 | K28: 25 | L28: 231.129 | M28: 99.849 | N28: -112.529823 | P28: 25 | Q28: 231.129 | R28: 102.349 | S28: -115.347323
A29: 26 | B29: 230.565 | C29: 94.868 | D29: -107.105972 | F29: 26 | G29: 230.565 | H29: 97.368 | I29: -109.928472 | K29: 26 | L29: 230.565 | M29: 99.868 | N29: -112.750972 | P29: 26 | Q29: 230.565 | R29: 102.368 | S29: -115.573472
A30: 27 | B30: 230 | C30: 94.875 | D30: -107.20875 | F30: 27 | G30: 230 | H30: 97.375 | I30: -110.03375 | K30: 27 | L30: 230 | M30: 99.875 | N30: -112.85875 | P30: 27 | Q30: 230 | R30: 102.375 | S30: -115.68375
A31: 28 | B31: 229.435 | C31: 94.868 | D31: -107.105972 | F31: 28 | G31: 229.435 | H31: 97.368 | I31: -109.928472 | K31: 28 | L31: 229.435 | M31: 99.868 | N31: -112.750972 | P31: 28 | Q31: 229.435 | R31: 102.368 | S31: -115.573472
A32: 29 | B32: 228.871 | C32: 94.849 | D32: -106.894823 | F32: 29 | G32: 228.871 | H32: 97.349 | I32: -109.712323 | K32: 29 | L32: 228.871 | M32: 99.849 | N32: -112.529823 | P32: 29 | Q32: 228.871 | R32: 102.349 | S32: -115.347323
A33: 30 | B33: 228.308 | C33: 94.816 | D33: -106.762816 | F33: 30 | G33: 228.308 | H33: 97.316 | I33: -109.577816 | K33: 30 | L33: 228.308 | M33: 99.816 | N33: -112.392816 | P33: 30 | Q33: 228.308 | R33: 102.316 | S33: -115.207816
A34: 31 | B34: 227.745 | C34: 94.771 | D34: -106.617375 | F34: 31 | G34: 227.745 | H34: 97.271 | I34: -109.429875 | K34: 31 | L34: 227.745 | M34: 99.771 | N34: -112.242375 | P34: 31 | Q34: 227.745 | R34: 102.271 | S34: -115.054875
A35: 32 | B35: 227.183 | C35: 94.713 | D35: -106.267986 | F35: 32 | G35: 227.183 | H35: 97.213 | I35: -109.072986 | K35: 32 | L35: 227.183 | M35: 99.713 | N35: -111.877986 | P35: 32 | Q35: 227.183 | R35: 102.213 | S35: -114.682986
A36: 33 | B36: 226.623 | C36: 94.641 | D36: -105.808638 | F36: 33 | G36: 226.623 | H36: 97.141 | I36: -108.603638 | K36: 33 | L36: 226.623 | M36: 99.641 | N36: -111.398638 | P36: 33 | Q36: 226.623 | R36: 102.141 | S36: -114.193638
A37: 34 | B37: 226.065 | C37: 94.557 | D37: -105.336498 | F37: 34 | G37: 226.065 | H37: 97.057 | I37: -108.121498 | K37: 34 | L37: 226.065 | M37: 99.557 | N37: -110.906498 | P37: 34 | Q37: 226.065 | R37: 102.057 | S37: -113.691498
A38: 35 | B38: 225.509 | C38: 94.46 | D38: -104.8506 | F38: 35 | G38: 225.509 | H38: 96.96 | I38: -107.6256 | K38: 35 | L38: 225.509 | M38: 99.46 | N38: -110.4006 | P38: 35 | Q38: 225.509 | R38: 101.96 | S38: -113.1756
A39: 36 | B39: 224.955 | C39: 94.35 | D39: -104.1624 | F39: 36 | G39: 224.955 | H39: 96.85 | I39: -106.9224 | K39: 36 | L39: 224.955 | M39: 99.35 | N39: -109.6824 | P39: 36 | Q39: 224.955 | R39: 101.85 | S39: -112.4424
A40: 37 | B40: 224.405 | C40: 94.228 | D40: -103.462344 | F40: 37 | G40: 224.405 | H40: 96.728 | I40: -106.207344 | K40: 37 | L40: 224.405 | M40: 99.228 | N40: -108.952344 | P40: 37 | Q40: 224.405 | R40: 101.728 | S40: -111.697344
A41: 38 | B41: 223.857 | C41: 94.092 | D41: -102.842556 | F41: 38 | G41: 223.857 | H41: 96.592 | I41: -105.575056 | K41: 38 | L41: 223.857 | M41: 99.092 | N41: -108.307556 | P41: 38 | Q41: 223.857 | R41: 101.592 | S41: -111.040056
A42: 39 | B42: 223.312 | C42: 93.945 | D42: -102.02427 | F42: 39 | G42: 223.312 | H42: 96.445 | I42: -104.73927 | K42: 39 | L42: 223.312 | M42: 98.945 | N42: -107.45427 | P42: 39 | Q42: 223.312 | R42: 101.445 | S42: -110.16927
A43: 40 | B43: 222.771 | C43: 93.784 | D43: -74.652064 | F43: 40 | G43: 222.771 | H43: 96.284 | I43: -76.642064 | K43: 40 | L43: 222.771 | M43: 98.784 | N43: -78.632064 | P43: 40 | Q43: 222.771 | R43: 101.284 | S43: -80.622064
A44: 41 | B44: 222.516 | C44: 93.653 | D44: -46.545541 | F44: 41 | G44: 222.516 | H44: 96.153 | I44: -47.788041 | K44: 41 | L44: 222.516 | M44: 98.653 | N44: -49.030541 | P44: 41 | Q44: 222.516 | R44: 101.153 | S44: -50.273041
A45: 42 | B45: 222.274 | C45: 93.499 | D45: -43.851031 | F45: 42 | G45: 222.274 | H45: 95.999 | I45: -45.023531 | K45: 42 | L45: 222.274 | M45: 98.499 | N45: -46.196031 | P45: 42 | Q45: 222.274 | R45: 100.999 | S45: -47.368531
A46: 43 | B46: 222.047 | C46: 93.322 | D46: -40.688392 | F46: 43 | G46: 222.047 | H46: 95.822 | I46: -41.778392 | K46: 43 | L46: 222.047 | M46: 98.322 | N46: -42.868392 | P46: 43 | Q46: 222.047 | R46: 100.822 | S46: -43.958392
A47: 44 | B47: 221.838 | C47: 93.125 | D47: -37.06375 | F47: 44 | G47: 221.838 | H47: 95.625 | I47: -38.05875 | K47: 44 | L47: 221.838 | M47: 98.125 | N47: -39.05375 | P47: 44 | Q47: 221.838 | R47: 100.625 | S47: -40.04875
A48: 45 | B48: 221.649 | C48: 92.909 | D48: -33.075604 | F48: 45 | G48: 221.649 | H48: 95.409 | I48: -33.965604 | K48: 45 | L48: 221.649 | M48: 97.909 | N48: -34.855604 | P48: 45 | Q48: 221.649 | R48: 100.409 | S48: -35.745604
A49: 46 | B49: 221.482 | C49: 92.676 | D49: -28.914912 | F49: 46 | G49: 221.482 | H49: 95.176 | I49: -29.694912 | K49: 46 | L49: 221.482 | M49: 97.676 | N49: -30.474912 | P49: 46 | Q49: 221.482 | R49: 100.176 | S49: -31.254912
A50: 47 | B50: 221.337 | C50: 92.427 | D50: -24.493155 | F50: 47 | G50: 221.337 | H50: 94.927 | I50: -25.155655 | K50: 47 | L50: 221.337 | M50: 97.427 | N50: -25.818155 | P50: 47 | Q50: 221.337 | R50: 99.927 | S50: -26.480655
A51: 48 | B51: 221.217 | C51: 92.166 | D51: -19.723524 | F51: 48 | G51: 221.217 | H51: 94.666 | I51: -20.258524 | K51: 48 | L51: 221.217 | M51: 97.166 | N51: -20.793524 | P51: 48 | Q51: 221.217 | R51: 99.666 | S51: -21.328524
A52: 49 | B52: 221.123 | C52: 91.895 | D52: -14.88699 | F52: 49 | G52: 221.123 | H52: 94.395 | I52: -15.29199 | K52: 49 | L52: 221.123 | M52: 96.895 | N52: -15.69699 | P52: 49 | Q52: 221.123 | R52: 99.395 | S52: -16.10199
A53: 50 | B53: 221.055 | C53: 91.616 | D53: -9.986144 | F53: 50 | G53: 221.055 | H53: 94.116 | I53: -10.258644 | K53: 50 | L53: 221.055 | M53: 96.616 | N53: -10.531144 | P53: 50 | Q53: 221.055 | R53: 99.116 | S53: -10.803644
A54: 51 | B54: 221.014 | C54: 91.332 | D54: -5.02326 | F54: 51 | G54: 221.014 | H54: 93.832 | I54: -5.16076 | K54: 51 | L54: 221.014 | M54: 96.332 | N54: -5.29826 | P54: 51 | Q54: 221.014 | R54: 98.832 | S54: -5.43576
A55: 52 | B55: 221 | C55: 91.045 | D55: -1.27463 | F55: 52 | G55: 221 | H55: 93.545 | I55: -1.30963 | K55: 52 | L55: 221 | M55: 96.045 | N55: -1.34463 | P55: 52 | Q55: 221 | R55: 98.545 | S55: -1.37963
A56: 53 | B56: 221 | C56: 90.875 | D56: =C56*(B4-B55) -> 1635.75 | F56: 53 | G56: 221 | H56: 91.375 | I56: =H56*(G4-G55) -> 1644.75 | K56: 53 | L56: 221 | M56: 91.875 | N56: =M56*(L4-L55) -> 1653.75 | P56: 53 | Q56: 221 | R56: 92.375 | S56: =R56*(Q4-Q55) -> 1662.75
C57: . | H57: . | M57: . | R57: .
C58: AREA = | D58: =ABS(SUM(D4:D56))/2 -> 60.16965 | H58: AREA = | I58: =ABS(SUM(I4:I56))/2 -> 96.16965 | M58: AREA = | N58: =ABS(SUM(N4:N56))/2 -> 132.16965 | R58: AREA = | S58: =ABS(SUM(S4:S56))/2 -> 168.16965
C59: RAS = | H59: RAS = | M59: RAS = | R59: RAS =
C60: PDF = | H60: PDF = | M60: PDF = | R60: PDF =

Sheet Mid Span 20 ft
A1: ECOSPAN | F1: AQUA-ARCH, CONSPAN, ECOSPAN | AJ1: AQUA-ARCH, ECOSPAN | AO1: ECOSPAN | AT1: ECOSPAN | AY1: ECOSPAN | BD1: ECOSPAN
B2: 20 x 4 | G2: 20 x 5 | L2: 20 x 6 | Q2: 20 x 7 | V2: 20 x 8 | AA2: 20 x 9 | AF2: 20 x 10 | AK2: 20 x 11 | AP2: 20 x 12 | AU2: 20 x 13 | AZ2: 20 x 14 | BE2: 20 x 15
A3: Pt. | B3: X | C3: Y | D3: A' | F3: Pt. | G3: X | H3: Y | I3: A' | K3: Pt. | L3: X | M3: Y | N3: A' | P3: Pt. | Q3: X | R3: Y | S3: A' | U3: Pt. | V3: X | W3: Y | X3: A' | Z3: Pt. | AA3: X | AB3: Y | AC3: A' | AE3: Pt. | AF3: X | AG3: Y | AH3: A' | AJ3: Pt. | AK3: X | AL3: Y | AM3: A' | AO3: Pt. | AP3: X | AQ3: Y | AR3: A' | AT3: Pt. | AU3: X | AV3: Y | AW3: A' | AY3: Pt. | AZ3: X | BA3: Y | BB3: A' | BD3: Pt. | BE3: X | BF3: Y | BG3: A'
A4: 1 | B4: 240 | C4: 93.375 | D4: =C4*(B5-B54) -> 1866.19275 | F4: 1 | G4: 240 | H4: 90.875 | I4: =H4*(G5-G56) -> 1817.5 | K4: 1 | L4: 240 | M4: 91.375 | N4: =M4*(L5-L56) -> 1827.5 | P4: 1 | Q4: 240 | R4: 91.875 | S4: =R4*(Q5-Q56) -> 1837.5 | U4: 1 | V4: 240 | W4: 92.375 | X4: =W4*(V5-V56) -> 1847.5 | Z4: 1 | AA4: 240 | AB4: 92.875 | AC4: =AB4*(AA5-AA56) -> 1857.5 | AE4: 1 | AF4: 240 | AG4: 93.375 | AH4: =AG4*(AF5-AF56) -> 1867.5 | AJ4: 1 | AK4: 240 | AL4: 93.375 | AM4: =AL4*(AK5-AK56) -> 1867.5 | AO4: 1 | AP4: 240 | AQ4: 93.375 | AR4: =AQ4*(AP5-AP56) -> 1867.5 | AT4: 1 | AU4: 240 | AV4: 93.375 | AW4: =AV4*(AU5-AU56) -> 1867.5 | AY4: 1 | AZ4: 240 | BA4: 93.375 | BB4: =BA4*(AZ5-AZ56) -> 1867.5 | BD4: 1 | BE4: 240 | BF4: 93.375 | BG4: =BF4*(BE5-BE56) -> 1867.5
A5: =A4+1 -> 2 | B5: 239.986 | C5: 93.653 | D5: =C5*(B6-B4) -> -5.150915 | F5: =F4+1 -> 2 | G5: 240 | H5: 91.745 | I5: =H5*(G6-G4) -> -1.28443 | K5: =K4+1 -> 2 | L5: 240 | M5: 93.245 | N5: =M5*(L6-L4) -> -1.30543 | P5: =P4+1 -> 2 | Q5: 240 | R5: 94.745 | S5: =R5*(Q6-Q4) -> -1.32643 | U5: =U4+1 -> 2 | V5: 240 | W5: 96.245 | X5: =W5*(V6-V4) -> -1.34743 | Z5: =Z4+1 -> 2 | AA5: 240 | AB5: 97.745 | AC5: =AB5*(AA6-AA4) -> -1.36843 | AE5: =AE4+1 -> 2 | AF5: 240 | AG5: 99.245 | AH5: =AG5*(AF6-AF4) -> -1.38943 | AJ5: =AJ4+1 -> 2 | AK5: 240 | AL5: 100.245 | AM5: =AL5*(AK6-AK4) -> -1.40343 | AO5: =AO4+1 -> 2 | AP5: 240 | AQ5: 101.245 | AR5: =AQ5*(AP6-AP4) -> -1.41743 | AT5: =AT4+1 -> 2 | AU5: 240 | AV5: 102.245 | AW5: =AV5*(AU6-AU4) -> -1.43143 | AY5: =AY4+1 -> 2 | AZ5: 240 | BA5: 103.245 | BB5: =BA5*(AZ6-AZ4) -> -1.44543 | BD5: =BD4+1 -> 2 | BE5: 240 | BF5: 104.245 | BG5: =BF5*(BE6-BE4) -> -1.45943
A6: =A5+1 -> 3 | B6: 239.945 | C6: 93.928 | D6: =C6*(B7-B5) -> -10.238152 | F6: =F5+1 -> 3 | G6: 239.986 | H6: 92.032 | I6: =H6*(G7-G5) -> -5.06176 | K6: =K5+1 -> 3 | L6: 239.986 | M6: 93.532 | N6: =M6*(L7-L5) -> -5.14426 | P6: =P5+1 -> 3 | Q6: 239.986 | R6: 95.032 | S6: =R6*(Q7-Q5) -> -5.22676 | U6: =U5+1 -> 3 | V6: 239.986 | W6: 96.532 | X6: =W6*(V7-V5) -> -5.30926 | Z6: =Z5+1 -> 3 | AA6: 239.986 | AB6: 98.032 | AC6: =AB6*(AA7-AA5) -> -5.39176 | AE6: =AE5+1 -> 3 | AF6: 239.986 | AG6: 99.532 | AH6: =AG6*(AF7-AF5) -> -5.47426 | AJ6: =AJ5+1 -> 3 | AK6: 239.986 | AL6: 100.532 | AM6: =AL6*(AK7-AK5) -> -5.52926 | AO6: =AO5+1 -> 3 | AP6: 239.986 | AQ6: 101.532 | AR6: =AQ6*(AP7-AP5) -> -5.58426 | AT6: =AT5+1 -> 3 | AU6: 239.986 | AV6: 102.532 | AW6: =AV6*(AU7-AU5) -> -5.63926 | AY6: =AY5+1 -> 3 | AZ6: 239.986 | BA6: 103.532 | BB6: =BA6*(AZ7-AZ5) -> -5.69426 | BD6: =BD5+1 -> 3 | BE6: 239.986 | BF6: 104.532 | BG6: =BF6*(BE7-BE5) -> -5.74926
A7: 4 | B7: 239.877 | C7: 94.198 | D7: -15.260076 | F7: 4 | G7: 239.945 | H7: 92.316 | I7: -10.062444 | K7: 4 | L7: 239.945 | M7: 93.816 | N7: -10.225944 | P7: 4 | Q7: 239.945 | R7: 95.316 | S7: -10.389444 | U7: 4 | V7: 239.945 | W7: 96.816 | X7: -10.552944 | Z7: 4 | AA7: 239.945 | AB7: 98.316 | AC7: -10.716444 | AE7: 4 | AF7: 239.945 | AG7: 99.816 | AH7: -10.879944 | AJ7: 4 | AK7: 239.945 | AL7: 100.816 | AM7: -10.988944 | AO7: 4 | AP7: 239.945 | AQ7: 101.816 | AR7: -11.097944 | AT7: 4 | AU7: 239.945 | AV7: 102.816 | AW7: -11.206944 | AY7: 4 | AZ7: 239.945 | BA7: 103.816 | BB7: -11.315944 | BD7: 4 | BE7: 239.945 | BF7: 104.816 | BG7: -11.424944
A8: 5 | B8: 239.783 | C8: 94.461 | D8: -20.214654 | F8: 5 | G8: 239.877 | H8: 92.595 | I8: -15.00039 | K8: 5 | L8: 239.877 | M8: 94.095 | N8: -15.24339 | P8: 5 | Q8: 239.877 | R8: 95.595 | S8: -15.48639 | U8: 5 | V8: 239.877 | W8: 97.095 | X8: -15.72939 | Z8: 5 | AA8: 239.877 | AB8: 98.595 | AC8: -15.97239 | AE8: 5 | AF8: 239.877 | AG8: 100.095 | AH8: -16.21539 | AJ8: 5 | AK8: 239.877 | AL8: 101.095 | AM8: -16.37739 | AO8: 5 | AP8: 239.877 | AQ8: 102.095 | AR8: -16.53939 | AT8: 5 | AU8: 239.877 | AV8: 103.095 | AW8: -16.70139 | AY8: 5 | AZ8: 239.877 | BA8: 104.095 | BB8: -16.86339 | BD8: 5 | BE8: 239.877 | BF8: 105.095 | BG8: -17.02539
A9: 6 | B9: 239.663 | C9: 94.714 | D9: -25.09921 | F9: 6 | G9: 239.783 | H9: 92.866 | I9: -19.873324 | K9: 6 | L9: 239.783 | M9: 94.366 | N9: -20.194324 | P9: 6 | Q9: 239.783 | R9: 95.866 | S9: -20.515324 | U9: 6 | V9: 239.783 | W9: 97.366 | X9: -20.836324 | Z9: 6 | AA9: 239.783 | AB9: 98.866 | AC9: -21.157324 | AE9: 6 | AF9: 239.783 | AG9: 100.366 | AH9: -21.478324 | AJ9: 6 | AK9: 239.783 | AL9: 101.366 | AM9: -21.692324 | AO9: 6 | AP9: 239.783 | AQ9: 102.366 | AR9: -21.906324 | AT9: 6 | AU9: 239.783 | AV9: 103.366 | AW9: -22.120324 | AY9: 6 | AZ9: 239.783 | BA9: 104.366 | BB9: -22.334324 | BD9: 6 | BE9: 239.783 | BF9: 105.366 | BG9: -22.548324
A10: 7 | B10: 239.518 | C10: 94.954 | D10: -29.625648 | F10: 7 | G10: 239.663 | H10: 93.127 | I10: -24.678655 | K10: 7 | L10: 239.663 | M10: 94.627 | N10: -25.076155 | P10: 7 | Q10: 239.663 | R10: 96.127 | S10: -25.473655 | U10: 7 | V10: 239.663 | W10: 97.627 | X10: -25.871155 | Z10: 7 | AA10: 239.663 | AB10: 99.127 | AC10: -26.268655 | AE10: 7 | AF10: 239.663 | AG10: 100.627 | AH10: -26.666155 | AJ10: 7 | AK10: 239.663 | AL10: 101.627 | AM10: -26.931155 | AO10: 7 | AP10: 239.663 | AQ10: 102.627 | AR10: -27.196155 | AT10: 7 | AU10: 239.663 | AV10: 103.627 | AW10: -27.461155 | AY10: 7 | AZ10: 239.663 | BA10: 104.627 | BB10: -27.726155 | BD10: 7 | BE10: 239.663 | BF10: 105.627 | BG10: -27.991155
A11: 8 | B11: 239.351 | C11: 95.18 | D11: -33.88408 | F11: 8 | G11: 239.518 | H11: 93.376 | I11: -29.133312 | K11: 8 | L11: 239.518 | M11: 94.876 | N11: -29.601312 | P11: 8 | Q11: 239.518 | R11: 96.376 | S11: -30.069312 | U11: 8 | V11: 239.518 | W11: 97.876 | X11: -30.537312 | Z11: 8 | AA11: 239.518 | AB11: 99.376 | AC11: -31.005312 | AE11: 8 | AF11: 239.518 | AG11: 100.876 | AH11: -31.473312 | AJ11: 8 | AK11: 239.518 | AL11: 101.876 | AM11: -31.785312 | AO11: 8 | AP11: 239.518 | AQ11: 102.876 | AR11: -32.097312 | AT11: 8 | AU11: 239.518 | AV11: 103.876 | AW11: -32.409312 | AY11: 8 | AZ11: 239.518 | BA11: 104.876 | BB11: -32.721312 | BD11: 8 | BE11: 239.518 | BF11: 105.876 | BG11: -33.033312
A12: 9 | B12: 239.162 | C12: 95.39 | D12: -37.96522 | F12: 9 | G12: 239.351 | H12: 93.609 | I12: -33.324804 | K12: 9 | L12: 239.351 | M12: 95.109 | N12: -33.858804 | P12: 9 | Q12: 239.351 | R12: 96.609 | S12: -34.392804 | U12: 9 | V12: 239.351 | W12: 98.109 | X12: -34.926804 | Z12: 9 | AA12: 239.351 | AB12: 99.609 | AC12: -35.460804 | AE12: 9 | AF12: 239.351 | AG12: 101.109 | AH12: -35.994804 | AJ12: 9 | AK12: 239.351 | AL12: 102.109 | AM12: -36.350804 | AO12: 9 | AP12: 239.351 | AQ12: 103.109 | AR12: -36.706804 | AT12: 9 | AU12: 239.351 | AV12: 104.109 | AW12: -37.062804 | AY12: 9 | AZ12: 239.351 | BA12: 105.109 | BB12: -37.418804 | BD12: 9 | BE12: 239.351 | BF12: 106.109 | BG12: -37.774804
A13: 10 | B13: 238.953 | C13: 95.581 | D13: -41.673316 | F13: 10 | G13: 239.162 | H13: 93.825 | I13: -37.34235 | K13: 10 | L13: 239.162 | M13: 95.325 | N13: -37.93935 | P13: 10 | Q13: 239.162 | R13: 96.825 | S13: -38.53635 | U13: 10 | V13: 239.162 | W13: 98.325 | X13: -39.13335 | Z13: 10 | AA13: 239.162 | AB13: 99.825 | AC13: -39.73035 | AE13: 10 | AF13: 239.162 | AG13: 101.325 | AH13: -40.32735 | AJ13: 10 | AK13: 239.162 | AL13: 102.325 | AM13: -40.72535 | AO13: 10 | AP13: 239.162 | AQ13: 103.325 | AR13: -41.12335 | AT13: 10 | AU13: 239.162 | AV13: 104.325 | AW13: -41.52135 | AY13: 10 | AZ13: 239.162 | BA13: 105.325 | BB13: -41.91935 | BD13: 10 | BE13: 239.162 | BF13: 106.325 | BG13: -42.31735
A14: 11 | B14: 238.726 | C14: 95.751 | D14: -44.907219 | F14: 11 | G14: 238.953 | H14: 94.022 | I14: -40.993592 | K14: 11 | L14: 238.953 | M14: 95.522 | N14: -41.647592 | P14: 11 | Q14: 238.953 | R14: 97.022 | S14: -42.301592 | U14: 11 | V14: 238.953 | W14: 98.522 | X14: -42.955592 | Z14: 11 | AA14: 238.953 | AB14: 100.022 | AC14: -43.609592 | AE14: 11 | AF14: 238.953 | AG14: 101.522 | AH14: -44.263592 | AJ14: 11 | AK14: 238.953 | AL14: 102.522 | AM14: -44.699592 | AO14: 11 | AP14: 238.953 | AQ14: 103.522 | AR14: -45.135592 | AT14: 11 | AU14: 238.953 | AV14: 104.522 | AW14: -45.571592 | AY14: 11 | AZ14: 238.953 | BA14: 105.522 | BB14: -46.007592 | BD14: 11 | BE14: 238.953 | BF14: 106.522 | BG14: -46.443592
A15: 12 | B15: 238.484 | C15: 95.9 | D15: -47.6623 | F15: 12 | G15: 238.726 | H15: 94.199 | I15: -44.179331 | K15: 12 | L15: 238.726 | M15: 95.699 | N15: -44.882831 | P15: 12 | Q15: 238.726 | R15: 97.199 | S15: -45.586331 | U15: 12 | V15: 238.726 | W15: 98.699 | X15: -46.289831 | Z15: 12 | AA15: 238.726 | AB15: 100.199 | AC15: -46.993331 | AE15: 12 | AF15: 238.726 | AG15: 101.699 | AH15: -47.696831 | AJ15: 12 | AK15: 238.726 | AL15: 102.699 | AM15: -48.165831 | AO15: 12 | AP15: 238.726 | AQ15: 103.699 | AR15: -48.634831 | AT15: 12 | AU15: 238.726 | AV15: 104.699 | AW15: -49.103831 | AY15: 12 | AZ15: 238.726 | BA15: 105.699 | BB15: -49.572831 | BD15: 12 | BE15: 238.726 | BF15: 106.699 | BG15: -50.041831
A16: 13 | B16: 238.229 | C16: 96.026 | D16: -83.254542 | F16: 13 | G16: 238.484 | H16: 94.353 | I16: -46.893441 | K16: 13 | L16: 238.484 | M16: 95.853 | N16: -47.638941 | P16: 13 | Q16: 238.484 | R16: 97.353 | S16: -48.384441 | U16: 13 | V16: 238.484 | W16: 98.853 | X16: -49.129941 | Z16: 13 | AA16: 238.484 | AB16: 100.353 | AC16: -49.875441 | AE16: 13 | AF16: 238.484 | AG16: 101.853 | AH16: -50.620941 | AJ16: 13 | AK16: 238.484 | AL16: 102.853 | AM16: -51.117941 | AO16: 13 | AP16: 238.484 | AQ16: 103.853 | AR16: -51.614941 | AT16: 13 | AU16: 238.484 | AV16: 104.853 | AW16: -52.111941 | AY16: 13 | AZ16: 238.484 | BA16: 105.853 | BB16: -52.608941 | BD16: 13 | BE16: 238.484 | BF16: 106.853 | BG16: -53.105941
A17: 14 | B17: 237.617 | C17: 96.224 | D17: -118.259296 | F17: 14 | G17: 238.229 | H17: 94.482 | I17: -81.915894 | K17: 14 | L17: 238.229 | M17: 95.982 | N17: -83.216394 | P17: 14 | Q17: 238.229 | R17: 97.482 | S17: -84.516894 | U17: 14 | V17: 238.229 | W17: 98.982 | X17: -85.817394 | Z17: 14 | AA17: 238.229 | AB17: 100.482 | AC17: -87.117894 | AE17: 14 | AF17: 238.229 | AG17: 101.982 | AH17: -88.418394 | AJ17: 14 | AK17: 238.229 | AL17: 102.982 | AM17: -89.285394 | AO17: 14 | AP17: 238.229 | AQ17: 103.982 | AR17: -90.152394 | AT17: 14 | AU17: 238.229 | AV17: 104.982 | AW17: -91.019394 | AY17: 14 | AZ17: 238.229 | BA17: 105.982 | BB17: -91.886394 | BD17: 14 | BE17: 238.229 | BF17: 106.982 | BG17: -92.753394
A18: 15 | B18: 237 | C18: 96.407 | D18: -119.351866 | F18: 15 | G18: 237.617 | H18: 94.687 | I18: -116.370323 | K18: 15 | L18: 237.617 | M18: 96.187 | N18: -118.213823 | P18: 15 | Q18: 237.617 | R18: 97.687 | S18: -120.057323 | U18: 15 | V18: 237.617 | W18: 99.187 | X18: -121.900823 | Z18: 15 | AA18: 237.617 | AB18: 100.687 | AC18: -123.744323 | AE18: 15 | AF18: 237.617 | AG18: 102.187 | AH18: -125.587823 | AJ18: 15 | AK18: 237.617 | AL18: 103.187 | AM18: -126.816823 | AO18: 15 | AP18: 237.617 | AQ18: 104.187 | AR18: -128.045823 | AT18: 15 | AU18: 237.617 | AV18: 105.187 | AW18: -129.274823 | AY18: 15 | AZ18: 237.617 | BA18: 106.187 | BB18: -130.503823 | BD18: 15 | BE18: 237.617 | BF18: 107.187 | BG18: -131.732823
A19: 16 | B19: 236.379 | C19: 96.574 | D19: -120.427778 | F19: 16 | G19: 237 | H19: 94.875 | I19: -117.45525 | K19: 16 | L19: 237 | M19: 96.375 | N19: -119.31225 | P19: 16 | Q19: 237 | R19: 97.875 | S19: -121.16925 | U19: 16 | V19: 237 | W19: 99.375 | X19: -123.02625 | Z19: 16 | AA19: 237 | AB19: 100.875 | AC19: -124.88325 | AE19: 16 | AF19: 237 | AG19: 102.375 | AH19: -126.74025 | AJ19: 16 | AK19: 237 | AL19: 103.375 | AM19: -127.97825 | AO19: 16 | AP19: 237 | AQ19: 104.375 | AR19: -129.21625 | AT19: 16 | AU19: 237 | AV19: 105.375 | AW19: -130.45425 | AY19: 16 | AZ19: 237 | BA19: 106.375 | BB19: -131.69225 | BD19: 16 | BE19: 237 | BF19: 107.375 | BG19: -132.93025
A20: 17 | B20: 235.753 | C20: 96.725 | D20: -121.4866 | F20: 17 | G20: 236.379 | H20: 95.048 | I20: -118.524856 | K20: 17 | L20: 236.379 | M20: 96.548 | N20: -120.395356 | P20: 17 | Q20: 236.379 | R20: 98.048 | S20: -122.265856 | U20: 17 | V20: 236.379 | W20: 99.548 | X20: -124.136356 | Z20: 17 | AA20: 236.379 | AB20: 101.048 | AC20: -126.006856 | AE20: 17 | AF20: 236.379 | AG20: 102.548 | AH20: -127.877356 | AJ20: 17 | AK20: 236.379 | AL20: 103.548 | AM20: -129.124356 | AO20: 17 | AP20: 236.379 | AQ20: 104.548 | AR20: -130.371356 | AT20: 17 | AU20: 236.379 | AV20: 105.548 | AW20: -131.618356 | AY20: 17 | AZ20: 236.379 | BA20: 106.548 | BB20: -132.865356 | BD20: 17 | BE20: 236.379 | BF20: 107.548 | BG20: -134.112356
A21: 18 | B21: 235.123 | C21: 96.861 | D21: -122.238582 | F21: 18 | G21: 235.753 | H21: 95.204 | I21: -119.576224 | K21: 18 | L21: 235.753 | M21: 96.704 | N21: -121.460224 | P21: 18 | Q21: 235.753 | R21: 98.204 | S21: -123.344224 | U21: 18 | V21: 235.753 | W21: 99.704 | X21: -125.228224 | Z21: 18 | AA21: 235.753 | AB21: 101.204 | AC21: -127.112224 | AE21: 18 | AF21: 235.753 | AG21: 102.704 | AH21: -128.996224 | AJ21: 18 | AK21: 235.753 | AL21: 103.704 | AM21: -130.252224 | AO21: 18 | AP21: 235.753 | AQ21: 104.704 | AR21: -131.508224 | AT21: 18 | AU21: 235.753 | AV21: 105.704 | AW21: -132.764224 | AY21: 18 | AZ21: 235.753 | BA21: 106.704 | BB21: -134.020224 | BD21: 18 | BE21: 235.753 | BF21: 107.704 | BG21: -135.276224
A22: 19 | B22: 234.491 | C22: 96.981 | D22: -122.971908 | F22: 19 | G22: 235.123 | H22: 95.344 | I22: -120.324128 | K22: 19 | L22: 235.123 | M22: 96.844 | N22: -122.217128 | P22: 19 | Q22: 235.123 | R22: 98.344 | S22: -124.110128 | U22: 19 | V22: 235.123 | W22: 99.844 | X22: -126.003128 | Z22: 19 | AA22: 235.123 | AB22: 101.344 | AC22: -127.896128 | AE22: 19 | AF22: 235.123 | AG22: 102.844 | AH22: -129.789128 | AJ22: 19 | AK22: 235.123 | AL22: 103.844 | AM22: -131.051128 | AO22: 19 | AP22: 235.123 | AQ22: 104.844 | AR22: -132.313128 | AT22: 19 | AU22: 235.123 | AV22: 105.844 | AW22: -133.575128 | AY22: 19 | AZ22: 235.123 | BA22: 106.844 | BB22: -134.837128 | BD22: 19 | BE22: 235.123 | BF22: 107.844 | BG22: -136.099128
A23: 20 | B23: 233.855 | C23: 97.085 | D23: -123.783375 | F23: 20 | G23: 234.491 | H23: 95.468 | I23: -121.053424 | K23: 20 | L23: 234.491 | M23: 96.968 | N23: -122.955424 | P23: 20 | Q23: 234.491 | R23: 98.468 | S23: -124.857424 | U23: 20 | V23: 234.491 | W23: 99.968 | X23: -126.759424 | Z23: 20 | AA23: 234.491 | AB23: 101.468 | AC23: -128.661424 | AE23: 20 | AF23: 234.491 | AG23: 102.968 | AH23: -130.563424 | AJ23: 20 | AK23: 234.491 | AL23: 103.968 | AM23: -131.831424 | AO23: 20 | AP23: 234.491 | AQ23: 104.968 | AR23: -133.099424 | AT23: 20 | AU23: 234.491 | AV23: 105.968 | AW23: -134.367424 | AY23: 20 | AZ23: 234.491 | BA23: 106.968 | BB23: -135.635424 | BD23: 20 | BE23: 234.491 | BF23: 107.968 | BG23: -136.903424
A24: 21 | B24: 233.216 | C24: 97.174 | D24: -124.38272 | F24: 21 | G24: 233.855 | H24: 95.576 | I24: -121.8594 | K24: 21 | L24: 233.855 | M24: 97.076 | N24: -123.7719 | P24: 21 | Q24: 233.855 | R24: 98.576 | S24: -125.6844 | U24: 21 | V24: 233.855 | W24: 100.076 | X24: -127.5969 | Z24: 21 | AA24: 233.855 | AB24: 101.576 | AC24: -129.5094 | AE24: 21 | AF24: 233.855 | AG24: 103.076 | AH24: -131.4219 | AJ24: 21 | AK24: 233.855 | AL24: 104.076 | AM24: -132.6969 | AO24: 21 | AP24: 233.855 | AQ24: 105.076 | AR24: -133.9719 | AT24: 21 | AU24: 233.855 | AV24: 106.076 | AW24: -135.2469 | AY24: 21 | AZ24: 233.855 | BA24: 107.076 | BB24: -136.5219 | BD24: 21 | BE24: 233.855 | BF24: 108.076 | BG24: -137.7969
A25: 22 | B25: 232.575 | C25: 97.246 | D25: -124.766618 | F25: 22 | G25: 233.216 | H25: 95.667 | I25: -122.45376 | K25: 22 | L25: 233.216 | M25: 97.167 | N25: -124.37376 | P25: 22 | Q25: 233.216 | R25: 98.667 | S25: -126.29376 | U25: 22 | V25: 233.216 | W25: 100.167 | X25: -128.21376 | Z25: 22 | AA25: 233.216 | AB25: 101.667 | AC25: -130.13376 | AE25: 22 | AF25: 233.216 | AG25: 103.167 | AH25: -132.05376 | AJ25: 22 | AK25: 233.216 | AL25: 104.167 | AM25: -133.33376 | AO25: 22 | AP25: 233.216 | AQ25: 105.167 | AR25: -134.61376 | AT25: 22 | AU25: 233.216 | AV25: 106.167 | AW25: -135.89376 | AY25: 22 | AZ25: 233.216 | BA25: 107.167 | BB25: -137.17376 | BD25: 22 | BE25: 233.216 | BF25: 108.167 | BG25: -138.45376
A26: 23 | B26: 231.933 | C26: 97.303 | D26: -125.131658 | F26: 23 | G26: 232.575 | H26: 95.742 | I26: -122.836986 | K26: 23 | L26: 232.575 | M26: 97.242 | N26: -124.761486 | P26: 23 | Q26: 232.575 | R26: 98.742 | S26: -126.685986 | U26: 23 | V26: 232.575 | W26: 100.242 | X26: -128.610486 | Z26: 23 | AA26: 232.575 | AB26: 101.742 | AC26: -130.534986 | AE26: 23 | AF26: 232.575 | AG26: 103.242 | AH26: -132.459486 | AJ26: 23 | AK26: 232.575 | AL26: 104.242 | AM26: -133.742486 | AO26: 23 | AP26: 232.575 | AQ26: 105.242 | AR26: -135.025486 | AT26: 23 | AU26: 232.575 | AV26: 106.242 | AW26: -136.308486 | AY26: 23 | AZ26: 232.575 | BA26: 107.242 | BB26: -137.591486 | BD26: 23 | BE26: 232.575 | BF26: 108.242 | BG26: -138.874486
A27: 24 | B27: 231.289 | C27: 97.343 | D27: -125.377784 | F27: 24 | G27: 231.933 | H27: 95.8 | I27: -123.1988 | K27: 24 | L27: 231.933 | M27: 97.3 | N27: -125.1278 | P27: 24 | Q27: 231.933 | R27: 98.8 | S27: -127.0568 | U27: 24 | V27: 231.933 | W27: 100.3 | X27: -128.9858 | Z27: 24 | AA27: 231.933 | AB27: 101.8 | AC27: -130.9148 | AE27: 24 | AF27: 231.933 | AG27: 103.3 | AH27: -132.8438 | AJ27: 24 | AK27: 231.933 | AL27: 104.3 | AM27: -134.1298 | AO27: 24 | AP27: 231.933 | AQ27: 105.3 | AR27: -135.4158 | AT27: 24 | AU27: 231.933 | AV27: 106.3 | AW27: -136.7018 | AY27: 24 | AZ27: 231.933 | BA27: 107.3 | BB27: -137.9878 | BD27: 24 | BE27: 231.933 | BF27: 108.3 | BG27: -139.2738
A28: 25 | B28: 230.645 | C28: 97.367 | D28: -125.506063 | F28: 25 | G28: 231.289 | H28: 95.842 | I28: -123.444496 | K28: 25 | L28: 231.289 | M28: 97.342 | N28: -125.376496 | P28: 25 | Q28: 231.289 | R28: 98.842 | S28: -127.308496 | U28: 25 | V28: 231.289 | W28: 100.342 | X28: -129.240496 | Z28: 25 | AA28: 231.289 | AB28: 101.842 | AC28: -131.172496 | AE28: 25 | AF28: 231.289 | AG28: 103.342 | AH28: -133.104496 | AJ28: 25 | AK28: 231.289 | AL28: 104.342 | AM28: -134.392496 | AO28: 25 | AP28: 231.289 | AQ28: 105.342 | AR28: -135.680496 | AT28: 25 | AU28: 231.289 | AV28: 106.342 | AW28: -136.968496 | AY28: 25 | AZ28: 231.289 | BA28: 107.342 | BB28: -138.256496 | BD28: 25 | BE28: 231.289 | BF28: 108.342 | BG28: -139.544496
A29: 26 | B29: 230 | C29: 97.375 | D29: -125.61375 | F29: 26 | G29: 230.645 | H29: 95.867 | I29: -123.572563 | K29: 26 | L29: 230.645 | M29: 97.367 | N29: -125.506063 | P29: 26 | Q29: 230.645 | R29: 98.867 | S29: -127.439563 | U29: 26 | V29: 230.645 | W29: 100.367 | X29: -129.373063 | Z29: 26 | AA29: 230.645 | AB29: 101.867 | AC29: -131.306563 | AE29: 26 | AF29: 230.645 | AG29: 103.367 | AH29: -133.240063 | AJ29: 26 | AK29: 230.645 | AL29: 104.367 | AM29: -134.529063 | AO29: 26 | AP29: 230.645 | AQ29: 105.367 | AR29: -135.818063 | AT29: 26 | AU29: 230.645 | AV29: 106.367 | AW29: -137.107063 | AY29: 26 | AZ29: 230.645 | BA29: 107.367 | BB29: -138.396063 | BD29: 26 | BE29: 230.645 | BF29: 108.367 | BG29: -139.685063
A30: 27 | B30: 229.355 | C30: 97.367 | D30: -125.506063 | F30: 27 | G30: 230 | H30: 95.875 | I30: -123.67875 | K30: 27 | L30: 230 | M30: 97.375 | N30: -125.61375 | P30: 27 | Q30: 230 | R30: 98.875 | S30: -127.54875 | U30: 27 | V30: 230 | W30: 100.375 | X30: -129.48375 | Z30: 27 | AA30: 230 | AB30: 101.875 | AC30: -131.41875 | AE30: 27 | AF30: 230 | AG30: 103.375 | AH30: -133.35375 | AJ30: 27 | AK30: 230 | AL30: 104.375 | AM30: -134.64375 | AO30: 27 | AP30: 230 | AQ30: 105.375 | AR30: -135.93375 | AT30: 27 | AU30: 230 | AV30: 106.375 | AW30: -137.22375 | AY30: 27 | AZ30: 230 | BA30: 107.375 | BB30: -138.51375 | BD30: 27 | BE30: 230 | BF30: 108.375 | BG30: -139.80375
A31: 28 | B31: 228.711 | C31: 97.343 | D31: -125.377784 | F31: 28 | G31: 229.355 | H31: 95.867 | I31: -123.572563 | K31: 28 | L31: 229.355 | M31: 97.367 | N31: -125.506063 | P31: 28 | Q31: 229.355 | R31: 98.867 | S31: -127.439563 | U31: 28 | V31: 229.355 | W31: 100.367 | X31: -129.373063 | Z31: 28 | AA31: 229.355 | AB31: 101.867 | AC31: -131.306563 | AE31: 28 | AF31: 229.355 | AG31: 103.367 | AH31: -133.240063 | AJ31: 28 | AK31: 229.355 | AL31: 104.367 | AM31: -134.529063 | AO31: 28 | AP31: 229.355 | AQ31: 105.367 | AR31: -135.818063 | AT31: 28 | AU31: 229.355 | AV31: 106.367 | AW31: -137.107063 | AY31: 28 | AZ31: 229.355 | BA31: 107.367 | BB31: -138.396063 | BD31: 28 | BE31: 229.355 | BF31: 108.367 | BG31: -139.685063
A32: 29 | B32: 228.067 | C32: 97.303 | D32: -125.131658 | F32: 29 | G32: 228.711 | H32: 95.842 | I32: -123.444496 | K32: 29 | L32: 228.711 | M32: 97.342 | N32: -125.376496 | P32: 29 | Q32: 228.711 | R32: 98.842 | S32: -127.308496 | U32: 29 | V32: 228.711 | W32: 100.342 | X32: -129.240496 | Z32: 29 | AA32: 228.711 | AB32: 101.842 | AC32: -131.172496 | AE32: 29 | AF32: 228.711 | AG32: 103.342 | AH32: -133.104496 | AJ32: 29 | AK32: 228.711 | AL32: 104.342 | AM32: -134.392496 | AO32: 29 | AP32: 228.711 | AQ32: 105.342 | AR32: -135.680496 | AT32: 29 | AU32: 228.711 | AV32: 106.342 | AW32: -136.968496 | AY32: 29 | AZ32: 228.711 | BA32: 107.342 | BB32: -138.256496 | BD32: 29 | BE32: 228.711 | BF32: 108.342 | BG32: -139.544496
A33: 30 | B33: 227.425 | C33: 97.246 | D33: -124.766618 | F33: 30 | G33: 228.067 | H33: 95.8 | I33: -123.1988 | K33: 30 | L33: 228.067 | M33: 97.3 | N33: -125.1278 | P33: 30 | Q33: 228.067 | R33: 98.8 | S33: -127.0568 | U33: 30 | V33: 228.067 | W33: 100.3 | X33: -128.9858 | Z33: 30 | AA33: 228.067 | AB33: 101.8 | AC33: -130.9148 | AE33: 30 | AF33: 228.067 | AG33: 103.3 | AH33: -132.8438 | AJ33: 30 | AK33: 228.067 | AL33: 104.3 | AM33: -134.1298 | AO33: 30 | AP33: 228.067 | AQ33: 105.3 | AR33: -135.4158 | AT33: 30 | AU33: 228.067 | AV33: 106.3 | AW33: -136.7018 | AY33: 30 | AZ33: 228.067 | BA33: 107.3 | BB33: -137.9878 | BD33: 30 | BE33: 228.067 | BF33: 108.3 | BG33: -139.2738
A34: 31 | B34: 226.784 | C34: 97.174 | D34: -124.38272 | F34: 31 | G34: 227.425 | H34: 95.742 | I34: -122.836986 | K34: 31 | L34: 227.425 | M34: 97.242 | N34: -124.761486 | P34: 31 | Q34: 227.425 | R34: 98.742 | S34: -126.685986 | U34: 31 | V34: 227.425 | W34: 100.242 | X34: -128.610486 | Z34: 31 | AA34: 227.425 | AB34: 101.742 | AC34: -130.534986 | AE34: 31 | AF34: 227.425 | AG34: 103.242 | AH34: -132.459486 | AJ34: 31 | AK34: 227.425 | AL34: 104.242 | AM34: -133.742486 | AO34: 31 | AP34: 227.425 | AQ34: 105.242 | AR34: -135.025486 | AT34: 31 | AU34: 227.425 | AV34: 106.242 | AW34: -136.308486 | AY34: 31 | AZ34: 227.425 | BA34: 107.242 | BB34: -137.591486 | BD34: 31 | BE34: 227.425 | BF34: 108.242 | BG34: -138.874486
A35: 32 | B35: 226.145 | C35: 97.085 | D35: -123.783375 | F35: 32 | G35: 226.784 | H35: 95.667 | I35: -122.45376 | K35: 32 | L35: 226.784 | M35: 97.167 | N35: -124.37376 | P35: 32 | Q35: 226.784 | R35: 98.667 | S35: -126.29376 | U35: 32 | V35: 226.784 | W35: 100.167 | X35: -128.21376 | Z35: 32 | AA35: 226.784 | AB35: 101.667 | AC35: -130.13376 | AE35: 32 | AF35: 226.784 | AG35: 103.167 | AH35: -132.05376 | AJ35: 32 | AK35: 226.784 | AL35: 104.167 | AM35: -133.33376 | AO35: 32 | AP35: 226.784 | AQ35: 105.167 | AR35: -134.61376 | AT35: 32 | AU35: 226.784 | AV35: 106.167 | AW35: -135.89376 | AY35: 32 | AZ35: 226.784 | BA35: 107.167 | BB35: -137.17376 | BD35: 32 | BE35: 226.784 | BF35: 108.167 | BG35: -138.45376
A36: 33 | B36: 225.509 | C36: 96.981 | D36: -122.971908 | F36: 33 | G36: 226.145 | H36: 95.576 | I36: -121.8594 | K36: 33 | L36: 226.145 | M36: 97.076 | N36: -123.7719 | P36: 33 | Q36: 226.145 | R36: 98.576 | S36: -125.6844 | U36: 33 | V36: 226.145 | W36: 100.076 | X36: -127.5969 | Z36: 33 | AA36: 226.145 | AB36: 101.576 | AC36: -129.5094 | AE36: 33 | AF36: 226.145 | AG36: 103.076 | AH36: -131.4219 | AJ36: 33 | AK36: 226.145 | AL36: 104.076 | AM36: -132.6969 | AO36: 33 | AP36: 226.145 | AQ36: 105.076 | AR36: -133.9719 | AT36: 33 | AU36: 226.145 | AV36: 106.076 | AW36: -135.2469 | AY36: 33 | AZ36: 226.145 | BA36: 107.076 | BB36: -136.5219 | BD36: 33 | BE36: 226.145 | BF36: 108.076 | BG36: -137.7969
A37: 34 | B37: 224.877 | C37: 96.861 | D37: -122.238582 | F37: 34 | G37: 225.509 | H37: 95.468 | I37: -121.053424 | K37: 34 | L37: 225.509 | M37: 96.968 | N37: -122.955424 | P37: 34 | Q37: 225.509 | R37: 98.468 | S37: -124.857424 | U37: 34 | V37: 225.509 | W37: 99.968 | X37: -126.759424 | Z37: 34 | AA37: 225.509 | AB37: 101.468 | AC37: -128.661424 | AE37: 34 | AF37: 225.509 | AG37: 102.968 | AH37: -130.563424 | AJ37: 34 | AK37: 225.509 | AL37: 103.968 | AM37: -131.831424 | AO37: 34 | AP37: 225.509 | AQ37: 104.968 | AR37: -133.099424 | AT37: 34 | AU37: 225.509 | AV37: 105.968 | AW37: -134.367424 | AY37: 34 | AZ37: 225.509 | BA37: 106.968 | BB37: -135.635424 | BD37: 34 | BE37: 225.509 | BF37: 107.968 | BG37: -136.903424
A38: 35 | B38: 224.247 | C38: 96.725 | D38: -121.4866 | F38: 35 | G38: 224.877 | H38: 95.344 | I38: -120.324128 | K38: 35 | L38: 224.877 | M38: 96.844 | N38: -122.217128 | P38: 35 | Q38: 224.877 | R38: 98.344 | S38: -124.110128 | U38: 35 | V38: 224.877 | W38: 99.844 | X38: -126.003128 | Z38: 35 | AA38: 224.877 | AB38: 101.344 | AC38: -127.896128 | AE38: 35 | AF38: 224.877 | AG38: 102.844 | AH38: -129.789128 | AJ38: 35 | AK38: 224.877 | AL38: 103.844 | AM38: -131.051128 | AO38: 35 | AP38: 224.877 | AQ38: 104.844 | AR38: -132.313128 | AT38: 35 | AU38: 224.877 | AV38: 105.844 | AW38: -133.575128 | AY38: 35 | AZ38: 224.877 | BA38: 106.844 | BB38: -134.837128 | BD38: 35 | BE38: 224.877 | BF38: 107.844 | BG38: -136.099128
A39: 36 | B39: 223.621 | C39: 96.574 | D39: -120.427778 | F39: 36 | G39: 224.247 | H39: 95.204 | I39: -119.576224 | K39: 36 | L39: 224.247 | M39: 96.704 | N39: -121.460224 | P39: 36 | Q39: 224.247 | R39: 98.204 | S39: -123.344224 | U39: 36 | V39: 224.247 | W39: 99.704 | X39: -125.228224 | Z39: 36 | AA39: 224.247 | AB39: 101.204 | AC39: -127.112224 | AE39: 36 | AF39: 224.247 | AG39: 102.704 | AH39: -128.996224 | AJ39: 36 | AK39: 224.247 | AL39: 103.704 | AM39: -130.252224 | AO39: 36 | AP39: 224.247 | AQ39: 104.704 | AR39: -131.508224 | AT39: 36 | AU39: 224.247 | AV39: 105.704 | AW39: -132.764224 | AY39: 36 | AZ39: 224.247 | BA39: 106.704 | BB39: -134.020224 | BD39: 36 | BE39: 224.247 | BF39: 107.704 | BG39: -135.276224
A40: 37 | B40: 223 | C40: 96.407 | D40: -119.351866 | F40: 37 | G40: 223.621 | H40: 95.048 | I40: -118.524856 | K40: 37 | L40: 223.621 | M40: 96.548 | N40: -120.395356 | P40: 37 | Q40: 223.621 | R40: 98.048 | S40: -122.265856 | U40: 37 | V40: 223.621 | W40: 99.548 | X40: -124.136356 | Z40: 37 | AA40: 223.621 | AB40: 101.048 | AC40: -126.006856 | AE40: 37 | AF40: 223.621 | AG40: 102.548 | AH40: -127.877356 | AJ40: 37 | AK40: 223.621 | AL40: 103.548 | AM40: -129.124356 | AO40: 37 | AP40: 223.621 | AQ40: 104.548 | AR40: -130.371356 | AT40: 37 | AU40: 223.621 | AV40: 105.548 | AW40: -131.618356 | AY40: 37 | AZ40: 223.621 | BA40: 106.548 | BB40: -132.865356 | BD40: 37 | BE40: 223.621 | BF40: 107.548 | BG40: -134.112356
A41: 38 | B41: 222.383 | C41: 96.224 | D41: -118.259296 | F41: 38 | G41: 223 | H41: 94.875 | I41: -117.45525 | K41: 38 | L41: 223 | M41: 96.375 | N41: -119.31225 | P41: 38 | Q41: 223 | R41: 97.875 | S41: -121.16925 | U41: 38 | V41: 223 | W41: 99.375 | X41: -123.02625 | Z41: 38 | AA41: 223 | AB41: 100.875 | AC41: -124.88325 | AE41: 38 | AF41: 223 | AG41: 102.375 | AH41: -126.74025 | AJ41: 38 | AK41: 223 | AL41: 103.375 | AM41: -127.97825 | AO41: 38 | AP41: 223 | AQ41: 104.375 | AR41: -129.21625 | AT41: 38 | AU41: 223 | AV41: 105.375 | AW41: -130.45425 | AY41: 38 | AZ41: 223 | BA41: 106.375 | BB41: -131.69225 | BD41: 38 | BE41: 223 | BF41: 107.375 | BG41: -132.93025
A42: 39 | B42: 221.771 | C42: 96.026 | D42: -83.254542 | F42: 39 | G42: 222.383 | H42: 94.687 | I42: -116.370323 | K42: 39 | L42: 222.383 | M42: 96.187 | N42: -118.213823 | P42: 39 | Q42: 222.383 | R42: 97.687 | S42: -120.057323 | U42: 39 | V42: 222.383 | W42: 99.187 | X42: -121.900823 | Z42: 39 | AA42: 222.383 | AB42: 100.687 | AC42: -123.744323 | AE42: 39 | AF42: 222.383 | AG42: 102.187 | AH42: -125.587823 | AJ42: 39 | AK42: 222.383 | AL42: 103.187 | AM42: -126.816823 | AO42: 39 | AP42: 222.383 | AQ42: 104.187 | AR42: -128.045823 | AT42: 39 | AU42: 222.383 | AV42: 105.187 | AW42: -129.274823 | AY42: 39 | AZ42: 222.383 | BA42: 106.187 | BB42: -130.503823 | BD42: 39 | BE42: 222.383 | BF42: 107.187 | BG42: -131.732823
A43: 40 | B43: 221.516 | C43: 95.9 | D43: -47.6623 | F43: 40 | G43: 221.771 | H43: 94.482 | I43: -81.915894 | K43: 40 | L43: 221.771 | M43: 95.982 | N43: -83.216394 | P43: 40 | Q43: 221.771 | R43: 97.482 | S43: -84.516894 | U43: 40 | V43: 221.771 | W43: 98.982 | X43: -85.817394 | Z43: 40 | AA43: 221.771 | AB43: 100.482 | AC43: -87.117894 | AE43: 40 | AF43: 221.771 | AG43: 101.982 | AH43: -88.418394 | AJ43: 40 | AK43: 221.771 | AL43: 102.982 | AM43: -89.285394 | AO43: 40 | AP43: 221.771 | AQ43: 103.982 | AR43: -90.152394 | AT43: 40 | AU43: 221.771 | AV43: 104.982 | AW43: -91.019394 | AY43: 40 | AZ43: 221.771 | BA43: 105.982 | BB43: -91.886394 | BD43: 40 | BE43: 221.771 | BF43: 106.982 | BG43: -92.753394
A44: 41 | B44: 221.274 | C44: 95.751 | D44: -44.907219 | F44: 41 | G44: 221.516 | H44: 94.353 | I44: -46.893441 | K44: 41 | L44: 221.516 | M44: 95.853 | N44: -47.638941 | P44: 41 | Q44: 221.516 | R44: 97.353 | S44: -48.384441 | U44: 41 | V44: 221.516 | W44: 98.853 | X44: -49.129941 | Z44: 41 | AA44: 221.516 | AB44: 100.353 | AC44: -49.875441 | AE44: 41 | AF44: 221.516 | AG44: 101.853 | AH44: -50.620941 | AJ44: 41 | AK44: 221.516 | AL44: 102.853 | AM44: -51.117941 | AO44: 41 | AP44: 221.516 | AQ44: 103.853 | AR44: -51.614941 | AT44: 41 | AU44: 221.516 | AV44: 104.853 | AW44: -52.111941 | AY44: 41 | AZ44: 221.516 | BA44: 105.853 | BB44: -52.608941 | BD44: 41 | BE44: 221.516 | BF44: 106.853 | BG44: -53.105941
A45: 42 | B45: 221.047 | C45: 95.581 | D45: -41.673316 | F45: 42 | G45: 221.274 | H45: 94.199 | I45: -44.179331 | K45: 42 | L45: 221.274 | M45: 95.699 | N45: -44.882831 | P45: 42 | Q45: 221.274 | R45: 97.199 | S45: -45.586331 | U45: 42 | V45: 221.274 | W45: 98.699 | X45: -46.289831 | Z45: 42 | AA45: 221.274 | AB45: 100.199 | AC45: -46.993331 | AE45: 42 | AF45: 221.274 | AG45: 101.699 | AH45: -47.696831 | AJ45: 42 | AK45: 221.274 | AL45: 102.699 | AM45: -48.165831 | AO45: 42 | AP45: 221.274 | AQ45: 103.699 | AR45: -48.634831 | AT45: 42 | AU45: 221.274 | AV45: 104.699 | AW45: -49.103831 | AY45: 42 | AZ45: 221.274 | BA45: 105.699 | BB45: -49.572831 | BD45: 42 | BE45: 221.274 | BF45: 106.699 | BG45: -50.041831
A46: 43 | B46: 220.838 | C46: 95.39 | D46: -37.96522 | F46: 43 | G46: 221.047 | H46: 94.022 | I46: -40.993592 | K46: 43 | L46: 221.047 | M46: 95.522 | N46: -41.647592 | P46: 43 | Q46: 221.047 | R46: 97.022 | S46: -42.301592 | U46: 43 | V46: 221.047 | W46: 98.522 | X46: -42.955592 | Z46: 43 | AA46: 221.047 | AB46: 100.022 | AC46: -43.609592 | AE46: 43 | AF46: 221.047 | AG46: 101.522 | AH46: -44.263592 | AJ46: 43 | AK46: 221.047 | AL46: 102.522 | AM46: -44.699592 | AO46: 43 | AP46: 221.047 | AQ46: 103.522 | AR46: -45.135592 | AT46: 43 | AU46: 221.047 | AV46: 104.522 | AW46: -45.571592 | AY46: 43 | AZ46: 221.047 | BA46: 105.522 | BB46: -46.007592 | BD46: 43 | BE46: 221.047 | BF46: 106.522 | BG46: -46.443592
A47: 44 | B47: 220.649 | C47: 95.18 | D47: -33.88408 | F47: 44 | G47: 220.838 | H47: 93.825 | I47: -37.34235 | K47: 44 | L47: 220.838 | M47: 95.325 | N47: -37.93935 | P47: 44 | Q47: 220.838 | R47: 96.825 | S47: -38.53635 | U47: 44 | V47: 220.838 | W47: 98.325 | X47: -39.13335 | Z47: 44 | AA47: 220.838 | AB47: 99.825 | AC47: -39.73035 | AE47: 44 | AF47: 220.838 | AG47: 101.325 | AH47: -40.32735 | AJ47: 44 | AK47: 220.838 | AL47: 102.325 | AM47: -40.72535 | AO47: 44 | AP47: 220.838 | AQ47: 103.325 | AR47: -41.12335 | AT47: 44 | AU47: 220.838 | AV47: 104.325 | AW47: -41.52135 | AY47: 44 | AZ47: 220.838 | BA47: 105.325 | BB47: -41.91935 | BD47: 44 | BE47: 220.838 | BF47: 106.325 | BG47: -42.31735
A48: 45 | B48: 220.482 | C48: 94.954 | D48: -29.625648 | F48: 45 | G48: 220.649 | H48: 93.609 | I48: -33.324804 | K48: 45 | L48: 220.649 | M48: 95.109 | N48: -33.858804 | P48: 45 | Q48: 220.649 | R48: 96.609 | S48: -34.392804 | U48: 45 | V48: 220.649 | W48: 98.109 | X48: -34.926804 | Z48: 45 | AA48: 220.649 | AB48: 99.609 | AC48: -35.460804 | AE48: 45 | AF48: 220.649 | AG48: 101.109 | AH48: -35.994804 | AJ48: 45 | AK48: 220.649 | AL48: 102.109 | AM48: -36.350804 | AO48: 45 | AP48: 220.649 | AQ48: 103.109 | AR48: -36.706804 | AT48: 45 | AU48: 220.649 | AV48: 104.109 | AW48: -37.062804 | AY48: 45 | AZ48: 220.649 | BA48: 105.109 | BB48: -37.418804 | BD48: 45 | BE48: 220.649 | BF48: 106.109 | BG48: -37.774804
A49: 46 | B49: 220.337 | C49: 94.714 | D49: -25.09921 | F49: 46 | G49: 220.482 | H49: 93.376 | I49: -29.133312 | K49: 46 | L49: 220.482 | M49: 94.876 | N49: -29.601312 | P49: 46 | Q49: 220.482 | R49: 96.376 | S49: -30.069312 | U49: 46 | V49: 220.482 | W49: 97.876 | X49: -30.537312 | Z49: 46 | AA49: 220.482 | AB49: 99.376 | AC49: -31.005312 | AE49: 46 | AF49: 220.482 | AG49: 100.876 | AH49: -31.473312 | AJ49: 46 | AK49: 220.482 | AL49: 101.876 | AM49: -31.785312 | AO49: 46 | AP49: 220.482 | AQ49: 102.876 | AR49: -32.097312 | AT49: 46 | AU49: 220.482 | AV49: 103.876 | AW49: -32.409312 | AY49: 46 | AZ49: 220.482 | BA49: 104.876 | BB49: -32.721312 | BD49: 46 | BE49: 220.482 | BF49: 105.876 | BG49: -33.033312
A50: 47 | B50: 220.217 | C50: 94.461 | D50: -20.214654 | F50: 47 | G50: 220.337 | H50: 93.127 | I50: -24.678655 | K50: 47 | L50: 220.337 | M50: 94.627 | N50: -25.076155 | P50: 47 | Q50: 220.337 | R50: 96.127 | S50: -25.473655 | U50: 47 | V50: 220.337 | W50: 97.627 | X50: -25.871155 | Z50: 47 | AA50: 220.337 | AB50: 99.127 | AC50: -26.268655 | AE50: 47 | AF50: 220.337 | AG50: 100.627 | AH50: -26.666155 | AJ50: 47 | AK50: 220.337 | AL50: 101.627 | AM50: -26.931155 | AO50: 47 | AP50: 220.337 | AQ50: 102.627 | AR50: -27.196155 | AT50: 47 | AU50: 220.337 | AV50: 103.627 | AW50: -27.461155 | AY50: 47 | AZ50: 220.337 | BA50: 104.627 | BB50: -27.726155 | BD50: 47 | BE50: 220.337 | BF50: 105.627 | BG50: -27.991155
A51: 48 | B51: 220.123 | C51: 94.198 | D51: -15.260076 | F51: 48 | G51: 220.217 | H51: 92.866 | I51: -19.873324 | K51: 48 | L51: 220.217 | M51: 94.366 | N51: -20.194324 | P51: 48 | Q51: 220.217 | R51: 95.866 | S51: -20.515324 | U51: 48 | V51: 220.217 | W51: 97.366 | X51: -20.836324 | Z51: 48 | AA51: 220.217 | AB51: 98.866 | AC51: -21.157324 | AE51: 48 | AF51: 220.217 | AG51: 100.366 | AH51: -21.478324 | AJ51: 48 | AK51: 220.217 | AL51: 101.366 | AM51: -21.692324 | AO51: 48 | AP51: 220.217 | AQ51: 102.366 | AR51: -21.906324 | AT51: 48 | AU51: 220.217 | AV51: 103.366 | AW51: -22.120324 | AY51: 48 | AZ51: 220.217 | BA51: 104.366 | BB51: -22.334324 | BD51: 48 | BE51: 220.217 | BF51: 105.366 | BG51: -22.548324
A52: 49 | B52: 220.055 | C52: 93.928 | D52: -10.238152 | F52: 49 | G52: 220.123 | H52: 92.595 | I52: -15.00039 | K52: 49 | L52: 220.123 | M52: 94.095 | N52: -15.24339 | P52: 49 | Q52: 220.123 | R52: 95.595 | S52: -15.48639 | U52: 49 | V52: 220.123 | W52: 97.095 | X52: -15.72939 | Z52: 49 | AA52: 220.123 | AB52: 98.595 | AC52: -15.97239 | AE52: 49 | AF52: 220.123 | AG52: 100.095 | AH52: -16.21539 | AJ52: 49 | AK52: 220.123 | AL52: 101.095 | AM52: -16.37739 | AO52: 49 | AP52: 220.123 | AQ52: 102.095 | AR52: -16.53939 | AT52: 49 | AU52: 220.123 | AV52: 103.095 | AW52: -16.70139 | AY52: 49 | AZ52: 220.123 | BA52: 104.095 | BB52: -16.86339 | BD52: 49 | BE52: 220.123 | BF52: 105.095 | BG52: -17.02539
A53: 50 | B53: 220.014 | C53: 93.653 | D53: -5.150915 | F53: 50 | G53: 220.055 | H53: 92.316 | I53: -10.062444 | K53: 50 | L53: 220.055 | M53: 93.816 | N53: -10.225944 | P53: 50 | Q53: 220.055 | R53: 95.316 | S53: -10.389444 | U53: 50 | V53: 220.055 | W53: 96.816 | X53: -10.552944 | Z53: 50 | AA53: 220.055 | AB53: 98.316 | AC53: -10.716444 | AE53: 50 | AF53: 220.055 | AG53: 99.816 | AH53: -10.879944 | AJ53: 50 | AK53: 220.055 | AL53: 100.816 | AM53: -10.988944 | AO53: 50 | AP53: 220.055 | AQ53: 101.816 | AR53: -11.097944 | AT53: 50 | AU53: 220.055 | AV53: 102.816 | AW53: -11.206944 | AY53: 50 | AZ53: 220.055 | BA53: 103.816 | BB53: -11.315944 | BD53: 50 | BE53: 220.055 | BF53: 104.816 | BG53: -11.424944
A54: 51 | B54: 220 | C54: 93.375 | D54: =C54*(B4-B53) -> 1866.19275 | F54: 51 | G54: 220.014 | H54: 92.032 | I54: -5.06176 | K54: 51 | L54: 220.014 | M54: 93.532 | N54: -5.14426 | P54: 51 | Q54: 220.014 | R54: 95.032 | S54: -5.22676 | U54: 51 | V54: 220.014 | W54: 96.532 | X54: -5.30926 | Z54: 51 | AA54: 220.014 | AB54: 98.032 | AC54: -5.39176 | AE54: 51 | AF54: 220.014 | AG54: 99.532 | AH54: -5.47426 | AJ54: 51 | AK54: 220.014 | AL54: 100.532 | AM54: -5.52926 | AO54: 51 | AP54: 220.014 | AQ54: 101.532 | AR54: -5.58426 | AT54: 51 | AU54: 220.014 | AV54: 102.532 | AW54: -5.63926 | AY54: 51 | AZ54: 220.014 | BA54: 103.532 | BB54: -5.69426 | BD54: 51 | BE54: 220.014 | BF54: 104.532 | BG54: -5.74926
F55: 52 | G55: 220 | H55: 91.745 | I55: -1.28443 | K55: 52 | L55: 220 | M55: 93.245 | N55: -1.30543 | P55: 52 | Q55: 220 | R55: 94.745 | S55: -1.32643 | U55: 52 | V55: 220 | W55: 96.245 | X55: -1.34743 | Z55: 52 | AA55: 220 | AB55: 97.745 | AC55: -1.36843 | AE55: 52 | AF55: 220 | AG55: 99.245 | AH55: -1.38943 | AJ55: 52 | AK55: 220 | AL55: 100.245 | AM55: -1.40343 | AO55: 52 | AP55: 220 | AQ55: 101.245 | AR55: -1.41743 | AT55: 52 | AU55: 220 | AV55: 102.245 | AW55: -1.43143 | AY55: 52 | AZ55: 220 | BA55: 103.245 | BB55: -1.44543 | BD55: 52 | BE55: 220 | BF55: 104.245 | BG55: -1.45943
F56: 53 | G56: 220 | H56: 90.875 | I56: =H56*(G4-G55) -> 1817.5 | K56: 53 | L56: 220 | M56: 91.375 | N56: =M56*(L4-L55) -> 1827.5 | P56: 53 | Q56: 220 | R56: 91.875 | S56: =R56*(Q4-Q55) -> 1837.5 | U56: 53 | V56: 220 | W56: 92.375 | X56: =W56*(V4-V55) -> 1847.5 | Z56: 53 | AA56: 220 | AB56: 92.875 | AC56: =AB56*(AA4-AA55) -> 1857.5 | AE56: 53 | AF56: 220 | AG56: 93.375 | AH56: =AG56*(AF4-AF55) -> 1867.5 | AJ56: 53 | AK56: 220 | AL56: 93.375 | AM56: =AL56*(AK4-AK55) -> 1867.5 | AO56: 53 | AP56: 220 | AQ56: 93.375 | AR56: =AQ56*(AP4-AP55) -> 1867.5 | AT56: 53 | AU56: 220 | AV56: 93.375 | AW56: =AV56*(AU4-AU55) -> 1867.5 | AY56: 53 | AZ56: 220 | BA56: 93.375 | BB56: =BA56*(AZ4-AZ55) -> 1867.5 | BD56: 53 | BE56: 220 | BF56: 93.375 | BG56: =BF56*(BE4-BE55) -> 1867.5
C58: AREA = | D58: =ABS(SUM(D4:D56))/2 -> 65.233705 | H58: AREA = | I58: =ABS(SUM(I4:I56))/2 -> 84.753312 | M58: AREA = | N58: =ABS(SUM(N4:N56))/2 -> 104.753312 | R58: AREA = | S58: =ABS(SUM(S4:S56))/2 -> 124.753312 | W58: AREA = | X58: =ABS(SUM(X4:X56))/2 -> 144.753312 | AB58: AREA = | AC58: =ABS(SUM(AC4:AC56))/2 -> 164.753312 | AG58: AREA = | AH58: =ABS(SUM(AH4:AH56))/2 -> 184.753312 | AL58: AREA = | AM58: =ABS(SUM(AM4:AM56))/2 -> 204.753312 | AQ58: AREA = | AR58: =ABS(SUM(AR4:AR56))/2 -> 224.753312 | AV58: AREA = | AW58: =ABS(SUM(AW4:AW56))/2 -> 244.753312 | BA58: AREA = | BB58: =ABS(SUM(BB4:BB56))/2 -> 264.753312 | BF58: AREA = | BG58: =ABS(SUM(BG4:BG56))/2 -> 284.753312
C59: RAS = | H59: RAS = | I59: 84.75 | M59: RAS = | N59: 104.75 | R59: RAS = | S59: 124.75 | W59: RAS = | X59: 144.75 | AB59: RAS = | AC59: 164.75 | AG59: RAS = | AH59: 184.75 | AL59: RAS = | AQ59: RAS = | AV59: RAS = | BA59: RAS = | BF59: RAS =
C60: PDF = | D60: 65 | H60: PDF = | I60: 85 | M60: PDF = | N60: 105 | R60: PDF = | S60: 125 | W60: PDF = | X60: 145 | AB60: PDF = | AC60: 165 | AG60: PDF = | AH60: 185 | AL60: PDF = | AM60: 205 | AQ60: PDF = | AR60: 225 | AV60: PDF = | AW60: 245 | BA60: PDF = | BB60: 265 | BF60: PDF = | BG60: 285

Sheet 22' Span
A1: Non-manufactured HECRAS shape - Used for comparison to Hy-Span
B2: 22 x 4 | G2: 22 x 6 | L2: 22 x 8 | Q2: 22 x 10
A3: Pt. | B3: X | C3: Y | D3: A' | F3: Pt. | G3: X | H3: Y | I3: A' | K3: Pt. | L3: X | M3: Y | N3: A' | P3: Pt. | Q3: X | R3: Y | S3: A'
A4: 1 | B4: 241 | C4: 90.875 | D4: =C4*(B5-B54) -> 1997.97775 | F4: 1 | G4: 241 | H4: 91.375 | I4: =H4*(G5-G56) -> 2010.25 | K4: 1 | L4: 241 | M4: 91.875 | N4: =M4*(L5-L56) -> 2021.25 | P4: 1 | Q4: 241 | R4: 92.375 | S4: =R4*(Q5-Q56) -> 2032.25
A5: =A4+1 -> 2 | B5: 240.986 | C5: 91.128 | D5: =C5*(B6-B4) -> -5.01204 | F5: =F4+1 -> 2 | G5: 241 | H5: 92.845 | I5: =H5*(G6-G4) -> -1.29983 | K5: =K4+1 -> 2 | L5: 241 | M5: 95.345 | N5: =M5*(L6-L4) -> -1.33483 | P5: =P4+1 -> 2 | Q5: 241 | R5: 97.845 | S5: =R5*(Q6-Q4) -> -1.36983
A6: =A5+1 -> 3 | B6: 240.945 | C6: 91.379 | D6: =C6*(B7-B5) -> -9.960311 | F6: =F5+1 -> 3 | G6: 240.986 | H6: 93.132 | I6: =H6*(G7-G5) -> -5.12226 | K6: =K5+1 -> 3 | L6: 240.986 | M6: 95.632 | N6: =M6*(L7-L5) -> -5.25976 | P6: =P5+1 -> 3 | Q6: 240.986 | R6: 98.132 | S6: =R6*(Q7-Q5) -> -5.39726
A7: 4 | B7: 240.877 | C7: 91.626 | D7: -14.843412 | F7: 4 | G7: 240.945 | H7: 93.416 | I7: -10.182344 | K7: 4 | L7: 240.945 | M7: 95.916 | N7: -10.454844 | P7: 4 | Q7: 240.945 | R7: 98.416 | S7: -10.727344
A8: 5 | B8: 240.783 | C8: 91.865 | D8: -19.65911 | F8: 5 | G8: 240.877 | H8: 93.695 | I8: -15.17859 | K8: 5 | L8: 240.877 | M8: 96.195 | N8: -15.58359 | P8: 5 | Q8: 240.877 | R8: 98.695 | S8: -15.98859
A9: 6 | B9: 240.663 | C9: 92.096 | D9: -24.40544 | F9: 6 | G9: 240.783 | H9: 93.966 | I9: -20.108724 | K9: 6 | L9: 240.783 | M9: 96.466 | N9: -20.643724 | P9: 6 | Q9: 240.783 | R9: 98.966 | S9: -21.178724
A10: 7 | B10: 240.518 | C10: 92.315 | D10: -28.80228 | F10: 7 | G10: 240.663 | H10: 94.227 | I10: -24.970155 | K10: 7 | L10: 240.663 | M10: 96.727 | N10: -25.632655 | P10: 7 | Q10: 240.663 | R10: 99.227 | S10: -26.295155
A11: 8 | B11: 240.351 | C11: 92.521 | D11: -32.937476 | F11: 8 | G11: 240.518 | H11: 94.476 | I11: -29.476512 | K11: 8 | L11: 240.518 | M11: 96.976 | N11: -30.256512 | P11: 8 | Q11: 240.518 | R11: 99.476 | S11: -31.036512
A12: 9 | B12: 240.162 | C12: 92.712 | D12: -36.899376 | F12: 9 | G12: 240.351 | H12: 94.709 | I12: -33.716404 | K12: 9 | L12: 240.351 | M12: 97.209 | N12: -34.606404 | P12: 9 | Q12: 240.351 | R12: 99.709 | S12: -35.496404
A13: 10 | B13: 239.953 | C13: 92.886 | D13: -40.498296 | F13: 10 | G13: 240.162 | H13: 94.925 | I13: -37.78015 | K13: 10 | L13: 240.162 | M13: 97.425 | N13: -38.77515 | P13: 10 | Q13: 240.162 | R13: 99.925 | S13: -39.77015
A14: 11 | B14: 239.726 | C14: 93.042 | D14: -43.636698 | F14: 11 | G14: 239.953 | H14: 95.122 | I14: -41.473192 | K14: 11 | L14: 239.953 | M14: 97.622 | N14: -42.563192 | P14: 11 | Q14: 239.953 | R14: 100.122 | S14: -43.653192
A15: 12 | B15: 239.484 | C15: 93.177 | D15: -46.495323 | F15: 12 | G15: 239.726 | H15: 95.299 | I15: -44.695231 | K15: 12 | L15: 239.726 | M15: 97.799 | N15: -45.867731 | P15: 12 | Q15: 239.726 | R15: 100.299 | S15: -47.040231
A16: 13 | B16: 239.227 | C16: 93.294 | D16: -87.22989 | F16: 13 | G16: 239.484 | H16: 95.453 | I16: -47.631047 | K16: 13 | L16: 239.484 | M16: 97.953 | N16: -48.878547 | P16: 13 | Q16: 239.484 | R16: 100.453 | S16: -50.126047
A17: 14 | B17: 238.549 | C17: 93.526 | D17: -127.569464 | F17: 14 | G17: 239.227 | H17: 95.585 | I17: -89.371975 | K17: 14 | L17: 239.227 | M17: 98.085 | N17: -91.709475 | P17: 14 | Q17: 239.227 | R17: 100.585 | S17: -94.046975
A18: 15 | B18: 237.863 | C18: 93.739 | D18: -129.172342 | F18: 15 | G18: 238.549 | H18: 95.847 | I18: -130.735308 | K18: 15 | L18: 238.549 | M18: 98.347 | N18: -134.145308 | P18: 15 | Q18: 238.549 | R18: 100.847 | S18: -137.555308
A19: 16 | B19: 237.171 | C19: 93.935 | D19: -130.663585 | F19: 16 | G19: 237.863 | H19: 96.089 | I19: -132.410642 | K19: 16 | L19: 237.863 | M19: 98.589 | N19: -135.855642 | P19: 16 | Q19: 237.863 | R19: 101.089 | S19: -139.300642
A20: 17 | B20: 236.472 | C20: 94.112 | D20: -132.133248 | F20: 17 | G20: 237.171 | H20: 96.31 | I20: -133.96721 | K20: 17 | L20: 237.171 | M20: 98.81 | N20: -137.44471 | P20: 17 | Q20: 237.171 | R20: 101.31 | S20: -140.92221
A21: 18 | B21: 235.767 | C21: 94.272 | D21: -133.39488 | F21: 18 | G21: 236.472 | H21: 96.511 | I21: -135.501444 | K21: 18 | L21: 236.472 | M21: 99.011 | N21: -139.011444 | P21: 18 | Q21: 236.472 | R21: 101.511 | S21: -142.521444
A22: 19 | B22: 235.057 | C22: 94.413 | D22: -134.444112 | F22: 19 | G22: 235.767 | H22: 96.692 | I22: -136.81918 | K22: 19 | L22: 235.767 | M22: 99.192 | N22: -140.35668 | P22: 19 | Q22: 235.767 | R22: 101.692 | S22: -143.89418
A23: 20 | B23: 234.343 | C23: 94.535 | D23: -135.37412 | F23: 20 | G23: 235.057 | H23: 96.851 | I23: -137.915824 | K23: 20 | L23: 235.057 | M23: 99.351 | N23: -141.475824 | P23: 20 | Q23: 235.057 | R23: 101.851 | S23: -145.035824
A24: 21 | B24: 233.625 | C24: 94.639 | D24: -136.185521 | F24: 21 | G24: 234.343 | H24: 96.99 | I24: -138.88968 | K24: 21 | L24: 234.343 | M24: 99.49 | N24: -142.46968 | P24: 21 | Q24: 234.343 | R24: 101.99 | S24: -146.04968
A25: 22 | B25: 232.904 | C25: 94.724 | D25: -136.87618 | F25: 22 | G25: 233.625 | H25: 97.107 | I25: -139.736973 | K25: 22 | L25: 233.625 | M25: 99.607 | N25: -143.334473 | P25: 22 | Q25: 233.625 | R25: 102.107 | S25: -146.931973
A26: 23 | B26: 232.18 | C26: 94.79 | D26: -137.35071 | F26: 23 | G26: 232.904 | H26: 97.204 | I26: -140.45978 | K26: 23 | L26: 232.904 | M26: 99.704 | N26: -144.07228 | P26: 23 | Q26: 232.904 | R26: 102.204 | S26: -147.68478
A27: 24 | B27: 231.455 | C27: 94.837 | D27: -137.703324 | F27: 24 | G27: 232.18 | H27: 97.279 | I27: -140.957271 | K27: 24 | L27: 232.18 | M27: 99.779 | N27: -144.579771 | P27: 24 | Q27: 232.18 | R27: 102.279 | S27: -148.202271
A28: 25 | B28: 230.728 | C28: 94.866 | D28: -138.03003 | F28: 25 | G28: 231.455 | H28: 97.332 | I28: -141.326064 | K28: 25 | L28: 231.455 | M28: 99.832 | N28: -144.956064 | P28: 25 | Q28: 231.455 | R28: 102.332 | S28: -148.586064
A29: 26 | B29: 230 | C29: 94.875 | D29: -138.138 | F29: 26 | G29: 230.728 | H29: 97.364 | I29: -141.66462 | K29: 26 | L29: 230.728 | M29: 99.864 | N29: -145.30212 | P29: 26 | Q29: 230.728 | R29: 102.364 | S29: -148.93962
A30: 27 | B30: 229.272 | C30: 94.866 | D30: -138.03003 | F30: 27 | G30: 230 | H30: 97.375 | I30: -141.778 | K30: 27 | L30: 230 | M30: 99.875 | N30: -145.418 | P30: 27 | Q30: 230 | R30: 102.375 | S30: -149.058
A31: 28 | B31: 228.545 | C31: 94.837 | D31: -137.703324 | F31: 28 | G31: 229.272 | H31: 97.364 | I31: -141.66462 | K31: 28 | L31: 229.272 | M31: 99.864 | N31: -145.30212 | P31: 28 | Q31: 229.272 | R31: 102.364 | S31: -148.93962
A32: 29 | B32: 227.82 | C32: 94.79 | D32: -137.35071 | F32: 29 | G32: 228.545 | H32: 97.332 | I32: -141.326064 | K32: 29 | L32: 228.545 | M32: 99.832 | N32: -144.956064 | P32: 29 | Q32: 228.545 | R32: 102.332 | S32: -148.586064
A33: 30 | B33: 227.096 | C33: 94.724 | D33: -136.87618 | F33: 30 | G33: 227.82 | H33: 97.279 | I33: -140.957271 | K33: 30 | L33: 227.82 | M33: 99.779 | N33: -144.579771 | P33: 30 | Q33: 227.82 | R33: 102.279 | S33: -148.202271
A34: 31 | B34: 226.375 | C34: 94.639 | D34: -136.185521 | F34: 31 | G34: 227.096 | H34: 97.204 | I34: -140.45978 | K34: 31 | L34: 227.096 | M34: 99.704 | N34: -144.07228 | P34: 31 | Q34: 227.096 | R34: 102.204 | S34: -147.68478
A35: 32 | B35: 225.657 | C35: 94.535 | D35: -135.37412 | F35: 32 | G35: 226.375 | H35: 97.107 | I35: -139.736973 | K35: 32 | L35: 226.375 | M35: 99.607 | N35: -143.334473 | P35: 32 | Q35: 226.375 | R35: 102.107 | S35: -146.931973
A36: 33 | B36: 224.943 | C36: 94.413 | D36: -134.444112 | F36: 33 | G36: 225.657 | H36: 96.99 | I36: -138.88968 | K36: 33 | L36: 225.657 | M36: 99.49 | N36: -142.46968 | P36: 33 | Q36: 225.657 | R36: 101.99 | S36: -146.04968
A37: 34 | B37: 224.233 | C37: 94.272 | D37: -133.39488 | F37: 34 | G37: 224.943 | H37: 96.851 | I37: -137.915824 | K37: 34 | L37: 224.943 | M37: 99.351 | N37: -141.475824 | P37: 34 | Q37: 224.943 | R37: 101.851 | S37: -145.035824
A38: 35 | B38: 223.528 | C38: 94.112 | D38: -132.133248 | F38: 35 | G38: 224.233 | H38: 96.692 | I38: -136.81918 | K38: 35 | L38: 224.233 | M38: 99.192 | N38: -140.35668 | P38: 35 | Q38: 224.233 | R38: 101.692 | S38: -143.89418
A39: 36 | B39: 222.829 | C39: 93.935 | D39: -130.663585 | F39: 36 | G39: 223.528 | H39: 96.511 | I39: -135.501444 | K39: 36 | L39: 223.528 | M39: 99.011 | N39: -139.011444 | P39: 36 | Q39: 223.528 | R39: 101.511 | S39: -142.521444
A40: 37 | B40: 222.137 | C40: 93.739 | D40: -129.172342 | F40: 37 | G40: 222.829 | H40: 96.31 | I40: -133.96721 | K40: 37 | L40: 222.829 | M40: 98.81 | N40: -137.44471 | P40: 37 | Q40: 222.829 | R40: 101.31 | S40: -140.92221
A41: 38 | B41: 221.451 | C41: 93.526 | D41: -127.569464 | F41: 38 | G41: 222.137 | H41: 96.089 | I41: -132.410642 | K41: 38 | L41: 222.137 | M41: 98.589 | N41: -135.855642 | P41: 38 | Q41: 222.137 | R41: 101.089 | S41: -139.300642
A42: 39 | B42: 220.773 | C42: 93.294 | D42: -87.22989 | F42: 39 | G42: 221.451 | H42: 95.847 | I42: -130.735308 | K42: 39 | L42: 221.451 | M42: 98.347 | N42: -134.145308 | P42: 39 | Q42: 221.451 | R42: 100.847 | S42: -137.555308
A43: 40 | B43: 220.516 | C43: 93.177 | D43: -46.495323 | F43: 40 | G43: 220.773 | H43: 95.585 | I43: -89.371975 | K43: 40 | L43: 220.773 | M43: 98.085 | N43: -91.709475 | P43: 40 | Q43: 220.773 | R43: 100.585 | S43: -94.046975
A44: 41 | B44: 220.274 | C44: 93.042 | D44: -43.636698 | F44: 41 | G44: 220.516 | H44: 95.453 | I44: -47.631047 | K44: 41 | L44: 220.516 | M44: 97.953 | N44: -48.878547 | P44: 41 | Q44: 220.516 | R44: 100.453 | S44: -50.126047
A45: 42 | B45: 220.047 | C45: 92.886 | D45: -40.498296 | F45: 42 | G45: 220.274 | H45: 95.299 | I45: -44.695231 | K45: 42 | L45: 220.274 | M45: 97.799 | N45: -45.867731 | P45: 42 | Q45: 220.274 | R45: 100.299 | S45: -47.040231
A46: 43 | B46: 219.838 | C46: 92.712 | D46: -36.899376 | F46: 43 | G46: 220.047 | H46: 95.122 | I46: -41.473192 | K46: 43 | L46: 220.047 | M46: 97.622 | N46: -42.563192 | P46: 43 | Q46: 220.047 | R46: 100.122 | S46: -43.653192
A47: 44 | B47: 219.649 | C47: 92.521 | D47: -32.937476 | F47: 44 | G47: 219.838 | H47: 94.925 | I47: -37.78015 | K47: 44 | L47: 219.838 | M47: 97.425 | N47: -38.77515 | P47: 44 | Q47: 219.838 | R47: 99.925 | S47: -39.77015
A48: 45 | B48: 219.482 | C48: 92.315 | D48: -28.80228 | F48: 45 | G48: 219.649 | H48: 94.709 | I48: -33.716404 | K48: 45 | L48: 219.649 | M48: 97.209 | N48: -34.606404 | P48: 45 | Q48: 219.649 | R48: 99.709 | S48: -35.496404
A49: 46 | B49: 219.337 | C49: 92.096 | D49: -24.40544 | F49: 46 | G49: 219.482 | H49: 94.476 | I49: -29.476512 | K49: 46 | L49: 219.482 | M49: 96.976 | N49: -30.256512 | P49: 46 | Q49: 219.482 | R49: 99.476 | S49: -31.036512
A50: 47 | B50: 219.217 | C50: 91.865 | D50: -19.65911 | F50: 47 | G50: 219.337 | H50: 94.227 | I50: -24.970155 | K50: 47 | L50: 219.337 | M50: 96.727 | N50: -25.632655 | P50: 47 | Q50: 219.337 | R50: 99.227 | S50: -26.295155
A51: 48 | B51: 219.123 | C51: 91.626 | D51: -14.843412 | F51: 48 | G51: 219.217 | H51: 93.966 | I51: -20.108724 | K51: 48 | L51: 219.217 | M51: 96.466 | N51: -20.643724 | P51: 48 | Q51: 219.217 | R51: 98.966 | S51: -21.178724
A52: 49 | B52: 219.055 | C52: 91.379 | D52: -9.960311 | F52: 49 | G52: 219.123 | H52: 93.695 | I52: -15.17859 | K52: 49 | L52: 219.123 | M52: 96.195 | N52: -15.58359 | P52: 49 | Q52: 219.123 | R52: 98.695 | S52: -15.98859
A53: 50 | B53: 219.014 | C53: 91.128 | D53: -5.01204 | F53: 50 | G53: 219.055 | H53: 93.416 | I53: -10.182344 | K53: 50 | L53: 219.055 | M53: 95.916 | N53: -10.454844 | P53: 50 | Q53: 219.055 | R53: 98.416 | S53: -10.727344
A54: 51 | B54: 219 | C54: 90.875 | D54: =C54*(B4-B53) -> 1997.97775 | F54: 51 | G54: 219.014 | H54: 93.132 | I54: -5.12226 | K54: 51 | L54: 219.014 | M54: 95.632 | N54: -5.25976 | P54: 51 | Q54: 219.014 | R54: 98.132 | S54: -5.39726
F55: 52 | G55: 219 | H55: 92.845 | I55: -1.29983 | K55: 52 | L55: 219 | M55: 95.345 | N55: -1.33483 | P55: 52 | Q55: 219 | R55: 97.845 | S55: -1.36983
F56: 53 | G56: 219 | H56: 91.375 | I56: =H56*(G4-G55) -> 2010.25 | K56: 53 | L56: 219 | M56: 91.875 | N56: =M56*(L4-L55) -> 2021.25 | P56: 53 | Q56: 219 | R56: 92.375 | S56: =R56*(Q4-Q55) -> 2032.25
C57: . | H57: . | M57: . | R57: .
C58: AREA = | D58: =ABS(SUM(D4:D56))/2 -> 70.368418 | H58: AREA = | I58: =ABS(SUM(I4:I56))/2 -> 112.02941 | M58: AREA = | N58: =ABS(SUM(N4:N56))/2 -> 156.02941 | R58: AREA = | S58: =ABS(SUM(S4:S56))/2 -> 200.02941
C59: RAS = | H59: RAS = | M59: RAS = | R59: RAS =
C60: PDF = | H60: PDF = | M60: PDF = | R60: PDF =

Sheet Mid Span 24 ft
A1: ECOSPAN | F1: AQUA-ARCH, ECOSPAN | K1: AQUA-ARCH, CONSPAN, ECOSPAN | AJ1: AQUA-ARCH, ECOSPAN | AO1: ECOSPAN | AT1: ECOSPAN | AY1: ECOSPAN | BD1: ECOSPAN
B2: 24 x 4 | G2: 24 x 5 | L2: 24 x 6 | Q2: 24 x 7 | V2: 24 x 8 | AA2: 24 x 9 | AF2: 24 x 10 | AK2: 24 x 11 | AP2: 24 x 12 | AU2: 24 x 13 | AZ2: 24 x 14 | BE2: 24 x 15
A3: Pt. | B3: X | C3: Y | D3: A' | F3: Pt. | G3: X | H3: Y | I3: A' | K3: Pt. | L3: X | M3: Y | N3: A' | P3: Pt. | Q3: X | R3: Y | S3: A' | U3: Pt. | V3: X | W3: Y | X3: A' | Z3: Pt. | AA3: X | AB3: Y | AC3: A' | AE3: Pt. | AF3: X | AG3: Y | AH3: A' | AJ3: Pt. | AK3: X | AL3: Y | AM3: A' | AO3: Pt. | AP3: X | AQ3: Y | AR3: A' | AT3: Pt. | AU3: X | AV3: Y | AW3: A' | AY3: Pt. | AZ3: X | BA3: Y | BB3: A' | BD3: Pt. | BE3: X | BF3: Y | BG3: A'
A4: 1 | B4: 242 | C4: 93.375 | D4: =C4*(B5-B54) -> 2239.69275 | F4: 1 | G4: 242 | H4: 93.375 | I4: =H4*(G5-G56) -> 2241 | K4: 1 | L4: 242 | M4: 91.375 | N4: =M4*(L5-L56) -> 2193 | P4: 1 | Q4: 242 | R4: 91.875 | S4: =R4*(Q5-Q56) -> 2205 | U4: 1 | V4: 242 | W4: 92.375 | X4: =W4*(V5-V56) -> 2217 | Z4: 1 | AA4: 242 | AB4: 92.875 | AC4: =AB4*(AA5-AA56) -> 2229 | AE4: 1 | AF4: 242 | AG4: 93.375 | AH4: =AG4*(AF5-AF56) -> 2241 | AJ4: 1 | AK4: 242 | AL4: 93.375 | AM4: =AL4*(AK5-AK56) -> 2241 | AO4: 1 | AP4: 242 | AQ4: 93.375 | AR4: =AQ4*(AP5-AP56) -> 2241 | AT4: 1 | AU4: 242 | AV4: 93.375 | AW4: =AV4*(AU5-AU56) -> 2241 | AY4: 1 | AZ4: 242 | BA4: 93.375 | BB4: =BA4*(AZ5-AZ56) -> 2241 | BD4: 1 | BE4: 242 | BF4: 93.375 | BG4: =BF4*(BE5-BE56) -> 2241
A5: =A4+1 -> 2 | B5: 241.986 | C5: 93.608 | D5: =C5*(B6-B4) -> -5.14844 | F5: =F4+1 -> 2 | G5: 242 | H5: 93.445 | I5: =H5*(G6-G4) -> -1.30823 | K5: =K4+1 -> 2 | L5: 242 | M5: 92.445 | N5: =M5*(L6-L4) -> -1.29423 | P5: =P4+1 -> 2 | Q5: 242 | R5: 93.945 | S5: =R5*(Q6-Q4) -> -1.31523 | U5: =U4+1 -> 2 | V5: 242 | W5: 95.445 | X5: =W5*(V6-V4) -> -1.33623 | Z5: =Z4+1 -> 2 | AA5: 242 | AB5: 96.945 | AC5: =AB5*(AA6-AA4) -> -1.35723 | AE5: =AE4+1 -> 2 | AF5: 242 | AG5: 98.445 | AH5: =AG5*(AF6-AF4) -> -1.37823 | AJ5: =AJ4+1 -> 2 | AK5: 242 | AL5: 99.445 | AM5: =AL5*(AK6-AK4) -> -1.39223 | AO5: =AO4+1 -> 2 | AP5: 242 | AQ5: 100.445 | AR5: =AQ5*(AP6-AP4) -> -1.40623 | AT5: =AT4+1 -> 2 | AU5: 242 | AV5: 101.445 | AW5: =AV5*(AU6-AU4) -> -1.42023 | AY5: =AY4+1 -> 2 | AZ5: 242 | BA5: 102.445 | BB5: =BA5*(AZ6-AZ4) -> -1.43423 | BD5: =BD4+1 -> 2 | BE5: 242 | BF5: 103.445 | BG5: =BF5*(BE6-BE4) -> -1.44823
A6: =A5+1 -> 3 | B6: 241.945 | C6: 93.838 | D6: =C6*(B7-B5) -> -10.228342 | F6: =F5+1 -> 3 | G6: 241.986 | H6: 93.732 | I6: =H6*(G7-G5) -> -5.15526 | K6: =K5+1 -> 3 | L6: 241.986 | M6: 92.732 | N6: =M6*(L7-L5) -> -5.10026 | P6: =P5+1 -> 3 | Q6: 241.986 | R6: 94.232 | S6: =R6*(Q7-Q5) -> -5.18276 | U6: =U5+1 -> 3 | V6: 241.986 | W6: 95.732 | X6: =W6*(V7-V5) -> -5.26526 | Z6: =Z5+1 -> 3 | AA6: 241.986 | AB6: 97.232 | AC6: =AB6*(AA7-AA5) -> -5.34776 | AE6: =AE5+1 -> 3 | AF6: 241.986 | AG6: 98.732 | AH6: =AG6*(AF7-AF5) -> -5.43026 | AJ6: =AJ5+1 -> 3 | AK6: 241.986 | AL6: 99.732 | AM6: =AL6*(AK7-AK5) -> -5.48526 | AO6: =AO5+1 -> 3 | AP6: 241.986 | AQ6: 100.732 | AR6: =AQ6*(AP7-AP5) -> -5.54026 | AT6: =AT5+1 -> 3 | AU6: 241.986 | AV6: 101.732 | AW6: =AV6*(AU7-AU5) -> -5.59526 | AY6: =AY5+1 -> 3 | AZ6: 241.986 | BA6: 102.732 | BB6: =BA6*(AZ7-AZ5) -> -5.65026 | BD6: =BD5+1 -> 3 | BE6: 241.986 | BF6: 103.732 | BG6: =BF6*(BE7-BE5) -> -5.70526
A7: 4 | B7: 241.877 | C7: 94.065 | D7: -15.23853 | F7: 4 | G7: 241.945 | H7: 94.016 | I7: -10.247744 | K7: 4 | L7: 241.945 | M7: 93.016 | N7: -10.138744 | P7: 4 | Q7: 241.945 | R7: 94.516 | S7: -10.302244 | U7: 4 | V7: 241.945 | W7: 96.016 | X7: -10.465744 | Z7: 4 | AA7: 241.945 | AB7: 97.516 | AC7: -10.629244 | AE7: 4 | AF7: 241.945 | AG7: 99.016 | AH7: -10.792744 | AJ7: 4 | AK7: 241.945 | AL7: 100.016 | AM7: -10.901744 | AO7: 4 | AP7: 241.945 | AQ7: 101.016 | AR7: -11.010744 | AT7: 4 | AU7: 241.945 | AV7: 102.016 | AW7: -11.119744 | AY7: 4 | AZ7: 241.945 | BA7: 103.016 | BB7: -11.228744 | BD7: 4 | BE7: 241.945 | BF7: 104.016 | BG7: -11.337744
A8: 5 | B8: 241.783 | C8: 94.285 | D8: -20.17699 | F8: 5 | G8: 241.877 | H8: 94.295 | I8: -15.27579 | K8: 5 | L8: 241.877 | M8: 93.295 | N8: -15.11379 | P8: 5 | Q8: 241.877 | R8: 94.795 | S8: -15.35679 | U8: 5 | V8: 241.877 | W8: 96.295 | X8: -15.59979 | Z8: 5 | AA8: 241.877 | AB8: 97.795 | AC8: -15.84279 | AE8: 5 | AF8: 241.877 | AG8: 99.295 | AH8: -16.08579 | AJ8: 5 | AK8: 241.877 | AL8: 100.295 | AM8: -16.24779 | AO8: 5 | AP8: 241.877 | AQ8: 101.295 | AR8: -16.40979 | AT8: 5 | AU8: 241.877 | AV8: 102.295 | AW8: -16.57179 | AY8: 5 | AZ8: 241.877 | BA8: 103.295 | BB8: -16.73379 | BD8: 5 | BE8: 241.877 | BF8: 104.295 | BG8: -16.89579
A9: 6 | B9: 241.663 | C9: 94.497 | D9: -25.041705 | F9: 6 | G9: 241.783 | H9: 94.566 | I9: -20.237124 | K9: 6 | L9: 241.783 | M9: 93.566 | N9: -20.023124 | P9: 6 | Q9: 241.783 | R9: 95.066 | S9: -20.344124 | U9: 6 | V9: 241.783 | W9: 96.566 | X9: -20.665124 | Z9: 6 | AA9: 241.783 | AB9: 98.066 | AC9: -20.986124 | AE9: 6 | AF9: 241.783 | AG9: 99.566 | AH9: -21.307124 | AJ9: 6 | AK9: 241.783 | AL9: 100.566 | AM9: -21.521124 | AO9: 6 | AP9: 241.783 | AQ9: 101.566 | AR9: -21.735124 | AT9: 6 | AU9: 241.783 | AV9: 102.566 | AW9: -21.949124 | AY9: 6 | AZ9: 241.783 | BA9: 103.566 | BB9: -22.163124 | BD9: 6 | BE9: 241.783 | BF9: 104.566 | BG9: -22.377124
A10: 7 | B10: 241.518 | C10: 94.698 | D10: -29.545776 | F10: 7 | G10: 241.663 | H10: 94.827 | I10: -25.129155 | K10: 7 | L10: 241.663 | M10: 93.827 | N10: -24.864155 | P10: 7 | Q10: 241.663 | R10: 95.327 | S10: -25.261655 | U10: 7 | V10: 241.663 | W10: 96.827 | X10: -25.659155 | Z10: 7 | AA10: 241.663 | AB10: 98.327 | AC10: -26.056655 | AE10: 7 | AF10: 241.663 | AG10: 99.827 | AH10: -26.454155 | AJ10: 7 | AK10: 241.663 | AL10: 100.827 | AM10: -26.719155 | AO10: 7 | AP10: 241.663 | AQ10: 101.827 | AR10: -26.984155 | AT10: 7 | AU10: 241.663 | AV10: 102.827 | AW10: -27.249155 | AY10: 7 | AZ10: 241.663 | BA10: 103.827 | BB10: -27.514155 | BD10: 7 | BE10: 241.663 | BF10: 104.827 | BG10: -27.779155
A11: 8 | B11: 241.351 | C11: 94.887 | D11: -33.779772 | F11: 8 | G11: 241.518 | H11: 95.076 | I11: -29.663712 | K11: 8 | L11: 241.518 | M11: 94.076 | N11: -29.351712 | P11: 8 | Q11: 241.518 | R11: 95.576 | S11: -29.819712 | U11: 8 | V11: 241.518 | W11: 97.076 | X11: -30.287712 | Z11: 8 | AA11: 241.518 | AB11: 98.576 | AC11: -30.755712 | AE11: 8 | AF11: 241.518 | AG11: 100.076 | AH11: -31.223712 | AJ11: 8 | AK11: 241.518 | AL11: 101.076 | AM11: -31.535712 | AO11: 8 | AP11: 241.518 | AQ11: 102.076 | AR11: -31.847712 | AT11: 8 | AU11: 241.518 | AV11: 103.076 | AW11: -32.159712 | AY11: 8 | AZ11: 241.518 | BA11: 104.076 | BB11: -32.471712 | BD11: 8 | BE11: 241.518 | BF11: 105.076 | BG11: -32.783712
A12: 9 | B12: 241.162 | C12: 95.063 | D12: -37.835074 | F12: 9 | G12: 241.351 | H12: 95.309 | I12: -33.930004 | K12: 9 | L12: 241.351 | M12: 94.309 | N12: -33.574004 | P12: 9 | Q12: 241.351 | R12: 95.809 | S12: -34.108004 | U12: 9 | V12: 241.351 | W12: 97.309 | X12: -34.642004 | Z12: 9 | AA12: 241.351 | AB12: 98.809 | AC12: -35.176004 | AE12: 9 | AF12: 241.351 | AG12: 100.309 | AH12: -35.710004 | AJ12: 9 | AK12: 241.351 | AL12: 101.309 | AM12: -36.066004 | AO12: 9 | AP12: 241.351 | AQ12: 102.309 | AR12: -36.422004 | AT12: 9 | AU12: 241.351 | AV12: 103.309 | AW12: -36.778004 | AY12: 9 | AZ12: 241.351 | BA12: 104.309 | BB12: -37.134004 | BD12: 9 | BE12: 241.351 | BF12: 105.309 | BG12: -37.490004
A13: 10 | B13: 240.953 | C13: 95.223 | D13: -41.517228 | F13: 10 | G13: 241.162 | H13: 95.525 | I13: -38.01895 | K13: 10 | L13: 241.162 | M13: 94.525 | N13: -37.62095 | P13: 10 | Q13: 241.162 | R13: 96.025 | S13: -38.21795 | U13: 10 | V13: 241.162 | W13: 97.525 | X13: -38.81495 | Z13: 10 | AA13: 241.162 | AB13: 99.025 | AC13: -39.41195 | AE13: 10 | AF13: 241.162 | AG13: 100.525 | AH13: -40.00895 | AJ13: 10 | AK13: 241.162 | AL13: 101.525 | AM13: -40.40695 | AO13: 10 | AP13: 241.162 | AQ13: 102.525 | AR13: -40.80495 | AT13: 10 | AU13: 241.162 | AV13: 103.525 | AW13: -41.20295 | AY13: 10 | AZ13: 241.162 | BA13: 104.525 | BB13: -41.60095 | BD13: 10 | BE13: 241.162 | BF13: 105.525 | BG13: -41.99895
A14: 11 | B14: 240.726 | C14: 95.366 | D14: -44.726654 | F14: 11 | G14: 240.953 | H14: 95.722 | I14: -41.734792 | K14: 11 | L14: 240.953 | M14: 94.722 | N14: -41.298792 | P14: 11 | Q14: 240.953 | R14: 96.222 | S14: -41.952792 | U14: 11 | V14: 240.953 | W14: 97.722 | X14: -42.606792 | Z14: 11 | AA14: 240.953 | AB14: 99.222 | AC14: -43.260792 | AE14: 11 | AF14: 240.953 | AG14: 100.722 | AH14: -43.914792 | AJ14: 11 | AK14: 240.953 | AL14: 101.722 | AM14: -44.350792 | AO14: 11 | AP14: 240.953 | AQ14: 102.722 | AR14: -44.786792 | AT14: 11 | AU14: 240.953 | AV14: 103.722 | AW14: -45.222792 | AY14: 11 | AZ14: 240.953 | BA14: 104.722 | BB14: -45.658792 | BD14: 11 | BE14: 240.953 | BF14: 105.722 | BG14: -46.094792
A15: 12 | B15: 240.484 | C15: 95.491 | D15: -47.7455 | F15: 12 | G15: 240.726 | H15: 95.899 | I15: -44.976631 | K15: 12 | L15: 240.726 | M15: 94.899 | N15: -44.507631 | P15: 12 | Q15: 240.726 | R15: 96.399 | S15: -45.211131 | U15: 12 | V15: 240.726 | W15: 97.899 | X15: -45.914631 | Z15: 12 | AA15: 240.726 | AB15: 99.399 | AC15: -46.618131 | AE15: 12 | AF15: 240.726 | AG15: 100.899 | AH15: -47.321631 | AJ15: 12 | AK15: 240.726 | AL15: 101.899 | AM15: -47.790631 | AO15: 12 | AP15: 240.726 | AQ15: 102.899 | AR15: -48.259631 | AT15: 12 | AU15: 240.726 | AV15: 103.899 | AW15: -48.728631 | AY15: 12 | AZ15: 240.726 | BA15: 104.899 | BB15: -49.197631 | BD15: 12 | BE15: 240.726 | BF15: 105.899 | BG15: -49.666631
A16: 13 | B16: 240.226 | C16: 95.6 | D16: -95.8868 | F16: 13 | G16: 240.484 | H16: 96.053 | I16: -48.0265 | K16: 13 | L16: 240.484 | M16: 95.053 | N16: -47.5265 | P16: 13 | Q16: 240.484 | R16: 96.553 | S16: -48.2765 | U16: 13 | V16: 240.484 | W16: 98.053 | X16: -49.0265 | Z16: 13 | AA16: 240.484 | AB16: 99.553 | AC16: -49.7765 | AE16: 13 | AF16: 240.484 | AG16: 101.053 | AH16: -50.5265 | AJ16: 13 | AK16: 240.484 | AL16: 102.053 | AM16: -51.0265 | AO16: 13 | AP16: 240.484 | AQ16: 103.053 | AR16: -51.5265 | AT16: 13 | AU16: 240.484 | AV16: 104.053 | AW16: -52.0265 | AY16: 13 | AZ16: 240.484 | BA16: 105.053 | BB16: -52.5265 | BD16: 13 | BE16: 240.484 | BF16: 106.053 | BG16: -53.0265
A17: 14 | B17: 239.481 | C17: 95.86 | D17: -143.69414 | F17: 14 | G17: 240.226 | H17: 96.188 | I17: -96.476564 | K17: 14 | L17: 240.226 | M17: 95.188 | N17: -95.473564 | P17: 14 | Q17: 240.226 | R17: 96.688 | S17: -96.978064 | U17: 14 | V17: 240.226 | W17: 98.188 | X17: -98.482564 | Z17: 14 | AA17: 240.226 | AB17: 99.688 | AC17: -99.987064 | AE17: 14 | AF17: 240.226 | AG17: 101.188 | AH17: -101.491564 | AJ17: 14 | AK17: 240.226 | AL17: 102.188 | AM17: -102.494564 | AO17: 14 | AP17: 240.226 | AQ17: 103.188 | AR17: -103.497564 | AT17: 14 | AU17: 240.226 | AV17: 104.188 | AW17: -104.500564 | AY17: 14 | AZ17: 240.226 | BA17: 105.188 | BB17: -105.503564 | BD17: 14 | BE17: 240.226 | BF17: 106.188 | BG17: -106.506564
A18: 15 | B18: 238.727 | C18: 96.099 | D18: -145.878282 | F18: 15 | G18: 239.481 | H18: 96.507 | I18: -144.663993 | K18: 15 | L18: 239.481 | M18: 95.507 | N18: -143.164993 | P18: 15 | Q18: 239.481 | R18: 97.007 | S18: -145.413493 | U18: 15 | V18: 239.481 | W18: 98.507 | X18: -147.661993 | Z18: 15 | AA18: 239.481 | AB18: 100.007 | AC18: -149.910493 | AE18: 15 | AF18: 239.481 | AG18: 101.507 | AH18: -152.158993 | AJ18: 15 | AK18: 239.481 | AL18: 102.507 | AM18: -153.657993 | AO18: 15 | AP18: 239.481 | AQ18: 103.507 | AR18: -155.156993 | AT18: 15 | AU18: 239.481 | AV18: 104.507 | AW18: -156.655993 | AY18: 15 | AZ18: 239.481 | BA18: 105.507 | BB18: -158.154993 | BD18: 15 | BE18: 239.481 | BF18: 106.507 | BG18: -159.653993
A19: 16 | B19: 237.963 | C19: 96.319 | D19: -148.042303 | F19: 16 | G19: 238.727 | H19: 96.802 | I19: -146.945436 | K19: 16 | L19: 238.727 | M19: 95.802 | N19: -145.427436 | P19: 16 | Q19: 238.727 | R19: 97.302 | S19: -147.704436 | U19: 16 | V19: 238.727 | W19: 98.802 | X19: -149.981436 | Z19: 16 | AA19: 238.727 | AB19: 100.302 | AC19: -152.258436 | AE19: 16 | AF19: 238.727 | AG19: 101.802 | AH19: -154.535436 | AJ19: 16 | AK19: 238.727 | AL19: 102.802 | AM19: -156.053436 | AO19: 16 | AP19: 238.727 | AQ19: 103.802 | AR19: -157.571436 | AT19: 16 | AU19: 238.727 | AV19: 104.802 | AW19: -159.089436 | AY19: 16 | AZ19: 238.727 | BA19: 105.802 | BB19: -160.607436 | BD19: 16 | BE19: 238.727 | BF19: 106.802 | BG19: -162.125436
A20: 17 | B20: 237.19 | C20: 96.518 | D20: -149.795936 | F20: 17 | G20: 237.963 | H20: 97.073 | I20: -149.201201 | K20: 17 | L20: 237.963 | M20: 96.073 | N20: -147.664201 | P20: 17 | Q20: 237.963 | R20: 97.573 | S20: -149.969701 | U20: 17 | V20: 237.963 | W20: 99.073 | X20: -152.275201 | Z20: 17 | AA20: 237.963 | AB20: 100.573 | AC20: -154.580701 | AE20: 17 | AF20: 237.963 | AG20: 102.073 | AH20: -156.886201 | AJ20: 17 | AK20: 237.963 | AL20: 103.073 | AM20: -158.423201 | AO20: 17 | AP20: 237.963 | AQ20: 104.073 | AR20: -159.960201 | AT20: 17 | AU20: 237.963 | AV20: 105.073 | AW20: -161.497201 | AY20: 17 | AZ20: 237.963 | BA20: 106.073 | BB20: -163.034201 | BD20: 17 | BE20: 237.963 | BF20: 107.073 | BG20: -164.571201
A21: 18 | B21: 236.411 | C21: 96.697 | D21: -151.427502 | F21: 18 | G21: 237.19 | H21: 97.319 | I21: -151.039088 | K21: 18 | L21: 237.19 | M21: 96.319 | N21: -149.487088 | P21: 18 | Q21: 237.19 | R21: 97.819 | S21: -151.815088 | U21: 18 | V21: 237.19 | W21: 99.319 | X21: -154.143088 | Z21: 18 | AA21: 237.19 | AB21: 100.819 | AC21: -156.471088 | AE21: 18 | AF21: 237.19 | AG21: 102.319 | AH21: -158.799088 | AJ21: 18 | AK21: 237.19 | AL21: 103.319 | AM21: -160.351088 | AO21: 18 | AP21: 237.19 | AQ21: 104.319 | AR21: -161.903088 | AT21: 18 | AU21: 237.19 | AV21: 105.319 | AW21: -163.455088 | AY21: 18 | AZ21: 237.19 | BA21: 106.319 | BB21: -165.007088 | BD21: 18 | BE21: 237.19 | BF21: 107.319 | BG21: -166.559088
A22: 19 | B22: 235.624 | C22: 96.855 | D22: -152.934045 | F22: 19 | G22: 236.411 | H22: 97.539 | I22: -152.746074 | K22: 19 | L22: 236.411 | M22: 96.539 | N22: -151.180074 | P22: 19 | Q22: 236.411 | R22: 98.039 | S22: -153.529074 | U22: 19 | V22: 236.411 | W22: 99.539 | X22: -155.878074 | Z22: 19 | AA22: 236.411 | AB22: 101.039 | AC22: -158.227074 | AE22: 19 | AF22: 236.411 | AG22: 102.539 | AH22: -160.576074 | AJ22: 19 | AK22: 236.411 | AL22: 103.539 | AM22: -162.142074 | AO22: 19 | AP22: 236.411 | AQ22: 104.539 | AR22: -163.708074 | AT22: 19 | AU22: 236.411 | AV22: 105.539 | AW22: -165.274074 | AY22: 19 | AZ22: 236.411 | BA22: 106.539 | BB22: -166.840074 | BD22: 19 | BE22: 236.411 | BF22: 107.539 | BG22: -168.406074
A23: 20 | B23: 234.832 | C23: 96.993 | D23: -154.21887 | F23: 20 | G23: 235.624 | H23: 97.734 | I23: -154.321986 | K23: 20 | L23: 235.624 | M23: 96.734 | N23: -152.742986 | P23: 20 | Q23: 235.624 | R23: 98.234 | S23: -155.111486 | U23: 20 | V23: 235.624 | W23: 99.734 | X23: -157.479986 | Z23: 20 | AA23: 235.624 | AB23: 101.234 | AC23: -159.848486 | AE23: 20 | AF23: 235.624 | AG23: 102.734 | AH23: -162.216986 | AJ23: 20 | AK23: 235.624 | AL23: 103.734 | AM23: -163.795986 | AO23: 20 | AP23: 235.624 | AQ23: 104.734 | AR23: -165.374986 | AT23: 20 | AU23: 235.624 | AV23: 105.734 | AW23: -166.953986 | AY23: 20 | AZ23: 235.624 | BA23: 106.734 | BB23: -168.532986 | BD23: 20 | BE23: 235.624 | BF23: 107.734 | BG23: -170.111986
A24: 21 | B24: 234.034 | C24: 97.109 | D24: -155.3744 | F24: 21 | G24: 234.832 | H24: 97.904 | I24: -155.66736 | K24: 21 | L24: 234.832 | M24: 96.904 | N24: -154.07736 | P24: 21 | Q24: 234.832 | R24: 98.404 | S24: -156.46236 | U24: 21 | V24: 234.832 | W24: 99.904 | X24: -158.84736 | Z24: 21 | AA24: 234.832 | AB24: 101.404 | AC24: -161.23236 | AE24: 21 | AF24: 234.832 | AG24: 102.904 | AH24: -163.61736 | AJ24: 21 | AK24: 234.832 | AL24: 103.904 | AM24: -165.20736 | AO24: 21 | AP24: 234.832 | AQ24: 104.904 | AR24: -166.79736 | AT24: 21 | AU24: 234.832 | AV24: 105.904 | AW24: -168.38736 | AY24: 21 | AZ24: 234.832 | BA24: 106.904 | BB24: -169.97736 | BD24: 21 | BE24: 234.832 | BF24: 107.904 | BG24: -171.56736
A25: 22 | B25: 233.232 | C25: 97.205 | D25: -156.208435 | F25: 22 | G25: 234.034 | H25: 98.047 | I25: -156.8752 | K25: 22 | L25: 234.034 | M25: 97.047 | N25: -155.2752 | P25: 22 | Q25: 234.034 | R25: 98.547 | S25: -157.6752 | U25: 22 | V25: 234.034 | W25: 100.047 | X25: -160.0752 | Z25: 22 | AA25: 234.034 | AB25: 101.547 | AC25: -162.4752 | AE25: 22 | AF25: 234.034 | AG25: 103.047 | AH25: -164.8752 | AJ25: 22 | AK25: 234.034 | AL25: 104.047 | AM25: -166.4752 | AO25: 22 | AP25: 234.034 | AQ25: 105.047 | AR25: -168.0752 | AT25: 22 | AU25: 234.034 | AV25: 106.047 | AW25: -169.6752 | AY25: 22 | AZ25: 234.034 | BA25: 107.047 | BB25: -171.2752 | BD25: 22 | BE25: 234.034 | BF25: 108.047 | BG25: -172.8752
A26: 23 | B26: 232.427 | C26: 97.279 | D26: -156.813748 | F26: 23 | G26: 233.232 | H26: 98.165 | I26: -157.751155 | K26: 23 | L26: 233.232 | M26: 97.165 | N26: -156.144155 | P26: 23 | Q26: 233.232 | R26: 98.665 | S26: -158.554655 | U26: 23 | V26: 233.232 | W26: 100.165 | X26: -160.965155 | Z26: 23 | AA26: 233.232 | AB26: 101.665 | AC26: -163.375655 | AE26: 23 | AF26: 233.232 | AG26: 103.165 | AH26: -165.786155 | AJ26: 23 | AK26: 233.232 | AL26: 104.165 | AM26: -167.393155 | AO26: 23 | AP26: 233.232 | AQ26: 105.165 | AR26: -169.000155 | AT26: 23 | AU26: 233.232 | AV26: 106.165 | AW26: -170.607155 | AY26: 23 | AZ26: 233.232 | BA26: 107.165 | BB26: -172.214155 | BD26: 23 | BE26: 233.232 | BF26: 108.165 | BG26: -173.821155
A27: 24 | B27: 231.62 | C27: 97.332 | D27: -157.385844 | F27: 24 | G27: 232.427 | H27: 98.257 | I27: -158.390284 | K27: 24 | L27: 232.427 | M27: 97.257 | N27: -156.778284 | P27: 24 | Q27: 232.427 | R27: 98.757 | S27: -159.196284 | U27: 24 | V27: 232.427 | W27: 100.257 | X27: -161.614284 | Z27: 24 | AA27: 232.427 | AB27: 101.757 | AC27: -164.032284 | AE27: 24 | AF27: 232.427 | AG27: 103.257 | AH27: -166.450284 | AJ27: 24 | AK27: 232.427 | AL27: 104.257 | AM27: -168.062284 | AO27: 24 | AP27: 232.427 | AQ27: 105.257 | AR27: -169.674284 | AT27: 24 | AU27: 232.427 | AV27: 106.257 | AW27: -171.286284 | AY27: 24 | AZ27: 232.427 | BA27: 107.257 | BB27: -172.898284 | BD27: 24 | BE27: 232.427 | BF27: 108.257 | BG27: -174.510284
A28: 25 | B28: 230.81 | C28: 97.364 | D28: -157.72968 | F28: 25 | G28: 231.62 | H28: 98.322 | I28: -158.986674 | K28: 25 | L28: 231.62 | M28: 97.322 | N28: -157.369674 | P28: 25 | Q28: 231.62 | R28: 98.822 | S28: -159.795174 | U28: 25 | V28: 231.62 | W28: 100.322 | X28: -162.220674 | Z28: 25 | AA28: 231.62 | AB28: 101.822 | AC28: -164.646174 | AE28: 25 | AF28: 231.62 | AG28: 103.322 | AH28: -167.071674 | AJ28: 25 | AK28: 231.62 | AL28: 104.322 | AM28: -168.688674 | AO28: 25 | AP28: 231.62 | AQ28: 105.322 | AR28: -170.305674 | AT28: 25 | AU28: 231.62 | AV28: 106.322 | AW28: -171.922674 | AY28: 25 | AZ28: 231.62 | BA28: 107.322 | BB28: -173.539674 | BD28: 25 | BE28: 231.62 | BF28: 108.322 | BG28: -175.156674
A29: 26 | B29: 230 | C29: 97.375 | D29: -157.7475 | F29: 26 | G29: 230.81 | H29: 98.362 | I29: -159.34644 | K29: 26 | L29: 230.81 | M29: 97.362 | N29: -157.72644 | P29: 26 | Q29: 230.81 | R29: 98.862 | S29: -160.15644 | U29: 26 | V29: 230.81 | W29: 100.362 | X29: -162.58644 | Z29: 26 | AA29: 230.81 | AB29: 101.862 | AC29: -165.01644 | AE29: 26 | AF29: 230.81 | AG29: 103.362 | AH29: -167.44644 | AJ29: 26 | AK29: 230.81 | AL29: 104.362 | AM29: -169.06644 | AO29: 26 | AP29: 230.81 | AQ29: 105.362 | AR29: -170.68644 | AT29: 26 | AU29: 230.81 | AV29: 106.362 | AW29: -172.30644 | AY29: 26 | AZ29: 230.81 | BA29: 107.362 | BB29: -173.92644 | BD29: 26 | BE29: 230.81 | BF29: 108.362 | BG29: -175.54644
A30: 27 | B30: 229.19 | C30: 97.364 | D30: -157.72968 | F30: 27 | G30: 230 | H30: 98.375 | I30: -159.3675 | K30: 27 | L30: 230 | M30: 97.375 | N30: -157.7475 | P30: 27 | Q30: 230 | R30: 98.875 | S30: -160.1775 | U30: 27 | V30: 230 | W30: 100.375 | X30: -162.6075 | Z30: 27 | AA30: 230 | AB30: 101.875 | AC30: -165.0375 | AE30: 27 | AF30: 230 | AG30: 103.375 | AH30: -167.4675 | AJ30: 27 | AK30: 230 | AL30: 104.375 | AM30: -169.0875 | AO30: 27 | AP30: 230 | AQ30: 105.375 | AR30: -170.7075 | AT30: 27 | AU30: 230 | AV30: 106.375 | AW30: -172.3275 | AY30: 27 | AZ30: 230 | BA30: 107.375 | BB30: -173.9475 | BD30: 27 | BE30: 230 | BF30: 108.375 | BG30: -175.5675
A31: 28 | B31: 228.38 | C31: 97.332 | D31: -157.385844 | F31: 28 | G31: 229.19 | H31: 98.362 | I31: -159.34644 | K31: 28 | L31: 229.19 | M31: 97.362 | N31: -157.72644 | P31: 28 | Q31: 229.19 | R31: 98.862 | S31: -160.15644 | U31: 28 | V31: 229.19 | W31: 100.362 | X31: -162.58644 | Z31: 28 | AA31: 229.19 | AB31: 101.862 | AC31: -165.01644 | AE31: 28 | AF31: 229.19 | AG31: 103.362 | AH31: -167.44644 | AJ31: 28 | AK31: 229.19 | AL31: 104.362 | AM31: -169.06644 | AO31: 28 | AP31: 229.19 | AQ31: 105.362 | AR31: -170.68644 | AT31: 28 | AU31: 229.19 | AV31: 106.362 | AW31: -172.30644 | AY31: 28 | AZ31: 229.19 | BA31: 107.362 | BB31: -173.92644 | BD31: 28 | BE31: 229.19 | BF31: 108.362 | BG31: -175.54644
A32: 29 | B32: 227.573 | C32: 97.279 | D32: -156.813748 | F32: 29 | G32: 228.38 | H32: 98.322 | I32: -158.986674 | K32: 29 | L32: 228.38 | M32: 97.322 | N32: -157.369674 | P32: 29 | Q32: 228.38 | R32: 98.822 | S32: -159.795174 | U32: 29 | V32: 228.38 | W32: 100.322 | X32: -162.220674 | Z32: 29 | AA32: 228.38 | AB32: 101.822 | AC32: -164.646174 | AE32: 29 | AF32: 228.38 | AG32: 103.322 | AH32: -167.071674 | AJ32: 29 | AK32: 228.38 | AL32: 104.322 | AM32: -168.688674 | AO32: 29 | AP32: 228.38 | AQ32: 105.322 | AR32: -170.305674 | AT32: 29 | AU32: 228.38 | AV32: 106.322 | AW32: -171.922674 | AY32: 29 | AZ32: 228.38 | BA32: 107.322 | BB32: -173.539674 | BD32: 29 | BE32: 228.38 | BF32: 108.322 | BG32: -175.156674
A33: 30 | B33: 226.768 | C33: 97.205 | D33: -156.208435 | F33: 30 | G33: 227.573 | H33: 98.257 | I33: -158.390284 | K33: 30 | L33: 227.573 | M33: 97.257 | N33: -156.778284 | P33: 30 | Q33: 227.573 | R33: 98.757 | S33: -159.196284 | U33: 30 | V33: 227.573 | W33: 100.257 | X33: -161.614284 | Z33: 30 | AA33: 227.573 | AB33: 101.757 | AC33: -164.032284 | AE33: 30 | AF33: 227.573 | AG33: 103.257 | AH33: -166.450284 | AJ33: 30 | AK33: 227.573 | AL33: 104.257 | AM33: -168.062284 | AO33: 30 | AP33: 227.573 | AQ33: 105.257 | AR33: -169.674284 | AT33: 30 | AU33: 227.573 | AV33: 106.257 | AW33: -171.286284 | AY33: 30 | AZ33: 227.573 | BA33: 107.257 | BB33: -172.898284 | BD33: 30 | BE33: 227.573 | BF33: 108.257 | BG33: -174.510284
A34: 31 | B34: 225.966 | C34: 97.109 | D34: -155.3744 | F34: 31 | G34: 226.768 | H34: 98.165 | I34: -157.751155 | K34: 31 | L34: 226.768 | M34: 97.165 | N34: -156.144155 | P34: 31 | Q34: 226.768 | R34: 98.665 | S34: -158.554655 | U34: 31 | V34: 226.768 | W34: 100.165 | X34: -160.965155 | Z34: 31 | AA34: 226.768 | AB34: 101.665 | AC34: -163.375655 | AE34: 31 | AF34: 226.768 | AG34: 103.165 | AH34: -165.786155 | AJ34: 31 | AK34: 226.768 | AL34: 104.165 | AM34: -167.393155 | AO34: 31 | AP34: 226.768 | AQ34: 105.165 | AR34: -169.000155 | AT34: 31 | AU34: 226.768 | AV34: 106.165 | AW34: -170.607155 | AY34: 31 | AZ34: 226.768 | BA34: 107.165 | BB34: -172.214155 | BD34: 31 | BE34: 226.768 | BF34: 108.165 | BG34: -173.821155
A35: 32 | B35: 225.168 | C35: 96.993 | D35: -154.21887 | F35: 32 | G35: 225.966 | H35: 98.047 | I35: -156.8752 | K35: 32 | L35: 225.966 | M35: 97.047 | N35: -155.2752 | P35: 32 | Q35: 225.966 | R35: 98.547 | S35: -157.6752 | U35: 32 | V35: 225.966 | W35: 100.047 | X35: -160.0752 | Z35: 32 | AA35: 225.966 | AB35: 101.547 | AC35: -162.4752 | AE35: 32 | AF35: 225.966 | AG35: 103.047 | AH35: -164.8752 | AJ35: 32 | AK35: 225.966 | AL35: 104.047 | AM35: -166.4752 | AO35: 32 | AP35: 225.966 | AQ35: 105.047 | AR35: -168.0752 | AT35: 32 | AU35: 225.966 | AV35: 106.047 | AW35: -169.6752 | AY35: 32 | AZ35: 225.966 | BA35: 107.047 | BB35: -171.2752 | BD35: 32 | BE35: 225.966 | BF35: 108.047 | BG35: -172.8752
A36: 33 | B36: 224.376 | C36: 96.855 | D36: -152.934045 | F36: 33 | G36: 225.168 | H36: 97.904 | I36: -155.66736 | K36: 33 | L36: 225.168 | M36: 96.904 | N36: -154.07736 | P36: 33 | Q36: 225.168 | R36: 98.404 | S36: -156.46236 | U36: 33 | V36: 225.168 | W36: 99.904 | X36: -158.84736 | Z36: 33 | AA36: 225.168 | AB36: 101.404 | AC36: -161.23236 | AE36: 33 | AF36: 225.168 | AG36: 102.904 | AH36: -163.61736 | AJ36: 33 | AK36: 225.168 | AL36: 103.904 | AM36: -165.20736 | AO36: 33 | AP36: 225.168 | AQ36: 104.904 | AR36: -166.79736 | AT36: 33 | AU36: 225.168 | AV36: 105.904 | AW36: -168.38736 | AY36: 33 | AZ36: 225.168 | BA36: 106.904 | BB36: -169.97736 | BD36: 33 | BE36: 225.168 | BF36: 107.904 | BG36: -171.56736
A37: 34 | B37: 223.589 | C37: 96.697 | D37: -151.427502 | F37: 34 | G37: 224.376 | H37: 97.734 | I37: -154.321986 | K37: 34 | L37: 224.376 | M37: 96.734 | N37: -152.742986 | P37: 34 | Q37: 224.376 | R37: 98.234 | S37: -155.111486 | U37: 34 | V37: 224.376 | W37: 99.734 | X37: -157.479986 | Z37: 34 | AA37: 224.376 | AB37: 101.234 | AC37: -159.848486 | AE37: 34 | AF37: 224.376 | AG37: 102.734 | AH37: -162.216986 | AJ37: 34 | AK37: 224.376 | AL37: 103.734 | AM37: -163.795986 | AO37: 34 | AP37: 224.376 | AQ37: 104.734 | AR37: -165.374986 | AT37: 34 | AU37: 224.376 | AV37: 105.734 | AW37: -166.953986 | AY37: 34 | AZ37: 224.376 | BA37: 106.734 | BB37: -168.532986 | BD37: 34 | BE37: 224.376 | BF37: 107.734 | BG37: -170.111986
A38: 35 | B38: 222.81 | C38: 96.518 | D38: -149.795936 | F38: 35 | G38: 223.589 | H38: 97.539 | I38: -152.746074 | K38: 35 | L38: 223.589 | M38: 96.539 | N38: -151.180074 | P38: 35 | Q38: 223.589 | R38: 98.039 | S38: -153.529074 | U38: 35 | V38: 223.589 | W38: 99.539 | X38: -155.878074 | Z38: 35 | AA38: 223.589 | AB38: 101.039 | AC38: -158.227074 | AE38: 35 | AF38: 223.589 | AG38: 102.539 | AH38: -160.576074 | AJ38: 35 | AK38: 223.589 | AL38: 103.539 | AM38: -162.142074 | AO38: 35 | AP38: 223.589 | AQ38: 104.539 | AR38: -163.708074 | AT38: 35 | AU38: 223.589 | AV38: 105.539 | AW38: -165.274074 | AY38: 35 | AZ38: 223.589 | BA38: 106.539 | BB38: -166.840074 | BD38: 35 | BE38: 223.589 | BF38: 107.539 | BG38: -168.406074
A39: 36 | B39: 222.037 | C39: 96.319 | D39: -148.042303 | F39: 36 | G39: 222.81 | H39: 97.319 | I39: -151.039088 | K39: 36 | L39: 222.81 | M39: 96.319 | N39: -149.487088 | P39: 36 | Q39: 222.81 | R39: 97.819 | S39: -151.815088 | U39: 36 | V39: 222.81 | W39: 99.319 | X39: -154.143088 | Z39: 36 | AA39: 222.81 | AB39: 100.819 | AC39: -156.471088 | AE39: 36 | AF39: 222.81 | AG39: 102.319 | AH39: -158.799088 | AJ39: 36 | AK39: 222.81 | AL39: 103.319 | AM39: -160.351088 | AO39: 36 | AP39: 222.81 | AQ39: 104.319 | AR39: -161.903088 | AT39: 36 | AU39: 222.81 | AV39: 105.319 | AW39: -163.455088 | AY39: 36 | AZ39: 222.81 | BA39: 106.319 | BB39: -165.007088 | BD39: 36 | BE39: 222.81 | BF39: 107.319 | BG39: -166.559088
A40: 37 | B40: 221.273 | C40: 96.099 | D40: -145.878282 | F40: 37 | G40: 222.037 | H40: 97.073 | I40: -149.201201 | K40: 37 | L40: 222.037 | M40: 96.073 | N40: -147.664201 | P40: 37 | Q40: 222.037 | R40: 97.573 | S40: -149.969701 | U40: 37 | V40: 222.037 | W40: 99.073 | X40: -152.275201 | Z40: 37 | AA40: 222.037 | AB40: 100.573 | AC40: -154.580701 | AE40: 37 | AF40: 222.037 | AG40: 102.073 | AH40: -156.886201 | AJ40: 37 | AK40: 222.037 | AL40: 103.073 | AM40: -158.423201 | AO40: 37 | AP40: 222.037 | AQ40: 104.073 | AR40: -159.960201 | AT40: 37 | AU40: 222.037 | AV40: 105.073 | AW40: -161.497201 | AY40: 37 | AZ40: 222.037 | BA40: 106.073 | BB40: -163.034201 | BD40: 37 | BE40: 222.037 | BF40: 107.073 | BG40: -164.571201
A41: 38 | B41: 220.519 | C41: 95.86 | D41: -143.69414 | F41: 38 | G41: 221.273 | H41: 96.802 | I41: -146.945436 | K41: 38 | L41: 221.273 | M41: 95.802 | N41: -145.427436 | P41: 38 | Q41: 221.273 | R41: 97.302 | S41: -147.704436 | U41: 38 | V41: 221.273 | W41: 98.802 | X41: -149.981436 | Z41: 38 | AA41: 221.273 | AB41: 100.302 | AC41: -152.258436 | AE41: 38 | AF41: 221.273 | AG41: 101.802 | AH41: -154.535436 | AJ41: 38 | AK41: 221.273 | AL41: 102.802 | AM41: -156.053436 | AO41: 38 | AP41: 221.273 | AQ41: 103.802 | AR41: -157.571436 | AT41: 38 | AU41: 221.273 | AV41: 104.802 | AW41: -159.089436 | AY41: 38 | AZ41: 221.273 | BA41: 105.802 | BB41: -160.607436 | BD41: 38 | BE41: 221.273 | BF41: 106.802 | BG41: -162.125436
A42: 39 | B42: 219.774 | C42: 95.6 | D42: -95.8868 | F42: 39 | G42: 220.519 | H42: 96.507 | I42: -144.663993 | K42: 39 | L42: 220.519 | M42: 95.507 | N42: -143.164993 | P42: 39 | Q42: 220.519 | R42: 97.007 | S42: -145.413493 | U42: 39 | V42: 220.519 | W42: 98.507 | X42: -147.661993 | Z42: 39 | AA42: 220.519 | AB42: 100.007 | AC42: -149.910493 | AE42: 39 | AF42: 220.519 | AG42: 101.507 | AH42: -152.158993 | AJ42: 39 | AK42: 220.519 | AL42: 102.507 | AM42: -153.657993 | AO42: 39 | AP42: 220.519 | AQ42: 103.507 | AR42: -155.156993 | AT42: 39 | AU42: 220.519 | AV42: 104.507 | AW42: -156.655993 | AY42: 39 | AZ42: 220.519 | BA42: 105.507 | BB42: -158.154993 | BD42: 39 | BE42: 220.519 | BF42: 106.507 | BG42: -159.653993
A43: 40 | B43: 219.516 | C43: 95.491 | D43: -47.7455 | F43: 40 | G43: 219.774 | H43: 96.188 | I43: -96.476564 | K43: 40 | L43: 219.774 | M43: 95.188 | N43: -95.473564 | P43: 40 | Q43: 219.774 | R43: 96.688 | S43: -96.978064 | U43: 40 | V43: 219.774 | W43: 98.188 | X43: -98.482564 | Z43: 40 | AA43: 219.774 | AB43: 99.688 | AC43: -99.987064 | AE43: 40 | AF43: 219.774 | AG43: 101.188 | AH43: -101.491564 | AJ43: 40 | AK43: 219.774 | AL43: 102.188 | AM43: -102.494564 | AO43: 40 | AP43: 219.774 | AQ43: 103.188 | AR43: -103.497564 | AT43: 40 | AU43: 219.774 | AV43: 104.188 | AW43: -104.500564 | AY43: 40 | AZ43: 219.774 | BA43: 105.188 | BB43: -105.503564 | BD43: 40 | BE43: 219.774 | BF43: 106.188 | BG43: -106.506564
A44: 41 | B44: 219.274 | C44: 95.366 | D44: -44.726654 | F44: 41 | G44: 219.516 | H44: 96.053 | I44: -48.0265 | K44: 41 | L44: 219.516 | M44: 95.053 | N44: -47.5265 | P44: 41 | Q44: 219.516 | R44: 96.553 | S44: -48.2765 | U44: 41 | V44: 219.516 | W44: 98.053 | X44: -49.0265 | Z44: 41 | AA44: 219.516 | AB44: 99.553 | AC44: -49.7765 | AE44: 41 | AF44: 219.516 | AG44: 101.053 | AH44: -50.5265 | AJ44: 41 | AK44: 219.516 | AL44: 102.053 | AM44: -51.0265 | AO44: 41 | AP44: 219.516 | AQ44: 103.053 | AR44: -51.5265 | AT44: 41 | AU44: 219.516 | AV44: 104.053 | AW44: -52.0265 | AY44: 41 | AZ44: 219.516 | BA44: 105.053 | BB44: -52.5265 | BD44: 41 | BE44: 219.516 | BF44: 106.053 | BG44: -53.0265
A45: 42 | B45: 219.047 | C45: 95.223 | D45: -41.517228 | F45: 42 | G45: 219.274 | H45: 95.899 | I45: -44.976631 | K45: 42 | L45: 219.274 | M45: 94.899 | N45: -44.507631 | P45: 42 | Q45: 219.274 | R45: 96.399 | S45: -45.211131 | U45: 42 | V45: 219.274 | W45: 97.899 | X45: -45.914631 | Z45: 42 | AA45: 219.274 | AB45: 99.399 | AC45: -46.618131 | AE45: 42 | AF45: 219.274 | AG45: 100.899 | AH45: -47.321631 | AJ45: 42 | AK45: 219.274 | AL45: 101.899 | AM45: -47.790631 | AO45: 42 | AP45: 219.274 | AQ45: 102.899 | AR45: -48.259631 | AT45: 42 | AU45: 219.274 | AV45: 103.899 | AW45: -48.728631 | AY45: 42 | AZ45: 219.274 | BA45: 104.899 | BB45: -49.197631 | BD45: 42 | BE45: 219.274 | BF45: 105.899 | BG45: -49.666631
A46: 43 | B46: 218.838 | C46: 95.063 | D46: -37.835074 | F46: 43 | G46: 219.047 | H46: 95.722 | I46: -41.734792 | K46: 43 | L46: 219.047 | M46: 94.722 | N46: -41.298792 | P46: 43 | Q46: 219.047 | R46: 96.222 | S46: -41.952792 | U46: 43 | V46: 219.047 | W46: 97.722 | X46: -42.606792 | Z46: 43 | AA46: 219.047 | AB46: 99.222 | AC46: -43.260792 | AE46: 43 | AF46: 219.047 | AG46: 100.722 | AH46: -43.914792 | AJ46: 43 | AK46: 219.047 | AL46: 101.722 | AM46: -44.350792 | AO46: 43 | AP46: 219.047 | AQ46: 102.722 | AR46: -44.786792 | AT46: 43 | AU46: 219.047 | AV46: 103.722 | AW46: -45.222792 | AY46: 43 | AZ46: 219.047 | BA46: 104.722 | BB46: -45.658792 | BD46: 43 | BE46: 219.047 | BF46: 105.722 | BG46: -46.094792
A47: 44 | B47: 218.649 | C47: 94.887 | D47: -33.779772 | F47: 44 | G47: 218.838 | H47: 95.525 | I47: -38.01895 | K47: 44 | L47: 218.838 | M47: 94.525 | N47: -37.62095 | P47: 44 | Q47: 218.838 | R47: 96.025 | S47: -38.21795 | U47: 44 | V47: 218.838 | W47: 97.525 | X47: -38.81495 | Z47: 44 | AA47: 218.838 | AB47: 99.025 | AC47: -39.41195 | AE47: 44 | AF47: 218.838 | AG47: 100.525 | AH47: -40.00895 | AJ47: 44 | AK47: 218.838 | AL47: 101.525 | AM47: -40.40695 | AO47: 44 | AP47: 218.838 | AQ47: 102.525 | AR47: -40.80495 | AT47: 44 | AU47: 218.838 | AV47: 103.525 | AW47: -41.20295 | AY47: 44 | AZ47: 218.838 | BA47: 104.525 | BB47: -41.60095 | BD47: 44 | BE47: 218.838 | BF47: 105.525 | BG47: -41.99895
A48: 45 | B48: 218.482 | C48: 94.698 | D48: -29.545776 | F48: 45 | G48: 218.649 | H48: 95.309 | I48: -33.930004 | K48: 45 | L48: 218.649 | M48: 94.309 | N48: -33.574004 | P48: 45 | Q48: 218.649 | R48: 95.809 | S48: -34.108004 | U48: 45 | V48: 218.649 | W48: 97.309 | X48: -34.642004 | Z48: 45 | AA48: 218.649 | AB48: 98.809 | AC48: -35.176004 | AE48: 45 | AF48: 218.649 | AG48: 100.309 | AH48: -35.710004 | AJ48: 45 | AK48: 218.649 | AL48: 101.309 | AM48: -36.066004 | AO48: 45 | AP48: 218.649 | AQ48: 102.309 | AR48: -36.422004 | AT48: 45 | AU48: 218.649 | AV48: 103.309 | AW48: -36.778004 | AY48: 45 | AZ48: 218.649 | BA48: 104.309 | BB48: -37.134004 | BD48: 45 | BE48: 218.649 | BF48: 105.309 | BG48: -37.490004
A49: 46 | B49: 218.337 | C49: 94.497 | D49: -25.041705 | F49: 46 | G49: 218.482 | H49: 95.076 | I49: -29.663712 | K49: 46 | L49: 218.482 | M49: 94.076 | N49: -29.351712 | P49: 46 | Q49: 218.482 | R49: 95.576 | S49: -29.819712 | U49: 46 | V49: 218.482 | W49: 97.076 | X49: -30.287712 | Z49: 46 | AA49: 218.482 | AB49: 98.576 | AC49: -30.755712 | AE49: 46 | AF49: 218.482 | AG49: 100.076 | AH49: -31.223712 | AJ49: 46 | AK49: 218.482 | AL49: 101.076 | AM49: -31.535712 | AO49: 46 | AP49: 218.482 | AQ49: 102.076 | AR49: -31.847712 | AT49: 46 | AU49: 218.482 | AV49: 103.076 | AW49: -32.159712 | AY49: 46 | AZ49: 218.482 | BA49: 104.076 | BB49: -32.471712 | BD49: 46 | BE49: 218.482 | BF49: 105.076 | BG49: -32.783712
A50: 47 | B50: 218.217 | C50: 94.285 | D50: -20.17699 | F50: 47 | G50: 218.337 | H50: 94.827 | I50: -25.129155 | K50: 47 | L50: 218.337 | M50: 93.827 | N50: -24.864155 | P50: 47 | Q50: 218.337 | R50: 95.327 | S50: -25.261655 | U50: 47 | V50: 218.337 | W50: 96.827 | X50: -25.659155 | Z50: 47 | AA50: 218.337 | AB50: 98.327 | AC50: -26.056655 | AE50: 47 | AF50: 218.337 | AG50: 99.827 | AH50: -26.454155 | AJ50: 47 | AK50: 218.337 | AL50: 100.827 | AM50: -26.719155 | AO50: 47 | AP50: 218.337 | AQ50: 101.827 | AR50: -26.984155 | AT50: 47 | AU50: 218.337 | AV50: 102.827 | AW50: -27.249155 | AY50: 47 | AZ50: 218.337 | BA50: 103.827 | BB50: -27.514155 | BD50: 47 | BE50: 218.337 | BF50: 104.827 | BG50: -27.779155
A51: 48 | B51: 218.123 | C51: 94.065 | D51: -15.23853 | F51: 48 | G51: 218.217 | H51: 94.566 | I51: -20.237124 | K51: 48 | L51: 218.217 | M51: 93.566 | N51: -20.023124 | P51: 48 | Q51: 218.217 | R51: 95.066 | S51: -20.344124 | U51: 48 | V51: 218.217 | W51: 96.566 | X51: -20.665124 | Z51: 48 | AA51: 218.217 | AB51: 98.066 | AC51: -20.986124 | AE51: 48 | AF51: 218.217 | AG51: 99.566 | AH51: -21.307124 | AJ51: 48 | AK51: 218.217 | AL51: 100.566 | AM51: -21.521124 | AO51: 48 | AP51: 218.217 | AQ51: 101.566 | AR51: -21.735124 | AT51: 48 | AU51: 218.217 | AV51: 102.566 | AW51: -21.949124 | AY51: 48 | AZ51: 218.217 | BA51: 103.566 | BB51: -22.163124 | BD51: 48 | BE51: 218.217 | BF51: 104.566 | BG51: -22.377124
A52: 49 | B52: 218.055 | C52: 93.838 | D52: -10.228342 | F52: 49 | G52: 218.123 | H52: 94.295 | I52: -15.27579 | K52: 49 | L52: 218.123 | M52: 93.295 | N52: -15.11379 | P52: 49 | Q52: 218.123 | R52: 94.795 | S52: -15.35679 | U52: 49 | V52: 218.123 | W52: 96.295 | X52: -15.59979 | Z52: 49 | AA52: 218.123 | AB52: 97.795 | AC52: -15.84279 | AE52: 49 | AF52: 218.123 | AG52: 99.295 | AH52: -16.08579 | AJ52: 49 | AK52: 218.123 | AL52: 100.295 | AM52: -16.24779 | AO52: 49 | AP52: 218.123 | AQ52: 101.295 | AR52: -16.40979 | AT52: 49 | AU52: 218.123 | AV52: 102.295 | AW52: -16.57179 | AY52: 49 | AZ52: 218.123 | BA52: 103.295 | BB52: -16.73379 | BD52: 49 | BE52: 218.123 | BF52: 104.295 | BG52: -16.89579
A53: 50 | B53: 218.014 | C53: 93.608 | D53: -5.14844 | F53: 50 | G53: 218.055 | H53: 94.016 | I53: -10.247744 | K53: 50 | L53: 218.055 | M53: 93.016 | N53: -10.138744 | P53: 50 | Q53: 218.055 | R53: 94.516 | S53: -10.302244 | U53: 50 | V53: 218.055 | W53: 96.016 | X53: -10.465744 | Z53: 50 | AA53: 218.055 | AB53: 97.516 | AC53: -10.629244 | AE53: 50 | AF53: 218.055 | AG53: 99.016 | AH53: -10.792744 | AJ53: 50 | AK53: 218.055 | AL53: 100.016 | AM53: -10.901744 | AO53: 50 | AP53: 218.055 | AQ53: 101.016 | AR53: -11.010744 | AT53: 50 | AU53: 218.055 | AV53: 102.016 | AW53: -11.119744 | AY53: 50 | AZ53: 218.055 | BA53: 103.016 | BB53: -11.228744 | BD53: 50 | BE53: 218.055 | BF53: 104.016 | BG53: -11.337744
A54: 51 | B54: 218 | C54: 93.375 | D54: =C54*(B4-B53) -> 2239.69275 | F54: 51 | G54: 218.014 | H54: 93.732 | I54: -5.15526 | K54: 51 | L54: 218.014 | M54: 92.732 | N54: -5.10026 | P54: 51 | Q54: 218.014 | R54: 94.232 | S54: -5.18276 | U54: 51 | V54: 218.014 | W54: 95.732 | X54: -5.26526 | Z54: 51 | AA54: 218.014 | AB54: 97.232 | AC54: -5.34776 | AE54: 51 | AF54: 218.014 | AG54: 98.732 | AH54: -5.43026 | AJ54: 51 | AK54: 218.014 | AL54: 99.732 | AM54: -5.48526 | AO54: 51 | AP54: 218.014 | AQ54: 100.732 | AR54: -5.54026 | AT54: 51 | AU54: 218.014 | AV54: 101.732 | AW54: -5.59526 | AY54: 51 | AZ54: 218.014 | BA54: 102.732 | BB54: -5.65026 | BD54: 51 | BE54: 218.014 | BF54: 103.732 | BG54: -5.70526
F55: 52 | G55: 218 | H55: 93.445 | I55: -1.30823 | K55: 52 | L55: 218 | M55: 92.445 | N55: -1.29423 | P55: 52 | Q55: 218 | R55: 93.945 | S55: -1.31523 | U55: 52 | V55: 218 | W55: 95.445 | X55: -1.33623 | Z55: 52 | AA55: 218 | AB55: 96.945 | AC55: -1.35723 | AE55: 52 | AF55: 218 | AG55: 98.445 | AH55: -1.37823 | AJ55: 52 | AK55: 218 | AL55: 99.445 | AM55: -1.39223 | AO55: 52 | AP55: 218 | AQ55: 100.445 | AR55: -1.40623 | AT55: 52 | AU55: 218 | AV55: 101.445 | AW55: -1.42023 | AY55: 52 | AZ55: 218 | BA55: 102.445 | BB55: -1.43423 | BD55: 52 | BE55: 218 | BF55: 103.445 | BG55: -1.44823
F56: 53 | G56: 218 | H56: 93.375 | I56: =H56*(G4-G55) -> 2241 | K56: 53 | L56: 218 | M56: 91.375 | N56: =M56*(L4-L55) -> 2193 | P56: 53 | Q56: 218 | R56: 91.875 | S56: =R56*(Q4-Q55) -> 2205 | U56: 53 | V56: 218 | W56: 92.375 | X56: =W56*(V4-V55) -> 2217 | Z56: 53 | AA56: 218 | AB56: 92.875 | AC56: =AB56*(AA4-AA55) -> 2229 | AE56: 53 | AF56: 218 | AG56: 93.375 | AH56: =AG56*(AF4-AF55) -> 2241 | AJ56: 53 | AK56: 218 | AL56: 93.375 | AM56: =AL56*(AK4-AK55) -> 2241 | AO56: 53 | AP56: 218 | AQ56: 93.375 | AR56: =AQ56*(AP4-AP55) -> 2241 | AT56: 53 | AU56: 218 | AV56: 93.375 | AW56: =AV56*(AU4-AU55) -> 2241 | AY56: 53 | AZ56: 218 | BA56: 93.375 | BB56: =BA56*(AZ4-AZ55) -> 2241 | BD56: 53 | BE56: 218 | BF56: 93.375 | BG56: =BF56*(BE4-BE55) -> 2241
C58: AREA = | D58: =ABS(SUM(D4:D56))/2 -> 75.554996 | H58: AREA = | I58: =ABS(SUM(I4:I56))/2 -> 94.799097 | M58: AREA = | N58: =ABS(SUM(N4:N56))/2 -> 118.799097 | R58: AREA = | S58: =ABS(SUM(S4:S56))/2 -> 142.799097 | W58: AREA = | X58: =ABS(SUM(X4:X56))/2 -> 166.799097 | AB58: AREA = | AC58: =ABS(SUM(AC4:AC56))/2 -> 190.799097 | AG58: AREA = | AH58: =ABS(SUM(AH4:AH56))/2 -> 214.799097 | AL58: AREA = | AM58: =ABS(SUM(AM4:AM56))/2 -> 238.799097 | AQ58: AREA = | AR58: =ABS(SUM(AR4:AR56))/2 -> 262.799097 | AV58: AREA = | AW58: =ABS(SUM(AW4:AW56))/2 -> 286.799097 | BA58: AREA = | BB58: =ABS(SUM(BB4:BB56))/2 -> 310.799097 | BF58: AREA = | BG58: =ABS(SUM(BG4:BG56))/2 -> 334.799097
C59: RAS = | H59: RAS = | M59: RAS = | N59: 118.8 | R59: RAS = | S59: 142.8 | W59: RAS = | X59: 166.8 | AB59: RAS = | AC59: 190.8 | AG59: RAS = | AH59: 214.8 | AL59: RAS = | AQ59: RAS = | AV59: RAS = | BA59: RAS = | BF59: RAS =
C60: PDF = | D60: 72 | H60: PDF = | I60: 95 | M60: PDF = | N60: 119 | R60: PDF = | S60: 143 | W60: PDF = | X60: 167 | AB60: PDF = | AC60: 191 | AG60: PDF = | AH60: 215 | AL60: PDF = | AM60: 239 | AQ60: PDF = | AR60: 263 | AV60: PDF = | AW60: 287 | BA60: PDF = | BB60: 311 | BF60: PDF = | BG60: 335

Sheet 26' Span
A1: Non-manufactured HECRAS shape - Used for comparison to Hy-Span
B2: 26 x 4 | G2: 26 x 6 | L2: 26 x 8 | Q2: 26 x 10
A3: Pt. | B3: X | C3: Y | D3: A' | F3: Pt. | G3: X | H3: Y | I3: A' | K3: Pt. | L3: X | M3: Y | N3: A' | P3: Pt. | Q3: X | R3: Y | S3: A'
A4: 1 | B4: 243 | C4: 90.875 | D4: =C4*(B5-B54) -> 2360.75075 | F4: 1 | G4: 243 | H4: 91.375 | I4: =H4*(G5-G56) -> 2375.75 | K4: 1 | L4: 243 | M4: 91.875 | N4: =M4*(L5-L56) -> 2388.75 | P4: 1 | Q4: 243 | R4: 92.375 | S4: =R4*(Q5-Q56) -> 2401.75
A5: =A4+1 -> 2 | B5: 242.978 | C5: 91.166 | D5: =C5*(B6-B4) -> -8.022608 | F5: =F4+1 -> 2 | G5: 243 | H5: 92.035 | I5: =H5*(G6-G4) -> -2.02477 | K5: =K4+1 -> 2 | L5: 243 | M5: 94.535 | N5: =M5*(L6-L4) -> -2.07977 | P5: =P4+1 -> 2 | Q5: 243 | R5: 97.035 | S5: =R5*(Q6-Q4) -> -2.13477
A6: =A5+1 -> 3 | B6: 242.912 | C6: 91.454 | D6: =C6*(B7-B5) -> -15.912996 | F6: =F5+1 -> 3 | G6: 242.978 | H6: 92.424 | I6: =H6*(G7-G5) -> -8.133312 | K6: =K5+1 -> 3 | L6: 242.978 | M6: 94.924 | N6: =M6*(L7-L5) -> -8.353312 | P6: =P5+1 -> 3 | Q6: 242.978 | R6: 97.424 | S6: =R6*(Q7-Q5) -> -8.573312
A7: 4 | B7: 242.804 | C7: 91.734 | D7: -23.667372 | F7: 4 | G7: 242.912 | H7: 92.808 | I7: -16.148592 | K7: 4 | L7: 242.912 | M7: 95.308 | N7: -16.583592 | P7: 4 | Q7: 242.912 | R7: 97.808 | S7: -17.018592
A8: 5 | B8: 242.654 | C8: 92.003 | D8: -31.189017 | F8: 5 | G8: 242.804 | H8: 93.182 | I8: -24.040956 | K8: 5 | L8: 242.804 | M8: 95.682 | N8: -24.685956 | P8: 5 | Q8: 242.804 | R8: 98.182 | S8: -25.330956
A9: 6 | B9: 242.465 | C9: 92.257 | D9: -38.286655 | F9: 6 | G9: 242.654 | H9: 93.541 | I9: -31.710399 | K9: 6 | L9: 242.654 | M9: 96.041 | N9: -32.557899 | P9: 6 | Q9: 242.654 | R9: 98.541 | S9: -33.405399
A10: 7 | B10: 242.239 | C10: 92.494 | D10: -45.044578 | F10: 7 | G10: 242.465 | H10: 93.88 | I10: -38.9602 | K10: 7 | L10: 242.465 | M10: 96.38 | N10: -39.9977 | P10: 7 | Q10: 242.465 | R10: 98.88 | S10: -41.0352
A11: 8 | B11: 241.978 | C11: 92.71 | D11: -51.26863 | F11: 8 | G11: 242.239 | H11: 94.196 | I11: -45.873452 | K11: 8 | L11: 242.239 | M11: 96.696 | N11: -47.090952 | P11: 8 | Q11: 242.239 | R11: 99.196 | S11: -48.308452
A12: 9 | B12: 241.686 | C12: 92.901 | D12: -54.625788 | F12: 9 | G12: 241.978 | H12: 94.484 | I12: -52.249652 | K12: 9 | L12: 241.978 | M12: 96.984 | N12: -53.632152 | P12: 9 | Q12: 241.978 | R12: 99.484 | S12: -55.014652
A13: 10 | B13: 241.39 | C13: 93.066 | D13: -56.397996 | F13: 10 | G13: 241.686 | H13: 94.74 | I13: -55.70712 | K13: 10 | L13: 241.686 | M13: 97.24 | N13: -57.17712 | P13: 10 | Q13: 241.686 | R13: 99.74 | S13: -58.64712
A14: 11 | B14: 241.08 | C14: 93.216 | D14: -58.912512 | F14: 11 | G14: 241.39 | H14: 94.96 | I14: -57.54576 | K14: 11 | L14: 241.39 | M14: 97.46 | N14: -59.06076 | P14: 11 | Q14: 241.39 | R14: 99.96 | S14: -60.57576
A15: 12 | B15: 240.758 | C15: 93.351 | D15: -61.331607 | F15: 12 | G15: 241.08 | H15: 95.16 | I15: -60.14112 | K15: 12 | L15: 241.08 | M15: 97.66 | N15: -61.72112 | P15: 12 | Q15: 241.08 | R15: 100.16 | S15: -63.30112
A16: 13 | B16: 240.423 | C16: 93.472 | D16: -85.713824 | F16: 13 | G16: 240.758 | H16: 95.34 | I16: -62.63838 | K16: 13 | L16: 240.758 | M16: 97.84 | N16: -64.28088 | P16: 13 | Q16: 240.758 | R16: 100.34 | S16: -65.92338
A17: 14 | B17: 239.841 | C17: 93.655 | D17: -109.857315 | F17: 14 | G17: 240.423 | H17: 95.502 | I17: -87.575334 | K17: 14 | L17: 240.423 | M17: 98.002 | N17: -89.867834 | P17: 14 | Q17: 240.423 | R17: 100.502 | S17: -92.160334
A18: 15 | B18: 239.25 | C18: 93.822 | D18: -111.64818 | F18: 15 | G18: 239.841 | H18: 95.746 | I18: -112.310058 | K18: 15 | L18: 239.841 | M18: 98.246 | N18: -115.242558 | P18: 15 | Q18: 239.841 | R18: 100.746 | S18: -118.175058
A19: 16 | B19: 238.651 | C19: 93.972 | D19: -112.954344 | F19: 16 | G19: 239.25 | H19: 95.969 | I19: -114.20311 | K19: 16 | L19: 239.25 | M19: 98.469 | N19: -117.17811 | P19: 16 | Q19: 239.25 | R19: 100.969 | S19: -120.15311
A20: 17 | B20: 238.048 | C20: 94.103 | D20: -139.366543 | F20: 17 | G20: 238.651 | H20: 96.169 | I20: -115.595138 | K20: 17 | L20: 238.651 | M20: 98.669 | N20: -118.600138 | P20: 17 | Q20: 238.651 | R20: 101.169 | S20: -121.605138
A21: 18 | B21: 237.17 | C21: 94.265 | D21: -166.000665 | F21: 18 | G21: 238.048 | H21: 96.345 | I21: -142.686945 | K21: 18 | L21: 238.048 | M21: 98.845 | N21: -146.389445 | P21: 18 | Q21: 238.048 | R21: 101.345 | S21: -150.091945
A22: 19 | B22: 236.287 | C22: 94.407 | D22: -167.289204 | F22: 19 | G22: 237.17 | H22: 96.56 | I22: -170.04216 | K22: 19 | L22: 237.17 | M22: 99.06 | N22: -174.44466 | P22: 19 | Q22: 237.17 | R22: 101.56 | S22: -178.84716
A23: 20 | B23: 235.398 | C23: 94.531 | D23: -168.454242 | F23: 20 | G23: 236.287 | H23: 96.75 | I23: -171.441 | K23: 20 | L23: 236.287 | M23: 99.25 | N23: -175.871 | P23: 20 | Q23: 236.287 | R23: 101.75 | S23: -180.301
A24: 21 | B24: 234.505 | C24: 94.636 | D24: -169.39844 | F24: 21 | G24: 235.398 | H24: 96.916 | I24: -172.704312 | K24: 21 | L24: 235.398 | M24: 99.416 | N24: -177.159312 | P24: 21 | Q24: 235.398 | R24: 101.916 | S24: -181.614312
A25: 22 | B25: 233.608 | C25: 94.722 | D25: -170.120712 | F25: 22 | G25: 234.505 | H25: 97.056 | I25: -173.73024 | K25: 22 | L25: 234.505 | M25: 99.556 | N25: -178.20524 | P25: 22 | Q25: 234.505 | R25: 102.056 | S25: -182.68024
A26: 23 | B26: 232.709 | C26: 94.789 | D26: -170.714989 | F26: 23 | G26: 233.608 | H26: 97.171 | I26: -174.519116 | K26: 23 | L26: 233.608 | M26: 99.671 | N26: -179.009116 | P26: 23 | Q26: 233.608 | R26: 102.171 | S26: -183.499116
A27: 24 | B27: 231.807 | C27: 94.837 | D27: -171.180785 | F27: 24 | G27: 232.709 | H27: 97.26 | I27: -175.16526 | K27: 24 | L27: 232.709 | M27: 99.76 | N27: -179.66776 | P27: 24 | Q27: 232.709 | R27: 102.26 | S27: -184.17026
A28: 25 | B28: 230.904 | C28: 94.865 | D28: -171.421055 | F28: 25 | G28: 231.807 | H28: 97.324 | I28: -175.66982 | K28: 25 | L28: 231.807 | M28: 99.824 | N28: -180.18232 | P28: 25 | Q28: 231.807 | R28: 102.324 | S28: -184.69482
A29: 26 | B29: 230 | C29: 94.875 | D29: -171.534 | F29: 26 | G29: 230.904 | H29: 97.362 | I29: -175.933134 | K29: 26 | L29: 230.904 | M29: 99.862 | N29: -180.450634 | P29: 26 | Q29: 230.904 | R29: 102.362 | S29: -184.968134
A30: 27 | B30: 229.096 | C30: 94.865 | D30: -171.421055 | F30: 27 | G30: 230 | H30: 97.375 | I30: -176.054 | K30: 27 | L30: 230 | M30: 99.875 | N30: -180.574 | P30: 27 | Q30: 230 | R30: 102.375 | S30: -185.094
A31: 28 | B31: 228.193 | C31: 94.837 | D31: -171.180785 | F31: 28 | G31: 229.096 | H31: 97.362 | I31: -175.933134 | K31: 28 | L31: 229.096 | M31: 99.862 | N31: -180.450634 | P31: 28 | Q31: 229.096 | R31: 102.362 | S31: -184.968134
A32: 29 | B32: 227.291 | C32: 94.789 | D32: -170.714989 | F32: 29 | G32: 228.193 | H32: 97.324 | I32: -175.66982 | K32: 29 | L32: 228.193 | M32: 99.824 | N32: -180.18232 | P32: 29 | Q32: 228.193 | R32: 102.324 | S32: -184.69482
A33: 30 | B33: 226.392 | C33: 94.722 | D33: -170.120712 | F33: 30 | G33: 227.291 | H33: 97.26 | I33: -175.16526 | K33: 30 | L33: 227.291 | M33: 99.76 | N33: -179.66776 | P33: 30 | Q33: 227.291 | R33: 102.26 | S33: -184.17026
A34: 31 | B34: 225.495 | C34: 94.636 | D34: -169.39844 | F34: 31 | G34: 226.392 | H34: 97.171 | I34: -174.519116 | K34: 31 | L34: 226.392 | M34: 99.671 | N34: -179.009116 | P34: 31 | Q34: 226.392 | R34: 102.171 | S34: -183.499116
A35: 32 | B35: 224.602 | C35: 94.531 | D35: -168.454242 | F35: 32 | G35: 225.495 | H35: 97.056 | I35: -173.73024 | K35: 32 | L35: 225.495 | M35: 99.556 | N35: -178.20524 | P35: 32 | Q35: 225.495 | R35: 102.056 | S35: -182.68024
A36: 33 | B36: 223.713 | C36: 94.407 | D36: -167.289204 | F36: 33 | G36: 224.602 | H36: 96.916 | I36: -172.704312 | K36: 33 | L36: 224.602 | M36: 99.416 | N36: -177.159312 | P36: 33 | Q36: 224.602 | R36: 101.916 | S36: -181.614312
A37: 34 | B37: 222.83 | C37: 94.265 | D37: -166.000665 | F37: 34 | G37: 223.713 | H37: 96.75 | I37: -171.441 | K37: 34 | L37: 223.713 | M37: 99.25 | N37: -175.871 | P37: 34 | Q37: 223.713 | R37: 101.75 | S37: -180.301
A38: 35 | B38: 221.952 | C38: 94.103 | D38: -139.366543 | F38: 35 | G38: 222.83 | H38: 96.56 | I38: -170.04216 | K38: 35 | L38: 222.83 | M38: 99.06 | N38: -174.44466 | P38: 35 | Q38: 222.83 | R38: 101.56 | S38: -178.84716
A39: 36 | B39: 221.349 | C39: 93.972 | D39: -112.954344 | F39: 36 | G39: 221.952 | H39: 96.345 | I39: -142.686945 | K39: 36 | L39: 221.952 | M39: 98.845 | N39: -146.389445 | P39: 36 | Q39: 221.952 | R39: 101.345 | S39: -150.091945
A40: 37 | B40: 220.75 | C40: 93.822 | D40: -111.64818 | F40: 37 | G40: 221.349 | H40: 96.169 | I40: -115.595138 | K40: 37 | L40: 221.349 | M40: 98.669 | N40: -118.600138 | P40: 37 | Q40: 221.349 | R40: 101.169 | S40: -121.605138
A41: 38 | B41: 220.159 | C41: 93.655 | D41: -109.857315 | F41: 38 | G41: 220.75 | H41: 95.969 | I41: -114.20311 | K41: 38 | L41: 220.75 | M41: 98.469 | N41: -117.17811 | P41: 38 | Q41: 220.75 | R41: 100.969 | S41: -120.15311
A42: 39 | B42: 219.577 | C42: 93.472 | D42: -85.713824 | F42: 39 | G42: 220.159 | H42: 95.746 | I42: -112.310058 | K42: 39 | L42: 220.159 | M42: 98.246 | N42: -115.242558 | P42: 39 | Q42: 220.159 | R42: 100.746 | S42: -118.175058
A43: 40 | B43: 219.242 | C43: 93.351 | D43: -61.331607 | F43: 40 | G43: 219.577 | H43: 95.502 | I43: -87.575334 | K43: 40 | L43: 219.577 | M43: 98.002 | N43: -89.867834 | P43: 40 | Q43: 219.577 | R43: 100.502 | S43: -92.160334
A44: 41 | B44: 218.92 | C44: 93.216 | D44: -58.912512 | F44: 41 | G44: 219.242 | H44: 95.34 | I44: -62.63838 | K44: 41 | L44: 219.242 | M44: 97.84 | N44: -64.28088 | P44: 41 | Q44: 219.242 | R44: 100.34 | S44: -65.92338
A45: 42 | B45: 218.61 | C45: 93.066 | D45: -56.397996 | F45: 42 | G45: 218.92 | H45: 95.16 | I45: -60.14112 | K45: 42 | L45: 218.92 | M45: 97.66 | N45: -61.72112 | P45: 42 | Q45: 218.92 | R45: 100.16 | S45: -63.30112
A46: 43 | B46: 218.314 | C46: 92.901 | D46: -54.625788 | F46: 43 | G46: 218.61 | H46: 94.96 | I46: -57.54576 | K46: 43 | L46: 218.61 | M46: 97.46 | N46: -59.06076 | P46: 43 | Q46: 218.61 | R46: 99.96 | S46: -60.57576
A47: 44 | B47: 218.022 | C47: 92.71 | D47: -51.26863 | F47: 44 | G47: 218.314 | H47: 94.74 | I47: -55.70712 | K47: 44 | L47: 218.314 | M47: 97.24 | N47: -57.17712 | P47: 44 | Q47: 218.314 | R47: 99.74 | S47: -58.64712
A48: 45 | B48: 217.761 | C48: 92.494 | D48: -45.044578 | F48: 45 | G48: 218.022 | H48: 94.484 | I48: -52.249652 | K48: 45 | L48: 218.022 | M48: 96.984 | N48: -53.632152 | P48: 45 | Q48: 218.022 | R48: 99.484 | S48: -55.014652
A49: 46 | B49: 217.535 | C49: 92.257 | D49: -38.286655 | F49: 46 | G49: 217.761 | H49: 94.196 | I49: -45.873452 | K49: 46 | L49: 217.761 | M49: 96.696 | N49: -47.090952 | P49: 46 | Q49: 217.761 | R49: 99.196 | S49: -48.308452
A50: 47 | B50: 217.346 | C50: 92.003 | D50: -31.189017 | F50: 47 | G50: 217.535 | H50: 93.88 | I50: -38.9602 | K50: 47 | L50: 217.535 | M50: 96.38 | N50: -39.9977 | P50: 47 | Q50: 217.535 | R50: 98.88 | S50: -41.0352
A51: 48 | B51: 217.196 | C51: 91.734 | D51: -23.667372 | F51: 48 | G51: 217.346 | H51: 93.541 | I51: -31.710399 | K51: 48 | L51: 217.346 | M51: 96.041 | N51: -32.557899 | P51: 48 | Q51: 217.346 | R51: 98.541 | S51: -33.405399
A52: 49 | B52: 217.088 | C52: 91.454 | D52: -15.912996 | F52: 49 | G52: 217.196 | H52: 93.182 | I52: -24.040956 | K52: 49 | L52: 217.196 | M52: 95.682 | N52: -24.685956 | P52: 49 | Q52: 217.196 | R52: 98.182 | S52: -25.330956
A53: 50 | B53: 217.022 | C53: 91.166 | D53: -8.022608 | F53: 50 | G53: 217.088 | H53: 92.808 | I53: -16.148592 | K53: 50 | L53: 217.088 | M53: 95.308 | N53: -16.583592 | P53: 50 | Q53: 217.088 | R53: 97.808 | S53: -17.018592
A54: 51 | B54: 217 | C54: 90.875 | D54: =C54*(B4-B53) -> 2360.75075 | F54: 51 | G54: 217.022 | H54: 92.424 | I54: -8.133312 | K54: 51 | L54: 217.022 | M54: 94.924 | N54: -8.353312 | P54: 51 | Q54: 217.022 | R54: 97.424 | S54: -8.573312
F55: 52 | G55: 217 | H55: 92.035 | I55: =H55*(G56-G54) -> -2.02477 | K55: 52 | L55: 217 | M55: 94.535 | N55: -2.07977 | P55: 52 | Q55: 217 | R55: 97.035 | S55: -2.13477
F56: 53 | G56: 217 | H56: 91.375 | I56: =H56*(G4-G55) -> 2375.75 | K56: 53 | L56: 217 | M56: 91.875 | N56: =M56*(L4-L55) -> 2388.75 | P56: 53 | Q56: 217 | R56: 92.375 | S56: =R56*(Q4-Q55) -> 2401.75
C57: . | H57: . | M57: . | R57: .
C58: AREA = | D58: =ABS(SUM(D4:D56))/2 -> 83.796307 | H58: AREA = | I58: =ABS(SUM(I4:I56))/2 -> 129.02634 | M58: AREA = | N58: =ABS(SUM(N4:N56))/2 -> 181.02634 | R58: AREA = | S58: =ABS(SUM(S4:S56))/2 -> 233.02634
C59: RAS = | H59: RAS = | M59: RAS = | R59: RAS =
C60: PDF = | H60: PDF = | M60: PDF = | R60: PDF =

Sheet Long Span 28 ft
A1: for HYSPAN Comparison | F1: ECOSPAN | K1: ECOSPAN | P1: ECOSPAN | U1: CONSPAN, ECOSPAN | AO1: ECOSPAN | AT1: ECOSPAN | AY1: ECOSPAN | BD1: ECOSPAN
B2: 28 x 4 | G2: 28 x 5 | L2: 28 x 6 | Q2: 28 x 7 | V2: 28 x 8 | AA2: 28 x 9 | AF2: 28 x 10 | AK2: 28 x 11 | AP2: 28 x 12 | AU2: 28 x 13 | AZ2: 28 x 14 | BE2: 28 x 15
A3: Pt. | B3: X | C3: Y | D3: A' | F3: Pt. | G3: X | H3: Y | I3: A' | K3: Pt. | L3: X | M3: Y | N3: A' | P3: Pt. | Q3: X | R3: Y | S3: A' | U3: Pt. | V3: X | W3: Y | X3: A' | Z3: Pt. | AA3: X | AB3: Y | AC3: A' | AE3: Pt. | AF3: X | AG3: Y | AH3: A' | AJ3: Pt. | AK3: X | AL3: Y | AM3: A' | AO3: Pt. | AP3: X | AQ3: Y | AR3: A' | AT3: Pt. | AU3: X | AV3: Y | AW3: A' | AY3: Pt. | AZ3: X | BA3: Y | BB3: A' | BD3: Pt. | BE3: X | BF3: Y | BG3: A'
A4: 1 | B4: 244 | C4: 91.375 | D4: =C4*(B5-B54) -> 2555.75875 | F4: 1 | G4: 244 | H4: 92.875 | I4: =H4*(G5-G54) -> 2597.71375 | K4: 1 | L4: 244 | M4: 92.875 | N4: =M4*(L5-L56) -> 2600.5 | P4: 1 | Q4: 244 | R4: 92.875 | S4: =R4*(Q5-Q56) -> 2600.5 | U4: 1 | V4: 244 | W4: 91.375 | X4: =W4*(V5-V56) -> 2558.5 | Z4: 1 | AA4: 244 | AB4: 91.875 | AC4: =AB4*(AA5-AA56) -> 2572.5 | AE4: 1 | AF4: 244 | AG4: 92.375 | AH4: =AG4*(AF5-AF56) -> 2586.5 | AJ4: 1 | AK4: 244 | AL4: 92.875 | AM4: =AL4*(AK5-AK56) -> 2600.5 | AO4: 1 | AP4: 244 | AQ4: 92.875 | AR4: =AQ4*(AP5-AP56) -> 2600.5 | AT4: 1 | AU4: 244 | AV4: 92.875 | AW4: =AV4*(AU5-AU56) -> 2600.5 | AY4: 1 | AZ4: 244 | BA4: 92.875 | BB4: =BA4*(AZ5-AZ56) -> 2600.5 | BD4: 1 | BE4: 244 | BF4: 92.875 | BG4: =BF4*(BE5-BE56) -> 2600.5
A5: =A4+1 -> 2 | B5: 243.97 | C5: 91.716 | D5: =C5*(B6-B4) -> -11.00592 | F5: =F4+1 -> 2 | G5: 243.97 | H5: 93.302 | I5: =H5*(G6-G4) -> -11.19624 | K5: =K4+1 -> 2 | L5: 244 | M5: 93.125 | N5: =M5*(L6-L4) -> -2.79375 | P5: =P4+1 -> 2 | Q5: 244 | R5: 94.125 | S5: =R5*(Q6-Q4) -> -2.82375 | U5: =U4+1 -> 2 | V5: 244 | W5: 93.625 | X5: =W5*(V6-V4) -> -2.80875 | Z5: =Z4+1 -> 2 | AA5: 244 | AB5: 95.125 | AC5: =AB5*(AA6-AA4) -> -2.85375 | AE5: =AE4+1 -> 2 | AF5: 244 | AG5: 96.625 | AH5: =AG5*(AF6-AF4) -> -2.89875 | AJ5: =AJ4+1 -> 2 | AK5: 244 | AL5: 98.125 | AM5: =AL5*(AK6-AK4) -> -2.94375 | AO5: =AO4+1 -> 2 | AP5: 244 | AQ5: 99.125 | AR5: =AQ5*(AP6-AP4) -> -2.97375 | AT5: =AT4+1 -> 2 | AU5: 244 | AV5: 100.125 | AW5: =AV5*(AU6-AU4) -> -3.00375 | AY5: =AY4+1 -> 2 | AZ5: 244 | BA5: 101.125 | BB5: =BA5*(AZ6-AZ4) -> -3.03375 | BD5: =BD4+1 -> 2 | BE5: 244 | BF5: 102.125 | BG5: =BF5*(BE6-BE4) -> -3.06375
A6: =A5+1 -> 3 | B6: 243.88 | C6: 92.053 | D6: =C6*(B7-B5) -> -22.000667 | F6: =F5+1 -> 3 | G6: 243.88 | H6: 93.722 | I6: =H6*(G7-G5) -> -22.399558 | K6: =K5+1 -> 3 | L6: 243.97 | M6: 93.616 | N6: =M6*(L7-L5) -> -11.23392 | P6: =P5+1 -> 3 | Q6: 243.97 | R6: 94.616 | S6: =R6*(Q7-Q5) -> -11.35392 | U6: =U5+1 -> 3 | V6: 243.97 | W6: 94.116 | X6: =W6*(V7-V5) -> -11.29392 | Z6: =Z5+1 -> 3 | AA6: 243.97 | AB6: 95.616 | AC6: =AB6*(AA7-AA5) -> -11.47392 | AE6: =AE5+1 -> 3 | AF6: 243.97 | AG6: 97.116 | AH6: =AG6*(AF7-AF5) -> -11.65392 | AJ6: =AJ5+1 -> 3 | AK6: 243.97 | AL6: 98.616 | AM6: =AL6*(AK7-AK5) -> -11.83392 | AO6: =AO5+1 -> 3 | AP6: 243.97 | AQ6: 99.616 | AR6: =AQ6*(AP7-AP5) -> -11.95392 | AT6: =AT5+1 -> 3 | AU6: 243.97 | AV6: 100.616 | AW6: =AV6*(AU7-AU5) -> -12.07392 | AY6: =AY5+1 -> 3 | AZ6: 243.97 | BA6: 101.616 | BB6: =BA6*(AZ7-AZ5) -> -12.19392 | BD6: =BD5+1 -> 3 | BE6: 243.97 | BF6: 102.616 | BG6: =BF6*(BE7-BE5) -> -12.31392
A7: 4 | B7: 243.731 | C7: 92.379 | D7: -32.794545 | F7: 4 | G7: 243.731 | H7: 94.13 | I7: -33.41615 | K7: 4 | L7: 243.88 | M7: 94.099 | N7: -22.489661 | P7: 4 | Q7: 243.88 | R7: 95.099 | S7: -22.728661 | U7: 4 | V7: 243.88 | W7: 94.599 | X7: -22.609161 | Z7: 4 | AA7: 243.88 | AB7: 96.099 | AC7: -22.967661 | AE7: 4 | AF7: 243.88 | AG7: 97.599 | AH7: -23.326161 | AJ7: 4 | AK7: 243.88 | AL7: 99.099 | AM7: -23.684661 | AO7: 4 | AP7: 243.88 | AQ7: 100.099 | AR7: -23.923661 | AT7: 4 | AU7: 243.88 | AV7: 101.099 | AW7: -24.162661 | AY7: 4 | AZ7: 243.88 | BA7: 102.099 | BB7: -24.401661 | BD7: 4 | BE7: 243.88 | BF7: 103.099 | BG7: -24.640661
A8: 5 | B8: 243.525 | C8: 92.69 | D8: -43.00816 | F8: 5 | G8: 243.525 | H8: 94.518 | I8: -43.856352 | K8: 5 | L8: 243.731 | M8: 94.568 | N8: -33.57164 | P8: 5 | Q8: 243.731 | R8: 95.568 | S8: -33.92664 | U8: 5 | V8: 243.731 | W8: 95.068 | X8: -33.74914 | Z8: 5 | AA8: 243.731 | AB8: 96.568 | AC8: -34.28164 | AE8: 5 | AF8: 243.731 | AG8: 98.068 | AH8: -34.81414 | AJ8: 5 | AK8: 243.731 | AL8: 99.568 | AM8: -35.34664 | AO8: 5 | AP8: 243.731 | AQ8: 100.568 | AR8: -35.70164 | AT8: 5 | AU8: 243.731 | AV8: 101.568 | AW8: -36.05664 | AY8: 5 | AZ8: 243.731 | BA8: 102.568 | BB8: -36.41164 | BD8: 5 | BE8: 243.731 | BF8: 103.568 | BG8: -36.76664
A9: 6 | B9: 243.267 | C9: 92.981 | D9: -52.627246 | F9: 6 | G9: 243.267 | H9: 94.882 | I9: -53.703212 | K9: 6 | L9: 243.525 | M9: 95.015 | N9: -44.08696 | P9: 6 | Q9: 243.525 | R9: 96.015 | S9: -44.55096 | U9: 6 | V9: 243.525 | W9: 95.515 | X9: -44.31896 | Z9: 6 | AA9: 243.525 | AB9: 97.015 | AC9: -45.01496 | AE9: 6 | AF9: 243.525 | AG9: 98.515 | AH9: -45.71096 | AJ9: 6 | AK9: 243.525 | AL9: 100.015 | AM9: -46.40696 | AO9: 6 | AP9: 243.525 | AQ9: 101.015 | AR9: -46.87096 | AT9: 6 | AU9: 243.525 | AV9: 102.015 | AW9: -47.33496 | AY9: 6 | AZ9: 243.525 | BA9: 103.015 | BB9: -47.79896 | BD9: 6 | BE9: 243.525 | BF9: 104.015 | BG9: -48.26296
A10: 7 | B10: 242.959 | C10: 93.247 | D10: -61.636267 | F10: 7 | G10: 242.959 | H10: 95.216 | I10: -62.937776 | K10: 7 | L10: 243.267 | M10: 95.433 | N10: -54.015078 | P10: 7 | Q10: 243.267 | R10: 96.433 | S10: -54.581078 | U10: 7 | V10: 243.267 | W10: 95.933 | X10: -54.298078 | Z10: 7 | AA10: 243.267 | AB10: 97.433 | AC10: -55.147078 | AE10: 7 | AF10: 243.267 | AG10: 98.933 | AH10: -55.996078 | AJ10: 7 | AK10: 243.267 | AL10: 100.433 | AM10: -56.845078 | AO10: 7 | AP10: 243.267 | AQ10: 101.433 | AR10: -57.411078 | AT10: 7 | AU10: 243.267 | AV10: 102.433 | AW10: -57.977078 | AY10: 7 | AZ10: 243.267 | BA10: 103.433 | BB10: -58.543078 | BD10: 7 | BE10: 243.267 | BF10: 104.433 | BG10: -59.109078
A11: 8 | B11: 242.606 | C11: 93.486 | D11: -70.021014 | F11: 8 | G11: 242.606 | H11: 95.514 | I11: -71.539986 | K11: 8 | L11: 242.959 | M11: 95.817 | N11: -63.335037 | P11: 8 | Q11: 242.959 | R11: 96.817 | S11: -63.996037 | U11: 8 | V11: 242.959 | W11: 96.317 | X11: -63.665537 | Z11: 8 | AA11: 242.959 | AB11: 97.817 | AC11: -64.657037 | AE11: 8 | AF11: 242.959 | AG11: 99.317 | AH11: -65.648537 | AJ11: 8 | AK11: 242.959 | AL11: 100.817 | AM11: -66.640037 | AO11: 8 | AP11: 242.959 | AQ11: 101.817 | AR11: -67.301037 | AT11: 8 | AU11: 242.959 | AV11: 102.817 | AW11: -67.962037 | AY11: 8 | AZ11: 242.959 | BA11: 103.817 | BB11: -68.623037 | BD11: 8 | BE11: 242.959 | BF11: 104.817 | BG11: -69.284037
A12: 9 | B12: 242.21 | C12: 93.692 | D12: -72.892376 | F12: 9 | G12: 242.21 | H12: 95.771 | I12: -74.509838 | K12: 9 | L12: 242.606 | M12: 96.159 | N12: -72.023091 | P12: 9 | Q12: 242.606 | R12: 97.159 | S12: -72.772091 | U12: 9 | V12: 242.606 | W12: 96.659 | X12: -72.397591 | Z12: 9 | AA12: 242.606 | AB12: 98.159 | AC12: -73.521091 | AE12: 9 | AF12: 242.606 | AG12: 99.659 | AH12: -74.644591 | AJ12: 9 | AK12: 242.606 | AL12: 101.159 | AM12: -75.768091 | AO12: 9 | AP12: 242.606 | AQ12: 102.159 | AR12: -76.517091 | AT12: 9 | AU12: 242.606 | AV12: 103.159 | AW12: -77.266091 | AY12: 9 | AZ12: 242.606 | BA12: 104.159 | BB12: -78.015091 | BD12: 9 | BE12: 242.606 | BF12: 105.159 | BG12: -78.764091
A13: 10 | B13: 241.828 | C13: 93.86 | D13: -72.7415 | F13: 10 | G13: 241.828 | H13: 95.981 | I13: -74.385275 | K13: 10 | L13: 242.21 | M13: 96.455 | N13: -75.04199 | P13: 10 | Q13: 242.21 | R13: 97.455 | S13: -75.81999 | U13: 10 | V13: 242.21 | W13: 96.955 | X13: -75.43099 | Z13: 10 | AA13: 242.21 | AB13: 98.455 | AC13: -76.59799 | AE13: 10 | AF13: 242.21 | AG13: 99.955 | AH13: -77.76499 | AJ13: 10 | AK13: 242.21 | AL13: 101.455 | AM13: -78.93199 | AO13: 10 | AP13: 242.21 | AQ13: 102.455 | AR13: -79.70999 | AT13: 10 | AU13: 242.21 | AV13: 103.455 | AW13: -80.48799 | AY13: 10 | AZ13: 242.21 | BA13: 104.455 | BB13: -81.26599 | BD13: 10 | BE13: 242.21 | BF13: 105.455 | BG13: -82.04399
A14: 11 | B14: 241.435 | C14: 94.016 | D14: -74.836736 | F14: 11 | G14: 241.435 | H14: 96.176 | I14: -76.556096 | K14: 11 | L14: 241.828 | M14: 96.697 | N14: -74.940175 | P14: 11 | Q14: 241.828 | R14: 97.697 | S14: -75.715175 | U14: 11 | V14: 241.828 | W14: 97.197 | X14: -75.327675 | Z14: 11 | AA14: 241.828 | AB14: 98.697 | AC14: -76.490175 | AE14: 11 | AF14: 241.828 | AG14: 100.197 | AH14: -77.652675 | AJ14: 11 | AK14: 241.828 | AL14: 101.697 | AM14: -78.815175 | AO14: 11 | AP14: 241.828 | AQ14: 102.697 | AR14: -79.590175 | AT14: 11 | AU14: 241.828 | AV14: 103.697 | AW14: -80.365175 | AY14: 11 | AZ14: 241.828 | BA14: 104.697 | BB14: -81.140175 | BD14: 11 | BE14: 241.828 | BF14: 105.697 | BG14: -81.915175
A15: 12 | B15: 241.032 | C15: 94.16 | D15: -76.7404 | F15: 12 | G15: 241.032 | H15: 96.356 | I15: -78.53014 | K15: 12 | L15: 241.435 | M15: 96.922 | N15: -77.149912 | P15: 12 | Q15: 241.435 | R15: 97.922 | S15: -77.945912 | U15: 12 | V15: 241.435 | W15: 97.422 | X15: -77.547912 | Z15: 12 | AA15: 241.435 | AB15: 98.922 | AC15: -78.741912 | AE15: 12 | AF15: 241.435 | AG15: 100.422 | AH15: -79.935912 | AJ15: 12 | AK15: 241.435 | AL15: 101.922 | AM15: -81.129912 | AO15: 12 | AP15: 241.435 | AQ15: 102.922 | AR15: -81.925912 | AT15: 12 | AU15: 241.435 | AV15: 103.922 | AW15: -82.721912 | AY15: 12 | AZ15: 241.435 | BA15: 104.922 | BB15: -83.517912 | BD15: 12 | BE15: 241.435 | BF15: 105.922 | BG15: -84.313912
A16: 13 | B16: 240.62 | C16: 94.29 | D16: -78.44928 | F16: 13 | G16: 240.62 | H16: 96.519 | I16: -80.303808 | K16: 13 | L16: 241.032 | M16: 97.128 | N16: -79.15932 | P16: 13 | Q16: 241.032 | R16: 98.128 | S16: -79.97432 | U16: 13 | V16: 241.032 | W16: 97.628 | X16: -79.56682 | Z16: 13 | AA16: 241.032 | AB16: 99.128 | AC16: -80.78932 | AE16: 13 | AF16: 241.032 | AG16: 100.628 | AH16: -82.01182 | AJ16: 13 | AK16: 241.032 | AL16: 102.128 | AM16: -83.23432 | AO16: 13 | AP16: 241.032 | AQ16: 103.128 | AR16: -84.04932 | AT16: 13 | AU16: 241.032 | AV16: 104.128 | AW16: -84.86432 | AY16: 13 | AZ16: 241.032 | BA16: 105.128 | BB16: -85.67932 | BD16: 13 | BE16: 241.032 | BF16: 106.128 | BG16: -86.49432
A17: 14 | B17: 240.2 | C17: 94.408 | D17: -79.963576 | F17: 14 | G17: 240.2 | H17: 96.666 | I17: -81.876102 | K17: 14 | L17: 240.62 | M17: 97.316 | N17: -80.966912 | P17: 14 | Q17: 240.62 | R17: 98.316 | S17: -81.798912 | U17: 14 | V17: 240.62 | W17: 97.816 | X17: -81.382912 | Z17: 14 | AA17: 240.62 | AB17: 99.316 | AC17: -82.630912 | AE17: 14 | AF17: 240.62 | AG17: 100.816 | AH17: -83.878912 | AJ17: 14 | AK17: 240.62 | AL17: 102.316 | AM17: -85.126912 | AO17: 14 | AP17: 240.62 | AQ17: 103.316 | AR17: -85.958912 | AT17: 14 | AU17: 240.62 | AV17: 104.316 | AW17: -86.790912 | AY17: 14 | AZ17: 240.62 | BA17: 105.316 | BB17: -87.622912 | BD17: 14 | BE17: 240.62 | BF17: 106.316 | BG17: -88.454912
A18: 15 | B18: 239.773 | C18: 94.512 | D18: -81.28032 | F18: 15 | G18: 239.773 | H18: 96.797 | I18: -83.24542 | K18: 15 | L18: 240.2 | M18: 97.485 | N18: -82.569795 | P18: 15 | Q18: 240.2 | R18: 98.485 | S18: -83.416795 | U18: 15 | V18: 240.2 | W18: 97.985 | X18: -82.993295 | Z18: 15 | AA18: 240.2 | AB18: 99.485 | AC18: -84.263795 | AE18: 15 | AF18: 240.2 | AG18: 100.985 | AH18: -85.534295 | AJ18: 15 | AK18: 240.2 | AL18: 102.485 | AM18: -86.804795 | AO18: 15 | AP18: 240.2 | AQ18: 103.485 | AR18: -87.651795 | AT18: 15 | AU18: 240.2 | AV18: 104.485 | AW18: -88.498795 | AY18: 15 | AZ18: 240.2 | BA18: 105.485 | BB18: -89.345795 | BD18: 15 | BE18: 240.2 | BF18: 106.485 | BG18: -90.192795
A19: 16 | B19: 239.34 | C19: 94.603 | D19: -82.115404 | F19: 16 | G19: 239.34 | H19: 96.91 | I19: -84.11788 | K19: 16 | L19: 239.773 | M19: 97.635 | N19: -83.9661 | P19: 16 | Q19: 239.773 | R19: 98.635 | S19: -84.8261 | U19: 16 | V19: 239.773 | W19: 98.135 | X19: -84.3961 | Z19: 16 | AA19: 239.773 | AB19: 99.635 | AC19: -85.6861 | AE19: 16 | AF19: 239.773 | AG19: 101.135 | AH19: -86.9761 | AJ19: 16 | AK19: 239.773 | AL19: 102.635 | AM19: -88.2661 | AO19: 16 | AP19: 239.773 | AQ19: 103.635 | AR19: -89.1261 | AT19: 16 | AU19: 239.773 | AV19: 104.635 | AW19: -89.9861 | AY19: 16 | AZ19: 239.773 | BA19: 105.635 | BB19: -90.8461 | BD19: 16 | BE19: 239.773 | BF19: 106.635 | BG19: -91.7061
A20: 17 | B20: 238.905 | C20: 94.677 | D20: -133.589247 | F20: 17 | G20: 238.905 | H20: 97.002 | I20: -136.869822 | K20: 17 | L20: 239.34 | M20: 97.765 | N20: -84.86002 | P20: 17 | Q20: 239.34 | R20: 98.765 | S20: -85.72802 | U20: 17 | V20: 239.34 | W20: 98.265 | X20: -85.29402 | Z20: 17 | AA20: 239.34 | AB20: 99.765 | AC20: -86.59602 | AE20: 17 | AF20: 239.34 | AG20: 101.265 | AH20: -87.89802 | AJ20: 17 | AK20: 239.34 | AL20: 102.765 | AM20: -89.20002 | AO20: 17 | AP20: 239.34 | AQ20: 103.765 | AR20: -90.06802 | AT20: 17 | AU20: 239.34 | AV20: 104.765 | AW20: -90.93602 | AY20: 17 | AZ20: 239.34 | BA20: 105.765 | BB20: -91.80402 | BD20: 17 | BE20: 239.34 | BF20: 106.765 | BG20: -92.67202
A21: 18 | B21: 237.929 | C21: 94.823 | D21: -185.473788 | F21: 18 | G21: 237.929 | H21: 97.185 | I21: -190.09386 | K21: 18 | L21: 238.905 | M21: 97.871 | N21: -138.095981 | P21: 18 | Q21: 238.905 | R21: 98.871 | S21: -139.506981 | U21: 18 | V21: 238.905 | W21: 98.371 | X21: -138.801481 | Z21: 18 | AA21: 238.905 | AB21: 99.871 | AC21: -140.917981 | AE21: 18 | AF21: 238.905 | AG21: 101.371 | AH21: -143.034481 | AJ21: 18 | AK21: 238.905 | AL21: 102.871 | AM21: -145.150981 | AO21: 18 | AP21: 238.905 | AQ21: 103.871 | AR21: -146.561981 | AT21: 18 | AU21: 238.905 | AV21: 104.871 | AW21: -147.972981 | AY21: 18 | AZ21: 238.905 | BA21: 105.871 | BB21: -149.383981 | BD21: 18 | BE21: 238.905 | BF21: 106.871 | BG21: -150.794981
A22: 19 | B22: 236.949 | C22: 94.952 | D22: -186.58068 | F22: 19 | G22: 236.949 | H22: 97.346 | I22: -191.28489 | K22: 19 | L22: 237.929 | M22: 98.081 | N22: -191.846436 | P22: 19 | Q22: 237.929 | R22: 99.081 | S22: -193.802436 | U22: 19 | V22: 237.929 | W22: 98.581 | X22: -192.824436 | Z22: 19 | AA22: 237.929 | AB22: 100.081 | AC22: -195.758436 | AE22: 19 | AF22: 237.929 | AG22: 101.581 | AH22: -198.692436 | AJ22: 19 | AK22: 237.929 | AL22: 103.081 | AM22: -201.626436 | AO22: 19 | AP22: 237.929 | AQ22: 104.081 | AR22: -203.582436 | AT22: 19 | AU22: 237.929 | AV22: 105.081 | AW22: -205.538436 | AY22: 19 | AZ22: 237.929 | BA22: 106.081 | BB22: -207.494436 | BD22: 19 | BE22: 237.929 | BF22: 107.081 | BG22: -209.450436
A23: 20 | B23: 235.964 | C23: 95.064 | D23: -187.561272 | F23: 20 | G23: 235.964 | H23: 97.486 | I23: -192.339878 | K23: 20 | L23: 236.949 | M23: 98.267 | N23: -193.094655 | P23: 20 | Q23: 236.949 | R23: 99.267 | S23: -195.059655 | U23: 20 | V23: 236.949 | W23: 98.767 | X23: -194.077155 | Z23: 20 | AA23: 236.949 | AB23: 100.267 | AC23: -197.024655 | AE23: 20 | AF23: 236.949 | AG23: 101.767 | AH23: -199.972155 | AJ23: 20 | AK23: 236.949 | AL23: 103.267 | AM23: -202.919655 | AO23: 20 | AP23: 236.949 | AQ23: 104.267 | AR23: -204.884655 | AT23: 20 | AU23: 236.949 | AV23: 105.267 | AW23: -206.849655 | AY23: 20 | AZ23: 236.949 | BA23: 106.267 | BB23: -208.814655 | BD23: 20 | BE23: 236.949 | BF23: 107.267 | BG23: -210.779655
A24: 21 | B24: 234.976 | C24: 95.159 | D24: -188.41482 | F24: 21 | G24: 234.976 | H24: 97.605 | I24: -193.2579 | K24: 21 | L24: 235.964 | M24: 98.428 | N24: -194.198444 | P24: 21 | Q24: 235.964 | R24: 99.428 | S24: -196.171444 | U24: 21 | V24: 235.964 | W24: 98.928 | X24: -195.184944 | Z24: 21 | AA24: 235.964 | AB24: 100.428 | AC24: -198.144444 | AE24: 21 | AF24: 235.964 | AG24: 101.928 | AH24: -201.103944 | AJ24: 21 | AK24: 235.964 | AL24: 103.428 | AM24: -204.063444 | AO24: 21 | AP24: 235.964 | AQ24: 104.428 | AR24: -206.036444 | AT24: 21 | AU24: 235.964 | AV24: 105.428 | AW24: -208.009444 | AY24: 21 | AZ24: 235.964 | BA24: 106.428 | BB24: -209.982444 | BD24: 21 | BE24: 235.964 | BF24: 107.428 | BG24: -211.955444
A25: 22 | B25: 233.984 | C25: 95.237 | D25: -189.045445 | F25: 22 | G25: 233.984 | H25: 97.702 | I25: -193.93847 | K25: 22 | L25: 234.976 | M25: 98.564 | N25: -195.15672 | P25: 22 | Q25: 234.976 | R25: 99.564 | S25: -197.13672 | U25: 22 | V25: 234.976 | W25: 99.064 | X25: -196.14672 | Z25: 22 | AA25: 234.976 | AB25: 100.564 | AC25: -199.11672 | AE25: 22 | AF25: 234.976 | AG25: 102.064 | AH25: -202.08672 | AJ25: 22 | AK25: 234.976 | AL25: 103.564 | AM25: -205.05672 | AO25: 22 | AP25: 234.976 | AQ25: 104.564 | AR25: -207.03672 | AT25: 22 | AU25: 234.976 | AV25: 105.564 | AW25: -209.01672 | AY25: 22 | AZ25: 234.976 | BA25: 106.564 | BB25: -210.99672 | BD25: 22 | BE25: 234.976 | BF25: 107.564 | BG25: -212.97672
A26: 23 | B26: 232.991 | C26: 95.297 | D26: -189.545733 | F26: 23 | G26: 232.991 | H26: 97.778 | I26: -194.480442 | K26: 23 | L26: 233.984 | M26: 98.676 | N26: -195.87186 | P26: 23 | Q26: 233.984 | R26: 99.676 | S26: -197.85686 | U26: 23 | V26: 233.984 | W26: 99.176 | X26: -196.86436 | Z26: 23 | AA26: 233.984 | AB26: 100.676 | AC26: -199.84186 | AE26: 23 | AF26: 233.984 | AG26: 102.176 | AH26: -202.81936 | AJ26: 23 | AK26: 233.984 | AL26: 103.676 | AM26: -205.79686 | AO26: 23 | AP26: 233.984 | AQ26: 104.676 | AR26: -207.78186 | AT26: 23 | AU26: 233.984 | AV26: 105.676 | AW26: -209.76686 | AY26: 23 | AZ26: 233.984 | BA26: 106.676 | BB26: -211.75186 | BD26: 23 | BE26: 233.984 | BF26: 107.676 | BG26: -213.73686
A27: 24 | B27: 231.995 | C27: 95.34 | D27: -190.01262 | F27: 24 | G27: 231.995 | H27: 97.832 | I27: -194.979176 | K27: 24 | L27: 232.991 | M27: 98.763 | N27: -196.439607 | P27: 24 | Q27: 232.991 | R27: 99.763 | S27: -198.428607 | U27: 24 | V27: 232.991 | W27: 99.263 | X27: -197.434107 | Z27: 24 | AA27: 232.991 | AB27: 100.763 | AC27: -200.417607 | AE27: 24 | AF27: 232.991 | AG27: 102.263 | AH27: -203.401107 | AJ27: 24 | AK27: 232.991 | AL27: 103.763 | AM27: -206.384607 | AO27: 24 | AP27: 232.991 | AQ27: 104.763 | AR27: -208.373607 | AT27: 24 | AU27: 232.991 | AV27: 105.763 | AW27: -210.362607 | AY27: 24 | AZ27: 232.991 | BA27: 106.763 | BB27: -212.351607 | BD27: 24 | BE27: 232.991 | BF27: 107.763 | BG27: -214.340607
A28: 25 | B28: 230.998 | C28: 95.366 | D28: -190.25517 | F28: 25 | G28: 230.998 | H28: 97.864 | I28: -195.23868 | K28: 25 | L28: 231.995 | M28: 98.825 | N28: -196.958225 | P28: 25 | Q28: 231.995 | R28: 99.825 | S28: -198.951225 | U28: 25 | V28: 231.995 | W28: 99.325 | X28: -197.954725 | Z28: 25 | AA28: 231.995 | AB28: 100.825 | AC28: -200.944225 | AE28: 25 | AF28: 231.995 | AG28: 102.325 | AH28: -203.933725 | AJ28: 25 | AK28: 231.995 | AL28: 103.825 | AM28: -206.923225 | AO28: 25 | AP28: 231.995 | AQ28: 104.825 | AR28: -208.916225 | AT28: 25 | AU28: 231.995 | AV28: 105.825 | AW28: -210.909225 | AY28: 25 | AZ28: 231.995 | BA28: 106.825 | BB28: -212.902225 | BD28: 25 | BE28: 231.995 | BF28: 107.825 | BG28: -214.895225
A29: 26 | B29: 230 | C29: 95.375 | D29: -190.3685 | F29: 26 | G29: 230 | H29: 97.875 | I29: -195.3585 | K29: 26 | L29: 230.998 | M29: 98.863 | N29: -197.231685 | P29: 26 | Q29: 230.998 | R29: 99.863 | S29: -199.226685 | U29: 26 | V29: 230.998 | W29: 99.363 | X29: -198.229185 | Z29: 26 | AA29: 230.998 | AB29: 100.863 | AC29: -201.221685 | AE29: 26 | AF29: 230.998 | AG29: 102.363 | AH29: -204.214185 | AJ29: 26 | AK29: 230.998 | AL29: 103.863 | AM29: -207.206685 | AO29: 26 | AP29: 230.998 | AQ29: 104.863 | AR29: -209.201685 | AT29: 26 | AU29: 230.998 | AV29: 105.863 | AW29: -211.196685 | AY29: 26 | AZ29: 230.998 | BA29: 106.863 | BB29: -213.191685 | BD29: 26 | BE29: 230.998 | BF29: 107.863 | BG29: -215.186685
A30: 27 | B30: 229.002 | C30: 95.366 | D30: -190.25517 | F30: 27 | G30: 229.002 | H30: 97.864 | I30: -195.23868 | K30: 27 | L30: 230 | M30: 98.875 | N30: -197.3545 | P30: 27 | Q30: 230 | R30: 99.875 | S30: -199.3505 | U30: 27 | V30: 230 | W30: 99.375 | X30: -198.3525 | Z30: 27 | AA30: 230 | AB30: 100.875 | AC30: -201.3465 | AE30: 27 | AF30: 230 | AG30: 102.375 | AH30: -204.3405 | AJ30: 27 | AK30: 230 | AL30: 103.875 | AM30: -207.3345 | AO30: 27 | AP30: 230 | AQ30: 104.875 | AR30: -209.3305 | AT30: 27 | AU30: 230 | AV30: 105.875 | AW30: -211.3265 | AY30: 27 | AZ30: 230 | BA30: 106.875 | BB30: -213.3225 | BD30: 27 | BE30: 230 | BF30: 107.875 | BG30: -215.3185
A31: 28 | B31: 228.005 | C31: 95.34 | D31: -190.01262 | F31: 28 | G31: 228.005 | H31: 97.832 | I31: -194.979176 | K31: 28 | L31: 229.002 | M31: 98.863 | N31: -197.231685 | P31: 28 | Q31: 229.002 | R31: 99.863 | S31: -199.226685 | U31: 28 | V31: 229.002 | W31: 99.363 | X31: -198.229185 | Z31: 28 | AA31: 229.002 | AB31: 100.863 | AC31: -201.221685 | AE31: 28 | AF31: 229.002 | AG31: 102.363 | AH31: -204.214185 | AJ31: 28 | AK31: 229.002 | AL31: 103.863 | AM31: -207.206685 | AO31: 28 | AP31: 229.002 | AQ31: 104.863 | AR31: -209.201685 | AT31: 28 | AU31: 229.002 | AV31: 105.863 | AW31: -211.196685 | AY31: 28 | AZ31: 229.002 | BA31: 106.863 | BB31: -213.191685 | BD31: 28 | BE31: 229.002 | BF31: 107.863 | BG31: -215.186685
A32: 29 | B32: 227.009 | C32: 95.297 | D32: -189.545733 | F32: 29 | G32: 227.009 | H32: 97.778 | I32: -194.480442 | K32: 29 | L32: 228.005 | M32: 98.825 | N32: -196.958225 | P32: 29 | Q32: 228.005 | R32: 99.825 | S32: -198.951225 | U32: 29 | V32: 228.005 | W32: 99.325 | X32: -197.954725 | Z32: 29 | AA32: 228.005 | AB32: 100.825 | AC32: -200.944225 | AE32: 29 | AF32: 228.005 | AG32: 102.325 | AH32: -203.933725 | AJ32: 29 | AK32: 228.005 | AL32: 103.825 | AM32: -206.923225 | AO32: 29 | AP32: 228.005 | AQ32: 104.825 | AR32: -208.916225 | AT32: 29 | AU32: 228.005 | AV32: 105.825 | AW32: -210.909225 | AY32: 29 | AZ32: 228.005 | BA32: 106.825 | BB32: -212.902225 | BD32: 29 | BE32: 228.005 | BF32: 107.825 | BG32: -214.895225
A33: 30 | B33: 226.016 | C33: 95.237 | D33: -189.045445 | F33: 30 | G33: 226.016 | H33: 97.702 | I33: -193.93847 | K33: 30 | L33: 227.009 | M33: 98.763 | N33: -196.439607 | P33: 30 | Q33: 227.009 | R33: 99.763 | S33: -198.428607 | U33: 30 | V33: 227.009 | W33: 99.263 | X33: -197.434107 | Z33: 30 | AA33: 227.009 | AB33: 100.763 | AC33: -200.417607 | AE33: 30 | AF33: 227.009 | AG33: 102.263 | AH33: -203.401107 | AJ33: 30 | AK33: 227.009 | AL33: 103.763 | AM33: -206.384607 | AO33: 30 | AP33: 227.009 | AQ33: 104.763 | AR33: -208.373607 | AT33: 30 | AU33: 227.009 | AV33: 105.763 | AW33: -210.362607 | AY33: 30 | AZ33: 227.009 | BA33: 106.763 | BB33: -212.351607 | BD33: 30 | BE33: 227.009 | BF33: 107.763 | BG33: -214.340607
A34: 31 | B34: 225.024 | C34: 95.159 | D34: -188.41482 | F34: 31 | G34: 225.024 | H34: 97.605 | I34: -193.2579 | K34: 31 | L34: 226.016 | M34: 98.676 | N34: -195.87186 | P34: 31 | Q34: 226.016 | R34: 99.676 | S34: -197.85686 | U34: 31 | V34: 226.016 | W34: 99.176 | X34: -196.86436 | Z34: 31 | AA34: 226.016 | AB34: 100.676 | AC34: -199.84186 | AE34: 31 | AF34: 226.016 | AG34: 102.176 | AH34: -202.81936 | AJ34: 31 | AK34: 226.016 | AL34: 103.676 | AM34: -205.79686 | AO34: 31 | AP34: 226.016 | AQ34: 104.676 | AR34: -207.78186 | AT34: 31 | AU34: 226.016 | AV34: 105.676 | AW34: -209.76686 | AY34: 31 | AZ34: 226.016 | BA34: 106.676 | BB34: -211.75186 | BD34: 31 | BE34: 226.016 | BF34: 107.676 | BG34: -213.73686
A35: 32 | B35: 224.036 | C35: 95.064 | D35: -187.561272 | F35: 32 | G35: 224.036 | H35: 97.486 | I35: -192.339878 | K35: 32 | L35: 225.024 | M35: 98.564 | N35: -195.15672 | P35: 32 | Q35: 225.024 | R35: 99.564 | S35: -197.13672 | U35: 32 | V35: 225.024 | W35: 99.064 | X35: -196.14672 | Z35: 32 | AA35: 225.024 | AB35: 100.564 | AC35: -199.11672 | AE35: 32 | AF35: 225.024 | AG35: 102.064 | AH35: -202.08672 | AJ35: 32 | AK35: 225.024 | AL35: 103.564 | AM35: -205.05672 | AO35: 32 | AP35: 225.024 | AQ35: 104.564 | AR35: -207.03672 | AT35: 32 | AU35: 225.024 | AV35: 105.564 | AW35: -209.01672 | AY35: 32 | AZ35: 225.024 | BA35: 106.564 | BB35: -210.99672 | BD35: 32 | BE35: 225.024 | BF35: 107.564 | BG35: -212.97672
A36: 33 | B36: 223.051 | C36: 94.952 | D36: -186.58068 | F36: 33 | G36: 223.051 | H36: 97.346 | I36: -191.28489 | K36: 33 | L36: 224.036 | M36: 98.428 | N36: -194.198444 | P36: 33 | Q36: 224.036 | R36: 99.428 | S36: -196.171444 | U36: 33 | V36: 224.036 | W36: 98.928 | X36: -195.184944 | Z36: 33 | AA36: 224.036 | AB36: 100.428 | AC36: -198.144444 | AE36: 33 | AF36: 224.036 | AG36: 101.928 | AH36: -201.103944 | AJ36: 33 | AK36: 224.036 | AL36: 103.428 | AM36: -204.063444 | AO36: 33 | AP36: 224.036 | AQ36: 104.428 | AR36: -206.036444 | AT36: 33 | AU36: 224.036 | AV36: 105.428 | AW36: -208.009444 | AY36: 33 | AZ36: 224.036 | BA36: 106.428 | BB36: -209.982444 | BD36: 33 | BE36: 224.036 | BF36: 107.428 | BG36: -211.955444
A37: 34 | B37: 222.071 | C37: 94.823 | D37: -185.473788 | F37: 34 | G37: 222.071 | H37: 97.185 | I37: -190.09386 | K37: 34 | L37: 223.051 | M37: 98.267 | N37: -193.094655 | P37: 34 | Q37: 223.051 | R37: 99.267 | S37: -195.059655 | U37: 34 | V37: 223.051 | W37: 98.767 | X37: -194.077155 | Z37: 34 | AA37: 223.051 | AB37: 100.267 | AC37: -197.024655 | AE37: 34 | AF37: 223.051 | AG37: 101.767 | AH37: -199.972155 | AJ37: 34 | AK37: 223.051 | AL37: 103.267 | AM37: -202.919655 | AO37: 34 | AP37: 223.051 | AQ37: 104.267 | AR37: -204.884655 | AT37: 34 | AU37: 223.051 | AV37: 105.267 | AW37: -206.849655 | AY37: 34 | AZ37: 223.051 | BA37: 106.267 | BB37: -208.814655 | BD37: 34 | BE37: 223.051 | BF37: 107.267 | BG37: -210.779655
A38: 35 | B38: 221.095 | C38: 94.677 | D38: -133.589247 | F38: 35 | G38: 221.095 | H38: 97.002 | I38: -136.869822 | K38: 35 | L38: 222.071 | M38: 98.081 | N38: -191.846436 | P38: 35 | Q38: 222.071 | R38: 99.081 | S38: -193.802436 | U38: 35 | V38: 222.071 | W38: 98.581 | X38: -192.824436 | Z38: 35 | AA38: 222.071 | AB38: 100.081 | AC38: -195.758436 | AE38: 35 | AF38: 222.071 | AG38: 101.581 | AH38: -198.692436 | AJ38: 35 | AK38: 222.071 | AL38: 103.081 | AM38: -201.626436 | AO38: 35 | AP38: 222.071 | AQ38: 104.081 | AR38: -203.582436 | AT38: 35 | AU38: 222.071 | AV38: 105.081 | AW38: -205.538436 | AY38: 35 | AZ38: 222.071 | BA38: 106.081 | BB38: -207.494436 | BD38: 35 | BE38: 222.071 | BF38: 107.081 | BG38: -209.450436
A39: 36 | B39: 220.66 | C39: 94.603 | D39: -82.115404 | F39: 36 | G39: 220.66 | H39: 96.91 | I39: -84.11788 | K39: 36 | L39: 221.095 | M39: 97.871 | N39: -138.095981 | P39: 36 | Q39: 221.095 | R39: 98.871 | S39: -139.506981 | U39: 36 | V39: 221.095 | W39: 98.371 | X39: -138.801481 | Z39: 36 | AA39: 221.095 | AB39: 99.871 | AC39: -140.917981 | AE39: 36 | AF39: 221.095 | AG39: 101.371 | AH39: -143.034481 | AJ39: 36 | AK39: 221.095 | AL39: 102.871 | AM39: -145.150981 | AO39: 36 | AP39: 221.095 | AQ39: 103.871 | AR39: -146.561981 | AT39: 36 | AU39: 221.095 | AV39: 104.871 | AW39: -147.972981 | AY39: 36 | AZ39: 221.095 | BA39: 105.871 | BB39: -149.383981 | BD39: 36 | BE39: 221.095 | BF39: 106.871 | BG39: -150.794981
A40: 37 | B40: 220.227 | C40: 94.512 | D40: -81.28032 | F40: 37 | G40: 220.227 | H40: 96.797 | I40: -83.24542 | K40: 37 | L40: 220.66 | M40: 97.765 | N40: -84.86002 | P40: 37 | Q40: 220.66 | R40: 98.765 | S40: -85.72802 | U40: 37 | V40: 220.66 | W40: 98.265 | X40: -85.29402 | Z40: 37 | AA40: 220.66 | AB40: 99.765 | AC40: -86.59602 | AE40: 37 | AF40: 220.66 | AG40: 101.265 | AH40: -87.89802 | AJ40: 37 | AK40: 220.66 | AL40: 102.765 | AM40: -89.20002 | AO40: 37 | AP40: 220.66 | AQ40: 103.765 | AR40: -90.06802 | AT40: 37 | AU40: 220.66 | AV40: 104.765 | AW40: -90.93602 | AY40: 37 | AZ40: 220.66 | BA40: 105.765 | BB40: -91.80402 | BD40: 37 | BE40: 220.66 | BF40: 106.765 | BG40: -92.67202
A41: 38 | B41: 219.8 | C41: 94.408 | D41: -79.963576 | F41: 38 | G41: 219.8 | H41: 96.666 | I41: -81.876102 | K41: 38 | L41: 220.227 | M41: 97.635 | N41: -83.9661 | P41: 38 | Q41: 220.227 | R41: 98.635 | S41: -84.8261 | U41: 38 | V41: 220.227 | W41: 98.135 | X41: -84.3961 | Z41: 38 | AA41: 220.227 | AB41: 99.635 | AC41: -85.6861 | AE41: 38 | AF41: 220.227 | AG41: 101.135 | AH41: -86.9761 | AJ41: 38 | AK41: 220.227 | AL41: 102.635 | AM41: -88.2661 | AO41: 38 | AP41: 220.227 | AQ41: 103.635 | AR41: -89.1261 | AT41: 38 | AU41: 220.227 | AV41: 104.635 | AW41: -89.9861 | AY41: 38 | AZ41: 220.227 | BA41: 105.635 | BB41: -90.8461 | BD41: 38 | BE41: 220.227 | BF41: 106.635 | BG41: -91.7061
A42: 39 | B42: 219.38 | C42: 94.29 | D42: -78.44928 | F42: 39 | G42: 219.38 | H42: 96.519 | I42: -80.303808 | K42: 39 | L42: 219.8 | M42: 97.485 | N42: -82.569795 | P42: 39 | Q42: 219.8 | R42: 98.485 | S42: -83.416795 | U42: 39 | V42: 219.8 | W42: 97.985 | X42: -82.993295 | Z42: 39 | AA42: 219.8 | AB42: 99.485 | AC42: -84.263795 | AE42: 39 | AF42: 219.8 | AG42: 100.985 | AH42: -85.534295 | AJ42: 39 | AK42: 219.8 | AL42: 102.485 | AM42: -86.804795 | AO42: 39 | AP42: 219.8 | AQ42: 103.485 | AR42: -87.651795 | AT42: 39 | AU42: 219.8 | AV42: 104.485 | AW42: -88.498795 | AY42: 39 | AZ42: 219.8 | BA42: 105.485 | BB42: -89.345795 | BD42: 39 | BE42: 219.8 | BF42: 106.485 | BG42: -90.192795
A43: 40 | B43: 218.968 | C43: 94.16 | D43: -76.7404 | F43: 40 | G43: 218.968 | H43: 96.356 | I43: -78.53014 | K43: 40 | L43: 219.38 | M43: 97.316 | N43: -80.966912 | P43: 40 | Q43: 219.38 | R43: 98.316 | S43: -81.798912 | U43: 40 | V43: 219.38 | W43: 97.816 | X43: -81.382912 | Z43: 40 | AA43: 219.38 | AB43: 99.316 | AC43: -82.630912 | AE43: 40 | AF43: 219.38 | AG43: 100.816 | AH43: -83.878912 | AJ43: 40 | AK43: 219.38 | AL43: 102.316 | AM43: -85.126912 | AO43: 40 | AP43: 219.38 | AQ43: 103.316 | AR43: -85.958912 | AT43: 40 | AU43: 219.38 | AV43: 104.316 | AW43: -86.790912 | AY43: 40 | AZ43: 219.38 | BA43: 105.316 | BB43: -87.622912 | BD43: 40 | BE43: 219.38 | BF43: 106.316 | BG43: -88.454912
A44: 41 | B44: 218.565 | C44: 94.016 | D44: -74.836736 | F44: 41 | G44: 218.565 | H44: 96.176 | I44: -76.556096 | K44: 41 | L44: 218.968 | M44: 97.128 | N44: -79.15932 | P44: 41 | Q44: 218.968 | R44: 98.128 | S44: -79.97432 | U44: 41 | V44: 218.968 | W44: 97.628 | X44: -79.56682 | Z44: 41 | AA44: 218.968 | AB44: 99.128 | AC44: -80.78932 | AE44: 41 | AF44: 218.968 | AG44: 100.628 | AH44: -82.01182 | AJ44: 41 | AK44: 218.968 | AL44: 102.128 | AM44: -83.23432 | AO44: 41 | AP44: 218.968 | AQ44: 103.128 | AR44: -84.04932 | AT44: 41 | AU44: 218.968 | AV44: 104.128 | AW44: -84.86432 | AY44: 41 | AZ44: 218.968 | BA44: 105.128 | BB44: -85.67932 | BD44: 41 | BE44: 218.968 | BF44: 106.128 | BG44: -86.49432
A45: 42 | B45: 218.172 | C45: 93.86 | D45: -72.7415 | F45: 42 | G45: 218.172 | H45: 95.981 | I45: -74.385275 | K45: 42 | L45: 218.565 | M45: 96.922 | N45: -77.149912 | P45: 42 | Q45: 218.565 | R45: 97.922 | S45: -77.945912 | U45: 42 | V45: 218.565 | W45: 97.422 | X45: -77.547912 | Z45: 42 | AA45: 218.565 | AB45: 98.922 | AC45: -78.741912 | AE45: 42 | AF45: 218.565 | AG45: 100.422 | AH45: -79.935912 | AJ45: 42 | AK45: 218.565 | AL45: 101.922 | AM45: -81.129912 | AO45: 42 | AP45: 218.565 | AQ45: 102.922 | AR45: -81.925912 | AT45: 42 | AU45: 218.565 | AV45: 103.922 | AW45: -82.721912 | AY45: 42 | AZ45: 218.565 | BA45: 104.922 | BB45: -83.517912 | BD45: 42 | BE45: 218.565 | BF45: 105.922 | BG45: -84.313912
A46: 43 | B46: 217.79 | C46: 93.692 | D46: -72.892376 | F46: 43 | G46: 217.79 | H46: 95.771 | I46: -74.509838 | K46: 43 | L46: 218.172 | M46: 96.697 | N46: -74.940175 | P46: 43 | Q46: 218.172 | R46: 97.697 | S46: -75.715175 | U46: 43 | V46: 218.172 | W46: 97.197 | X46: -75.327675 | Z46: 43 | AA46: 218.172 | AB46: 98.697 | AC46: -76.490175 | AE46: 43 | AF46: 218.172 | AG46: 100.197 | AH46: -77.652675 | AJ46: 43 | AK46: 218.172 | AL46: 101.697 | AM46: -78.815175 | AO46: 43 | AP46: 218.172 | AQ46: 102.697 | AR46: -79.590175 | AT46: 43 | AU46: 218.172 | AV46: 103.697 | AW46: -80.365175 | AY46: 43 | AZ46: 218.172 | BA46: 104.697 | BB46: -81.140175 | BD46: 43 | BE46: 218.172 | BF46: 105.697 | BG46: -81.915175
A47: 44 | B47: 217.394 | C47: 93.486 | D47: -70.021014 | F47: 44 | G47: 217.394 | H47: 95.514 | I47: -71.539986 | K47: 44 | L47: 217.79 | M47: 96.455 | N47: -75.04199 | P47: 44 | Q47: 217.79 | R47: 97.455 | S47: -75.81999 | U47: 44 | V47: 217.79 | W47: 96.955 | X47: -75.43099 | Z47: 44 | AA47: 217.79 | AB47: 98.455 | AC47: -76.59799 | AE47: 44 | AF47: 217.79 | AG47: 99.955 | AH47: -77.76499 | AJ47: 44 | AK47: 217.79 | AL47: 101.455 | AM47: -78.93199 | AO47: 44 | AP47: 217.79 | AQ47: 102.455 | AR47: -79.70999 | AT47: 44 | AU47: 217.79 | AV47: 103.455 | AW47: -80.48799 | AY47: 44 | AZ47: 217.79 | BA47: 104.455 | BB47: -81.26599 | BD47: 44 | BE47: 217.79 | BF47: 105.455 | BG47: -82.04399
A48: 45 | B48: 217.041 | C48: 93.247 | D48: -61.636267 | F48: 45 | G48: 217.041 | H48: 95.216 | I48: -62.937776 | K48: 45 | L48: 217.394 | M48: 96.159 | N48: -72.023091 | P48: 45 | Q48: 217.394 | R48: 97.159 | S48: -72.772091 | U48: 45 | V48: 217.394 | W48: 96.659 | X48: -72.397591 | Z48: 45 | AA48: 217.394 | AB48: 98.159 | AC48: -73.521091 | AE48: 45 | AF48: 217.394 | AG48: 99.659 | AH48: -74.644591 | AJ48: 45 | AK48: 217.394 | AL48: 101.159 | AM48: -75.768091 | AO48: 45 | AP48: 217.394 | AQ48: 102.159 | AR48: -76.517091 | AT48: 45 | AU48: 217.394 | AV48: 103.159 | AW48: -77.266091 | AY48: 45 | AZ48: 217.394 | BA48: 104.159 | BB48: -78.015091 | BD48: 45 | BE48: 217.394 | BF48: 105.159 | BG48: -78.764091
A49: 46 | B49: 216.733 | C49: 92.981 | D49: -52.627246 | F49: 46 | G49: 216.733 | H49: 94.882 | I49: -53.703212 | K49: 46 | L49: 217.041 | M49: 95.817 | N49: -63.335037 | P49: 46 | Q49: 217.041 | R49: 96.817 | S49: -63.996037 | U49: 46 | V49: 217.041 | W49: 96.317 | X49: -63.665537 | Z49: 46 | AA49: 217.041 | AB49: 97.817 | AC49: -64.657037 | AE49: 46 | AF49: 217.041 | AG49: 99.317 | AH49: -65.648537 | AJ49: 46 | AK49: 217.041 | AL49: 100.817 | AM49: -66.640037 | AO49: 46 | AP49: 217.041 | AQ49: 101.817 | AR49: -67.301037 | AT49: 46 | AU49: 217.041 | AV49: 102.817 | AW49: -67.962037 | AY49: 46 | AZ49: 217.041 | BA49: 103.817 | BB49: -68.623037 | BD49: 46 | BE49: 217.041 | BF49: 104.817 | BG49: -69.284037
A50: 47 | B50: 216.475 | C50: 92.69 | D50: -43.00816 | F50: 47 | G50: 216.475 | H50: 94.518 | I50: -43.856352 | K50: 47 | L50: 216.733 | M50: 95.433 | N50: -54.015078 | P50: 47 | Q50: 216.733 | R50: 96.433 | S50: -54.581078 | U50: 47 | V50: 216.733 | W50: 95.933 | X50: -54.298078 | Z50: 47 | AA50: 216.733 | AB50: 97.433 | AC50: -55.147078 | AE50: 47 | AF50: 216.733 | AG50: 98.933 | AH50: -55.996078 | AJ50: 47 | AK50: 216.733 | AL50: 100.433 | AM50: -56.845078 | AO50: 47 | AP50: 216.733 | AQ50: 101.433 | AR50: -57.411078 | AT50: 47 | AU50: 216.733 | AV50: 102.433 | AW50: -57.977078 | AY50: 47 | AZ50: 216.733 | BA50: 103.433 | BB50: -58.543078 | BD50: 47 | BE50: 216.733 | BF50: 104.433 | BG50: -59.109078
A51: 48 | B51: 216.269 | C51: 92.379 | D51: -32.794545 | F51: 48 | G51: 216.269 | H51: 94.13 | I51: -33.41615 | K51: 48 | L51: 216.475 | M51: 95.015 | N51: -44.08696 | P51: 48 | Q51: 216.475 | R51: 96.015 | S51: -44.55096 | U51: 48 | V51: 216.475 | W51: 95.515 | X51: -44.31896 | Z51: 48 | AA51: 216.475 | AB51: 97.015 | AC51: -45.01496 | AE51: 48 | AF51: 216.475 | AG51: 98.515 | AH51: -45.71096 | AJ51: 48 | AK51: 216.475 | AL51: 100.015 | AM51: -46.40696 | AO51: 48 | AP51: 216.475 | AQ51: 101.015 | AR51: -46.87096 | AT51: 48 | AU51: 216.475 | AV51: 102.015 | AW51: -47.33496 | AY51: 48 | AZ51: 216.475 | BA51: 103.015 | BB51: -47.79896 | BD51: 48 | BE51: 216.475 | BF51: 104.015 | BG51: -48.26296
A52: 49 | B52: 216.12 | C52: 92.053 | D52: -22.000667 | F52: 49 | G52: 216.12 | H52: 93.722 | I52: -22.399558 | K52: 49 | L52: 216.269 | M52: 94.568 | N52: -33.57164 | P52: 49 | Q52: 216.269 | R52: 95.568 | S52: -33.92664 | U52: 49 | V52: 216.269 | W52: 95.068 | X52: -33.74914 | Z52: 49 | AA52: 216.269 | AB52: 96.568 | AC52: -34.28164 | AE52: 49 | AF52: 216.269 | AG52: 98.068 | AH52: -34.81414 | AJ52: 49 | AK52: 216.269 | AL52: 99.568 | AM52: -35.34664 | AO52: 49 | AP52: 216.269 | AQ52: 100.568 | AR52: -35.70164 | AT52: 49 | AU52: 216.269 | AV52: 101.568 | AW52: -36.05664 | AY52: 49 | AZ52: 216.269 | BA52: 102.568 | BB52: -36.41164 | BD52: 49 | BE52: 216.269 | BF52: 103.568 | BG52: -36.76664
A53: 50 | B53: 216.03 | C53: 91.716 | D53: -11.00592 | F53: 50 | G53: 216.03 | H53: 93.302 | I53: -11.19624 | K53: 50 | L53: 216.12 | M53: 94.099 | N53: -22.489661 | P53: 50 | Q53: 216.12 | R53: 95.099 | S53: -22.728661 | U53: 50 | V53: 216.12 | W53: 94.599 | X53: -22.609161 | Z53: 50 | AA53: 216.12 | AB53: 96.099 | AC53: -22.967661 | AE53: 50 | AF53: 216.12 | AG53: 97.599 | AH53: -23.326161 | AJ53: 50 | AK53: 216.12 | AL53: 99.099 | AM53: -23.684661 | AO53: 50 | AP53: 216.12 | AQ53: 100.099 | AR53: -23.923661 | AT53: 50 | AU53: 216.12 | AV53: 101.099 | AW53: -24.162661 | AY53: 50 | AZ53: 216.12 | BA53: 102.099 | BB53: -24.401661 | BD53: 50 | BE53: 216.12 | BF53: 103.099 | BG53: -24.640661
A54: 51 | B54: 216 | C54: 91.375 | D54: =C54*(B4-B53) -> 2555.75875 | F54: 51 | G54: 216 | H54: 92.875 | I54: =H54*(G4-G53) -> 2597.71375 | K54: 51 | L54: 216.03 | M54: 93.616 | N54: -11.23392 | P54: 51 | Q54: 216.03 | R54: 94.616 | S54: -11.35392 | U54: 51 | V54: 216.03 | W54: 94.116 | X54: -11.29392 | Z54: 51 | AA54: 216.03 | AB54: 95.616 | AC54: -11.47392 | AE54: 51 | AF54: 216.03 | AG54: 97.116 | AH54: -11.65392 | AJ54: 51 | AK54: 216.03 | AL54: 98.616 | AM54: -11.83392 | AO54: 51 | AP54: 216.03 | AQ54: 99.616 | AR54: -11.95392 | AT54: 51 | AU54: 216.03 | AV54: 100.616 | AW54: -12.07392 | AY54: 51 | AZ54: 216.03 | BA54: 101.616 | BB54: -12.19392 | BD54: 51 | BE54: 216.03 | BF54: 102.616 | BG54: -12.31392
K55: 52 | L55: 216 | M55: 93.125 | N55: -2.79375 | P55: 52 | Q55: 216 | R55: 94.125 | S55: -2.82375 | U55: 52 | V55: 216 | W55: 93.625 | X55: -2.80875 | Z55: 52 | AA55: 216 | AB55: 95.125 | AC55: -2.85375 | AE55: 52 | AF55: 216 | AG55: 96.625 | AH55: -2.89875 | AJ55: 52 | AK55: 216 | AL55: 98.125 | AM55: -2.94375 | AO55: 52 | AP55: 216 | AQ55: 99.125 | AR55: -2.97375 | AT55: 52 | AU55: 216 | AV55: 100.125 | AW55: -3.00375 | AY55: 52 | AZ55: 216 | BA55: 101.125 | BB55: -3.03375 | BD55: 52 | BE55: 216 | BF55: 102.125 | BG55: -3.06375
K56: 53 | L56: 216 | M56: 92.875 | N56: =M56*(L4-L55) -> 2600.5 | P56: 53 | Q56: 216 | R56: 92.875 | S56: =R56*(Q4-Q55) -> 2600.5 | U56: 53 | V56: 216 | W56: 91.375 | X56: =W56*(V4-V55) -> 2558.5 | Z56: 53 | AA56: 216 | AB56: 91.875 | AC56: =AB56*(AA4-AA55) -> 2572.5 | AE56: 53 | AF56: 216 | AG56: 92.375 | AH56: =AG56*(AF4-AF55) -> 2586.5 | AJ56: 53 | AK56: 216 | AL56: 92.875 | AM56: =AL56*(AK4-AK55) -> 2600.5 | AO56: 53 | AP56: 216 | AQ56: 92.875 | AR56: =AQ56*(AP4-AP55) -> 2600.5 | AT56: 53 | AU56: 216 | AV56: 92.875 | AW56: =AV56*(AU4-AU55) -> 2600.5 | AY56: 53 | AZ56: 216 | BA56: 92.875 | BB56: =BA56*(AZ4-AZ55) -> 2600.5 | BD56: 53 | BE56: 216 | BF56: 92.875 | BG56: =BF56*(BE4-BE55) -> 2600.5
C58: AREA = | D58: =ABS(SUM(D4:D56))/2 -> 92.017686 | H58: AREA = | I58: =ABS(SUM(I4:I56))/2 -> 115.022451 | M58: AREA = | N58: =ABS(SUM(N4:N56))/2 -> 139.274224 | R58: AREA = | S58: =ABS(SUM(S4:S56))/2 -> 167.274224 | W58: AREA = | X58: =ABS(SUM(X4:X56))/2 -> 195.274224 | AB58: AREA = | AC58: =ABS(SUM(AC4:AC56))/2 -> 223.274224 | AG58: AREA = | AH58: =ABS(SUM(AH4:AH56))/2 -> 251.274224 | AL58: AREA = | AM58: =ABS(SUM(AM4:AM56))/2 -> 279.274224 | AQ58: AREA = | AR58: =ABS(SUM(AR4:AR56))/2 -> 307.274224 | AV58: AREA = | AW58: =ABS(SUM(AW4:AW56))/2 -> 335.274224 | BA58: AREA = | BB58: =ABS(SUM(BB4:BB56))/2 -> 363.274224 | BF58: AREA = | BG58: =ABS(SUM(BG4:BG56))/2 -> 391.274224
C59: RAS = | H59: RAS = | M59: RAS = | R59: RAS = | W59: RAS = | X59: 195.27 | AB59: RAS = | AC59: 223.27 | AG59: RAS = | AH59: 251.27 | AL59: RAS = | AM59: 279.27 | AQ59: RAS = | AV59: RAS = | BA59: RAS = | BF59: RAS =
C60: PDF = | D60: 111 | H60: PDF = | I60: 111 | M60: PDF = | N60: 138 | R60: PDF = | S60: 167 | W60: PDF = | X60: 195 | AB60: PDF = | AC60: 223 | AG60: PDF = | AH60: 251 | AL60: PDF = | AM60: 279 | AQ60: PDF = | AR60: 307 | AV60: PDF = | AW60: 335 | BA60: PDF = | BB60: 363 | BF60: PDF = | BG60: 391

Sheet 30' Span
A1: Non-manufactured HECRAS shape - Used for comparison to Hy-Span
B2: 30 x 4 | G2: 30 x 6 | L2: 30 x 8 | Q2: 30 x 10
A3: Pt. | B3: X | C3: Y | D3: A' | F3: Pt. | G3: X | H3: Y | I3: A' | K3: Pt. | L3: X | M3: Y | N3: A' | P3: Pt. | Q3: X | R3: Y | S3: A'
A4: 1 | B4: 245 | C4: 90.875 | D4: =C4*(B5-B54) -> 2723.796375 | F4: 1 | G4: 245 | H4: 91.375 | I4: =H4*(G5-G54) -> 2738.782875 | K4: 1 | L4: 245 | M4: 91.875 | N4: =M4*(L5-L56) -> 2756.25 | P4: 1 | Q4: 245 | R4: 92.375 | S4: =R4*(Q5-Q56) -> 2771.25
A5: =A4+1 -> 2 | B5: 244.973 | C5: 91.178 | D5: =C5*(B6-B4) -> -9.847224 | F5: =F4+1 -> 2 | G5: 244.973 | H5: 91.83 | I5: =H5*(G6-G4) -> -9.91764 | K5: =K4+1 -> 2 | L5: 245 | M5: 93.745 | N5: =M5*(L6-L4) -> -2.531115 | P5: =P4+1 -> 2 | Q5: 245 | R5: 96.245 | S5: =R5*(Q6-Q4) -> -2.598615
A6: =A5+1 -> 3 | B6: 244.892 | C6: 91.477 | D6: =C6*(B7-B5) -> -19.667555 | F6: =F5+1 -> 3 | G6: 244.892 | H6: 92.279 | I6: =H6*(G7-G5) -> -19.839985 | K6: =K5+1 -> 3 | L6: 244.973 | M6: 94.21 | N6: =M6*(L7-L5) -> -10.17468 | P6: =P5+1 -> 3 | Q6: 244.973 | R6: 96.71 | S6: =R6*(Q7-Q5) -> -10.44468
A7: 4 | B7: 244.758 | C7: 91.768 | D7: -29.273992 | F7: 4 | G7: 244.758 | H7: 92.715 | I7: -29.576085 | K7: 4 | L7: 244.892 | M7: 94.668 | N7: -20.35362 | P7: 4 | Q7: 244.892 | R7: 97.168 | S7: -20.89112
A8: 5 | B8: 244.573 | C8: 92.047 | D8: -38.567693 | F8: 5 | G8: 244.573 | H8: 93.133 | I8: -39.022727 | K8: 5 | L8: 244.758 | M8: 95.114 | N8: -30.341366 | P8: 5 | Q8: 244.758 | R8: 97.614 | S8: -31.138866
A9: 6 | B9: 244.339 | C9: 92.31 | D9: -47.35503 | F9: 6 | G9: 244.339 | H9: 93.527 | I9: -47.979351 | K9: 6 | L9: 244.573 | M9: 95.541 | N9: -40.031679 | P9: 6 | Q9: 244.573 | R9: 98.041 | S9: -41.079179
A10: 7 | B10: 244.06 | C10: 92.553 | D10: -55.439247 | F10: 7 | G10: 244.06 | H10: 93.892 | I10: -56.241308 | K10: 7 | L10: 244.339 | M10: 95.944 | N10: -49.219272 | P10: 7 | Q10: 244.339 | R10: 98.444 | S10: -50.501772
A11: 8 | B11: 243.74 | C11: 92.773 | D11: -62.621775 | F11: 8 | G11: 243.74 | H11: 94.222 | I11: -63.59985 | K11: 8 | L11: 244.06 | M11: 96.316 | N11: -57.693284 | P11: 8 | Q11: 244.06 | R11: 98.816 | S11: -59.190784
A12: 9 | B12: 243.385 | C12: 92.963 | D12: -69.72225 | F12: 9 | G12: 243.385 | H12: 94.507 | I12: -70.88025 | K12: 9 | L12: 243.74 | M12: 96.653 | N12: -65.240775 | P12: 9 | Q12: 243.74 | R12: 99.153 | S12: -66.928275
A13: 10 | B13: 242.99 | C13: 93.147 | D13: -74.890188 | F13: 10 | G13: 242.99 | H13: 94.783 | I13: -76.205532 | K13: 10 | L13: 243.385 | M13: 96.945 | N13: -72.70875 | P13: 10 | Q13: 243.385 | R13: 99.445 | S13: -74.58375
A14: 11 | B14: 242.581 | C14: 93.318 | D14: -77.45394 | F14: 11 | G14: 242.581 | H14: 95.039 | I14: -78.88237 | K14: 11 | L14: 242.99 | M14: 97.226 | N14: -78.169704 | P14: 11 | Q14: 242.99 | R14: 99.726 | S14: -80.179704
A15: 12 | B15: 242.16 | C15: 93.475 | D15: -79.82765 | F15: 12 | G15: 242.16 | H15: 95.275 | I15: -81.36485 | K15: 12 | L15: 242.581 | M15: 97.488 | N15: -80.91504 | P15: 12 | Q15: 242.581 | R15: 99.988 | S15: -82.99004
A16: 13 | B16: 241.727 | C16: 93.619 | D16: -82.010244 | F16: 13 | G16: 241.727 | H16: 95.491 | I16: -83.650116 | K16: 13 | L16: 242.16 | M16: 97.73 | N16: -83.46142 | P16: 13 | Q16: 242.16 | R16: 100.23 | S16: -85.59642
A17: 14 | B17: 241.284 | C17: 93.749 | D17: -83.905355 | F17: 14 | G17: 241.284 | H17: 95.686 | I17: -85.63897 | K17: 14 | L17: 241.727 | M17: 97.95 | N17: -85.8042 | P17: 14 | Q17: 241.727 | R17: 100.45 | S17: -87.9942
A18: 15 | B18: 240.832 | C18: 93.865 | D18: -85.60488 | F18: 15 | G18: 240.832 | H18: 95.86 | I18: -87.42432 | K18: 15 | L18: 241.284 | M18: 98.15 | N18: -87.84425 | P18: 15 | Q18: 241.284 | R18: 100.65 | S18: -90.08175
A19: 16 | B19: 240.372 | C19: 93.966 | D19: -87.106482 | F19: 16 | G19: 240.372 | H19: 96.012 | I19: -89.003124 | K19: 16 | L19: 240.832 | M19: 98.327 | N19: -89.674224 | P19: 16 | Q19: 240.832 | R19: 100.827 | S19: -91.954224
A20: 17 | B20: 239.905 | C20: 94.053 | D20: -145.594044 | F20: 17 | G20: 239.905 | H20: 96.142 | I20: -148.827816 | K20: 17 | L20: 240.372 | M20: 98.483 | N20: -91.293741 | P20: 17 | Q20: 240.372 | R20: 100.983 | S20: -93.611241
A21: 18 | B21: 238.824 | C21: 94.225 | D21: -204.2798 | F21: 18 | G21: 238.824 | H21: 96.4 | I21: -208.9952 | K21: 18 | L21: 239.905 | M21: 98.615 | N21: -152.65602 | P21: 18 | Q21: 239.905 | R21: 101.115 | S21: -156.52602
A22: 19 | B22: 237.737 | C22: 94.377 | D22: -205.836237 | F22: 19 | G22: 237.737 | H22: 96.628 | I22: -210.745668 | K22: 19 | L22: 238.824 | M22: 98.879 | N22: -214.369672 | P22: 19 | Q22: 238.824 | R22: 101.379 | S22: -219.789672
A23: 20 | B23: 236.643 | C23: 94.509 | D23: -207.258237 | F23: 20 | G23: 236.643 | H23: 96.825 | I23: -212.337225 | K23: 20 | L23: 237.737 | M23: 99.111 | N23: -216.161091 | P23: 20 | Q23: 237.737 | R23: 101.611 | S23: -221.613591
A24: 21 | B24: 235.544 | C24: 94.62 | D24: -208.35324 | F24: 21 | G24: 235.544 | H24: 96.993 | I24: -213.578586 | K24: 21 | L24: 236.643 | M24: 99.313 | N24: -217.793409 | P24: 21 | Q24: 236.643 | R24: 101.813 | S24: -223.275909
A25: 22 | B25: 234.441 | C25: 94.712 | D25: -209.31352 | F25: 22 | G25: 234.441 | H25: 97.13 | I25: -214.6573 | K25: 22 | L25: 235.544 | M25: 99.485 | N25: -219.06597 | P25: 22 | Q25: 235.544 | R25: 101.985 | S25: -224.57097
A26: 23 | B26: 233.334 | C26: 94.783 | D26: -210.133911 | F26: 23 | G26: 233.334 | H26: 97.237 | I26: -215.574429 | K26: 23 | L26: 234.441 | M26: 99.625 | N26: -220.17125 | P26: 23 | Q26: 234.441 | R26: 102.125 | S26: -225.69625
A27: 24 | B27: 232.224 | C27: 94.834 | D27: -210.721148 | F27: 24 | G27: 232.224 | H27: 97.314 | I27: -216.231708 | K27: 24 | L27: 233.334 | M27: 99.734 | N27: -221.110278 | P27: 24 | Q27: 233.334 | R27: 102.234 | S27: -226.652778
A28: 25 | B28: 231.112 | C28: 94.865 | D28: -210.97976 | F28: 25 | G28: 231.112 | H28: 97.36 | I28: -216.52864 | K28: 25 | L28: 232.224 | M28: 99.812 | N28: -221.782264 | P28: 25 | Q28: 232.224 | R28: 102.312 | S28: -227.337264
A29: 26 | B29: 230 | C29: 94.875 | D29: -211.002 | F29: 26 | G29: 230 | H29: 97.375 | I29: -216.562 | K29: 26 | L29: 231.112 | M29: 99.859 | N29: -222.086416 | P29: 26 | Q29: 231.112 | R29: 102.359 | S29: -227.646416
A30: 27 | B30: 228.888 | C30: 94.865 | D30: -210.97976 | F30: 27 | G30: 228.888 | H30: 97.36 | I30: -216.52864 | K30: 27 | L30: 230 | M30: 99.875 | N30: -222.122 | P30: 27 | Q30: 230 | R30: 102.375 | S30: -227.682
A31: 28 | B31: 227.776 | C31: 94.834 | D31: -210.721148 | F31: 28 | G31: 227.776 | H31: 97.314 | I31: -216.231708 | K31: 28 | L31: 228.888 | M31: 99.859 | N31: -222.086416 | P31: 28 | Q31: 228.888 | R31: 102.359 | S31: -227.646416
A32: 29 | B32: 226.666 | C32: 94.783 | D32: -210.133911 | F32: 29 | G32: 226.666 | H32: 97.237 | I32: -215.574429 | K32: 29 | L32: 227.776 | M32: 99.812 | N32: -221.782264 | P32: 29 | Q32: 227.776 | R32: 102.312 | S32: -227.337264
A33: 30 | B33: 225.559 | C33: 94.712 | D33: -209.31352 | F33: 30 | G33: 225.559 | H33: 97.13 | I33: -214.6573 | K33: 30 | L33: 226.666 | M33: 99.734 | N33: -221.110278 | P33: 30 | Q33: 226.666 | R33: 102.234 | S33: -226.652778
A34: 31 | B34: 224.456 | C34: 94.62 | D34: -208.35324 | F34: 31 | G34: 224.456 | H34: 96.993 | I34: -213.578586 | K34: 31 | L34: 225.559 | M34: 99.625 | N34: -220.17125 | P34: 31 | Q34: 225.559 | R34: 102.125 | S34: -225.69625
A35: 32 | B35: 223.357 | C35: 94.509 | D35: -207.258237 | F35: 32 | G35: 223.357 | H35: 96.825 | I35: -212.337225 | K35: 32 | L35: 224.456 | M35: 99.485 | N35: -219.06597 | P35: 32 | Q35: 224.456 | R35: 101.985 | S35: -224.57097
A36: 33 | B36: 222.263 | C36: 94.377 | D36: -205.836237 | F36: 33 | G36: 222.263 | H36: 96.628 | I36: -210.745668 | K36: 33 | L36: 223.357 | M36: 99.313 | N36: -217.793409 | P36: 33 | Q36: 223.357 | R36: 101.813 | S36: -223.275909
